Workbook

Sheet Obliczenia
M3: Data: | N3: =TODAY() -> 2024-03-29 | P3: wersja 24/03/29
C8: Program doborowy pomp ciepła powietrze/woda
AA9: Ogrzewanie podłogowe
AA10: Grzejniki niskotemperaturowe 45/35
C11: Symulację przygotowano dla… | AA11: Grzejniki niskotemperaturowe 55/45
AA12: Wybór
AA13: Ogrzewanie podłogowe
AA15: Ogrzewanie podłogowe
C16: Powierzchnia grzewcza budynku | AA16: Grzejniki niskotemperaturowe 45/35
H17: 139 | K17: [ m2 ] | AA17: Grzejniki niskotemperaturowe 55/45
I18: 35 - 1500 | AA18: Grzejniki wysokotemperaturowe 70/55
C19: Standard wykonania budynku | N19: Standard wykonania budynku | EU | AA19: Wybór
H20: 80 | K20: [ kWh/m2/rok ] | N20: Dom energooszczędny | Q20: 50-60 | R20: [kWh/m2rok] | AA20: =AA18 -> Grzejniki wysokotemperaturowe 70/55
I21: 5 - 300 | N21: Dom budowany obecnie WT2021 | Q21: 70-80 | R21: [kWh/m2rok]
N22: Dom istniejący, dobra izolacja cieplna | Q22: 90-120 | R22: [kWh/m2rok]
C23: Lokalizacja (strefa klimatyczna) | K23: =IF(Dane!E10=-16,"[ I strefa ]",IF(Dane!E10=-18,"[ II strefa ]",IF(Dane!E10=-20,"[ III strefa ]",IF(Dane!E10=-22,"[ IV strefa ]","[ V strefa ]")))) -> [ III strefa ] | N23: Dom istniejący, słaba izolacja cieplna | Q23: 130-160 | R23: [kWh/m2rok]
N24: Dom istniejący, bez izolacji cieplnej | Q24: > 170 | R24: [kWh/m2rok]
C25: System ogrzewania budynku
N27: Skrócony bilans energetyczny budynku
C28: Temperatura pomieszczeń | N28: Szacowana moc obliczeniowa budynku | Q28: =Budynek!D10 -> 5.699 | R28: [kW]
H29: 21 | K29: [ °C ] | N29: Szacowane zapotrzebowanie energii | Q29: =Q30+Q31 -> 14139 | R29: [kWh/rok]
H30: 17 - 25 | N30: Szacowane zapotrzebowanie energii CO | Q30: =INT(Bilans!BL25) -> 11542 | R30: [kWh/rok]
N31: Szacowane zapotrzebowanie energii CWU | Q31: =Dane!E22 -> 2597 | R31: [kWh/rok]
... 28 more rows

Sheet Zestawienie
M3: Data: | N3: =TODAY() -> 2024-03-29 | P3: =Obliczenia!P3 -> wersja 24/03/29
C8: Zestawienie wyników symulacji
C11: Zestawienie wyników symulacji wszystkich pomp ciepła
P16: Przybliżone roczne koszty ogrzewania
D17: Model pompy ciepła | H17: Punkt biwalentny | K17: SCOPPC | M17: SCOPinstalacji
P19: Uwaga! Koszty eksploatacji wybranego modelu pompy ciepła, oszacowane z większą dokładnością, znajdują się w zakładce "Koszty 2023"
D22: Vitocal 1xx-A 101.B06 | H22: ='AWO-B06'!$E$44 -> -19.9 | K22: =ROUND('Bilans-AWO-B06'!$K$13,2) -> 3.67 | M22: =ROUND('Bilans-AWO-B06'!$K$14,3) -> 3.669 | P22: =ROUND('Bilans-AWO-B06'!$G$2,0) -> 4607
D23: Vitocal 1xx-A 101.B08 | H23: ='AWO-B08'!$E$44 -> -20 | K23: =ROUND('Bilans-AWO-B08'!$K$13,2) -> 3.57 | M23: =ROUND('Bilans-AWO-B08'!$K$14,3) -> 3.571 | P23: =ROUND('Bilans-AWO-B08'!$G$2,0) -> 4658
D24: Vitocal 1xx-A 101.A10 | H24: ='AWO-A10'!$E$44 -> -20 | K24: =ROUND('Bilans-AWO-A10'!$K$13,2) -> 3.52 | M24: =ROUND('Bilans-AWO-A10'!$K$14,3) -> 3.524 | P24: =ROUND('Bilans-AWO-A10'!$G$2,0) -> 4676
D25: Vitocal 1xx-A 101.A12 | H25: ='AWO-A12'!$E$44 -> -20 | K25: =ROUND('Bilans-AWO-A12'!$K$13,2) -> 3.48 | M25: =ROUND('Bilans-AWO-A12'!$K$14,3) -> 3.477 | P25: =ROUND('Bilans-AWO-A12'!$G$2,0) -> 4746
D26: Vitocal 1xx-A 101.A14 | H26: ='AWO-A14'!$E$44 -> -20 | K26: =ROUND('Bilans-AWO-A14'!$K$13,2) -> 3.8 | M26: =ROUND('Bilans-AWO-A14'!$K$14,3) -> 3.799 | P26: =ROUND('Bilans-AWO-A14'!$G$2,0) -> 4408
D27: Vitocal 1xx-A 101.A16 | H27: ='AWO-A16'!$E$44 -> -20 | K27: =ROUND('Bilans-AWO-A16'!$K$13,2) -> 3.67 | M27: =ROUND('Bilans-AWO-A16'!$K$14,3) -> 3.676 | P27: =ROUND('Bilans-AWO-A16'!$G$2,0) -> 4557
D28: Vitocal 1xx-A 101.A18 | H28: ='AWO-A18'!$E$44 -> -20 | K28: =ROUND('Bilans-AWO-A18'!$K$13,2) -> 3.54 | M28: =ROUND('Bilans-AWO-A18'!$K$14,3) -> 3.54 | P28: =ROUND('Bilans-AWO-A18'!$G$2,0) -> 4690
D32: Vitocal 1xx-S 101.B04 | H32: ='B04'!E44 -> -7.5 | K32: =ROUND('Bilans-B04'!K13,2) -> 3.25 | M32: =ROUND('Bilans-B04'!K14,3) -> 3.257 | P32: =ROUND('Bilans-B04'!G2,0) -> 5420
D33: Vitocal 1xx-S 101.B06 | H33: ='B06'!E44 -> -9.3 | K33: =ROUND('Bilans-B06'!K13,2) -> 3.2 | M33: =ROUND('Bilans-B06'!K14,3) -> 3.201 | P33: =ROUND('Bilans-B06'!G2,0) -> 5479
D34: Vitocal 1xx-S 101.B08 | H34: ='B08'!E44 -> -18.2 | K34: =ROUND('Bilans-B08'!K13,2) -> 3.38 | M34: =ROUND('Bilans-B08'!K14,3) -> 3.383 | P34: =ROUND('Bilans-B08'!G2,0) -> 4932
D35: Vitocal 1xx-S 101.A12 | H35: ='A12'!E44 -> -18.8 | K35: =ROUND('Bilans-A12'!K13,2) -> 3.21 | M35: =ROUND('Bilans-A12'!K14,3) -> 3.208 | P35: =ROUND('Bilans-A12'!G2,0) -> 5218
D36: Vitocal 1xx-S 101.A14 | H36: ='A14'!E44 -> -20 | K36: =ROUND('Bilans-A14'!K13,2) -> 3.22 | M36: =ROUND('Bilans-A14'!K14,3) -> 3.22 | P36: =ROUND('Bilans-A14'!G2,0) -> 5188
D37: Vitocal 1xx-S 101.A16 | H37: ='A16'!E44 -> -20 | K37: =ROUND('Bilans-A16'!K13,2) -> 3.15 | M37: =ROUND('Bilans-A16'!K14,3) -> 3.15 | P37: =ROUND('Bilans-A16'!G2,0) -> 5285
D41: Vitocal 2xx-S 201.E06 R32 | H41: ='E06'!E44 -> -12.4 | K41: =ROUND('Bilans-E06'!K13,2) -> 3.77 | M41: =ROUND('Bilans-E06'!K14,3) -> 3.774 | P41: =ROUND('Bilans-E06'!G2,0) -> 4517
D42: Vitocal 2xx-S 201.E08 R32 | H42: ='E08'!E44 -> -15.3 | K42: =ROUND('Bilans-E08'!K13,2) -> 3.85 | M42: =ROUND('Bilans-E08'!K14,3) -> 3.849 | P42: =ROUND('Bilans-E08'!G2,0) -> 4385
D43: Vitocal 2xx-S 201.E10 R32 | H43: ='E10'!E44 -> -18.2 | K43: =ROUND('Bilans-E10'!K13,2) -> 3.76 | M43: =ROUND('Bilans-E10'!K14,3) -> 3.756 | P43: =ROUND('Bilans-E10'!G2,0) -> 4463
D47: Vitocal 2xx-S 201.D04 | H47: ='D04'!E44 -> -6.4 | K47: =ROUND('Bilans-D04'!K13,2) -> 3.18 | M47: =ROUND('Bilans-D04'!K14,3) -> 3.193 | P47: =ROUND('Bilans-D04'!G2,0) -> 5534
D48: Vitocal 2xx-S 201.D06 | H48: ='D06'!E44 -> -12.7 | K48: =ROUND('Bilans-D06'!K13,2) -> 3.41 | M48: =ROUND('Bilans-D06'!K14,3) -> 3.415 | P48: =ROUND('Bilans-D06'!G2,0) -> 4954
D49: Vitocal 2xx-S 201.D08 | H49: ='D08'!E44 -> -15.7 | K49: =ROUND('Bilans-D08'!K13,2) -> 3.64 | M49: =ROUND('Bilans-D08'!K14,3) -> 3.637 | P49: =ROUND('Bilans-D08'!G2,0) -> 4580
D50: Vitocal 2xx-S 201.D10 | H50: ='D10'!E44 -> -20 | K50: =ROUND('Bilans-D10'!K13,2) -> 3.84 | M50: =ROUND('Bilans-D10'!K13,3) -> 3.837 | P50: =ROUND('Bilans-D10'!G2,0) -> 4320
D51: Vitocal 2xx-S 201.D13 | H51: ='D13'!E44 -> -20 | K51: =ROUND('Bilans-D13'!K13,2) -> 3.73 | M51: =ROUND('Bilans-D13'!K14,3) -> 3.729 | P51: =ROUND('Bilans-D13'!G2,0) -> 4456
D52: Vitocal 2xx-S 201.D16 | H52: ='D16'!E44 -> -20 | K52: =ROUND('Bilans-D16'!K13,2) -> 3.71 | M52: =ROUND('Bilans-D16'!K14,3) -> 3.713 | P52: =ROUND('Bilans-D16'!G2,0) -> 4474
D56: Vitocal 15x-A 151.A04 | H56: ='151.A04'!E44 -> -6.8 | K56: =ROUND('Bilans-151-A04'!K13,2) -> 3.47 | M56: =ROUND('Bilans-151-A04'!K14,2) -> 3.48 | P56: =ROUND('Bilans-151-A04'!G2,0) -> 5099
D57: Vitocal 15x-A 151.A06 | H57: ='151.A06'!E44 -> -12.7 | K57: =ROUND('Bilans-151-A06'!K13,2) -> 3.59 | M57: =ROUND('Bilans-151-A06'!K14,2) -> 3.59 | P57: =ROUND('Bilans-151-A06'!G2,0) -> 4748
D58: Vitocal 15x-A 151.A08 | H58: ='151.A08'!E44 -> -15.6 | K58: =ROUND('Bilans-151-A08'!K13,2) -> 3.57 | M58: =ROUND('Bilans-151-A08'!K14,2) -> 3.57 | P58: =ROUND('Bilans-151-A08'!G2,0) -> 4712
D59: Vitocal 15x-A 151.A10 | H59: ='151.A10'!E44 -> -20 | K59: =ROUND('Bilans-151-A10'!K13,2) -> 3.78 | M59: =ROUND('Bilans-151-A10'!K14,2) -> 3.78 | P59: =ROUND('Bilans-151-A10'!G2,0) -> 4410
D60: Vitocal 15x-A 151.A13 | H60: ='151.A13'!E44 -> -20 | K60: =ROUND('Bilans-151-A13'!K13,2) -> 3.61 | M60: =ROUND('Bilans-151-A13'!K14,2) -> 3.61 | P60: =ROUND('Bilans-151-A13'!G2,0) -> 4641
D61: Vitocal 15x-A 151.A16 | H61: ='151.A16'!E44 -> -20 | K61: =ROUND('Bilans-151-A16'!K13,2) -> 3.61 | M61: =ROUND('Bilans-151-A16'!K14,2) -> 3.61 | P61: =ROUND('Bilans-151-A16'!G2,0) -> 4625
D65: Vitocal 25x-A 251.A04 | H65: ='251.A04'!E44 -> -6.8 | K65: =ROUND('Bilans-251-A04'!K13,2) -> 3.66 | M65: =ROUND('Bilans-251-A04'!K14,2) -> 3.67 | P65: =ROUND('Bilans-251-A04'!G2,0) -> 4832
D66: Vitocal 25x-A 251.A06 | H66: ='251.A06'!E44 -> -11.1 | K66: =ROUND('Bilans-251-A06'!K13,2) -> 3.73 | M66: =ROUND('Bilans-251-A06'!K14,2) -> 3.73 | P66: =ROUND('Bilans-251-A06'!G2,0) -> 4604
D67: Vitocal 25x-A 251.A08 | H67: ='251.A08'!E44 -> -15.6 | K67: =ROUND('Bilans-251-A08'!K13,2) -> 3.59 | M67: =ROUND('Bilans-251-A08'!K14,2) -> 3.59 | P67: =ROUND('Bilans-251-A08'!G2,0) -> 4690
D68: Vitocal 25x-A 251.A10 | H68: ='251.A10'!E44 -> -20 | K68: =ROUND('Bilans-251-A10'!K13,2) -> 4.09 | M68: =ROUND('Bilans-251-A10'!K14,2) -> 4.09 | P68: =ROUND('Bilans-251-A10'!G2,0) -> 4076
D69: Vitocal 25x-A 251.A13 | H69: ='251.A13'!E44 -> -20 | K69: =ROUND('Bilans-251-A13'!K13,2) -> 3.87 | M69: =ROUND('Bilans-251-A13'!K14,2) -> 3.87 | P69: =ROUND('Bilans-251-A13'!G2,0) -> 4340

Sheet Tabela_numerow (hidden)
C3: 100-S B04 | E3: Z021249 | F3: Vitocal 100-S AWB-M-E 101.B04
E4: Z021252 | F4: Vitocal 100-S AWB-M-E-AC 101.B04
D5: pakiet | E5: Z021273 | F5: Vitocal 100-S AWB-M-E 101.B04 + Vitocell 100-W SVWA + Vitocell 100-W CVBC
D6: pakiet | E6: Z024076 | F6: Vitocal 100-S AWB-M-E-AC 101.B04 + Vitocell 100-W SVWA + Vitocell 100-W CVBC
D7: pakiet | E7: Z023807 | F7: Vitocal 100-S AWB-M-E 101.B04 + VSVK 100 + Vitocell 100-W CVBC
D8: pakiet | E8: Z024088 | F8: Vitocal 100-S AWB-M-E-AC 101.B04 + VSVK 100 + Vitocell 100-W CVBC
D9: pakiet | E9: Z024082 | F9: Vitocal 100-S AWB-M-E 101.B04 + Vitocell 100-W CVBC
D10: pakiet | E10: Z021276 | F10: Vitocal 100-S AWB-M-E-AC 101.B04 + Vitocell 100-W CVBC
C17: 100-S B06
C18: 100-S B08
C19: 100-S A12
C20: 100-S A14
C21: 100-S A16
C22: 200-S D04
C23: 200-S D06
C24: 200-S D08
C25: 200-S D10
C26: 200-S D13
C27: 200-S D16
C28: 150-A A10
C29: 150-A A13
C30: 250-A A10
C31: 250-A A13

Sheet Oferta
M3: Data: | N3: =TODAY() -> 2024-03-29 | P3: =Obliczenia!P3 -> wersja 24/03/29
C8: ="Oferta na pompę ciepła "&Obliczenia!D58 -> Oferta na pompę ciepła Vitocal 2xx-S 201.E06
C11: Dane Inwestora
D18: Zestawienie materiałów | H18: Cena katalogowa | K18: Rabat | M18: Wartość netto | P18: VAT | R18: Wartość brutto
V20: 0.08
C21: =Obliczenia!D58 -> Vitocal 2xx-S 201.E06 | M21: =H21-H21*K21 -> 0 | P21: 0.08 | R21: =M21*P21+M21 -> 0 | V21: 0.23
C24: Zbiornik CWU | M24: =H24-H24*K24 -> 0 | P24: 0.08 | R24: =M24*P24+M24 -> 0
C27: Komponent | M27: =H27-H27*K27 -> 0 | P27: 0.08 | R27: =M27*P27+M27 -> 0
C30: Komponent | M30: =H30-H30*K30 -> 0 | P30: 0.08 | R30: =M30*P30+M30 -> 0
C33: Komponent | M33: =H33-H33*K33 -> 0 | P33: 0.08 | R33: =M33*P33+M33 -> 0
C36: Komponent | M36: =H36-H36*K36 -> 0 | P36: 0.08 | R36: =M36*P36+M36 -> 0
C39: Komponent | M39: =H39-H39*K39 -> 0 | P39: 0.08 | R39: =M39*P39+M39 -> 0
C42: Komponent | M42: =H42-H42*K42 -> 0 | P42: 0.08 | R42: =M42*P42+M42 -> 0
C45: Komponent | M45: =H45-H45*K45 -> 0 | P45: 0.08 | R45: =M45*P45+M45 -> 0
C48: Komponent | M48: =H48-H48*K48 -> 0 | P48: 0.08 | R48: =M48*P48+M48 -> 0
C51: Komponent | M51: =H51-H51*K51 -> 0 | P51: 0.08 | R51: =M51*P51+M51 -> 0
C56: Suma | R56: =R21+R24+R27+R30+R33+R36+R39+R42+R45+R48+R51 -> 0
D63: Informacje dodatkowe

Sheet Koszty 2024
R2: =TODAY() -> 2024-03-29 | T2: wersja 05/01/2024 URE
D7: =HLOOKUP($T$11,[1]translation!A2:C52,2,0) -> Kalkulator kosztów ogrzewania i energii cieplnej
D10: =HLOOKUP($T$11,[1]translation!A2:C52,8,0) -> Taryfy i ceny paliw i energii dla 2024
T11: PL
D15: =HLOOKUP($T$11,[1]translation!$A$2:$C$80,3,0) -> Powierzchnia grzewcza budynku
J16: =Obliczenia!H17 -> 139 | L16: [ m2 ]
J17: 35 - 700
D18: =HLOOKUP($T$11,[1]translation!$A$2:$C$80,4,0) -> Standard wykonania budynku | P18: =HLOOKUP($T$11,[1]translation!$A$2:$C$52,9,0) -> Standard wykonania budynku | EU
J19: =Obliczenia!H20 -> 80 | L19: =HLOOKUP($T$11,[1]translation!$A$2:$C$89,81,0) -> [ kWh/m2/rok ] | P19: =HLOOKUP($T$11,[1]translation!$A$2:$C$52,10,0) -> Dom energooszczędny | T19: 50-60 | U19: [kWh/m2rok]
J20: 5 - 300 | P20: =HLOOKUP($T$11,[1]translation!$A$2:$C$52,11,0) -> Dom budowany obecnie WT2021 | T20: 70-80 | U20: [kWh/m2rok]
P21: =HLOOKUP($T$11,[1]translation!$A$2:$C$52,12,0) -> Dom istniejący, dobra izolacja cieplna | T21: 90-120 | U21: [kWh/m2rok]
D22: =HLOOKUP($T$11,[1]translation!$A$2:$C$80,5,0) -> Liczba mieszkańców | J22: =Obliczenia!H32 -> 4 | L22: =HLOOKUP($T$11,[1]translation!$A$2:$C$89,82,0) -> [ osoby ] | P22: =HLOOKUP($T$11,[1]translation!$A$2:$C$52,13,0) -> Dom istniejący, słaba izolacja cieplna | T22: 130-160 | U22: [kWh/m2rok]
J23: 2 - 50 | P23: =HLOOKUP($T$11,[1]translation!$A$2:$C$52,14,0) -> Dom istniejący, bez izolacji cieplnej | T23: > 170 | U23: [kWh/m2rok]
D24: =HLOOKUP($T$11,[1]translation!$A$2:$C$80,6,0) -> Zużycie ciepłej wody użytkowej
J25: =Obliczenia!H35 -> 45 | L25: =HLOOKUP($T$11,[1]translation!$A$2:$C$89,83,0) -> [ litry / dobę / os ]
J26: 25 - 100
D27: =HLOOKUP($T$11,[1]translation!$A$2:$C$80,7,0) -> Temperatura ciepłej wody użytkowej
J28: =Obliczenia!H38 -> 44 | L28: [ °C ]
J29: 35 - 60
... 15 more rows

Sheet Zmiany
M3: Data: | N3: =TODAY() -> 2024-03-29 | P3: =Obliczenia!P3 -> wersja 24/03/29
C8: Program doborowy pomp ciepła powietrze/woda
C11: Raport wprowadzonych zmian
C16: Termin zmiany | F16: Komentarz | R16: Wskaźnik
C19: 2024-03-29 | F19: Aktualizacja kosztów paliw i energii wg taryfikatorów i cenników 2024 | R19: =IF(S19="istotna",1,0.1) -> 1 | S19: istotna
C22: 2023-10-23 | F22: Skorygowano dane dotyczące mocy akustycznej pomp ciepła | R22: =IF(S22="istotna",1,0.1) -> 1 | S22: istotna
F23: Aktualizacja kosztów paliw i energii wg taryfikatorów i cenników 2023 | R23: =IF(S23="istotna",1,0.1) -> 1 | S23: istotna
C26: 2023-07-11 | F26: Skorygowano niepoprawną formułę danych dla wykresu kosztów w zakładce "Koszty 2023" | R26: =IF(S26="istotna",1,0.1) -> 1 | S26: istotna
C29: 2023-06-29 | F29: Dodano dodatkowe modele pomp ciepła serii Vitocal 100-A AWO(-M)-AC-AF | R29: =IF(S29="istotna",1,0.1) -> 1 | S29: istotna
... 20 more rows

Sheet translate (hidden)
A1: 1 | B1: PL | C1: ENG | D1: CZ | E1: Inne
A2: 2 | B2: Program doborowy pomp ciepła powietrze/woda | D2: Program pro výběr tepelných čerpadel vzduch-voda
A3: 3 | B3: Symulację przygotowano dla… | D3: Simulace připravena pro..
A4: 4 | B4: Powierzchnia grzewcza budynku | D4: Vytápěná plocha budovy
A5: 5 | B5: Standard wykonania budynku | D5: Standard provedení budovy
A6: 6 | B6: Lokalizacja (strefa klimatyczna) | D6: Poloha (podnebné pásmo)
A7: 7 | B7: System ogrzewania budynku | D7: Systém vytápění budovy
A8: 8 | B8: Temperatura pomieszczeń | D8: Teplota v místnostech
A9: 9 | B9: Liczba mieszkańców | D9: Počet osob
A10: 10 | B10: Zużycie ciepłej wody użytkowej | D10: Spotřeba teplé užitkové vody
A11: 11 | B11: Temperatura ciepłej wody użytkowej | D11: Teplota teplé užitkové vody
A12: 12 | B12: Standard wykonania budynku | EU | D12: Typ domu dle energetické náročnosti |EU
A13: 13 | B13: Dom energooszczędny | D13: Energeticky úsporný dům
A14: 14 | B14: Dom budowany obecnie WT2021 | D14: Dům ve výstavbě WT2021
A15: 15 | B15: Dom istniejący, dobra izolacja cieplna | D15: Stávající dům, dobrá tepelná izolace
A16: 16 | B16: Dom istniejący, słaba izolacja cieplna | D16: Stávající dům, špatná tepelná izolace
A17: 17 | B17: Dom istniejący, bez izolacji cieplnej | D17: Stávající dům, bez tepelné izolace
A18: 18 | B18: Skrócony bilans energetyczny budynku | D18: Zjednodušená energetická náročnost budovy
A19: 19 | B19: Szacowana moc obliczeniowa budynku | D19: Návrhový tepelný výkon budovy
A20: 20 | B20: Szacowane zapotrzebowanie energii | D20: Odhadovaná spotřeba energie
A21: 21 | B21: Szacowane zapotrzebowanie energii CO | D21: Odhadovaná spotřeba energie ÚT
A22: 22 | B22: Szacowane zapotrzebowanie energii CWU | D22: Odhadovaná spotřeba energie TUV
A23: 23 | B23: Symulacja doboru | D23: Simulace výběru
A24: 24 | B24: Ogrzewanie podłogowe | D24: Podlahové vytápění
A25: 25 | B25: Grzejniki niskotemperaturowe 45/35 | D25: Nízkoteplotní radiátory 45/35
A26: 26 | B26: Grzejniki niskotemperaturowe 55/45 | D26: Nízkoteplotní radiátory 55/45
A27: 27 | B27: Grzejniki wysokotemperaturowe 70/55 | D27: Vysokoteplotní radiátory 70/55
A28: 28 | B28: Wybór | D28: Výběr
A29: 29 | B29: Klasa efektywności energetycznej ogrzewania pomieszczeń | D29: Třída energetické účinnosti pro vytápění prostor
A30: 30 | B30: Klimat umiarkowany, zastosowanie niskotemperaturowe W35 | D30: Mírné podnebí, nízkoteplotní systém W35
A31: 31 | B31: Klimat umiarkowany, zastosowanie średniotemperaturowe W55 | D31: Mírné podnebí, středněteplotní systém W55
... 38 more rows

Sheet Bilans (hidden)
C1: Klimaty chłodny? | E1: FALSE | G1: Różnica | I1: -2 | AP1: SCOP CO i CWU
C2: Wybór | AJ2: CO | AK2: =BL25 -> 11542.74382 | AL2: kWh | AM2: CWU | AN2: =BL30 -> 2586.976744 | AO2: kWh | AP2: =ROUND((AK2+AN2)/(AN3+AK3),2) -> 3.77
C3: =Dane!E5 -> Ogrzewanie podłogowe | V3: Wybrany produkt | X3: =Obliczenia!D58 -> Vitocal 2xx-S 201.E06 | AE3: Warunek mocy obliczeniowej | AK3: =AK2/AK7 -> 3039.5458 | AN3: =AN2/AN7 -> 705.095324
C4: Zapotrzebowanie energii | F4: =Dane!E3 -> 80 | J4: =Budynek!$D$4*(21-F7)*12/1000 -> 30.33590244 | L4: =Budynek!$D$4*(21-F7)*12/1000 -> 30.33590244 | AF4: =Budynek!D10 -> 5.699
Z5: Długość sezonu | AA5: VTS 35 | AC5: COP | AI5: Wybrany VTS | AK5: COP | AL5: CWU | AN5: COP | AQ5: Długość sezonu | AR5: VTS 55 | AT5: COP | AV5: VTS 45 | AX5: COP | AZ5: VTS 70 | BB5: COP | BF5: -20 | BG5: -15 | BH5: -7 | BI5: 2 | BJ5: 7 | BK5: 10 | BL5: 12 | BM5: 15 | BN5: 20 | BO5: 30 | BV5: Ceny | BW5: Vitocal 200-S AWB-M-E(-AC) 201.D04 | BX5: ='D04'!B25 -> 31109 | BY5: ='Bilans-D04'!G7 -> 3.192930367 | BZ5: =BX5/BY5 -> 9743.087516 | CA5: =BZ5 -> 9743.087516 | CM5: ilość "h" poniżej
C6: =Meteo!N1 -> Kraków | E6: Dzień | F6: T średnia | H6: T zasilania | J6: E wymagana-dzień12h | L6: E wymagana-noc12h | N6: Suma E | P6: Suma E (<12 C) | R6: Suma E (<15 C) | T6: Energia CWU | AA6: EPC | AB6: E2ŹC | AE6: D16 | AF6: ='D16'!B28 -> 16.7 | AG6: =IF(AF6>=$AF$4,IF($C$3<>"Grzejniki wysokotemperaturowe 70/55",1,0),0) -> 1 | AI6: EPC | AJ6: E2ŹC | AL6: EPC | AM6: E2ŹC | AR6: Epc | AS6: E2ŹC | AV6: Epc | AW6: E2ŹC | AZ6: Epc | BA6: E2ŹC | BF6: ='D16'!D38 -> 5.699 | BG6: ='D16'!E38 -> 4.99923247 | BH6: ='D16'!F38 -> 3.879604421 | BI6: ='D16'!G38 -> 2.620022866 | BJ6: ='D16'!H38 -> 1.920255335 | BK6: ='D16'!I38 -> 1.500394817 | BL6: ='D16'!J38 -> 1.220487805 | BM6: ='D16'!K38 -> 0.8006272866 | BW6: Vitocal 200-S AWB-M-E(-AC) 201.D06 | BX6: ='D06'!B25 -> 32980 | BY6: ='Bilans-D06'!G7 -> 3.414762475 | BZ6: =BX6/BY6 -> 9658.065603 | CA6: =BZ6 -> 9658.065603 | CM6: 0stC | CN6: -5stC | CO6: -10stC | CP6: -15stC | CQ6: =BF22 -> -12.4
A7: 2 | B7: =HLOOKUP($C$6,meteo_pelne,A7,0) -> 2.1 | C7: =IF($E$1=FALSE,B7,IF(B7<0,B7+$I$1,B7)) -> 2.1 | D7: I | E7: 1 | F7: =AVERAGE(C7:C30) -> 2.358333333 | H7: =F7*Budynek!$D$31+Budynek!$D$32 -> 26.615625 | J7: =Budynek!$D$4*(Dane!$E$12-F7)*12/1000 -> 30.33590244 | L7: =Budynek!$D$4*(Dane!$E$13-F7)*12/1000 -> 23.82663415 | N7: =J7+L7 -> 54.16253659 | P7: =IF(F7=12,N7,IF(F7<12,N7,0)) -> 54.16253659 | Q7: =IF(P7=0," ",P7) -> 54.16253659 | R7: =IF(F7=15,N7,IF(F7<15,N7,0)) -> 54.16253659 | S7: =IF(R7=0," ",R7) -> 54.16253659 | T7: =Dane!E4*(Dane!E7-10)*1/860*Dane!G4 -> 7.11627907 | Z7: =COUNT(Bilans!Q7:Q371) -> 198 | AA7: =IF(Obliczenia!$D$58="Vitocal 2xx-S 201.E06",'Bilans-E06'!Z7,IF(Obliczenia!$D$58="Vitocal 2xx-S 201.E08",'Bilans-E08'!Z7,IF(Obliczenia!$D$58="Vitocal 2xx-S 201.E10",'Bilans-E10'!Z7,IF(Obliczenia!$D$58="Vitocal 1xx-S 101.B04",'Bilans-B04'!Z7,IF(Obliczenia!$D$58="Vitocal 1xx-S 101.B06",'Bilans-B06'!Z7,IF(Obliczenia!$D$58="Vitocal 1xx-S 101.B08",'Bilans-B08'!Z7,IF(Obliczenia!$D$58="Vitocal 1xx-S 101.A12",'Bilans-A12'!Z7,IF(Obliczenia!$D$58="Vitocal 1xx-S 101.A14",'Bilans-A14'!Z7,IF(Obliczenia!$D$58="Vitocal 1xx-S 101.A16",'Bilans-A16'!Z7,IF(Obliczenia!$D$58="Vitocal 2xx-S 201.D04",'Bilans-D04'!Z7,IF(Obliczenia!$D$58="Vitocal 2xx-S 201.D06",'Bilans-B06'!Z7,IF(Obliczenia!$D$58="Vitocal 2xx-S 201.D08",'Bilans-D08'!Z7,IF(Obliczenia!$D$58="Vitocal 2xx-S 201.D10",'Bilans-D10'!Z7,IF(Obliczenia!$D$58="Vitocal 2xx-S 201.D13",'Bilans-D13'!Z7,IF(Obliczenia!$D$58="Vitocal 2xx-S 201.D16",'Bilans-D16'!Z7,IF(Obliczenia!$D$58="Vitocal 15x-A 151.A10",'Bilans-151-A10'!Z7,IF(Obliczenia!$D$58="Vitocal 15x-A 151.A13",'Bilans-151-A13'!Z7,IF(Obliczenia!$D$58="Vitocal 15x-A 151.A16",'Bilans-151-A16'!Z7,IF(Obliczenia!$D$58="Vitocal 15x-A 151.A16",'Bilans-151-A16'!Z7,IF(Obliczenia!$D$58="Vitocal 25x-A 251.A10",'Bilans-251-A10'!Z7,IF(Obliczenia!$D$58="Vitocal 25x-A 251.A13",'Bilans-251-A13'!Z7,IF(Obliczenia!$D$58="Vitocal 15x-A 151.A06",'Bilans-151-A06'!Z7,IF(Obliczenia!$D$58="Vitocal 15x-A 151.A08",'Bilans-151-A08'!Z7,IF(Obliczenia!$D$58="Vitocal 15x-A 151.A04",'Bilans-151-A04'!Z7,IF(Obliczenia!$D$58="Vitocal 25x-A 251.A04",'Bilans-251-A04'!Z7,IF(Obliczenia!$D$58="Vitocal 25x-A 251.A06",'Bilans-251-A06'!Z7,IF(Obliczenia!$D$58="Vitocal 25x-A 251.A08",'Bilans-251-A08'!Z7,IF(Obliczenia!$D$58="Vitocal 100-A 101.B06",'Bilans-AWO-B06'!Z7,IF(Obliczenia!$D$58="Vitocal 100-A 101.B08",'Bilans-AWO-B08'!Z7,IF(Obliczenia!$D$58="Vitocal 100-A 101.A10",'Bilans-AWO-A10'!Z7,IF(Obliczenia!$D$58="Vitocal 100-A 101.A12",'Bilans-AWO-A12'!Z7,IF(Obliczenia!$D$58="Vitocal 100-A 101.A14",'Bilans-AWO-A14'!Z7,IF(Obliczenia!$D$58="Vitocal 100-A 101.A16",'Bilans-AWO-A16'!Z7,IF(Obliczenia!$D$58="Vitocal 100-A 101.A18",'Bilans-AWO-A18'!Z7,"błąd")))))))))))))))))))))))))))))))))) -> 54.16253659 | AB7: =IF(Obliczenia!$D$58="Vitocal 2xx-S 201.E06",'Bilans-E06'!AA7,IF(Obliczenia!$D$58="Vitocal 2xx-S 201.E08",'Bilans-E08'!AA7,IF(Obliczenia!$D$58="Vitocal 2xx-S 201.E10",'Bilans-E10'!AA7,IF(Obliczenia!$D$58="Vitocal 1xx-S 101.B04",'Bilans-B04'!AA7,IF(Obliczenia!$D$58="Vitocal 1xx-S 101.B06",'Bilans-B06'!AA7,IF(Obliczenia!$D$58="Vitocal 1xx-S 101.B08",'Bilans-B08'!AA7,IF(Obliczenia!$D$58="Vitocal 1xx-S 101.A12",'Bilans-A12'!AA7,IF(Obliczenia!$D$58="Vitocal 1xx-S 101.A14",'Bilans-A14'!AA7,IF(Obliczenia!$D$58="Vitocal 1xx-S 101.A16",'Bilans-A16'!AA7,IF(Obliczenia!$D$58="Vitocal 2xx-S 201.D04",'Bilans-D04'!AA7,IF(Obliczenia!$D$58="Vitocal 2xx-S 201.D06",'Bilans-B06'!AA7,IF(Obliczenia!$D$58="Vitocal 2xx-S 201.D08",'Bilans-D08'!AA7,IF(Obliczenia!$D$58="Vitocal 2xx-S 201.D10",'Bilans-D10'!AA7,IF(Obliczenia!$D$58="Vitocal 2xx-S 201.D13",'Bilans-D13'!AA7,IF(Obliczenia!$D$58="Vitocal 2xx-S 201.D16",'Bilans-D16'!AA7,IF(Obliczenia!$D$58="Vitocal 15x-A 151.A10",'Bilans-151-A10'!AA7,IF(Obliczenia!$D$58="Vitocal 15x-A 151.A13",'Bilans-151-A13'!AA7,IF(Obliczenia!$D$58="Vitocal 15x-A 151.A16",'Bilans-151-A16'!AA7,IF(Obliczenia!$D$58="Vitocal 15x-A 151.A16",'Bilans-151-A16'!AA7,IF(Obliczenia!$D$58="Vitocal 25x-A 251.A10",'Bilans-251-A10'!AA7,IF(Obliczenia!$D$58="Vitocal 25x-A 251.A13",'Bilans-251-A13'!AA7,IF(Obliczenia!$D$58="Vitocal 15x-A 151.A08",'Bilans-151-A08'!AA7,IF(Obliczenia!$D$58="Vitocal 15x-A 151.A06",'Bilans-151-A06'!AA7,IF(Obliczenia!$D$58="Vitocal 15x-A 151.A04",'Bilans-151-A04'!AA7,IF(Obliczenia!$D$58="Vitocal 25x-A 251.A04",'Bilans-251-A04'!AA7,IF(Obliczenia!$D$58="Vitocal 25x-A 251.A06",'Bilans-251-A06'!AA7,IF(Obliczenia!$D$58="Vitocal 25x-A 251.A08",'Bilans-251-A08'!AA7,IF(Obliczenia!$D$58="Vitocal 100-A 101.B06",'Bilans-AWO-B06'!AA7,IF(Obliczenia!$D$58="Vitocal 100-A 101.B08",'Bilans-AWO-B08'!AA7,IF(Obliczenia!$D$58="Vitocal 100-A 101.A10",'Bilans-AWO-A10'!AA7,IF(Obliczenia!$D$58="Vitocal 100-A 101.A12",'Bilans-AWO-A12'!AA7,IF(Obliczenia!$D$58="Vitocal 100-A 101.A14",'Bilans-AWO-A14'!AA7,IF(Obliczenia!$D$58="Vitocal 100-A 101.A16",'Bilans-AWO-A16'!AA7,IF(Obliczenia!$D$58="Vitocal 100-A 101.A18",'Bilans-AWO-A18'!AA7,"błąd")))))))))))))))))))))))))))))))))) -> 0 | AC7: =IF(Obliczenia!$D$58="Vitocal 2xx-S 201.E06",'Bilans-E06'!F11,IF(Obliczenia!$D$58="Vitocal 2xx-S 201.E08",'Bilans-E08'!F11,IF(Obliczenia!$D$58="Vitocal 2xx-S 201.E10",'Bilans-E10'!F11,IF(Obliczenia!$D$58="Vitocal 1xx-S 101.B04",'Bilans-B04'!F11,IF(Obliczenia!$D$58="Vitocal 1xx-S 101.B06",'Bilans-B06'!F11,IF(Obliczenia!$D$58="Vitocal 1xx-S 101.B08",'Bilans-B08'!F11,IF(Obliczenia!$D$58="Vitocal 1xx-S 101.A12",'Bilans-A12'!F11,IF(Obliczenia!$D$58="Vitocal 1xx-S 101.A14",'Bilans-A14'!F11,IF(Obliczenia!$D$58="Vitocal 1xx-S 101.A16",'Bilans-A16'!F11,IF(Obliczenia!$D$58="Vitocal 2xx-S 201.D04",'Bilans-D04'!F11,IF(Obliczenia!$D$58="Vitocal 2xx-S 201.D06",'Bilans-B06'!F11,IF(Obliczenia!$D$58="Vitocal 2xx-S 201.D08",'Bilans-D08'!F11,IF(Obliczenia!$D$58="Vitocal 2xx-S 201.D10",'Bilans-D10'!F11,IF(Obliczenia!$D$58="Vitocal 2xx-S 201.D13",'Bilans-D13'!F11,IF(Obliczenia!$D$58="Vitocal 2xx-S 201.D16",'Bilans-D16'!F11,IF(Obliczenia!$D$58="Vitocal 15x-A 151.A10",'Bilans-151-A10'!F11,IF(Obliczenia!$D$58="Vitocal 15x-A 151.A13",'Bilans-151-A13'!F11,IF(Obliczenia!$D$58="Vitocal 15x-A 151.A16",'Bilans-151-A16'!F11,IF(Obliczenia!$D$58="Vitocal 25x-A 251.A10",'Bilans-251-A10'!F11,IF(Obliczenia!$D$58="Vitocal 25x-A 251.A13",'Bilans-251-A13'!F11,IF(Obliczenia!$D$58="Vitocal 15x-A 151.A08",'Bilans-151-A08'!F11,IF(Obliczenia!$D$58="Vitocal 15x-A 151.A06",'Bilans-151-A06'!F11,IF(Obliczenia!$D$58="Vitocal 15x-A 151.A04",'Bilans-151-A04'!F11,IF(Obliczenia!$D$58="Vitocal 25x-A 251.A08",'Bilans-251-A08'!F11,IF(Obliczenia!$D$58="Vitocal 25x-A 251.A06",'Bilans-251-A06'!F11,IF(Obliczenia!$D$58="Vitocal 25x-A 251.A04",'Bilans-251-A04'!F11,IF(Obliczenia!$D$58="Vitocal 100-A 101.B06",'Bilans-AWO-B06'!F11,IF(Obliczenia!$D$58="Vitocal 100-A 101.B08",'Bilans-AWO-B08'!F11,IF(Obliczenia!$D$58="Vitocal 100-A 101.A10",'Bilans-AWO-A10'!F11,IF(Obliczenia!$D$58="Vitocal 100-A 101.A12",'Bilans-AWO-A12'!F11,IF(Obliczenia!$D$58="Vitocal 100-A 101.A14",'Bilans-AWO-A14'!F11,IF(Obliczenia!$D$58="Vitocal 100-A 101.A16",'Bilans-AWO-A16'!F11,IF(Obliczenia!$D$58="Vitocal 100-A 101.A18",'Bilans-AWO-A18'!F11,"błąd"))))))))))))))))))))))))))))))))) -> 3.797522584 | AE7: D13 | AF7: ='D13'!B28 -> 16.3 | AG7: 1 | AI7: =IF($C$3="Ogrzewanie podłogowe",AA7,IF($C$3="Grzejniki niskotemperaturowe 55/45",AR7,IF($C$3="Grzejniki wysokotemperaturowe 70/55",AZ7,AV7))) -> 54.16253659 | AJ7: =IF($C$3="Ogrzewanie podłogowe",AB7,IF($C$3="Grzejniki niskotemperaturowe 55/45",AS7,IF($C$3="Grzejniki wysokotemperaturowe 70/55",BA7,AW7))) -> 0 | AK7: =IF($C$3="Ogrzewanie podłogowe",AC7,IF($C$3="Grzejniki niskotemperaturowe 55/45",AT7,IF($C$3="Grzejniki wysokotemperaturowe 70/55",BB7,AX7))) -> 3.797522584 | AL7: =IF(Obliczenia!$D$58="Vitocal 2xx-S 201.E06",'Bilans-E06'!BX373,IF(Obliczenia!$D$58="Vitocal 2xx-S 201.E08",'Bilans-E08'!BX373,IF(Obliczenia!$D$58="Vitocal 2xx-S 201.E10",'Bilans-E10'!BX373,IF(Obliczenia!$D$58="Vitocal 1xx-S 101.B04",'Bilans-B04'!BX373,IF(Obliczenia!$D$58="Vitocal 1xx-S 101.B06",'Bilans-B06'!BX373,IF(Obliczenia!$D$58="Vitocal 1xx-S 101.B08",'Bilans-B08'!BX373,IF(Obliczenia!$D$58="Vitocal 1xx-S 101.A12",'Bilans-A12'!BX373,IF(Obliczenia!$D$58="Vitocal 1xx-S 101.A14",'Bilans-A14'!BX373,IF(Obliczenia!$D$58="Vitocal 1xx-S 101.A16",'Bilans-A16'!BX373,IF(Obliczenia!$D$58="Vitocal 2xx-S 201.D04",'Bilans-D04'!BX373,IF(Obliczenia!$D$58="Vitocal 2xx-S 201.D06",'Bilans-B06'!BX373,IF(Obliczenia!$D$58="Vitocal 2xx-S 201.D08",'Bilans-D08'!BX373,IF(Obliczenia!$D$58="Vitocal 2xx-S 201.D10",'Bilans-D10'!BX373,IF(Obliczenia!$D$58="Vitocal 2xx-S 201.D13",'Bilans-D13'!BX373,IF(Obliczenia!$D$58="Vitocal 2xx-S 201.D16",'Bilans-D16'!BX373,IF(Obliczenia!$D$58="Vitocal 15x-A 151.A10",'Bilans-151-A10'!BX373,IF(Obliczenia!$D$58="Vitocal 15x-A 151.A13",'Bilans-151-A13'!BX373,IF(Obliczenia!$D$58="Vitocal 15x-A 151.A16",'Bilans-151-A16'!BX373,IF(Obliczenia!$D$58="Vitocal 25x-A 251.A10",'Bilans-251-A10'!BX373,IF(Obliczenia!$D$58="Vitocal 25x-A 251.A13",'Bilans-251-A13'!BX373,IF(Obliczenia!$D$58="Vitocal 15x-A 151.A08",'Bilans-151-A08'!BX373,IF(Obliczenia!$D$58="Vitocal 15x-A 151.A06",'Bilans-151-A06'!BX373,IF(Obliczenia!$D$58="Vitocal 15x-A 151.A04",'Bilans-151-A04'!BX373,IF(Obliczenia!$D$58="Vitocal 25x-A 251.A08",'Bilans-251-A08'!BX373,IF(Obliczenia!$D$58="Vitocal 25x-A 251.A06",'Bilans-251-A06'!BX373,IF(Obliczenia!$D$58="Vitocal 25x-A 251.A04",'Bilans-251-A04'!BX373,IF(Obliczenia!$D$58="Vitocal 100-A 101.B06",'Bilans-AWO-B06'!BX373,IF(Obliczenia!$D$58="Vitocal 100-A 101.B08",'Bilans-AWO-B08'!BX373,IF(Obliczenia!$D$58="Vitocal 100-A 101.A10",'Bilans-AWO-A10'!BX373,IF(Obliczenia!$D$58="Vitocal 100-A 101.A12",'Bilans-AWO-A12'!BX373,IF(Obliczenia!$D$58="Vitocal 100-A 101.A14",'Bilans-AWO-A14'!BX373,IF(Obliczenia!$D$58="Vitocal 100-A 101.A16",'Bilans-AWO-A16'!BX373,IF(Obliczenia!$D$58="Vitocal 100-A 101.A18",'Bilans-AWO-A18'!BX373,"błąd"))))))))))))))))))))))))))))))))) -> 2586.976744 | AM7: =IF(Obliczenia!$D$58="Vitocal 2xx-S 201.E06",'Bilans-E06'!BY373,IF(Obliczenia!$D$58="Vitocal 2xx-S 201.E08",'Bilans-E08'!BY373,IF(Obliczenia!$D$58="Vitocal 2xx-S 201.E10",'Bilans-E10'!BY373,IF(Obliczenia!$D$58="Vitocal 1xx-S 101.B04",'Bilans-B04'!BY373,IF(Obliczenia!$D$58="Vitocal 1xx-S 101.B06",'Bilans-B06'!BY373,IF(Obliczenia!$D$58="Vitocal 1xx-S 101.B08",'Bilans-B08'!BY373,IF(Obliczenia!$D$58="Vitocal 1xx-S 101.A12",'Bilans-A12'!BY373,IF(Obliczenia!$D$58="Vitocal 1xx-S 101.A14",'Bilans-A14'!BY373,IF(Obliczenia!$D$58="Vitocal 1xx-S 101.A16",'Bilans-A16'!BY373,IF(Obliczenia!$D$58="Vitocal 2xx-S 201.D04",'Bilans-D04'!BY373,IF(Obliczenia!$D$58="Vitocal 2xx-S 201.D06",'Bilans-B06'!BY373,IF(Obliczenia!$D$58="Vitocal 2xx-S 201.D08",'Bilans-D08'!BY373,IF(Obliczenia!$D$58="Vitocal 2xx-S 201.D10",'Bilans-D10'!BY373,IF(Obliczenia!$D$58="Vitocal 2xx-S 201.D13",'Bilans-D13'!BY373,IF(Obliczenia!$D$58="Vitocal 2xx-S 201.D16",'Bilans-D16'!BY373,IF(Obliczenia!$D$58="Vitocal 15x-A 151.A10",'Bilans-151-A10'!BY373,IF(Obliczenia!$D$58="Vitocal 15x-A 151.A13",'Bilans-151-A13'!BY373,IF(Obliczenia!$D$58="Vitocal 15x-A 151.A16",'Bilans-151-A16'!BY373,IF(Obliczenia!$D$58="Vitocal 25x-A 251.A10",'Bilans-251-A10'!BY373,IF(Obliczenia!$D$58="Vitocal 25x-A 251.A13",'Bilans-251-A13'!BY373,IF(Obliczenia!$D$58="Vitocal 15x-A 151.A08",'Bilans-151-A08'!BY373,IF(Obliczenia!$D$58="Vitocal 15x-A 151.A06",'Bilans-151-A06'!BY373,IF(Obliczenia!$D$58="Vitocal 15x-A 151.A04",'Bilans-151-A04'!BY373,IF(Obliczenia!$D$58="Vitocal 25x-A 251.A08",'Bilans-251-A08'!BY373,IF(Obliczenia!$D$58="Vitocal 25x-A 251.A06",'Bilans-251-A06'!BY373,IF(Obliczenia!$D$58="Vitocal 25x-A 251.A04",'Bilans-251-A04'!BY373,IF(Obliczenia!$D$58="Vitocal 100-A 101.B06",'Bilans-AWO-B06'!BY373,IF(Obliczenia!$D$58="Vitocal 100-A 101.B08",'Bilans-AWO-B08'!BY373,IF(Obliczenia!$D$58="Vitocal 100-A 101.A10",'Bilans-AWO-A10'!BY373,IF(Obliczenia!$D$58="Vitocal 100-A 101.A12",'Bilans-AWO-A12'!BY373,IF(Obliczenia!$D$58="Vitocal 100-A 101.A14",'Bilans-AWO-A14'!BY373,IF(Obliczenia!$D$58="Vitocal 100-A 101.A16",'Bilans-AWO-A16'!BY373,IF(Obliczenia!$D$58="Vitocal 100-A 101.A18",'Bilans-AWO-A18'!BY373,"błąd"))))))))))))))))))))))))))))))))) -> 10.46511628 | AN7: =IF(Obliczenia!$D$58="Vitocal 2xx-S 201.E06",'Bilans-E06'!F19,IF(Obliczenia!$D$58="Vitocal 2xx-S 201.E08",'Bilans-E08'!F19,IF(Obliczenia!$D$58="Vitocal 2xx-S 201.E10",'Bilans-E10'!F19,IF(Obliczenia!$D$58="Vitocal 1xx-S 101.B04",'Bilans-B04'!F19,IF(Obliczenia!$D$58="Vitocal 1xx-S 101.B06",'Bilans-B06'!F19,IF(Obliczenia!$D$58="Vitocal 1xx-S 101.B08",'Bilans-B08'!F19,IF(Obliczenia!$D$58="Vitocal 1xx-S 101.A12",'Bilans-A12'!F19,IF(Obliczenia!$D$58="Vitocal 1xx-S 101.A14",'Bilans-A14'!F19,IF(Obliczenia!$D$58="Vitocal 1xx-S 101.A16",'Bilans-A16'!F19,IF(Obliczenia!$D$58="Vitocal 2xx-S 201.D04",'Bilans-D04'!F19,IF(Obliczenia!$D$58="Vitocal 2xx-S 201.D06",'Bilans-D06'!F19,IF(Obliczenia!$D$58="Vitocal 2xx-S 201.D08",'Bilans-D08'!F19,IF(Obliczenia!$D$58="Vitocal 2xx-S 201.D10",'Bilans-D10'!F19,IF(Obliczenia!$D$58="Vitocal 2xx-S 201.D13",'Bilans-D13'!F19,IF(Obliczenia!$D$58="Vitocal 2xx-S 201.D16",'Bilans-D16'!F19,IF(Obliczenia!$D$58="Vitocal 15x-A 151.A10",'Bilans-151-A10'!F19,IF(Obliczenia!$D$58="Vitocal 15x-A 151.A13",'Bilans-151-A13'!F19,IF(Obliczenia!$D$58="Vitocal 15x-A 151.A16",'Bilans-151-A16'!F19,IF(Obliczenia!$D$58="Vitocal 25x-A 251.A10",'Bilans-251-A10'!F19,IF(Obliczenia!$D$58="Vitocal 25x-A 251.A13",'Bilans-251-A13'!F19,IF(Obliczenia!$D$58="Vitocal 15x-A 151.A08",'Bilans-151-A08'!F19,IF(Obliczenia!$D$58="Vitocal 15x-A 151.A06",'Bilans-151-A06'!F19,IF(Obliczenia!$D$58="Vitocal 15x-A 151.A04",'Bilans-151-A04'!F19,IF(Obliczenia!$D$58="Vitocal 25x-A 251.A04",'Bilans-251-A04'!F19,IF(Obliczenia!$D$58="Vitocal 25x-A 251.A06",'Bilans-251-A06'!F19,IF(Obliczenia!$D$58="Vitocal 25x-A 251.A08",'Bilans-251-A08'!F19,IF(Obliczenia!$D$58="Vitocal 100-A 101.B06",'Bilans-AWO-B06'!F19,IF(Obliczenia!$D$58="Vitocal 100-A 101.B08",'Bilans-AWO-B08'!F19,IF(Obliczenia!$D$58="Vitocal 100-A 101.A10",'Bilans-AWO-A10'!F19,IF(Obliczenia!$D$58="Vitocal 100-A 101.A12",'Bilans-AWO-A12'!F19,IF(Obliczenia!$D$58="Vitocal 100-A 101.A14",'Bilans-AWO-A14'!F19,IF(Obliczenia!$D$58="Vitocal 100-A 101.A16",'Bilans-AWO-A16'!F19,IF(Obliczenia!$D$58="Vitocal 100-A 101.A18",'Bilans-AWO-A18'!F19,"błąd"))))))))))))))))))))))))))))))))) -> 3.668974472 | AQ7: =COUNT(Bilans!S7:S371) -> 232 | AR7: =IF(Obliczenia!$D$58="Vitocal 2xx-S 201.E06",'Bilans-E06'!AR7,IF(Obliczenia!$D$58="Vitocal 2xx-S 201.E08",'Bilans-E08'!AR7,IF(Obliczenia!$D$58="Vitocal 2xx-S 201.E10",'Bilans-E10'!AR7,IF(Obliczenia!$D$58="Vitocal 1xx-S 101.B04",'Bilans-B04'!AR7,IF(Obliczenia!$D$58="Vitocal 1xx-S 101.B06",'Bilans-B06'!AR7,IF(Obliczenia!$D$58="Vitocal 1xx-S 101.B08",'Bilans-B08'!AR7,IF(Obliczenia!$D$58="Vitocal 1xx-S 101.A12",'Bilans-A12'!AR7,IF(Obliczenia!$D$58="Vitocal 1xx-S 101.A14",'Bilans-A14'!AR7,IF(Obliczenia!$D$58="Vitocal 1xx-S 101.A16",'Bilans-A16'!AR7,IF(Obliczenia!$D$58="Vitocal 2xx-S 201.D04",'Bilans-D04'!AR7,IF(Obliczenia!$D$58="Vitocal 2xx-S 201.D06",'Bilans-B06'!AR7,IF(Obliczenia!$D$58="Vitocal 2xx-S 201.D08",'Bilans-D08'!AR7,IF(Obliczenia!$D$58="Vitocal 2xx-S 201.D10",'Bilans-D10'!AR7,IF(Obliczenia!$D$58="Vitocal 2xx-S 201.D13",'Bilans-D13'!AR7,IF(Obliczenia!$D$58="Vitocal 2xx-S 201.D16",'Bilans-D16'!AR7,IF(Obliczenia!$D$58="Vitocal 15x-A 151.A10",'Bilans-151-A10'!AR7,IF(Obliczenia!$D$58="Vitocal 15x-A 151.A13",'Bilans-151-A13'!AR7,IF(Obliczenia!$D$58="Vitocal 15x-A 151.A16",'Bilans-151-A16'!AR7,IF(Obliczenia!$D$58="Vitocal 25x-A 251.A10",'Bilans-251-A10'!AR7,IF(Obliczenia!$D$58="Vitocal 25x-A 251.A13",'Bilans-251-A13'!AR7,IF(Obliczenia!$D$58="Vitocal 15x-A 151.A08",'Bilans-151-A08'!AR7,IF(Obliczenia!$D$58="Vitocal 15x-A 151.A06",'Bilans-151-A06'!AR7,IF(Obliczenia!$D$58="Vitocal 15x-A 151.A04",'Bilans-151-A04'!AR7,IF(Obliczenia!$D$58="Vitocal 25x-A 251.A04",'Bilans-251-A04'!AR7,IF(Obliczenia!$D$58="Vitocal 25x-A 251.A06",'Bilans-251-A06'!AR7,IF(Obliczenia!$D$58="Vitocal 25x-A 251.A08",'Bilans-251-A08'!AR7,IF(Obliczenia!$D$58="Vitocal 100-A 101.B06",'Bilans-AWO-B06'!AR7,IF(Obliczenia!$D$58="Vitocal 100-A 101.B08",'Bilans-AWO-B08'!AR7,IF(Obliczenia!$D$58="Vitocal 100-A 101.A10",'Bilans-AWO-A10'!AR7,IF(Obliczenia!$D$58="Vitocal 100-A 101.A12",'Bilans-AWO-A12'!AR7,IF(Obliczenia!$D$58="Vitocal 100-A 101.A14",'Bilans-AWO-A14'!AR7,IF(Obliczenia!$D$58="Vitocal 100-A 101.A16",'Bilans-AWO-A16'!AR7,IF(Obliczenia!$D$58="Vitocal 100-A 101.A18",'Bilans-AWO-A18'!AR7,"błąd"))))))))))))))))))))))))))))))))) -> 54.16253659 | AS7: =IF(Obliczenia!$D$58="Vitocal 2xx-S 201.E06",'Bilans-E06'!AS7,IF(Obliczenia!$D$58="Vitocal 2xx-S 201.E08",'Bilans-E08'!AS7,IF(Obliczenia!$D$58="Vitocal 2xx-S 201.E10",'Bilans-E10'!AS7,IF(Obliczenia!$D$58="Vitocal 1xx-S 101.B04",'Bilans-B04'!AS7,IF(Obliczenia!$D$58="Vitocal 1xx-S 101.B06",'Bilans-B06'!AS7,IF(Obliczenia!$D$58="Vitocal 1xx-S 101.B08",'Bilans-B08'!AS7,IF(Obliczenia!$D$58="Vitocal 1xx-S 101.A12",'Bilans-A12'!AS7,IF(Obliczenia!$D$58="Vitocal 1xx-S 101.A14",'Bilans-A14'!AS7,IF(Obliczenia!$D$58="Vitocal 1xx-S 101.A16",'Bilans-A16'!AS7,IF(Obliczenia!$D$58="Vitocal 2xx-S 201.D04",'Bilans-D04'!AS7,IF(Obliczenia!$D$58="Vitocal 2xx-S 201.D06",'Bilans-B06'!AS7,IF(Obliczenia!$D$58="Vitocal 2xx-S 201.D08",'Bilans-D08'!AS7,IF(Obliczenia!$D$58="Vitocal 2xx-S 201.D10",'Bilans-D10'!AS7,IF(Obliczenia!$D$58="Vitocal 2xx-S 201.D13",'Bilans-D13'!AS7,IF(Obliczenia!$D$58="Vitocal 2xx-S 201.D16",'Bilans-D16'!AS7,IF(Obliczenia!$D$58="Vitocal 15x-A 151.A10",'Bilans-151-A10'!AS7,IF(Obliczenia!$D$58="Vitocal 15x-A 151.A13",'Bilans-151-A13'!AS7,IF(Obliczenia!$D$58="Vitocal 15x-A 151.A16",'Bilans-151-A16'!AS7,IF(Obliczenia!$D$58="Vitocal 25x-A 251.A10",'Bilans-251-A10'!AS7,IF(Obliczenia!$D$58="Vitocal 25x-A 251.A13",'Bilans-251-A13'!AS7,IF(Obliczenia!$D$58="Vitocal 15x-A 151.A08",'Bilans-151-A08'!AS7,IF(Obliczenia!$D$58="Vitocal 15x-A 151.A06",'Bilans-151-A06'!AS7,IF(Obliczenia!$D$58="Vitocal 15x-A 151.A04",'Bilans-151-A04'!AS7,IF(Obliczenia!$D$58="Vitocal 25x-A 251.A04",'Bilans-251-A04'!AS7,IF(Obliczenia!$D$58="Vitocal 25x-A 251.A06",'Bilans-251-A06'!AS7,IF(Obliczenia!$D$58="Vitocal 25x-A 251.A08",'Bilans-251-A08'!AS7,IF(Obliczenia!$D$58="Vitocal 100-A 101.B06",'Bilans-AWO-B06'!AS7,IF(Obliczenia!$D$58="Vitocal 100-A 101.B08",'Bilans-AWO-B08'!AS7,IF(Obliczenia!$D$58="Vitocal 100-A 101.A10",'Bilans-AWO-A10'!AS7,IF(Obliczenia!$D$58="Vitocal 100-A 101.A12",'Bilans-AWO-A12'!AS7,IF(Obliczenia!$D$58="Vitocal 100-A 101.A14",'Bilans-AWO-A14'!AS7,IF(Obliczenia!$D$58="Vitocal 100-A 101.A16",'Bilans-AWO-A16'!AS7,IF(Obliczenia!$D$58="Vitocal 100-A 101.A18",'Bilans-AWO-A18'!AS7,"błąd"))))))))))))))))))))))))))))))))) -> 0 | AT7: =IF(Obliczenia!$D$58="Vitocal 2xx-S 201.E06",'Bilans-E06'!F15,IF(Obliczenia!$D$58="Vitocal 2xx-S 201.E08",'Bilans-E08'!F15,IF(Obliczenia!$D$58="Vitocal 2xx-S 201.E10",'Bilans-E10'!F15,IF(Obliczenia!$D$58="Vitocal 1xx-S 101.B04",'Bilans-B04'!F15,IF(Obliczenia!$D$58="Vitocal 1xx-S 101.B06",'Bilans-B06'!F15,IF(Obliczenia!$D$58="Vitocal 1xx-S 101.B08",'Bilans-B08'!F15,IF(Obliczenia!$D$58="Vitocal 1xx-S 101.A12",'Bilans-A12'!F15,IF(Obliczenia!$D$58="Vitocal 1xx-S 101.A14",'Bilans-A14'!F15,IF(Obliczenia!$D$58="Vitocal 1xx-S 101.A16",'Bilans-A16'!F15,IF(Obliczenia!$D$58="Vitocal 2xx-S 201.D04",'Bilans-D04'!F15,IF(Obliczenia!$D$58="Vitocal 2xx-S 201.D06",'Bilans-B06'!F15,IF(Obliczenia!$D$58="Vitocal 2xx-S 201.D08",'Bilans-D08'!F15,IF(Obliczenia!$D$58="Vitocal 2xx-S 201.D10",'Bilans-D10'!F15,IF(Obliczenia!$D$58="Vitocal 2xx-S 201.D13",'Bilans-D13'!F15,IF(Obliczenia!$D$58="Vitocal 2xx-S 201.D16",'Bilans-D16'!F15,IF(Obliczenia!$D$58="Vitocal 15x-A 151.A10",'Bilans-151-A10'!F15,IF(Obliczenia!$D$58="Vitocal 15x-A 151.A13",'Bilans-151-A13'!F15,IF(Obliczenia!$D$58="Vitocal 15x-A 151.A16",'Bilans-151-A16'!F15,IF(Obliczenia!$D$58="Vitocal 25x-A 251.A10",'Bilans-251-A10'!F15,IF(Obliczenia!$D$58="Vitocal 25x-A 251.A13",'Bilans-251-A13'!F15,IF(Obliczenia!$D$58="Vitocal 15x-A 151.A08",'Bilans-151-A08'!F15,IF(Obliczenia!$D$58="Vitocal 15x-A 151.A06",'Bilans-151-A06'!F15,IF(Obliczenia!$D$58="Vitocal 15x-A 151.A04",'Bilans-151-A04'!F15,IF(Obliczenia!$D$58="Vitocal 25x-A 251.A04",'Bilans-251-A04'!F15,IF(Obliczenia!$D$58="Vitocal 25x-A 251.A06",'Bilans-251-A06'!F15,IF(Obliczenia!$D$58="Vitocal 25x-A 251.A08",'Bilans-251-A08'!F15,IF(Obliczenia!$D$58="Vitocal 100-A 101.B06",'Bilans-AWO-B06'!F15,IF(Obliczenia!$D$58="Vitocal 100-A 101.B08",'Bilans-AWO-B08'!F15,IF(Obliczenia!$D$58="Vitocal 100-A 101.A10",'Bilans-AWO-A10'!F15,IF(Obliczenia!$D$58="Vitocal 100-A 101.A12",'Bilans-AWO-A12'!F15,IF(Obliczenia!$D$58="Vitocal 100-A 101.A14",'Bilans-AWO-A14'!F15,IF(Obliczenia!$D$58="Vitocal 100-A 101.A16",'Bilans-AWO-A16'!F15,IF(Obliczenia!$D$58="Vitocal 100-A 101.A18",'Bilans-AWO-A18'!F15,"błąd"))))))))))))))))))))))))))))))))) -> 2.794857107 | AV7: =IF(Obliczenia!$D$58="Vitocal 2xx-S 201.E06",'Bilans-E06'!BJ7,IF(Obliczenia!$D$58="Vitocal 2xx-S 201.E08",'Bilans-E08'!BJ7,IF(Obliczenia!$D$58="Vitocal 2xx-S 201.E10",'Bilans-E10'!BJ7,IF(Obliczenia!$D$58="Vitocal 1xx-S 101.B04",'Bilans-B04'!BJ7,IF(Obliczenia!$D$58="Vitocal 1xx-S 101.B06",'Bilans-B06'!BJ7,IF(Obliczenia!$D$58="Vitocal 1xx-S 101.B08",'Bilans-B08'!BJ7,IF(Obliczenia!$D$58="Vitocal 1xx-S 101.A12",'Bilans-A12'!BJ7,IF(Obliczenia!$D$58="Vitocal 1xx-S 101.A14",'Bilans-A14'!BJ7,IF(Obliczenia!$D$58="Vitocal 1xx-S 101.A16",'Bilans-A16'!BJ7,IF(Obliczenia!$D$58="Vitocal 2xx-S 201.D04",'Bilans-D04'!BJ7,IF(Obliczenia!$D$58="Vitocal 2xx-S 201.D06",'Bilans-B06'!BJ7,IF(Obliczenia!$D$58="Vitocal 2xx-S 201.D08",'Bilans-D08'!BJ7,IF(Obliczenia!$D$58="Vitocal 2xx-S 201.D10",'Bilans-D10'!BJ7,IF(Obliczenia!$D$58="Vitocal 2xx-S 201.D13",'Bilans-D13'!BJ7,IF(Obliczenia!$D$58="Vitocal 2xx-S 201.D16",'Bilans-D16'!BJ7,IF(Obliczenia!$D$58="Vitocal 15x-A 151.A10",'Bilans-151-A10'!BJ7,IF(Obliczenia!$D$58="Vitocal 15x-A 151.A13",'Bilans-151-A13'!BJ7,IF(Obliczenia!$D$58="Vitocal 15x-A 151.A16",'Bilans-151-A16'!BJ7,IF(Obliczenia!$D$58="Vitocal 25x-A 251.A10",'Bilans-251-A10'!BJ7,IF(Obliczenia!$D$58="Vitocal 25x-A 251.A13",'Bilans-251-A13'!BJ7,IF(Obliczenia!$D$58="Vitocal 15x-A 151.A08",'Bilans-151-A08'!BJ7,IF(Obliczenia!$D$58="Vitocal 15x-A 151.A06",'Bilans-151-A06'!BJ7,IF(Obliczenia!$D$58="Vitocal 15x-A 151.A04",'Bilans-151-A04'!BJ7,IF(Obliczenia!$D$58="Vitocal 25x-A 251.A04",'Bilans-251-A04'!BJ7,IF(Obliczenia!$D$58="Vitocal 25x-A 251.A06",'Bilans-251-A06'!BJ7,IF(Obliczenia!$D$58="Vitocal 25x-A 251.A08",'Bilans-251-A08'!BJ7,IF(Obliczenia!$D$58="Vitocal 100-A 101.B06",'Bilans-AWO-B06'!BJ7,IF(Obliczenia!$D$58="Vitocal 100-A 101.B08",'Bilans-AWO-B08'!BJ7,IF(Obliczenia!$D$58="Vitocal 100-A 101.A10",'Bilans-AWO-A10'!BJ7,IF(Obliczenia!$D$58="Vitocal 100-A 101.A12",'Bilans-AWO-A12'!BJ7,IF(Obliczenia!$D$58="Vitocal 100-A 101.A14",'Bilans-AWO-A14'!BJ7,IF(Obliczenia!$D$58="Vitocal 100-A 101.A16",'Bilans-AWO-A16'!BJ7,IF(Obliczenia!$D$58="Vitocal 100-A 101.A18",'Bilans-AWO-A18'!BJ7,"błąd"))))))))))))))))))))))))))))))))) -> 54.16253659 | AW7: =IF(Obliczenia!$D$58="Vitocal 2xx-S 201.E06",'Bilans-E06'!BK7,IF(Obliczenia!$D$58="Vitocal 2xx-S 201.E08",'Bilans-E08'!BK7,IF(Obliczenia!$D$58="Vitocal 2xx-S 201.E10",'Bilans-E10'!BK7,IF(Obliczenia!$D$58="Vitocal 1xx-S 101.B04",'Bilans-B04'!BK7,IF(Obliczenia!$D$58="Vitocal 1xx-S 101.B06",'Bilans-B06'!BK7,IF(Obliczenia!$D$58="Vitocal 1xx-S 101.B08",'Bilans-B08'!BK7,IF(Obliczenia!$D$58="Vitocal 1xx-S 101.A12",'Bilans-A12'!BK7,IF(Obliczenia!$D$58="Vitocal 1xx-S 101.A14",'Bilans-A14'!BK7,IF(Obliczenia!$D$58="Vitocal 1xx-S 101.A16",'Bilans-A16'!BK7,IF(Obliczenia!$D$58="Vitocal 2xx-S 201.D04",'Bilans-D04'!BK7,IF(Obliczenia!$D$58="Vitocal 2xx-S 201.D06",'Bilans-B06'!BK7,IF(Obliczenia!$D$58="Vitocal 2xx-S 201.D08",'Bilans-D08'!BK7,IF(Obliczenia!$D$58="Vitocal 2xx-S 201.D10",'Bilans-D10'!BK7,IF(Obliczenia!$D$58="Vitocal 2xx-S 201.D13",'Bilans-D13'!BK7,IF(Obliczenia!$D$58="Vitocal 2xx-S 201.D16",'Bilans-D16'!BK7,IF(Obliczenia!$D$58="Vitocal 15x-A 151.A10",'Bilans-151-A10'!BK7,IF(Obliczenia!$D$58="Vitocal 15x-A 151.A13",'Bilans-151-A13'!BK7,IF(Obliczenia!$D$58="Vitocal 15x-A 151.A16",'Bilans-151-A16'!BK7,IF(Obliczenia!$D$58="Vitocal 25x-A 251.A10",'Bilans-251-A10'!BK7,IF(Obliczenia!$D$58="Vitocal 25x-A 251.A13",'Bilans-251-A13'!BK7,IF(Obliczenia!$D$58="Vitocal 15x-A 151.A08",'Bilans-151-A08'!BK7,IF(Obliczenia!$D$58="Vitocal 15x-A 151.A06",'Bilans-151-A06'!BK7,IF(Obliczenia!$D$58="Vitocal 15x-A 151.A04",'Bilans-151-A04'!BK7,IF(Obliczenia!$D$58="Vitocal 25x-A 251.A04",'Bilans-251-A04'!BK7,IF(Obliczenia!$D$58="Vitocal 25x-A 251.A06",'Bilans-251-A06'!BK7,IF(Obliczenia!$D$58="Vitocal 25x-A 251.A08",'Bilans-251-A08'!BK7,IF(Obliczenia!$D$58="Vitocal 100-A 101.B06",'Bilans-AWO-B06'!BK7,IF(Obliczenia!$D$58="Vitocal 100-A 101.B08",'Bilans-AWO-B08'!BK7,IF(Obliczenia!$D$58="Vitocal 100-A 101.A10",'Bilans-AWO-A10'!BK7,IF(Obliczenia!$D$58="Vitocal 100-A 101.A12",'Bilans-AWO-A12'!BK7,IF(Obliczenia!$D$58="Vitocal 100-A 101.A14",'Bilans-AWO-A14'!BK7,IF(Obliczenia!$D$58="Vitocal 100-A 101.A16",'Bilans-AWO-A16'!BK7,IF(Obliczenia!$D$58="Vitocal 100-A 101.A18",'Bilans-AWO-A18'!BK7,"błąd"))))))))))))))))))))))))))))))))) -> 0 | AX7: =IF(Obliczenia!$D$58="Vitocal 2xx-S 201.E06",'Bilans-E06'!F28,IF(Obliczenia!$D$58="Vitocal 2xx-S 201.E08",'Bilans-E08'!F28,IF(Obliczenia!$D$58="Vitocal 2xx-S 201.E10",'Bilans-D10'!F28,IF(Obliczenia!$D$58="Vitocal 1xx-S 101.B04",'Bilans-B04'!F28,IF(Obliczenia!$D$58="Vitocal 1xx-S 101.B06",'Bilans-B06'!F28,IF(Obliczenia!$D$58="Vitocal 1xx-S 101.B08",'Bilans-B08'!F28,IF(Obliczenia!$D$58="Vitocal 1xx-S 101.A12",'Bilans-A12'!F28,IF(Obliczenia!$D$58="Vitocal 1xx-S 101.A14",'Bilans-A14'!F28,IF(Obliczenia!$D$58="Vitocal 1xx-S 101.A16",'Bilans-A16'!F28,IF(Obliczenia!$D$58="Vitocal 2xx-S 201.D04",'Bilans-D04'!F28,IF(Obliczenia!$D$58="Vitocal 2xx-S 201.D06",'Bilans-B06'!F28,IF(Obliczenia!$D$58="Vitocal 2xx-S 201.D08",'Bilans-D08'!F28,IF(Obliczenia!$D$58="Vitocal 2xx-S 201.D10",'Bilans-D10'!F28,IF(Obliczenia!$D$58="Vitocal 2xx-S 201.D13",'Bilans-D13'!F28,IF(Obliczenia!$D$58="Vitocal 2xx-S 201.D16",'Bilans-D16'!F28,IF(Obliczenia!$D$58="Vitocal 15x-A 151.A10",'Bilans-151-A10'!F28,IF(Obliczenia!$D$58="Vitocal 15x-A 151.A13",'Bilans-151-A13'!F28,IF(Obliczenia!$D$58="Vitocal 15x-A 151.A16",'Bilans-151-A16'!F28,IF(Obliczenia!$D$58="Vitocal 25x-A 251.A10",'Bilans-251-A10'!F28,IF(Obliczenia!$D$58="Vitocal 25x-A 251.A13",'Bilans-251-A13'!F28,IF(Obliczenia!$D$58="Vitocal 15x-A 151.A08",'Bilans-151-A08'!F28,IF(Obliczenia!$D$58="Vitocal 15x-A 151.A06",'Bilans-151-A06'!F28,IF(Obliczenia!$D$58="Vitocal 15x-A 151.A04",'Bilans-151-A04'!F28,IF(Obliczenia!$D$58="Vitocal 25x-A 251.A04",'Bilans-251-A04'!F28,IF(Obliczenia!$D$58="Vitocal 25x-A 251.A06",'Bilans-251-A06'!F28,IF(Obliczenia!$D$58="Vitocal 25x-A 251.A08",'Bilans-251-A08'!F28,IF(Obliczenia!$D$58="Vitocal 100-A 101.B06",'Bilans-AWO-B06'!F28,IF(Obliczenia!$D$58="Vitocal 100-A 101.B08",'Bilans-AWO-B08'!F28,IF(Obliczenia!$D$58="Vitocal 100-A 101.A10",'Bilans-AWO-A10'!F28,IF(Obliczenia!$D$58="Vitocal 100-A 101.A12",'Bilans-AWO-A12'!F28,IF(Obliczenia!$D$58="Vitocal 100-A 101.A14",'Bilans-AWO-A14'!F28,IF(Obliczenia!$D$58="Vitocal 100-A 101.A16",'Bilans-AWO-A16'!F28,IF(Obliczenia!$D$58="Vitocal 100-A 101.A18",'Bilans-AWO-A18'!F28,"błąd"))))))))))))))))))))))))))))))))) -> 3.500363804 | AZ7: =IF(Obliczenia!$D$58="Vitocal 15x-A 151.A10",'Bilans-151-A10'!CK7,IF(Obliczenia!$D$58="Vitocal 15x-A 151.A13",'Bilans-151-A13'!CK7,IF(Obliczenia!$D$58="Vitocal 15x-A 151.A16",'Bilans-151-A16'!CK7,IF(Obliczenia!$D$58="Vitocal 25x-A 251.A10",'Bilans-251-A10'!CK7,IF(Obliczenia!$D$58="Vitocal 25x-A 251.A13",'Bilans-251-A13'!CK7,IF(Obliczenia!$D$58="Vitocal 15x-A 151.A08",'Bilans-151-A08'!CK7,IF(Obliczenia!$D$58="Vitocal 15x-A 151.A06",'Bilans-151-A06'!CK7,IF(Obliczenia!$D$58="Vitocal 15x-A 151.A04",'Bilans-151-A04'!CK7,IF(Obliczenia!$D$58="Vitocal 25x-A 251.A04",'Bilans-251-A04'!CK7,IF(Obliczenia!$D$58="Vitocal 25x-A 251.A06",'Bilans-251-A06'!CK7,IF(Obliczenia!$D$58="Vitocal 25x-A 251.A08",'Bilans-251-A08'!CK7,"błąd"))))))))))) -> błąd | BA7: =IF(Obliczenia!$D$58="Vitocal 15x-A 151.A10",'Bilans-151-A10'!CL7,IF(Obliczenia!$D$58="Vitocal 15x-A 151.A13",'Bilans-151-A13'!CL7,IF(Obliczenia!$D$58="Vitocal 15x-A 151.A16",'Bilans-151-A16'!CL7,IF(Obliczenia!$D$58="Vitocal 25x-A 251.A10",'Bilans-251-A10'!CL7,IF(Obliczenia!$D$58="Vitocal 25x-A 251.A13",'Bilans-251-A13'!CL7,IF(Obliczenia!$D$58="Vitocal 15x-A 151.A08",'Bilans-151-A08'!CL7,IF(Obliczenia!$D$58="Vitocal 15x-A 151.A06",'Bilans-151-A06'!CL7,IF(Obliczenia!$D$58="Vitocal 15x-A 151.A04",'Bilans-151-A04'!CL7,IF(Obliczenia!$D$58="Vitocal 25x-A 251.A04",'Bilans-251-A04'!CL7,IF(Obliczenia!$D$58="Vitocal 25x-A 251.A06",'Bilans-251-A06'!CL7,IF(Obliczenia!$D$58="Vitocal 25x-A 251.A08",'Bilans-251-A08'!CL7,"błąd"))))))))))) -> błąd | BB7: =IF(Obliczenia!$D$58="Vitocal 15x-A 151.A10",'Bilans-151-A10'!F32,IF(Obliczenia!$D$58="Vitocal 15x-A 151.A13",'Bilans-151-A13'!F32,IF(Obliczenia!$D$58="Vitocal 15x-A 151.A16",'Bilans-151-A16'!F32,IF(Obliczenia!$D$58="Vitocal 25x-A 251.A10",'Bilans-251-A10'!F32,IF(Obliczenia!$D$58="Vitocal 25x-A 251.A13",'Bilans-251-A13'!F32,IF(Obliczenia!$D$58="Vitocal 15x-A 151.A08",'Bilans-151-A08'!F32,IF(Obliczenia!$D$58="Vitocal 15x-A 151.A06",'Bilans-151-A06'!F32,IF(Obliczenia!$D$58="Vitocal 15x-A 151.A04",'Bilans-151-A04'!F32,IF(Obliczenia!$D$58="Vitocal 25x-A 251.A04",'Bilans-251-A04'!F32,IF(Obliczenia!$D$58="Vitocal 25x-A 251.A06",'Bilans-251-A06'!F32,IF(Obliczenia!$D$58="Vitocal 25x-A 251.A08",'Bilans-251-A08'!F32,"błąd"))))))))))) -> błąd | BW7: Vitocal 200-S AWB-M-E(-AC) 201.D08 | BX7: ='D08'!B25 -> 34363 | BY7: ='Bilans-D08'!G7 -> 3.636966213 | BZ7: 9448.259342 | CA7: 9448.259342 | CK7: =F7 -> 2.358333333 | CL7: =_xlfn.SORTBY(wykres_temp,wykres_temp,1) -> -11.7875 | CM7: =COUNTIFS(wym_temp2,"<0") -> 1868 | CN7: =COUNTIFS(wym_temp2,"<-5") -> 540 | CO7: =COUNTIFS(wym_temp2,"<-10") -> 108 | CP7: =COUNTIFS(wym_temp2,"<-15") -> 17 | CQ7: =COUNTIFS(wym_temp2,"<"&BF22) -> 45
A8: 3 | B8: 1.7 | C8: =IF($E$1=FALSE,B8,IF(B8<0,B8+$I$1,B8)) -> 1.7 | E8: 2 | F8: =AVERAGE(C31:C54) -> -0.7666666667 | H8: =F8*Budynek!$D$31+Budynek!$D$32 -> 27.7875 | J8: =Budynek!$D$4*(Dane!$E$12-F8)*12/1000 -> 35.42126829 | L8: =Budynek!$D$4*(Dane!$E$13-F8)*12/1000 -> 28.912 | N8: =J8+L8 -> 64.33326829 | P8: =IF(F8=12,N8,IF(F8<12,N8,0)) -> 64.33326829 | Q8: 64.33326829 | R8: 64.33326829 | S8: 64.33326829 | T8: =T7 -> 7.11627907 | AA8: =IF(Obliczenia!$D$58="Vitocal 2xx-S 201.E06",'Bilans-E06'!Z8,IF(Obliczenia!$D$58="Vitocal 2xx-S 201.E08",'Bilans-E08'!Z8,IF(Obliczenia!$D$58="Vitocal 2xx-S 201.E10",'Bilans-E10'!Z8,IF(Obliczenia!$D$58="Vitocal 1xx-S 101.B04",'Bilans-B04'!Z8,IF(Obliczenia!$D$58="Vitocal 1xx-S 101.B06",'Bilans-B06'!Z8,IF(Obliczenia!$D$58="Vitocal 1xx-S 101.B08",'Bilans-B08'!Z8,IF(Obliczenia!$D$58="Vitocal 1xx-S 101.A12",'Bilans-A12'!Z8,IF(Obliczenia!$D$58="Vitocal 1xx-S 101.A14",'Bilans-A14'!Z8,IF(Obliczenia!$D$58="Vitocal 1xx-S 101.A16",'Bilans-A16'!Z8,IF(Obliczenia!$D$58="Vitocal 2xx-S 201.D04",'Bilans-D04'!Z8,IF(Obliczenia!$D$58="Vitocal 2xx-S 201.D06",'Bilans-B06'!Z8,IF(Obliczenia!$D$58="Vitocal 2xx-S 201.D08",'Bilans-D08'!Z8,IF(Obliczenia!$D$58="Vitocal 2xx-S 201.D10",'Bilans-D10'!Z8,IF(Obliczenia!$D$58="Vitocal 2xx-S 201.D13",'Bilans-D13'!Z8,IF(Obliczenia!$D$58="Vitocal 2xx-S 201.D16",'Bilans-D16'!Z8,IF(Obliczenia!$D$58="Vitocal 15x-A 151.A10",'Bilans-151-A10'!Z8,IF(Obliczenia!$D$58="Vitocal 15x-A 151.A13",'Bilans-151-A13'!Z8,IF(Obliczenia!$D$58="Vitocal 15x-A 151.A16",'Bilans-151-A16'!Z8,IF(Obliczenia!$D$58="Vitocal 15x-A 151.A16",'Bilans-151-A16'!Z8,IF(Obliczenia!$D$58="Vitocal 25x-A 251.A10",'Bilans-251-A10'!Z8,IF(Obliczenia!$D$58="Vitocal 25x-A 251.A13",'Bilans-251-A13'!Z8,IF(Obliczenia!$D$58="Vitocal 15x-A 151.A06",'Bilans-151-A06'!Z8,IF(Obliczenia!$D$58="Vitocal 15x-A 151.A08",'Bilans-151-A08'!Z8,IF(Obliczenia!$D$58="Vitocal 15x-A 151.A04",'Bilans-151-A04'!Z8,IF(Obliczenia!$D$58="Vitocal 25x-A 251.A04",'Bilans-251-A04'!Z8,IF(Obliczenia!$D$58="Vitocal 25x-A 251.A06",'Bilans-251-A06'!Z8,IF(Obliczenia!$D$58="Vitocal 25x-A 251.A08",'Bilans-251-A08'!Z8,IF(Obliczenia!$D$58="Vitocal 100-A 101.B06",'Bilans-AWO-B06'!Z8,IF(Obliczenia!$D$58="Vitocal 100-A 101.B08",'Bilans-AWO-B08'!Z8,IF(Obliczenia!$D$58="Vitocal 100-A 101.A10",'Bilans-AWO-A10'!Z8,IF(Obliczenia!$D$58="Vitocal 100-A 101.A12",'Bilans-AWO-A12'!Z8,IF(Obliczenia!$D$58="Vitocal 100-A 101.A14",'Bilans-AWO-A14'!Z8,IF(Obliczenia!$D$58="Vitocal 100-A 101.A16",'Bilans-AWO-A16'!Z8,IF(Obliczenia!$D$58="Vitocal 100-A 101.A18",'Bilans-AWO-A18'!Z8,"błąd")))))))))))))))))))))))))))))))))) -> 64.33326829 | AB8: =IF(Obliczenia!$D$58="Vitocal 2xx-S 201.E06",'Bilans-E06'!AA8,IF(Obliczenia!$D$58="Vitocal 2xx-S 201.E08",'Bilans-E08'!AA8,IF(Obliczenia!$D$58="Vitocal 2xx-S 201.E10",'Bilans-E10'!AA8,IF(Obliczenia!$D$58="Vitocal 1xx-S 101.B04",'Bilans-B04'!AA8,IF(Obliczenia!$D$58="Vitocal 1xx-S 101.B06",'Bilans-B06'!AA8,IF(Obliczenia!$D$58="Vitocal 1xx-S 101.B08",'Bilans-B08'!AA8,IF(Obliczenia!$D$58="Vitocal 1xx-S 101.A12",'Bilans-A12'!AA8,IF(Obliczenia!$D$58="Vitocal 1xx-S 101.A14",'Bilans-A14'!AA8,IF(Obliczenia!$D$58="Vitocal 1xx-S 101.A16",'Bilans-A16'!AA8,IF(Obliczenia!$D$58="Vitocal 2xx-S 201.D04",'Bilans-D04'!AA8,IF(Obliczenia!$D$58="Vitocal 2xx-S 201.D06",'Bilans-B06'!AA8,IF(Obliczenia!$D$58="Vitocal 2xx-S 201.D08",'Bilans-D08'!AA8,IF(Obliczenia!$D$58="Vitocal 2xx-S 201.D10",'Bilans-D10'!AA8,IF(Obliczenia!$D$58="Vitocal 2xx-S 201.D13",'Bilans-D13'!AA8,IF(Obliczenia!$D$58="Vitocal 2xx-S 201.D16",'Bilans-D16'!AA8,IF(Obliczenia!$D$58="Vitocal 15x-A 151.A10",'Bilans-151-A10'!AA8,IF(Obliczenia!$D$58="Vitocal 15x-A 151.A13",'Bilans-151-A13'!AA8,IF(Obliczenia!$D$58="Vitocal 15x-A 151.A16",'Bilans-151-A16'!AA8,IF(Obliczenia!$D$58="Vitocal 15x-A 151.A16",'Bilans-151-A16'!AA8,IF(Obliczenia!$D$58="Vitocal 25x-A 251.A10",'Bilans-251-A10'!AA8,IF(Obliczenia!$D$58="Vitocal 25x-A 251.A13",'Bilans-251-A13'!AA8,IF(Obliczenia!$D$58="Vitocal 15x-A 151.A08",'Bilans-151-A08'!AA8,IF(Obliczenia!$D$58="Vitocal 15x-A 151.A06",'Bilans-151-A06'!AA8,IF(Obliczenia!$D$58="Vitocal 15x-A 151.A04",'Bilans-151-A04'!AA8,IF(Obliczenia!$D$58="Vitocal 25x-A 251.A04",'Bilans-251-A04'!AA8,IF(Obliczenia!$D$58="Vitocal 25x-A 251.A06",'Bilans-251-A06'!AA8,IF(Obliczenia!$D$58="Vitocal 25x-A 251.A08",'Bilans-251-A08'!AA8,IF(Obliczenia!$D$58="Vitocal 100-A 101.B06",'Bilans-AWO-B06'!AA8,IF(Obliczenia!$D$58="Vitocal 100-A 101.B08",'Bilans-AWO-B08'!AA8,IF(Obliczenia!$D$58="Vitocal 100-A 101.A10",'Bilans-AWO-A10'!AA8,IF(Obliczenia!$D$58="Vitocal 100-A 101.A12",'Bilans-AWO-A12'!AA8,IF(Obliczenia!$D$58="Vitocal 100-A 101.A14",'Bilans-AWO-A14'!AA8,IF(Obliczenia!$D$58="Vitocal 100-A 101.A16",'Bilans-AWO-A16'!AA8,IF(Obliczenia!$D$58="Vitocal 100-A 101.A18",'Bilans-AWO-A18'!AA8,"błąd")))))))))))))))))))))))))))))))))) -> 0 | AE8: D10 | AF8: ='D10'!B28 -> 15.55 | AG8: 1 | AI8: =IF($C$3="Ogrzewanie podłogowe",AA8,IF($C$3="Grzejniki niskotemperaturowe 55/45",AR8,IF($C$3="Grzejniki wysokotemperaturowe 70/55",AZ8,AV8))) -> 64.33326829 | AJ8: =IF($C$3="Ogrzewanie podłogowe",AB8,IF($C$3="Grzejniki niskotemperaturowe 55/45",AS8,IF($C$3="Grzejniki wysokotemperaturowe 70/55",BA8,AW8))) -> 0 | AR8: =IF(Obliczenia!$D$58="Vitocal 2xx-S 201.E06",'Bilans-E06'!AR8,IF(Obliczenia!$D$58="Vitocal 2xx-S 201.E08",'Bilans-E08'!AR8,IF(Obliczenia!$D$58="Vitocal 2xx-S 201.E10",'Bilans-E10'!AR8,IF(Obliczenia!$D$58="Vitocal 1xx-S 101.B04",'Bilans-B04'!AR8,IF(Obliczenia!$D$58="Vitocal 1xx-S 101.B06",'Bilans-B06'!AR8,IF(Obliczenia!$D$58="Vitocal 1xx-S 101.B08",'Bilans-B08'!AR8,IF(Obliczenia!$D$58="Vitocal 1xx-S 101.A12",'Bilans-A12'!AR8,IF(Obliczenia!$D$58="Vitocal 1xx-S 101.A14",'Bilans-A14'!AR8,IF(Obliczenia!$D$58="Vitocal 1xx-S 101.A16",'Bilans-A16'!AR8,IF(Obliczenia!$D$58="Vitocal 2xx-S 201.D04",'Bilans-D04'!AR8,IF(Obliczenia!$D$58="Vitocal 2xx-S 201.D06",'Bilans-B06'!AR8,IF(Obliczenia!$D$58="Vitocal 2xx-S 201.D08",'Bilans-D08'!AR8,IF(Obliczenia!$D$58="Vitocal 2xx-S 201.D10",'Bilans-D10'!AR8,IF(Obliczenia!$D$58="Vitocal 2xx-S 201.D13",'Bilans-D13'!AR8,IF(Obliczenia!$D$58="Vitocal 2xx-S 201.D16",'Bilans-D16'!AR8,IF(Obliczenia!$D$58="Vitocal 15x-A 151.A10",'Bilans-151-A10'!AR8,IF(Obliczenia!$D$58="Vitocal 15x-A 151.A13",'Bilans-151-A13'!AR8,IF(Obliczenia!$D$58="Vitocal 15x-A 151.A16",'Bilans-151-A16'!AR8,IF(Obliczenia!$D$58="Vitocal 25x-A 251.A10",'Bilans-251-A10'!AR8,IF(Obliczenia!$D$58="Vitocal 25x-A 251.A13",'Bilans-251-A13'!AR8,IF(Obliczenia!$D$58="Vitocal 15x-A 151.A08",'Bilans-151-A08'!AR8,IF(Obliczenia!$D$58="Vitocal 15x-A 151.A06",'Bilans-151-A06'!AR8,IF(Obliczenia!$D$58="Vitocal 15x-A 151.A04",'Bilans-151-A04'!AR8,IF(Obliczenia!$D$58="Vitocal 25x-A 251.A04",'Bilans-251-A04'!AR8,IF(Obliczenia!$D$58="Vitocal 25x-A 251.A06",'Bilans-251-A06'!AR8,IF(Obliczenia!$D$58="Vitocal 25x-A 251.A08",'Bilans-251-A08'!AR8,IF(Obliczenia!$D$58="Vitocal 100-A 101.B06",'Bilans-AWO-B06'!AR8,IF(Obliczenia!$D$58="Vitocal 100-A 101.B08",'Bilans-AWO-B08'!AR8,IF(Obliczenia!$D$58="Vitocal 100-A 101.A10",'Bilans-AWO-A10'!AR8,IF(Obliczenia!$D$58="Vitocal 100-A 101.A12",'Bilans-AWO-A12'!AR8,IF(Obliczenia!$D$58="Vitocal 100-A 101.A14",'Bilans-AWO-A14'!AR8,IF(Obliczenia!$D$58="Vitocal 100-A 101.A16",'Bilans-AWO-A16'!AR8,IF(Obliczenia!$D$58="Vitocal 100-A 101.A18",'Bilans-AWO-A18'!AR8,"błąd"))))))))))))))))))))))))))))))))) -> 64.33326829 | AS8: =IF(Obliczenia!$D$58="Vitocal 2xx-S 201.E06",'Bilans-E06'!AS8,IF(Obliczenia!$D$58="Vitocal 2xx-S 201.E08",'Bilans-E08'!AS8,IF(Obliczenia!$D$58="Vitocal 2xx-S 201.E10",'Bilans-E10'!AS8,IF(Obliczenia!$D$58="Vitocal 1xx-S 101.B04",'Bilans-B04'!AS8,IF(Obliczenia!$D$58="Vitocal 1xx-S 101.B06",'Bilans-B06'!AS8,IF(Obliczenia!$D$58="Vitocal 1xx-S 101.B08",'Bilans-B08'!AS8,IF(Obliczenia!$D$58="Vitocal 1xx-S 101.A12",'Bilans-A12'!AS8,IF(Obliczenia!$D$58="Vitocal 1xx-S 101.A14",'Bilans-A14'!AS8,IF(Obliczenia!$D$58="Vitocal 1xx-S 101.A16",'Bilans-A16'!AS8,IF(Obliczenia!$D$58="Vitocal 2xx-S 201.D04",'Bilans-D04'!AS8,IF(Obliczenia!$D$58="Vitocal 2xx-S 201.D06",'Bilans-B06'!AS8,IF(Obliczenia!$D$58="Vitocal 2xx-S 201.D08",'Bilans-D08'!AS8,IF(Obliczenia!$D$58="Vitocal 2xx-S 201.D10",'Bilans-D10'!AS8,IF(Obliczenia!$D$58="Vitocal 2xx-S 201.D13",'Bilans-D13'!AS8,IF(Obliczenia!$D$58="Vitocal 2xx-S 201.D16",'Bilans-D16'!AS8,IF(Obliczenia!$D$58="Vitocal 15x-A 151.A10",'Bilans-151-A10'!AS8,IF(Obliczenia!$D$58="Vitocal 15x-A 151.A13",'Bilans-151-A13'!AS8,IF(Obliczenia!$D$58="Vitocal 15x-A 151.A16",'Bilans-151-A16'!AS8,IF(Obliczenia!$D$58="Vitocal 25x-A 251.A10",'Bilans-251-A10'!AS8,IF(Obliczenia!$D$58="Vitocal 25x-A 251.A13",'Bilans-251-A13'!AS8,IF(Obliczenia!$D$58="Vitocal 15x-A 151.A08",'Bilans-151-A08'!AS8,IF(Obliczenia!$D$58="Vitocal 15x-A 151.A06",'Bilans-151-A06'!AS8,IF(Obliczenia!$D$58="Vitocal 15x-A 151.A04",'Bilans-151-A04'!AS8,IF(Obliczenia!$D$58="Vitocal 25x-A 251.A04",'Bilans-251-A04'!AS8,IF(Obliczenia!$D$58="Vitocal 25x-A 251.A06",'Bilans-251-A06'!AS8,IF(Obliczenia!$D$58="Vitocal 25x-A 251.A08",'Bilans-251-A08'!AS8,IF(Obliczenia!$D$58="Vitocal 100-A 101.B06",'Bilans-AWO-B06'!AS8,IF(Obliczenia!$D$58="Vitocal 100-A 101.B08",'Bilans-AWO-B08'!AS8,IF(Obliczenia!$D$58="Vitocal 100-A 101.A10",'Bilans-AWO-A10'!AS8,IF(Obliczenia!$D$58="Vitocal 100-A 101.A12",'Bilans-AWO-A12'!AS8,IF(Obliczenia!$D$58="Vitocal 100-A 101.A14",'Bilans-AWO-A14'!AS8,IF(Obliczenia!$D$58="Vitocal 100-A 101.A16",'Bilans-AWO-A16'!AS8,IF(Obliczenia!$D$58="Vitocal 100-A 101.A18",'Bilans-AWO-A18'!AS8,"błąd"))))))))))))))))))))))))))))))))) -> 0 | AV8: =IF(Obliczenia!$D$58="Vitocal 2xx-S 201.E06",'Bilans-E06'!BJ8,IF(Obliczenia!$D$58="Vitocal 2xx-S 201.E08",'Bilans-E08'!BJ8,IF(Obliczenia!$D$58="Vitocal 2xx-S 201.E10",'Bilans-E10'!BJ8,IF(Obliczenia!$D$58="Vitocal 1xx-S 101.B04",'Bilans-B04'!BJ8,IF(Obliczenia!$D$58="Vitocal 1xx-S 101.B06",'Bilans-B06'!BJ8,IF(Obliczenia!$D$58="Vitocal 1xx-S 101.B08",'Bilans-B08'!BJ8,IF(Obliczenia!$D$58="Vitocal 1xx-S 101.A12",'Bilans-A12'!BJ8,IF(Obliczenia!$D$58="Vitocal 1xx-S 101.A14",'Bilans-A14'!BJ8,IF(Obliczenia!$D$58="Vitocal 1xx-S 101.A16",'Bilans-A16'!BJ8,IF(Obliczenia!$D$58="Vitocal 2xx-S 201.D04",'Bilans-D04'!BJ8,IF(Obliczenia!$D$58="Vitocal 2xx-S 201.D06",'Bilans-B06'!BJ8,IF(Obliczenia!$D$58="Vitocal 2xx-S 201.D08",'Bilans-D08'!BJ8,IF(Obliczenia!$D$58="Vitocal 2xx-S 201.D10",'Bilans-D10'!BJ8,IF(Obliczenia!$D$58="Vitocal 2xx-S 201.D13",'Bilans-D13'!BJ8,IF(Obliczenia!$D$58="Vitocal 2xx-S 201.D16",'Bilans-D16'!BJ8,IF(Obliczenia!$D$58="Vitocal 15x-A 151.A10",'Bilans-151-A10'!BJ8,IF(Obliczenia!$D$58="Vitocal 15x-A 151.A13",'Bilans-151-A13'!BJ8,IF(Obliczenia!$D$58="Vitocal 15x-A 151.A16",'Bilans-151-A16'!BJ8,IF(Obliczenia!$D$58="Vitocal 25x-A 251.A10",'Bilans-251-A10'!BJ8,IF(Obliczenia!$D$58="Vitocal 25x-A 251.A13",'Bilans-251-A13'!BJ8,IF(Obliczenia!$D$58="Vitocal 15x-A 151.A08",'Bilans-151-A08'!BJ8,IF(Obliczenia!$D$58="Vitocal 15x-A 151.A06",'Bilans-151-A06'!BJ8,IF(Obliczenia!$D$58="Vitocal 15x-A 151.A04",'Bilans-151-A04'!BJ8,IF(Obliczenia!$D$58="Vitocal 25x-A 251.A04",'Bilans-251-A04'!BJ8,IF(Obliczenia!$D$58="Vitocal 25x-A 251.A06",'Bilans-251-A06'!BJ8,IF(Obliczenia!$D$58="Vitocal 25x-A 251.A08",'Bilans-251-A08'!BJ8,IF(Obliczenia!$D$58="Vitocal 100-A 101.B06",'Bilans-AWO-B06'!BJ8,IF(Obliczenia!$D$58="Vitocal 100-A 101.B08",'Bilans-AWO-B08'!BJ8,IF(Obliczenia!$D$58="Vitocal 100-A 101.A10",'Bilans-AWO-A10'!BJ8,IF(Obliczenia!$D$58="Vitocal 100-A 101.A12",'Bilans-AWO-A12'!BJ8,IF(Obliczenia!$D$58="Vitocal 100-A 101.A14",'Bilans-AWO-A14'!BJ8,IF(Obliczenia!$D$58="Vitocal 100-A 101.A16",'Bilans-AWO-A16'!BJ8,IF(Obliczenia!$D$58="Vitocal 100-A 101.A18",'Bilans-AWO-A18'!BJ8,"błąd"))))))))))))))))))))))))))))))))) -> 64.33326829 | AW8: =IF(Obliczenia!$D$58="Vitocal 2xx-S 201.E06",'Bilans-E06'!BK8,IF(Obliczenia!$D$58="Vitocal 2xx-S 201.E08",'Bilans-E08'!BK8,IF(Obliczenia!$D$58="Vitocal 2xx-S 201.E10",'Bilans-E10'!BK8,IF(Obliczenia!$D$58="Vitocal 1xx-S 101.B04",'Bilans-B04'!BK8,IF(Obliczenia!$D$58="Vitocal 1xx-S 101.B06",'Bilans-B06'!BK8,IF(Obliczenia!$D$58="Vitocal 1xx-S 101.B08",'Bilans-B08'!BK8,IF(Obliczenia!$D$58="Vitocal 1xx-S 101.A12",'Bilans-A12'!BK8,IF(Obliczenia!$D$58="Vitocal 1xx-S 101.A14",'Bilans-A14'!BK8,IF(Obliczenia!$D$58="Vitocal 1xx-S 101.A16",'Bilans-A16'!BK8,IF(Obliczenia!$D$58="Vitocal 2xx-S 201.D04",'Bilans-D04'!BK8,IF(Obliczenia!$D$58="Vitocal 2xx-S 201.D06",'Bilans-B06'!BK8,IF(Obliczenia!$D$58="Vitocal 2xx-S 201.D08",'Bilans-D08'!BK8,IF(Obliczenia!$D$58="Vitocal 2xx-S 201.D10",'Bilans-D10'!BK8,IF(Obliczenia!$D$58="Vitocal 2xx-S 201.D13",'Bilans-D13'!BK8,IF(Obliczenia!$D$58="Vitocal 2xx-S 201.D16",'Bilans-D16'!BK8,IF(Obliczenia!$D$58="Vitocal 15x-A 151.A10",'Bilans-151-A10'!BK8,IF(Obliczenia!$D$58="Vitocal 15x-A 151.A13",'Bilans-151-A13'!BK8,IF(Obliczenia!$D$58="Vitocal 15x-A 151.A16",'Bilans-151-A16'!BK8,IF(Obliczenia!$D$58="Vitocal 25x-A 251.A10",'Bilans-251-A10'!BK8,IF(Obliczenia!$D$58="Vitocal 25x-A 251.A13",'Bilans-251-A13'!BK8,IF(Obliczenia!$D$58="Vitocal 15x-A 151.A08",'Bilans-151-A08'!BK8,IF(Obliczenia!$D$58="Vitocal 15x-A 151.A06",'Bilans-151-A06'!BK8,IF(Obliczenia!$D$58="Vitocal 15x-A 151.A04",'Bilans-151-A04'!BK8,IF(Obliczenia!$D$58="Vitocal 25x-A 251.A04",'Bilans-251-A04'!BK8,IF(Obliczenia!$D$58="Vitocal 25x-A 251.A06",'Bilans-251-A06'!BK8,IF(Obliczenia!$D$58="Vitocal 25x-A 251.A08",'Bilans-251-A08'!BK8,IF(Obliczenia!$D$58="Vitocal 100-A 101.B06",'Bilans-AWO-B06'!BK8,IF(Obliczenia!$D$58="Vitocal 100-A 101.B08",'Bilans-AWO-B08'!BK8,IF(Obliczenia!$D$58="Vitocal 100-A 101.A10",'Bilans-AWO-A10'!BK8,IF(Obliczenia!$D$58="Vitocal 100-A 101.A12",'Bilans-AWO-A12'!BK8,IF(Obliczenia!$D$58="Vitocal 100-A 101.A14",'Bilans-AWO-A14'!BK8,IF(Obliczenia!$D$58="Vitocal 100-A 101.A16",'Bilans-AWO-A16'!BK8,IF(Obliczenia!$D$58="Vitocal 100-A 101.A18",'Bilans-AWO-A18'!BK8,"błąd"))))))))))))))))))))))))))))))))) -> 0 | AZ8: =IF(Obliczenia!$D$58="Vitocal 15x-A 151.A10",'Bilans-151-A10'!CK8,IF(Obliczenia!$D$58="Vitocal 15x-A 151.A13",'Bilans-151-A13'!CK8,IF(Obliczenia!$D$58="Vitocal 15x-A 151.A16",'Bilans-151-A16'!CK8,IF(Obliczenia!$D$58="Vitocal 25x-A 251.A10",'Bilans-251-A10'!CK8,IF(Obliczenia!$D$58="Vitocal 25x-A 251.A13",'Bilans-251-A13'!CK8,IF(Obliczenia!$D$58="Vitocal 15x-A 151.A08",'Bilans-151-A08'!CK8,IF(Obliczenia!$D$58="Vitocal 15x-A 151.A06",'Bilans-151-A06'!CK8,IF(Obliczenia!$D$58="Vitocal 15x-A 151.A04",'Bilans-151-A04'!CK8,IF(Obliczenia!$D$58="Vitocal 25x-A 251.A04",'Bilans-251-A04'!CK8,IF(Obliczenia!$D$58="Vitocal 25x-A 251.A06",'Bilans-251-A06'!CK8,IF(Obliczenia!$D$58="Vitocal 25x-A 251.A08",'Bilans-251-A08'!CK8,"błąd"))))))))))) -> błąd | BA8: =IF(Obliczenia!$D$58="Vitocal 15x-A 151.A10",'Bilans-151-A10'!CL8,IF(Obliczenia!$D$58="Vitocal 15x-A 151.A13",'Bilans-151-A13'!CL8,IF(Obliczenia!$D$58="Vitocal 15x-A 151.A16",'Bilans-151-A16'!CL8,IF(Obliczenia!$D$58="Vitocal 25x-A 251.A10",'Bilans-251-A10'!CL8,IF(Obliczenia!$D$58="Vitocal 25x-A 251.A13",'Bilans-251-A13'!CL8,IF(Obliczenia!$D$58="Vitocal 15x-A 151.A08",'Bilans-151-A08'!CL8,IF(Obliczenia!$D$58="Vitocal 15x-A 151.A06",'Bilans-151-A06'!CL8,IF(Obliczenia!$D$58="Vitocal 15x-A 151.A04",'Bilans-151-A04'!CL8,IF(Obliczenia!$D$58="Vitocal 25x-A 251.A04",'Bilans-251-A04'!CL8,IF(Obliczenia!$D$58="Vitocal 25x-A 251.A06",'Bilans-251-A06'!CL8,IF(Obliczenia!$D$58="Vitocal 25x-A 251.A08",'Bilans-251-A08'!CL8,"błąd"))))))))))) -> błąd | BE8: VTS35 | BF8: =IF(Obliczenia!$D$58="Vitocal 2xx-S 201.E06",'E06'!N4,IF(Obliczenia!$D$58="Vitocal 2xx-S 201.E08",'E08'!N4,IF(Obliczenia!$D$58="Vitocal 2xx-S 201.E10",'E10'!N4,IF(Obliczenia!$D$58="Vitocal 1xx-S 101.B04",'B04'!N4,IF(Obliczenia!$D$58="Vitocal 1xx-S 101.B06",'B06'!N4,IF(Obliczenia!$D$58="Vitocal 1xx-S 101.B08",'B08'!N4,IF(Obliczenia!$D$58="Vitocal 1xx-S 101.A12",'A12'!N4,IF(Obliczenia!$D$58="Vitocal 1xx-S 101.A14",'A14'!N4,IF(Obliczenia!$D$58="Vitocal 1xx-S 101.A16",'A16'!N4,IF(Obliczenia!$D$58="Vitocal 2xx-S 201.D04",'D04'!N4,IF(Obliczenia!$D$58="Vitocal 2xx-S 201.D06",'D06'!N4,IF(Obliczenia!$D$58="Vitocal 2xx-S 201.D08",'D08'!N4,IF(Obliczenia!$D$58="Vitocal 2xx-S 201.D10",'D10'!N4,IF(Obliczenia!$D$58="Vitocal 2xx-S 201.D13",'D13'!N4,IF(Obliczenia!$D$58="Vitocal 2xx-S 201.D16",'D16'!N4,IF(Obliczenia!$D$58="Vitocal 15x-A 151.A10",'151.A10'!N4,IF(Obliczenia!$D$58="Vitocal 15x-A 151.A13",'151.A13'!N4,IF(Obliczenia!$D$58="Vitocal 15x-A 151.A16",'151.A16'!N4,IF(Obliczenia!$D$58="Vitocal 25x-A 251.A10",'251.A10'!N4,IF(Obliczenia!$D$58="Vitocal 25x-A 251.A13",'251.A13'!N4,IF(Obliczenia!$D$58="Vitocal 15x-A 151.A08",'151.A08'!N4,IF(Obliczenia!$D$58="Vitocal 15x-A 151.A06",'151.A06'!N4,IF(Obliczenia!$D$58="Vitocal 15x-A 151.A04",'151.A04'!N4,IF(Obliczenia!$D$58="Vitocal 25x-A 251.A08",'251.A08'!N4,IF(Obliczenia!$D$58="Vitocal 25x-A 251.A06",'251.A06'!N4,IF(Obliczenia!$D$58="Vitocal 25x-A 251.A04",'251.A04'!N4,IF(Obliczenia!$D$58="Vitocal 100-A 101.B06",'AWO-B06'!N4,IF(Obliczenia!$D$58="Vitocal 100-A 101.B08",'AWO-B08'!N4,IF(Obliczenia!$D$58="Vitocal 100-A 101.A10",'AWO-A10'!N4,IF(Obliczenia!$D$58="Vitocal 100-A 101.A12",'AWO-A12'!N4,IF(Obliczenia!$D$58="Vitocal 100-A 101.A14",'AWO-A14'!N4,IF(Obliczenia!$D$58="Vitocal 100-A 101.A16",'AWO-A16'!N4,IF(Obliczenia!$D$58="Vitocal 100-A 101.A18",'AWO-A18'!N4,"błąd"))))))))))))))))))))))))))))))))) -> 3.9 | BG8: =IF(Obliczenia!$D$58="Vitocal 2xx-S 201.E06",'E06'!O4,IF(Obliczenia!$D$58="Vitocal 2xx-S 201.E08",'E08'!O4,IF(Obliczenia!$D$58="Vitocal 2xx-S 201.E10",'E10'!O4,IF(Obliczenia!$D$58="Vitocal 1xx-S 101.B04",'B04'!O4,IF(Obliczenia!$D$58="Vitocal 1xx-S 101.B06",'B06'!O4,IF(Obliczenia!$D$58="Vitocal 1xx-S 101.B08",'B08'!O4,IF(Obliczenia!$D$58="Vitocal 1xx-S 101.A12",'A12'!O4,IF(Obliczenia!$D$58="Vitocal 1xx-S 101.A14",'A14'!O4,IF(Obliczenia!$D$58="Vitocal 1xx-S 101.A16",'A16'!O4,IF(Obliczenia!$D$58="Vitocal 2xx-S 201.D04",'D04'!O4,IF(Obliczenia!$D$58="Vitocal 2xx-S 201.D06",'D06'!O4,IF(Obliczenia!$D$58="Vitocal 2xx-S 201.D08",'D08'!O4,IF(Obliczenia!$D$58="Vitocal 2xx-S 201.D10",'D10'!O4,IF(Obliczenia!$D$58="Vitocal 2xx-S 201.D13",'D13'!O4,IF(Obliczenia!$D$58="Vitocal 2xx-S 201.D16",'D16'!O4,IF(Obliczenia!$D$58="Vitocal 15x-A 151.A10",'151.A10'!O4,IF(Obliczenia!$D$58="Vitocal 15x-A 151.A13",'151.A13'!O4,IF(Obliczenia!$D$58="Vitocal 15x-A 151.A16",'151.A16'!O4,IF(Obliczenia!$D$58="Vitocal 25x-A 251.A10",'251.A10'!O4,IF(Obliczenia!$D$58="Vitocal 25x-A 251.A13",'251.A13'!O4,IF(Obliczenia!$D$58="Vitocal 15x-A 151.A08",'151.A08'!O4,IF(Obliczenia!$D$58="Vitocal 15x-A 151.A06",'151.A06'!O4,IF(Obliczenia!$D$58="Vitocal 15x-A 151.A04",'151.A04'!O4,IF(Obliczenia!$D$58="Vitocal 25x-A 251.A08",'251.A08'!O4,IF(Obliczenia!$D$58="Vitocal 25x-A 251.A06",'251.A06'!O4,IF(Obliczenia!$D$58="Vitocal 25x-A 251.A04",'251.A04'!O4,IF(Obliczenia!$D$58="Vitocal 100-A 101.B06",'AWO-B06'!O4,IF(Obliczenia!$D$58="Vitocal 100-A 101.B08",'AWO-B08'!O4,IF(Obliczenia!$D$58="Vitocal 100-A 101.A10",'AWO-A10'!O4,IF(Obliczenia!$D$58="Vitocal 100-A 101.A12",'AWO-A12'!O4,IF(Obliczenia!$D$58="Vitocal 100-A 101.A14",'AWO-A14'!O4,IF(Obliczenia!$D$58="Vitocal 100-A 101.A16",'AWO-A16'!O4,IF(Obliczenia!$D$58="Vitocal 100-A 101.A18",'AWO-A18'!O4,"błąd"))))))))))))))))))))))))))))))))) -> 4.24 | BH8: =IF(Obliczenia!$D$58="Vitocal 2xx-S 201.E06",'E06'!P4,IF(Obliczenia!$D$58="Vitocal 2xx-S 201.E08",'E08'!P4,IF(Obliczenia!$D$58="Vitocal 2xx-S 201.E10",'E10'!P4,IF(Obliczenia!$D$58="Vitocal 1xx-S 101.B04",'B04'!P4,IF(Obliczenia!$D$58="Vitocal 1xx-S 101.B06",'B06'!P4,IF(Obliczenia!$D$58="Vitocal 1xx-S 101.B08",'B08'!P4,IF(Obliczenia!$D$58="Vitocal 1xx-S 101.A12",'A12'!P4,IF(Obliczenia!$D$58="Vitocal 1xx-S 101.A14",'A14'!P4,IF(Obliczenia!$D$58="Vitocal 1xx-S 101.A16",'A16'!P4,IF(Obliczenia!$D$58="Vitocal 2xx-S 201.D04",'D04'!P4,IF(Obliczenia!$D$58="Vitocal 2xx-S 201.D06",'D06'!P4,IF(Obliczenia!$D$58="Vitocal 2xx-S 201.D08",'D08'!P4,IF(Obliczenia!$D$58="Vitocal 2xx-S 201.D10",'D10'!P4,IF(Obliczenia!$D$58="Vitocal 2xx-S 201.D13",'D13'!P4,IF(Obliczenia!$D$58="Vitocal 2xx-S 201.D16",'D16'!P4,IF(Obliczenia!$D$58="Vitocal 15x-A 151.A10",'151.A10'!P4,IF(Obliczenia!$D$58="Vitocal 15x-A 151.A13",'151.A13'!P4,IF(Obliczenia!$D$58="Vitocal 15x-A 151.A16",'151.A16'!P4,IF(Obliczenia!$D$58="Vitocal 25x-A 251.A10",'251.A10'!P4,IF(Obliczenia!$D$58="Vitocal 25x-A 251.A13",'251.A13'!P4,IF(Obliczenia!$D$58="Vitocal 15x-A 151.A08",'151.A08'!P4,IF(Obliczenia!$D$58="Vitocal 15x-A 151.A06",'151.A06'!P4,IF(Obliczenia!$D$58="Vitocal 15x-A 151.A04",'151.A04'!P4,IF(Obliczenia!$D$58="Vitocal 25x-A 251.A08",'251.A08'!P4,IF(Obliczenia!$D$58="Vitocal 25x-A 251.A06",'251.A06'!P4,IF(Obliczenia!$D$58="Vitocal 25x-A 251.A04",'251.A04'!P4,IF(Obliczenia!$D$58="Vitocal 100-A 101.B06",'AWO-B06'!P4,IF(Obliczenia!$D$58="Vitocal 100-A 101.B08",'AWO-B08'!P4,IF(Obliczenia!$D$58="Vitocal 100-A 101.A10",'AWO-A10'!P4,IF(Obliczenia!$D$58="Vitocal 100-A 101.A12",'AWO-A12'!P4,IF(Obliczenia!$D$58="Vitocal 100-A 101.A14",'AWO-A14'!P4,IF(Obliczenia!$D$58="Vitocal 100-A 101.A16",'AWO-A16'!P4,IF(Obliczenia!$D$58="Vitocal 100-A 101.A18",'AWO-A18'!P4,"błąd"))))))))))))))))))))))))))))))))) -> 5.5 | BI8: =IF(Obliczenia!$D$58="Vitocal 2xx-S 201.E06",'E06'!Q4,IF(Obliczenia!$D$58="Vitocal 2xx-S 201.E08",'E08'!Q4,IF(Obliczenia!$D$58="Vitocal 2xx-S 201.E10",'E10'!Q4,IF(Obliczenia!$D$58="Vitocal 1xx-S 101.B04",'B04'!Q4,IF(Obliczenia!$D$58="Vitocal 1xx-S 101.B06",'B06'!Q4,IF(Obliczenia!$D$58="Vitocal 1xx-S 101.B08",'B08'!Q4,IF(Obliczenia!$D$58="Vitocal 1xx-S 101.A12",'A12'!Q4,IF(Obliczenia!$D$58="Vitocal 1xx-S 101.A14",'A14'!Q4,IF(Obliczenia!$D$58="Vitocal 1xx-S 101.A16",'A16'!Q4,IF(Obliczenia!$D$58="Vitocal 2xx-S 201.D04",'D04'!Q4,IF(Obliczenia!$D$58="Vitocal 2xx-S 201.D06",'D06'!Q4,IF(Obliczenia!$D$58="Vitocal 2xx-S 201.D08",'D08'!Q4,IF(Obliczenia!$D$58="Vitocal 2xx-S 201.D10",'D10'!Q4,IF(Obliczenia!$D$58="Vitocal 2xx-S 201.D13",'D13'!Q4,IF(Obliczenia!$D$58="Vitocal 2xx-S 201.D16",'D16'!Q4,IF(Obliczenia!$D$58="Vitocal 15x-A 151.A10",'151.A10'!Q4,IF(Obliczenia!$D$58="Vitocal 15x-A 151.A13",'151.A13'!Q4,IF(Obliczenia!$D$58="Vitocal 15x-A 151.A16",'151.A16'!Q4,IF(Obliczenia!$D$58="Vitocal 25x-A 251.A10",'251.A10'!Q4,IF(Obliczenia!$D$58="Vitocal 25x-A 251.A13",'251.A13'!Q4,IF(Obliczenia!$D$58="Vitocal 15x-A 151.A08",'151.A08'!Q4,IF(Obliczenia!$D$58="Vitocal 15x-A 151.A06",'151.A06'!Q4,IF(Obliczenia!$D$58="Vitocal 15x-A 151.A04",'151.A04'!Q4,IF(Obliczenia!$D$58="Vitocal 25x-A 251.A08",'251.A08'!Q4,IF(Obliczenia!$D$58="Vitocal 25x-A 251.A06",'251.A06'!Q4,IF(Obliczenia!$D$58="Vitocal 25x-A 251.A04",'251.A04'!Q4,IF(Obliczenia!$D$58="Vitocal 100-A 101.B06",'AWO-B06'!Q4,IF(Obliczenia!$D$58="Vitocal 100-A 101.B08",'AWO-B08'!Q4,IF(Obliczenia!$D$58="Vitocal 100-A 101.A10",'AWO-A10'!Q4,IF(Obliczenia!$D$58="Vitocal 100-A 101.A12",'AWO-A12'!Q4,IF(Obliczenia!$D$58="Vitocal 100-A 101.A14",'AWO-A14'!Q4,IF(Obliczenia!$D$58="Vitocal 100-A 101.A16",'AWO-A16'!Q4,IF(Obliczenia!$D$58="Vitocal 100-A 101.A18",'AWO-A18'!Q4,"błąd"))))))))))))))))))))))))))))))))) -> 6.15 | BJ8: =IF(Obliczenia!$D$58="Vitocal 2xx-S 201.E06",'E06'!R4,IF(Obliczenia!$D$58="Vitocal 2xx-S 201.E08",'E08'!R4,IF(Obliczenia!$D$58="Vitocal 2xx-S 201.E10",'E10'!R4,IF(Obliczenia!$D$58="Vitocal 1xx-S 101.B04",'B04'!R4,IF(Obliczenia!$D$58="Vitocal 1xx-S 101.B06",'B06'!R4,IF(Obliczenia!$D$58="Vitocal 1xx-S 101.B08",'B08'!R4,IF(Obliczenia!$D$58="Vitocal 1xx-S 101.A12",'A12'!R4,IF(Obliczenia!$D$58="Vitocal 1xx-S 101.A14",'A14'!R4,IF(Obliczenia!$D$58="Vitocal 1xx-S 101.A16",'A16'!R4,IF(Obliczenia!$D$58="Vitocal 2xx-S 201.D04",'D04'!R4,IF(Obliczenia!$D$58="Vitocal 2xx-S 201.D06",'D06'!R4,IF(Obliczenia!$D$58="Vitocal 2xx-S 201.D08",'D08'!R4,IF(Obliczenia!$D$58="Vitocal 2xx-S 201.D10",'D10'!R4,IF(Obliczenia!$D$58="Vitocal 2xx-S 201.D13",'D13'!R4,IF(Obliczenia!$D$58="Vitocal 2xx-S 201.D16",'D16'!R4,IF(Obliczenia!$D$58="Vitocal 15x-A 151.A10",'151.A10'!R4,IF(Obliczenia!$D$58="Vitocal 15x-A 151.A13",'151.A13'!R4,IF(Obliczenia!$D$58="Vitocal 15x-A 151.A16",'151.A16'!R4,IF(Obliczenia!$D$58="Vitocal 25x-A 251.A10",'251.A10'!R4,IF(Obliczenia!$D$58="Vitocal 25x-A 251.A13",'251.A13'!R4,IF(Obliczenia!$D$58="Vitocal 15x-A 151.A08",'151.A08'!R4,IF(Obliczenia!$D$58="Vitocal 15x-A 151.A06",'151.A06'!R4,IF(Obliczenia!$D$58="Vitocal 15x-A 151.A04",'151.A04'!R4,IF(Obliczenia!$D$58="Vitocal 25x-A 251.A08",'251.A08'!R4,IF(Obliczenia!$D$58="Vitocal 25x-A 251.A06",'251.A06'!R4,IF(Obliczenia!$D$58="Vitocal 25x-A 251.A04",'251.A04'!R4,IF(Obliczenia!$D$58="Vitocal 100-A 101.B06",'AWO-B06'!R4,IF(Obliczenia!$D$58="Vitocal 100-A 101.B08",'AWO-B08'!R4,IF(Obliczenia!$D$58="Vitocal 100-A 101.A10",'AWO-A10'!R4,IF(Obliczenia!$D$58="Vitocal 100-A 101.A12",'AWO-A12'!R4,IF(Obliczenia!$D$58="Vitocal 100-A 101.A14",'AWO-A14'!R4,IF(Obliczenia!$D$58="Vitocal 100-A 101.A16",'AWO-A16'!R4,IF(Obliczenia!$D$58="Vitocal 100-A 101.A18",'AWO-A18'!R4,"błąd"))))))))))))))))))))))))))))))))) -> 7.5 | BK8: =IF(Obliczenia!$D$58="Vitocal 2xx-S 201.E06",'E06'!S4,IF(Obliczenia!$D$58="Vitocal 2xx-S 201.E08",'E08'!S4,IF(Obliczenia!$D$58="Vitocal 2xx-S 201.E10",'E10'!S4,IF(Obliczenia!$D$58="Vitocal 1xx-S 101.B04",'B04'!S4,IF(Obliczenia!$D$58="Vitocal 1xx-S 101.B06",'B06'!S4,IF(Obliczenia!$D$58="Vitocal 1xx-S 101.B08",'B08'!S4,IF(Obliczenia!$D$58="Vitocal 1xx-S 101.A12",'A12'!S4,IF(Obliczenia!$D$58="Vitocal 1xx-S 101.A14",'A14'!S4,IF(Obliczenia!$D$58="Vitocal 1xx-S 101.A16",'A16'!S4,IF(Obliczenia!$D$58="Vitocal 2xx-S 201.D04",'D04'!S4,IF(Obliczenia!$D$58="Vitocal 2xx-S 201.D06",'D06'!S4,IF(Obliczenia!$D$58="Vitocal 2xx-S 201.D08",'D08'!S4,IF(Obliczenia!$D$58="Vitocal 2xx-S 201.D10",'D10'!S4,IF(Obliczenia!$D$58="Vitocal 2xx-S 201.D13",'D13'!S4,IF(Obliczenia!$D$58="Vitocal 2xx-S 201.D16",'D16'!S4,IF(Obliczenia!$D$58="Vitocal 15x-A 151.A10",'151.A10'!S4,IF(Obliczenia!$D$58="Vitocal 15x-A 151.A13",'151.A13'!S4,IF(Obliczenia!$D$58="Vitocal 15x-A 151.A16",'151.A16'!S4,IF(Obliczenia!$D$58="Vitocal 25x-A 251.A10",'251.A10'!S4,IF(Obliczenia!$D$58="Vitocal 25x-A 251.A13",'251.A13'!S4,IF(Obliczenia!$D$58="Vitocal 15x-A 151.A08",'151.A08'!S4,IF(Obliczenia!$D$58="Vitocal 15x-A 151.A06",'151.A06'!S4,IF(Obliczenia!$D$58="Vitocal 15x-A 151.A04",'151.A04'!S4,IF(Obliczenia!$D$58="Vitocal 25x-A 251.A08",'251.A08'!S4,IF(Obliczenia!$D$58="Vitocal 25x-A 251.A06",'251.A06'!S4,IF(Obliczenia!$D$58="Vitocal 25x-A 251.A04",'251.A04'!S4,IF(Obliczenia!$D$58="Vitocal 100-A 101.B06",'AWO-B06'!S4,IF(Obliczenia!$D$58="Vitocal 100-A 101.B08",'AWO-B08'!S4,IF(Obliczenia!$D$58="Vitocal 100-A 101.A10",'AWO-A10'!S4,IF(Obliczenia!$D$58="Vitocal 100-A 101.A12",'AWO-A12'!S4,IF(Obliczenia!$D$58="Vitocal 100-A 101.A14",'AWO-A14'!S4,IF(Obliczenia!$D$58="Vitocal 100-A 101.A16",'AWO-A16'!S4,IF(Obliczenia!$D$58="Vitocal 100-A 101.A18",'AWO-A18'!S4,"błąd"))))))))))))))))))))))))))))))))) -> 8.25 | BL8: =IF(Obliczenia!$D$58="Vitocal 2xx-S 201.E06",'E06'!T4,IF(Obliczenia!$D$58="Vitocal 2xx-S 201.E08",'E08'!T4,IF(Obliczenia!$D$58="Vitocal 2xx-S 201.E10",'E10'!T4,IF(Obliczenia!$D$58="Vitocal 1xx-S 101.B04",'B04'!T4,IF(Obliczenia!$D$58="Vitocal 1xx-S 101.B06",'B06'!T4,IF(Obliczenia!$D$58="Vitocal 1xx-S 101.B08",'B08'!T4,IF(Obliczenia!$D$58="Vitocal 1xx-S 101.A12",'A12'!T4,IF(Obliczenia!$D$58="Vitocal 1xx-S 101.A14",'A14'!T4,IF(Obliczenia!$D$58="Vitocal 1xx-S 101.A16",'A16'!T4,IF(Obliczenia!$D$58="Vitocal 2xx-S 201.D04",'D04'!T4,IF(Obliczenia!$D$58="Vitocal 2xx-S 201.D06",'D06'!T4,IF(Obliczenia!$D$58="Vitocal 2xx-S 201.D08",'D08'!T4,IF(Obliczenia!$D$58="Vitocal 2xx-S 201.D10",'D10'!T4,IF(Obliczenia!$D$58="Vitocal 2xx-S 201.D13",'D13'!T4,IF(Obliczenia!$D$58="Vitocal 2xx-S 201.D16",'D16'!T4,IF(Obliczenia!$D$58="Vitocal 15x-A 151.A10",'151.A10'!T4,IF(Obliczenia!$D$58="Vitocal 15x-A 151.A13",'151.A13'!T4,IF(Obliczenia!$D$58="Vitocal 15x-A 151.A16",'151.A16'!T4,IF(Obliczenia!$D$58="Vitocal 25x-A 251.A10",'251.A10'!T4,IF(Obliczenia!$D$58="Vitocal 25x-A 251.A13",'251.A13'!T4,IF(Obliczenia!$D$58="Vitocal 15x-A 151.A08",'151.A08'!T4,IF(Obliczenia!$D$58="Vitocal 15x-A 151.A06",'151.A06'!T4,IF(Obliczenia!$D$58="Vitocal 15x-A 151.A04",'151.A04'!T4,IF(Obliczenia!$D$58="Vitocal 25x-A 251.A08",'251.A08'!T4,IF(Obliczenia!$D$58="Vitocal 25x-A 251.A06",'251.A06'!T4,IF(Obliczenia!$D$58="Vitocal 25x-A 251.A04",'251.A04'!T4,IF(Obliczenia!$D$58="Vitocal 100-A 101.B06",'AWO-B06'!T4,IF(Obliczenia!$D$58="Vitocal 100-A 101.B08",'AWO-B08'!T4,IF(Obliczenia!$D$58="Vitocal 100-A 101.A10",'AWO-A10'!T4,IF(Obliczenia!$D$58="Vitocal 100-A 101.A12",'AWO-A12'!T4,IF(Obliczenia!$D$58="Vitocal 100-A 101.A14",'AWO-A14'!T4,IF(Obliczenia!$D$58="Vitocal 100-A 101.A16",'AWO-A16'!T4,IF(Obliczenia!$D$58="Vitocal 100-A 101.A18",'AWO-A18'!T4,"błąd"))))))))))))))))))))))))))))))))) -> 8.536 | BM8: =IF(Obliczenia!$D$58="Vitocal 2xx-S 201.E06",'E06'!U4,IF(Obliczenia!$D$58="Vitocal 2xx-S 201.E08",'E08'!U4,IF(Obliczenia!$D$58="Vitocal 2xx-S 201.E10",'E10'!U4,IF(Obliczenia!$D$58="Vitocal 1xx-S 101.B04",'B04'!U4,IF(Obliczenia!$D$58="Vitocal 1xx-S 101.B06",'B06'!U4,IF(Obliczenia!$D$58="Vitocal 1xx-S 101.B08",'B08'!U4,IF(Obliczenia!$D$58="Vitocal 1xx-S 101.A12",'A12'!U4,IF(Obliczenia!$D$58="Vitocal 1xx-S 101.A14",'A14'!U4,IF(Obliczenia!$D$58="Vitocal 1xx-S 101.A16",'A16'!U4,IF(Obliczenia!$D$58="Vitocal 2xx-S 201.D04",'D04'!U4,IF(Obliczenia!$D$58="Vitocal 2xx-S 201.D06",'D06'!U4,IF(Obliczenia!$D$58="Vitocal 2xx-S 201.D08",'D08'!U4,IF(Obliczenia!$D$58="Vitocal 2xx-S 201.D10",'D10'!U4,IF(Obliczenia!$D$58="Vitocal 2xx-S 201.D13",'D13'!U4,IF(Obliczenia!$D$58="Vitocal 2xx-S 201.D16",'D16'!U4,IF(Obliczenia!$D$58="Vitocal 15x-A 151.A10",'151.A10'!U4,IF(Obliczenia!$D$58="Vitocal 15x-A 151.A13",'151.A13'!U4,IF(Obliczenia!$D$58="Vitocal 15x-A 151.A16",'151.A16'!U4,IF(Obliczenia!$D$58="Vitocal 25x-A 251.A10",'251.A10'!U4,IF(Obliczenia!$D$58="Vitocal 25x-A 251.A13",'251.A13'!U4,IF(Obliczenia!$D$58="Vitocal 15x-A 151.A08",'151.A08'!U4,IF(Obliczenia!$D$58="Vitocal 15x-A 151.A06",'151.A06'!U4,IF(Obliczenia!$D$58="Vitocal 15x-A 151.A04",'151.A04'!U4,IF(Obliczenia!$D$58="Vitocal 25x-A 251.A08",'251.A08'!U4,IF(Obliczenia!$D$58="Vitocal 25x-A 251.A06",'251.A06'!U4,IF(Obliczenia!$D$58="Vitocal 25x-A 251.A04",'251.A04'!U4,IF(Obliczenia!$D$58="Vitocal 100-A 101.B06",'AWO-B06'!U4,IF(Obliczenia!$D$58="Vitocal 100-A 101.B08",'AWO-B08'!U4,IF(Obliczenia!$D$58="Vitocal 100-A 101.A10",'AWO-A10'!U4,IF(Obliczenia!$D$58="Vitocal 100-A 101.A12",'AWO-A12'!U4,IF(Obliczenia!$D$58="Vitocal 100-A 101.A14",'AWO-A14'!U4,IF(Obliczenia!$D$58="Vitocal 100-A 101.A16",'AWO-A16'!U4,IF(Obliczenia!$D$58="Vitocal 100-A 101.A18",'AWO-A18'!U4,"błąd"))))))))))))))))))))))))))))))))) -> 8.965 | BN8: =IF(Obliczenia!$D$58="Vitocal 2xx-S 201.E06",'E06'!V4,IF(Obliczenia!$D$58="Vitocal 2xx-S 201.E08",'E08'!V4,IF(Obliczenia!$D$58="Vitocal 2xx-S 201.E10",'E10'!V4,IF(Obliczenia!$D$58="Vitocal 1xx-S 101.B04",'B04'!V4,IF(Obliczenia!$D$58="Vitocal 1xx-S 101.B06",'B06'!V4,IF(Obliczenia!$D$58="Vitocal 1xx-S 101.B08",'B08'!V4,IF(Obliczenia!$D$58="Vitocal 1xx-S 101.A12",'A12'!V4,IF(Obliczenia!$D$58="Vitocal 1xx-S 101.A14",'A14'!V4,IF(Obliczenia!$D$58="Vitocal 1xx-S 101.A16",'A16'!V4,IF(Obliczenia!$D$58="Vitocal 2xx-S 201.D04",'D04'!V4,IF(Obliczenia!$D$58="Vitocal 2xx-S 201.D06",'D06'!V4,IF(Obliczenia!$D$58="Vitocal 2xx-S 201.D08",'D08'!V4,IF(Obliczenia!$D$58="Vitocal 2xx-S 201.D10",'D10'!V4,IF(Obliczenia!$D$58="Vitocal 2xx-S 201.D13",'D13'!V4,IF(Obliczenia!$D$58="Vitocal 2xx-S 201.D16",'D16'!V4,IF(Obliczenia!$D$58="Vitocal 15x-A 151.A10",'151.A10'!V4,IF(Obliczenia!$D$58="Vitocal 15x-A 151.A13",'151.A13'!V4,IF(Obliczenia!$D$58="Vitocal 15x-A 151.A16",'151.A16'!V4,IF(Obliczenia!$D$58="Vitocal 25x-A 251.A10",'251.A10'!V4,IF(Obliczenia!$D$58="Vitocal 25x-A 251.A13",'251.A13'!V4,IF(Obliczenia!$D$58="Vitocal 15x-A 151.A08",'151.A08'!V4,IF(Obliczenia!$D$58="Vitocal 15x-A 151.A06",'151.A06'!V4,IF(Obliczenia!$D$58="Vitocal 15x-A 151.A04",'151.A04'!V4,IF(Obliczenia!$D$58="Vitocal 25x-A 251.A08",'251.A08'!V4,IF(Obliczenia!$D$58="Vitocal 25x-A 251.A06",'251.A06'!V4,IF(Obliczenia!$D$58="Vitocal 25x-A 251.A04",'251.A04'!V4,IF(Obliczenia!$D$58="Vitocal 100-A 101.B06",'AWO-B06'!V4,IF(Obliczenia!$D$58="Vitocal 100-A 101.B08",'AWO-B08'!V4,IF(Obliczenia!$D$58="Vitocal 100-A 101.A10",'AWO-A10'!V4,IF(Obliczenia!$D$58="Vitocal 100-A 101.A12",'AWO-A12'!V4,IF(Obliczenia!$D$58="Vitocal 100-A 101.A14",'AWO-A14'!V4,IF(Obliczenia!$D$58="Vitocal 100-A 101.A16",'AWO-A16'!V4,IF(Obliczenia!$D$58="Vitocal 100-A 101.A18",'AWO-A18'!V4,"błąd"))))))))))))))))))))))))))))))))) -> 9.68 | BO8: =IF(Obliczenia!$D$58="Vitocal 2xx-S 201.E06",'E06'!W4,IF(Obliczenia!$D$58="Vitocal 2xx-S 201.E08",'E08'!W4,IF(Obliczenia!$D$58="Vitocal 2xx-S 201.E10",'E10'!W4,IF(Obliczenia!$D$58="Vitocal 1xx-S 101.B04",'B04'!W4,IF(Obliczenia!$D$58="Vitocal 1xx-S 101.B06",'B06'!W4,IF(Obliczenia!$D$58="Vitocal 1xx-S 101.B08",'B08'!W4,IF(Obliczenia!$D$58="Vitocal 1xx-S 101.A12",'A12'!W4,IF(Obliczenia!$D$58="Vitocal 1xx-S 101.A14",'A14'!W4,IF(Obliczenia!$D$58="Vitocal 1xx-S 101.A16",'A16'!W4,IF(Obliczenia!$D$58="Vitocal 2xx-S 201.D04",'D04'!W4,IF(Obliczenia!$D$58="Vitocal 2xx-S 201.D06",'D06'!W4,IF(Obliczenia!$D$58="Vitocal 2xx-S 201.D08",'D08'!W4,IF(Obliczenia!$D$58="Vitocal 2xx-S 201.D10",'D10'!W4,IF(Obliczenia!$D$58="Vitocal 2xx-S 201.D13",'D13'!W4,IF(Obliczenia!$D$58="Vitocal 2xx-S 201.D16",'D16'!W4,IF(Obliczenia!$D$58="Vitocal 15x-A 151.A10",'151.A10'!W4,IF(Obliczenia!$D$58="Vitocal 15x-A 151.A13",'151.A13'!W4,IF(Obliczenia!$D$58="Vitocal 15x-A 151.A16",'151.A16'!W4,IF(Obliczenia!$D$58="Vitocal 25x-A 251.A10",'251.A10'!W4,IF(Obliczenia!$D$58="Vitocal 25x-A 251.A13",'251.A13'!W4,IF(Obliczenia!$D$58="Vitocal 15x-A 151.A08",'151.A08'!W4,IF(Obliczenia!$D$58="Vitocal 15x-A 151.A06",'151.A06'!W4,IF(Obliczenia!$D$58="Vitocal 15x-A 151.A04",'151.A04'!W4,IF(Obliczenia!$D$58="Vitocal 25x-A 251.A08",'251.A08'!W4,IF(Obliczenia!$D$58="Vitocal 25x-A 251.A06",'251.A06'!W4,IF(Obliczenia!$D$58="Vitocal 25x-A 251.A04",'251.A04'!W4,IF(Obliczenia!$D$58="Vitocal 100-A 101.B06",'AWO-B06'!W4,IF(Obliczenia!$D$58="Vitocal 100-A 101.B08",'AWO-B08'!W4,IF(Obliczenia!$D$58="Vitocal 100-A 101.A10",'AWO-A10'!W4,IF(Obliczenia!$D$58="Vitocal 100-A 101.A12",'AWO-A12'!W4,IF(Obliczenia!$D$58="Vitocal 100-A 101.A14",'AWO-A14'!W4,IF(Obliczenia!$D$58="Vitocal 100-A 101.A16",'AWO-A16'!W4,IF(Obliczenia!$D$58="Vitocal 100-A 101.A18",'AWO-A18'!W4,"błąd"))))))))))))))))))))))))))))))))) -> 11.38 | BW8: Vitocal 200-S AWB-E(-AC) 201.D10 | BX8: ='D10'!B25 -> 43220 | BY8: ='Bilans-D10'!G7 -> 3.837662295 | BZ8: 11262.06442 | CA8: 11262.06442 | CK8: -0.7666666667 | CL8: -11.6875
A9: 4 | B9: 1.2 | C9: 1.2 | E9: 3 | F9: =AVERAGE(C55:C78) -> -1.558333333 | H9: =F9*Budynek!$D$31+Budynek!$D$32 -> 28.084375 | J9: =Budynek!$D$4*(Dane!$E$12-F9)*12/1000 -> 36.70956098 | L9: =Budynek!$D$4*(Dane!$E$13-F9)*12/1000 -> 30.20029268 | N9: 66.90985366 | P9: 66.90985366 | Q9: 66.90985366 | R9: 66.90985366 | S9: 66.90985366 | T9: =T8 -> 7.11627907 | AA9: =IF(Obliczenia!$D$58="Vitocal 2xx-S 201.E06",'Bilans-E06'!Z9,IF(Obliczenia!$D$58="Vitocal 2xx-S 201.E08",'Bilans-E08'!Z9,IF(Obliczenia!$D$58="Vitocal 2xx-S 201.E10",'Bilans-E10'!Z9,IF(Obliczenia!$D$58="Vitocal 1xx-S 101.B04",'Bilans-B04'!Z9,IF(Obliczenia!$D$58="Vitocal 1xx-S 101.B06",'Bilans-B06'!Z9,IF(Obliczenia!$D$58="Vitocal 1xx-S 101.B08",'Bilans-B08'!Z9,IF(Obliczenia!$D$58="Vitocal 1xx-S 101.A12",'Bilans-A12'!Z9,IF(Obliczenia!$D$58="Vitocal 1xx-S 101.A14",'Bilans-A14'!Z9,IF(Obliczenia!$D$58="Vitocal 1xx-S 101.A16",'Bilans-A16'!Z9,IF(Obliczenia!$D$58="Vitocal 2xx-S 201.D04",'Bilans-D04'!Z9,IF(Obliczenia!$D$58="Vitocal 2xx-S 201.D06",'Bilans-B06'!Z9,IF(Obliczenia!$D$58="Vitocal 2xx-S 201.D08",'Bilans-D08'!Z9,IF(Obliczenia!$D$58="Vitocal 2xx-S 201.D10",'Bilans-D10'!Z9,IF(Obliczenia!$D$58="Vitocal 2xx-S 201.D13",'Bilans-D13'!Z9,IF(Obliczenia!$D$58="Vitocal 2xx-S 201.D16",'Bilans-D16'!Z9,IF(Obliczenia!$D$58="Vitocal 15x-A 151.A10",'Bilans-151-A10'!Z9,IF(Obliczenia!$D$58="Vitocal 15x-A 151.A13",'Bilans-151-A13'!Z9,IF(Obliczenia!$D$58="Vitocal 15x-A 151.A16",'Bilans-151-A16'!Z9,IF(Obliczenia!$D$58="Vitocal 15x-A 151.A16",'Bilans-151-A16'!Z9,IF(Obliczenia!$D$58="Vitocal 25x-A 251.A10",'Bilans-251-A10'!Z9,IF(Obliczenia!$D$58="Vitocal 25x-A 251.A13",'Bilans-251-A13'!Z9,IF(Obliczenia!$D$58="Vitocal 15x-A 151.A06",'Bilans-151-A06'!Z9,IF(Obliczenia!$D$58="Vitocal 15x-A 151.A08",'Bilans-151-A08'!Z9,IF(Obliczenia!$D$58="Vitocal 15x-A 151.A04",'Bilans-151-A04'!Z9,IF(Obliczenia!$D$58="Vitocal 25x-A 251.A04",'Bilans-251-A04'!Z9,IF(Obliczenia!$D$58="Vitocal 25x-A 251.A06",'Bilans-251-A06'!Z9,IF(Obliczenia!$D$58="Vitocal 25x-A 251.A08",'Bilans-251-A08'!Z9,IF(Obliczenia!$D$58="Vitocal 100-A 101.B06",'Bilans-AWO-B06'!Z9,IF(Obliczenia!$D$58="Vitocal 100-A 101.B08",'Bilans-AWO-B08'!Z9,IF(Obliczenia!$D$58="Vitocal 100-A 101.A10",'Bilans-AWO-A10'!Z9,IF(Obliczenia!$D$58="Vitocal 100-A 101.A12",'Bilans-AWO-A12'!Z9,IF(Obliczenia!$D$58="Vitocal 100-A 101.A14",'Bilans-AWO-A14'!Z9,IF(Obliczenia!$D$58="Vitocal 100-A 101.A16",'Bilans-AWO-A16'!Z9,IF(Obliczenia!$D$58="Vitocal 100-A 101.A18",'Bilans-AWO-A18'!Z9,"błąd")))))))))))))))))))))))))))))))))) -> 66.90985366 | AB9: =IF(Obliczenia!$D$58="Vitocal 2xx-S 201.E06",'Bilans-E06'!AA9,IF(Obliczenia!$D$58="Vitocal 2xx-S 201.E08",'Bilans-E08'!AA9,IF(Obliczenia!$D$58="Vitocal 2xx-S 201.E10",'Bilans-E10'!AA9,IF(Obliczenia!$D$58="Vitocal 1xx-S 101.B04",'Bilans-B04'!AA9,IF(Obliczenia!$D$58="Vitocal 1xx-S 101.B06",'Bilans-B06'!AA9,IF(Obliczenia!$D$58="Vitocal 1xx-S 101.B08",'Bilans-B08'!AA9,IF(Obliczenia!$D$58="Vitocal 1xx-S 101.A12",'Bilans-A12'!AA9,IF(Obliczenia!$D$58="Vitocal 1xx-S 101.A14",'Bilans-A14'!AA9,IF(Obliczenia!$D$58="Vitocal 1xx-S 101.A16",'Bilans-A16'!AA9,IF(Obliczenia!$D$58="Vitocal 2xx-S 201.D04",'Bilans-D04'!AA9,IF(Obliczenia!$D$58="Vitocal 2xx-S 201.D06",'Bilans-B06'!AA9,IF(Obliczenia!$D$58="Vitocal 2xx-S 201.D08",'Bilans-D08'!AA9,IF(Obliczenia!$D$58="Vitocal 2xx-S 201.D10",'Bilans-D10'!AA9,IF(Obliczenia!$D$58="Vitocal 2xx-S 201.D13",'Bilans-D13'!AA9,IF(Obliczenia!$D$58="Vitocal 2xx-S 201.D16",'Bilans-D16'!AA9,IF(Obliczenia!$D$58="Vitocal 15x-A 151.A10",'Bilans-151-A10'!AA9,IF(Obliczenia!$D$58="Vitocal 15x-A 151.A13",'Bilans-151-A13'!AA9,IF(Obliczenia!$D$58="Vitocal 15x-A 151.A16",'Bilans-151-A16'!AA9,IF(Obliczenia!$D$58="Vitocal 15x-A 151.A16",'Bilans-151-A16'!AA9,IF(Obliczenia!$D$58="Vitocal 25x-A 251.A10",'Bilans-251-A10'!AA9,IF(Obliczenia!$D$58="Vitocal 25x-A 251.A13",'Bilans-251-A13'!AA9,IF(Obliczenia!$D$58="Vitocal 15x-A 151.A08",'Bilans-151-A08'!AA9,IF(Obliczenia!$D$58="Vitocal 15x-A 151.A06",'Bilans-151-A06'!AA9,IF(Obliczenia!$D$58="Vitocal 15x-A 151.A04",'Bilans-151-A04'!AA9,IF(Obliczenia!$D$58="Vitocal 25x-A 251.A04",'Bilans-251-A04'!AA9,IF(Obliczenia!$D$58="Vitocal 25x-A 251.A06",'Bilans-251-A06'!AA9,IF(Obliczenia!$D$58="Vitocal 25x-A 251.A08",'Bilans-251-A08'!AA9,IF(Obliczenia!$D$58="Vitocal 100-A 101.B06",'Bilans-AWO-B06'!AA9,IF(Obliczenia!$D$58="Vitocal 100-A 101.B08",'Bilans-AWO-B08'!AA9,IF(Obliczenia!$D$58="Vitocal 100-A 101.A10",'Bilans-AWO-A10'!AA9,IF(Obliczenia!$D$58="Vitocal 100-A 101.A12",'Bilans-AWO-A12'!AA9,IF(Obliczenia!$D$58="Vitocal 100-A 101.A14",'Bilans-AWO-A14'!AA9,IF(Obliczenia!$D$58="Vitocal 100-A 101.A16",'Bilans-AWO-A16'!AA9,IF(Obliczenia!$D$58="Vitocal 100-A 101.A18",'Bilans-AWO-A18'!AA9,"błąd")))))))))))))))))))))))))))))))))) -> 0 | AE9: D08 | AF9: ='D08'!B29 -> 13.62 | AG9: 1 | AI9: 66.90985366 | AJ9: 0 | AR9: =IF(Obliczenia!$D$58="Vitocal 2xx-S 201.E06",'Bilans-E06'!AR9,IF(Obliczenia!$D$58="Vitocal 2xx-S 201.E08",'Bilans-E08'!AR9,IF(Obliczenia!$D$58="Vitocal 2xx-S 201.E10",'Bilans-E10'!AR9,IF(Obliczenia!$D$58="Vitocal 1xx-S 101.B04",'Bilans-B04'!AR9,IF(Obliczenia!$D$58="Vitocal 1xx-S 101.B06",'Bilans-B06'!AR9,IF(Obliczenia!$D$58="Vitocal 1xx-S 101.B08",'Bilans-B08'!AR9,IF(Obliczenia!$D$58="Vitocal 1xx-S 101.A12",'Bilans-A12'!AR9,IF(Obliczenia!$D$58="Vitocal 1xx-S 101.A14",'Bilans-A14'!AR9,IF(Obliczenia!$D$58="Vitocal 1xx-S 101.A16",'Bilans-A16'!AR9,IF(Obliczenia!$D$58="Vitocal 2xx-S 201.D04",'Bilans-D04'!AR9,IF(Obliczenia!$D$58="Vitocal 2xx-S 201.D06",'Bilans-B06'!AR9,IF(Obliczenia!$D$58="Vitocal 2xx-S 201.D08",'Bilans-D08'!AR9,IF(Obliczenia!$D$58="Vitocal 2xx-S 201.D10",'Bilans-D10'!AR9,IF(Obliczenia!$D$58="Vitocal 2xx-S 201.D13",'Bilans-D13'!AR9,IF(Obliczenia!$D$58="Vitocal 2xx-S 201.D16",'Bilans-D16'!AR9,IF(Obliczenia!$D$58="Vitocal 15x-A 151.A10",'Bilans-151-A10'!AR9,IF(Obliczenia!$D$58="Vitocal 15x-A 151.A13",'Bilans-151-A13'!AR9,IF(Obliczenia!$D$58="Vitocal 15x-A 151.A16",'Bilans-151-A16'!AR9,IF(Obliczenia!$D$58="Vitocal 25x-A 251.A10",'Bilans-251-A10'!AR9,IF(Obliczenia!$D$58="Vitocal 25x-A 251.A13",'Bilans-251-A13'!AR9,IF(Obliczenia!$D$58="Vitocal 15x-A 151.A08",'Bilans-151-A08'!AR9,IF(Obliczenia!$D$58="Vitocal 15x-A 151.A06",'Bilans-151-A06'!AR9,IF(Obliczenia!$D$58="Vitocal 15x-A 151.A04",'Bilans-151-A04'!AR9,IF(Obliczenia!$D$58="Vitocal 25x-A 251.A04",'Bilans-251-A04'!AR9,IF(Obliczenia!$D$58="Vitocal 25x-A 251.A06",'Bilans-251-A06'!AR9,IF(Obliczenia!$D$58="Vitocal 25x-A 251.A08",'Bilans-251-A08'!AR9,IF(Obliczenia!$D$58="Vitocal 100-A 101.B06",'Bilans-AWO-B06'!AR9,IF(Obliczenia!$D$58="Vitocal 100-A 101.B08",'Bilans-AWO-B08'!AR9,IF(Obliczenia!$D$58="Vitocal 100-A 101.A10",'Bilans-AWO-A10'!AR9,IF(Obliczenia!$D$58="Vitocal 100-A 101.A12",'Bilans-AWO-A12'!AR9,IF(Obliczenia!$D$58="Vitocal 100-A 101.A14",'Bilans-AWO-A14'!AR9,IF(Obliczenia!$D$58="Vitocal 100-A 101.A16",'Bilans-AWO-A16'!AR9,IF(Obliczenia!$D$58="Vitocal 100-A 101.A18",'Bilans-AWO-A18'!AR9,"błąd"))))))))))))))))))))))))))))))))) -> 66.90985366 | AS9: =IF(Obliczenia!$D$58="Vitocal 2xx-S 201.E06",'Bilans-E06'!AS9,IF(Obliczenia!$D$58="Vitocal 2xx-S 201.E08",'Bilans-E08'!AS9,IF(Obliczenia!$D$58="Vitocal 2xx-S 201.E10",'Bilans-E10'!AS9,IF(Obliczenia!$D$58="Vitocal 1xx-S 101.B04",'Bilans-B04'!AS9,IF(Obliczenia!$D$58="Vitocal 1xx-S 101.B06",'Bilans-B06'!AS9,IF(Obliczenia!$D$58="Vitocal 1xx-S 101.B08",'Bilans-B08'!AS9,IF(Obliczenia!$D$58="Vitocal 1xx-S 101.A12",'Bilans-A12'!AS9,IF(Obliczenia!$D$58="Vitocal 1xx-S 101.A14",'Bilans-A14'!AS9,IF(Obliczenia!$D$58="Vitocal 1xx-S 101.A16",'Bilans-A16'!AS9,IF(Obliczenia!$D$58="Vitocal 2xx-S 201.D04",'Bilans-D04'!AS9,IF(Obliczenia!$D$58="Vitocal 2xx-S 201.D06",'Bilans-B06'!AS9,IF(Obliczenia!$D$58="Vitocal 2xx-S 201.D08",'Bilans-D08'!AS9,IF(Obliczenia!$D$58="Vitocal 2xx-S 201.D10",'Bilans-D10'!AS9,IF(Obliczenia!$D$58="Vitocal 2xx-S 201.D13",'Bilans-D13'!AS9,IF(Obliczenia!$D$58="Vitocal 2xx-S 201.D16",'Bilans-D16'!AS9,IF(Obliczenia!$D$58="Vitocal 15x-A 151.A10",'Bilans-151-A10'!AS9,IF(Obliczenia!$D$58="Vitocal 15x-A 151.A13",'Bilans-151-A13'!AS9,IF(Obliczenia!$D$58="Vitocal 15x-A 151.A16",'Bilans-151-A16'!AS9,IF(Obliczenia!$D$58="Vitocal 25x-A 251.A10",'Bilans-251-A10'!AS9,IF(Obliczenia!$D$58="Vitocal 25x-A 251.A13",'Bilans-251-A13'!AS9,IF(Obliczenia!$D$58="Vitocal 15x-A 151.A08",'Bilans-151-A08'!AS9,IF(Obliczenia!$D$58="Vitocal 15x-A 151.A06",'Bilans-151-A06'!AS9,IF(Obliczenia!$D$58="Vitocal 15x-A 151.A04",'Bilans-151-A04'!AS9,IF(Obliczenia!$D$58="Vitocal 25x-A 251.A04",'Bilans-251-A04'!AS9,IF(Obliczenia!$D$58="Vitocal 25x-A 251.A06",'Bilans-251-A06'!AS9,IF(Obliczenia!$D$58="Vitocal 25x-A 251.A08",'Bilans-251-A08'!AS9,IF(Obliczenia!$D$58="Vitocal 100-A 101.B06",'Bilans-AWO-B06'!AS9,IF(Obliczenia!$D$58="Vitocal 100-A 101.B08",'Bilans-AWO-B08'!AS9,IF(Obliczenia!$D$58="Vitocal 100-A 101.A10",'Bilans-AWO-A10'!AS9,IF(Obliczenia!$D$58="Vitocal 100-A 101.A12",'Bilans-AWO-A12'!AS9,IF(Obliczenia!$D$58="Vitocal 100-A 101.A14",'Bilans-AWO-A14'!AS9,IF(Obliczenia!$D$58="Vitocal 100-A 101.A16",'Bilans-AWO-A16'!AS9,IF(Obliczenia!$D$58="Vitocal 100-A 101.A18",'Bilans-AWO-A18'!AS9,"błąd"))))))))))))))))))))))))))))))))) -> 0 | AV9: =IF(Obliczenia!$D$58="Vitocal 2xx-S 201.E06",'Bilans-E06'!BJ9,IF(Obliczenia!$D$58="Vitocal 2xx-S 201.E08",'Bilans-E08'!BJ9,IF(Obliczenia!$D$58="Vitocal 2xx-S 201.E10",'Bilans-E10'!BJ9,IF(Obliczenia!$D$58="Vitocal 1xx-S 101.B04",'Bilans-B04'!BJ9,IF(Obliczenia!$D$58="Vitocal 1xx-S 101.B06",'Bilans-B06'!BJ9,IF(Obliczenia!$D$58="Vitocal 1xx-S 101.B08",'Bilans-B08'!BJ9,IF(Obliczenia!$D$58="Vitocal 1xx-S 101.A12",'Bilans-A12'!BJ9,IF(Obliczenia!$D$58="Vitocal 1xx-S 101.A14",'Bilans-A14'!BJ9,IF(Obliczenia!$D$58="Vitocal 1xx-S 101.A16",'Bilans-A16'!BJ9,IF(Obliczenia!$D$58="Vitocal 2xx-S 201.D04",'Bilans-D04'!BJ9,IF(Obliczenia!$D$58="Vitocal 2xx-S 201.D06",'Bilans-B06'!BJ9,IF(Obliczenia!$D$58="Vitocal 2xx-S 201.D08",'Bilans-D08'!BJ9,IF(Obliczenia!$D$58="Vitocal 2xx-S 201.D10",'Bilans-D10'!BJ9,IF(Obliczenia!$D$58="Vitocal 2xx-S 201.D13",'Bilans-D13'!BJ9,IF(Obliczenia!$D$58="Vitocal 2xx-S 201.D16",'Bilans-D16'!BJ9,IF(Obliczenia!$D$58="Vitocal 15x-A 151.A10",'Bilans-151-A10'!BJ9,IF(Obliczenia!$D$58="Vitocal 15x-A 151.A13",'Bilans-151-A13'!BJ9,IF(Obliczenia!$D$58="Vitocal 15x-A 151.A16",'Bilans-151-A16'!BJ9,IF(Obliczenia!$D$58="Vitocal 25x-A 251.A10",'Bilans-251-A10'!BJ9,IF(Obliczenia!$D$58="Vitocal 25x-A 251.A13",'Bilans-251-A13'!BJ9,IF(Obliczenia!$D$58="Vitocal 15x-A 151.A08",'Bilans-151-A08'!BJ9,IF(Obliczenia!$D$58="Vitocal 15x-A 151.A06",'Bilans-151-A06'!BJ9,IF(Obliczenia!$D$58="Vitocal 15x-A 151.A04",'Bilans-151-A04'!BJ9,IF(Obliczenia!$D$58="Vitocal 25x-A 251.A04",'Bilans-251-A04'!BJ9,IF(Obliczenia!$D$58="Vitocal 25x-A 251.A06",'Bilans-251-A06'!BJ9,IF(Obliczenia!$D$58="Vitocal 25x-A 251.A08",'Bilans-251-A08'!BJ9,IF(Obliczenia!$D$58="Vitocal 100-A 101.B06",'Bilans-AWO-B06'!BJ9,IF(Obliczenia!$D$58="Vitocal 100-A 101.B08",'Bilans-AWO-B08'!BJ9,IF(Obliczenia!$D$58="Vitocal 100-A 101.A10",'Bilans-AWO-A10'!BJ9,IF(Obliczenia!$D$58="Vitocal 100-A 101.A12",'Bilans-AWO-A12'!BJ9,IF(Obliczenia!$D$58="Vitocal 100-A 101.A14",'Bilans-AWO-A14'!BJ9,IF(Obliczenia!$D$58="Vitocal 100-A 101.A16",'Bilans-AWO-A16'!BJ9,IF(Obliczenia!$D$58="Vitocal 100-A 101.A18",'Bilans-AWO-A18'!BJ9,"błąd"))))))))))))))))))))))))))))))))) -> 66.90985366 | AW9: =IF(Obliczenia!$D$58="Vitocal 2xx-S 201.E06",'Bilans-E06'!BK9,IF(Obliczenia!$D$58="Vitocal 2xx-S 201.E08",'Bilans-E08'!BK9,IF(Obliczenia!$D$58="Vitocal 2xx-S 201.E10",'Bilans-E10'!BK9,IF(Obliczenia!$D$58="Vitocal 1xx-S 101.B04",'Bilans-B04'!BK9,IF(Obliczenia!$D$58="Vitocal 1xx-S 101.B06",'Bilans-B06'!BK9,IF(Obliczenia!$D$58="Vitocal 1xx-S 101.B08",'Bilans-B08'!BK9,IF(Obliczenia!$D$58="Vitocal 1xx-S 101.A12",'Bilans-A12'!BK9,IF(Obliczenia!$D$58="Vitocal 1xx-S 101.A14",'Bilans-A14'!BK9,IF(Obliczenia!$D$58="Vitocal 1xx-S 101.A16",'Bilans-A16'!BK9,IF(Obliczenia!$D$58="Vitocal 2xx-S 201.D04",'Bilans-D04'!BK9,IF(Obliczenia!$D$58="Vitocal 2xx-S 201.D06",'Bilans-B06'!BK9,IF(Obliczenia!$D$58="Vitocal 2xx-S 201.D08",'Bilans-D08'!BK9,IF(Obliczenia!$D$58="Vitocal 2xx-S 201.D10",'Bilans-D10'!BK9,IF(Obliczenia!$D$58="Vitocal 2xx-S 201.D13",'Bilans-D13'!BK9,IF(Obliczenia!$D$58="Vitocal 2xx-S 201.D16",'Bilans-D16'!BK9,IF(Obliczenia!$D$58="Vitocal 15x-A 151.A10",'Bilans-151-A10'!BK9,IF(Obliczenia!$D$58="Vitocal 15x-A 151.A13",'Bilans-151-A13'!BK9,IF(Obliczenia!$D$58="Vitocal 15x-A 151.A16",'Bilans-151-A16'!BK9,IF(Obliczenia!$D$58="Vitocal 25x-A 251.A10",'Bilans-251-A10'!BK9,IF(Obliczenia!$D$58="Vitocal 25x-A 251.A13",'Bilans-251-A13'!BK9,IF(Obliczenia!$D$58="Vitocal 15x-A 151.A08",'Bilans-151-A08'!BK9,IF(Obliczenia!$D$58="Vitocal 15x-A 151.A06",'Bilans-151-A06'!BK9,IF(Obliczenia!$D$58="Vitocal 15x-A 151.A04",'Bilans-151-A04'!BK9,IF(Obliczenia!$D$58="Vitocal 25x-A 251.A04",'Bilans-251-A04'!BK9,IF(Obliczenia!$D$58="Vitocal 25x-A 251.A06",'Bilans-251-A06'!BK9,IF(Obliczenia!$D$58="Vitocal 25x-A 251.A08",'Bilans-251-A08'!BK9,IF(Obliczenia!$D$58="Vitocal 100-A 101.B06",'Bilans-AWO-B06'!BK9,IF(Obliczenia!$D$58="Vitocal 100-A 101.B08",'Bilans-AWO-B08'!BK9,IF(Obliczenia!$D$58="Vitocal 100-A 101.A10",'Bilans-AWO-A10'!BK9,IF(Obliczenia!$D$58="Vitocal 100-A 101.A12",'Bilans-AWO-A12'!BK9,IF(Obliczenia!$D$58="Vitocal 100-A 101.A14",'Bilans-AWO-A14'!BK9,IF(Obliczenia!$D$58="Vitocal 100-A 101.A16",'Bilans-AWO-A16'!BK9,IF(Obliczenia!$D$58="Vitocal 100-A 101.A18",'Bilans-AWO-A18'!BK9,"błąd"))))))))))))))))))))))))))))))))) -> 0 | AZ9: =IF(Obliczenia!$D$58="Vitocal 15x-A 151.A10",'Bilans-151-A10'!CK9,IF(Obliczenia!$D$58="Vitocal 15x-A 151.A13",'Bilans-151-A13'!CK9,IF(Obliczenia!$D$58="Vitocal 15x-A 151.A16",'Bilans-151-A16'!CK9,IF(Obliczenia!$D$58="Vitocal 25x-A 251.A10",'Bilans-251-A10'!CK9,IF(Obliczenia!$D$58="Vitocal 25x-A 251.A13",'Bilans-251-A13'!CK9,IF(Obliczenia!$D$58="Vitocal 15x-A 151.A08",'Bilans-151-A08'!CK9,IF(Obliczenia!$D$58="Vitocal 15x-A 151.A06",'Bilans-151-A06'!CK9,IF(Obliczenia!$D$58="Vitocal 15x-A 151.A04",'Bilans-151-A04'!CK9,IF(Obliczenia!$D$58="Vitocal 25x-A 251.A04",'Bilans-251-A04'!CK9,IF(Obliczenia!$D$58="Vitocal 25x-A 251.A06",'Bilans-251-A06'!CK9,IF(Obliczenia!$D$58="Vitocal 25x-A 251.A08",'Bilans-251-A08'!CK9,"błąd"))))))))))) -> błąd | BA9: =IF(Obliczenia!$D$58="Vitocal 15x-A 151.A10",'Bilans-151-A10'!CL9,IF(Obliczenia!$D$58="Vitocal 15x-A 151.A13",'Bilans-151-A13'!CL9,IF(Obliczenia!$D$58="Vitocal 15x-A 151.A16",'Bilans-151-A16'!CL9,IF(Obliczenia!$D$58="Vitocal 25x-A 251.A10",'Bilans-251-A10'!CL9,IF(Obliczenia!$D$58="Vitocal 25x-A 251.A13",'Bilans-251-A13'!CL9,IF(Obliczenia!$D$58="Vitocal 15x-A 151.A08",'Bilans-151-A08'!CL9,IF(Obliczenia!$D$58="Vitocal 15x-A 151.A06",'Bilans-151-A06'!CL9,IF(Obliczenia!$D$58="Vitocal 15x-A 151.A04",'Bilans-151-A04'!CL9,IF(Obliczenia!$D$58="Vitocal 25x-A 251.A04",'Bilans-251-A04'!CL9,IF(Obliczenia!$D$58="Vitocal 25x-A 251.A06",'Bilans-251-A06'!CL9,IF(Obliczenia!$D$58="Vitocal 25x-A 251.A08",'Bilans-251-A08'!CL9,"błąd"))))))))))) -> błąd | BW9: Vitocal 200-S AWB-E(-AC) 201.D13 | BX9: ='D13'!B25 -> 51386 | BY9: ='Bilans-D13'!G7 -> 3.728816374 | BZ9: 13780.78051 | CA9: 13780.78051 | CD9: Emisja | CE9: CO2 | CK9: -1.558333333 | CL9: -10.60833333
A10: 5 | B10: 0.8 | C10: 0.8 | E10: 4 | F10: =AVERAGE(C79:C102) -> -6.620833333 | H10: =F10*Budynek!$D$31+Budynek!$D$32 -> 29.9828125 | J10: =Budynek!$D$4*(Dane!$E$12-F10)*12/1000 -> 44.94785366 | L10: =Budynek!$D$4*(Dane!$E$13-F10)*12/1000 -> 38.43858537 | N10: 83.38643902 | P10: 83.38643902 | Q10: 83.38643902 | R10: 83.38643902 | S10: 83.38643902 | T10: 7.11627907 | AA10: =IF(Obliczenia!$D$58="Vitocal 2xx-S 201.E06",'Bilans-E06'!Z10,IF(Obliczenia!$D$58="Vitocal 2xx-S 201.E08",'Bilans-E08'!Z10,IF(Obliczenia!$D$58="Vitocal 2xx-S 201.E10",'Bilans-E10'!Z10,IF(Obliczenia!$D$58="Vitocal 1xx-S 101.B04",'Bilans-B04'!Z10,IF(Obliczenia!$D$58="Vitocal 1xx-S 101.B06",'Bilans-B06'!Z10,IF(Obliczenia!$D$58="Vitocal 1xx-S 101.B08",'Bilans-B08'!Z10,IF(Obliczenia!$D$58="Vitocal 1xx-S 101.A12",'Bilans-A12'!Z10,IF(Obliczenia!$D$58="Vitocal 1xx-S 101.A14",'Bilans-A14'!Z10,IF(Obliczenia!$D$58="Vitocal 1xx-S 101.A16",'Bilans-A16'!Z10,IF(Obliczenia!$D$58="Vitocal 2xx-S 201.D04",'Bilans-D04'!Z10,IF(Obliczenia!$D$58="Vitocal 2xx-S 201.D06",'Bilans-B06'!Z10,IF(Obliczenia!$D$58="Vitocal 2xx-S 201.D08",'Bilans-D08'!Z10,IF(Obliczenia!$D$58="Vitocal 2xx-S 201.D10",'Bilans-D10'!Z10,IF(Obliczenia!$D$58="Vitocal 2xx-S 201.D13",'Bilans-D13'!Z10,IF(Obliczenia!$D$58="Vitocal 2xx-S 201.D16",'Bilans-D16'!Z10,IF(Obliczenia!$D$58="Vitocal 15x-A 151.A10",'Bilans-151-A10'!Z10,IF(Obliczenia!$D$58="Vitocal 15x-A 151.A13",'Bilans-151-A13'!Z10,IF(Obliczenia!$D$58="Vitocal 15x-A 151.A16",'Bilans-151-A16'!Z10,IF(Obliczenia!$D$58="Vitocal 15x-A 151.A16",'Bilans-151-A16'!Z10,IF(Obliczenia!$D$58="Vitocal 25x-A 251.A10",'Bilans-251-A10'!Z10,IF(Obliczenia!$D$58="Vitocal 25x-A 251.A13",'Bilans-251-A13'!Z10,IF(Obliczenia!$D$58="Vitocal 15x-A 151.A06",'Bilans-151-A06'!Z10,IF(Obliczenia!$D$58="Vitocal 15x-A 151.A08",'Bilans-151-A08'!Z10,IF(Obliczenia!$D$58="Vitocal 15x-A 151.A04",'Bilans-151-A04'!Z10,IF(Obliczenia!$D$58="Vitocal 25x-A 251.A04",'Bilans-251-A04'!Z10,IF(Obliczenia!$D$58="Vitocal 25x-A 251.A06",'Bilans-251-A06'!Z10,IF(Obliczenia!$D$58="Vitocal 25x-A 251.A08",'Bilans-251-A08'!Z10,IF(Obliczenia!$D$58="Vitocal 100-A 101.B06",'Bilans-AWO-B06'!Z10,IF(Obliczenia!$D$58="Vitocal 100-A 101.B08",'Bilans-AWO-B08'!Z10,IF(Obliczenia!$D$58="Vitocal 100-A 101.A10",'Bilans-AWO-A10'!Z10,IF(Obliczenia!$D$58="Vitocal 100-A 101.A12",'Bilans-AWO-A12'!Z10,IF(Obliczenia!$D$58="Vitocal 100-A 101.A14",'Bilans-AWO-A14'!Z10,IF(Obliczenia!$D$58="Vitocal 100-A 101.A16",'Bilans-AWO-A16'!Z10,IF(Obliczenia!$D$58="Vitocal 100-A 101.A18",'Bilans-AWO-A18'!Z10,"błąd")))))))))))))))))))))))))))))))))) -> 83.38643902 | AB10: =IF(Obliczenia!$D$58="Vitocal 2xx-S 201.E06",'Bilans-E06'!AA10,IF(Obliczenia!$D$58="Vitocal 2xx-S 201.E08",'Bilans-E08'!AA10,IF(Obliczenia!$D$58="Vitocal 2xx-S 201.E10",'Bilans-E10'!AA10,IF(Obliczenia!$D$58="Vitocal 1xx-S 101.B04",'Bilans-B04'!AA10,IF(Obliczenia!$D$58="Vitocal 1xx-S 101.B06",'Bilans-B06'!AA10,IF(Obliczenia!$D$58="Vitocal 1xx-S 101.B08",'Bilans-B08'!AA10,IF(Obliczenia!$D$58="Vitocal 1xx-S 101.A12",'Bilans-A12'!AA10,IF(Obliczenia!$D$58="Vitocal 1xx-S 101.A14",'Bilans-A14'!AA10,IF(Obliczenia!$D$58="Vitocal 1xx-S 101.A16",'Bilans-A16'!AA10,IF(Obliczenia!$D$58="Vitocal 2xx-S 201.D04",'Bilans-D04'!AA10,IF(Obliczenia!$D$58="Vitocal 2xx-S 201.D06",'Bilans-B06'!AA10,IF(Obliczenia!$D$58="Vitocal 2xx-S 201.D08",'Bilans-D08'!AA10,IF(Obliczenia!$D$58="Vitocal 2xx-S 201.D10",'Bilans-D10'!AA10,IF(Obliczenia!$D$58="Vitocal 2xx-S 201.D13",'Bilans-D13'!AA10,IF(Obliczenia!$D$58="Vitocal 2xx-S 201.D16",'Bilans-D16'!AA10,IF(Obliczenia!$D$58="Vitocal 15x-A 151.A10",'Bilans-151-A10'!AA10,IF(Obliczenia!$D$58="Vitocal 15x-A 151.A13",'Bilans-151-A13'!AA10,IF(Obliczenia!$D$58="Vitocal 15x-A 151.A16",'Bilans-151-A16'!AA10,IF(Obliczenia!$D$58="Vitocal 15x-A 151.A16",'Bilans-151-A16'!AA10,IF(Obliczenia!$D$58="Vitocal 25x-A 251.A10",'Bilans-251-A10'!AA10,IF(Obliczenia!$D$58="Vitocal 25x-A 251.A13",'Bilans-251-A13'!AA10,IF(Obliczenia!$D$58="Vitocal 15x-A 151.A08",'Bilans-151-A08'!AA10,IF(Obliczenia!$D$58="Vitocal 15x-A 151.A06",'Bilans-151-A06'!AA10,IF(Obliczenia!$D$58="Vitocal 15x-A 151.A04",'Bilans-151-A04'!AA10,IF(Obliczenia!$D$58="Vitocal 25x-A 251.A04",'Bilans-251-A04'!AA10,IF(Obliczenia!$D$58="Vitocal 25x-A 251.A06",'Bilans-251-A06'!AA10,IF(Obliczenia!$D$58="Vitocal 25x-A 251.A08",'Bilans-251-A08'!AA10,IF(Obliczenia!$D$58="Vitocal 100-A 101.B06",'Bilans-AWO-B06'!AA10,IF(Obliczenia!$D$58="Vitocal 100-A 101.B08",'Bilans-AWO-B08'!AA10,IF(Obliczenia!$D$58="Vitocal 100-A 101.A10",'Bilans-AWO-A10'!AA10,IF(Obliczenia!$D$58="Vitocal 100-A 101.A12",'Bilans-AWO-A12'!AA10,IF(Obliczenia!$D$58="Vitocal 100-A 101.A14",'Bilans-AWO-A14'!AA10,IF(Obliczenia!$D$58="Vitocal 100-A 101.A16",'Bilans-AWO-A16'!AA10,IF(Obliczenia!$D$58="Vitocal 100-A 101.A18",'Bilans-AWO-A18'!AA10,"błąd")))))))))))))))))))))))))))))))))) -> 0 | AE10: D06 | AF10: ='D06'!B28 -> 12.77 | AG10: 1 | AI10: 83.38643902 | AJ10: 0 | AR10: =IF(Obliczenia!$D$58="Vitocal 2xx-S 201.E06",'Bilans-E06'!AR10,IF(Obliczenia!$D$58="Vitocal 2xx-S 201.E08",'Bilans-E08'!AR10,IF(Obliczenia!$D$58="Vitocal 2xx-S 201.E10",'Bilans-E10'!AR10,IF(Obliczenia!$D$58="Vitocal 1xx-S 101.B04",'Bilans-B04'!AR10,IF(Obliczenia!$D$58="Vitocal 1xx-S 101.B06",'Bilans-B06'!AR10,IF(Obliczenia!$D$58="Vitocal 1xx-S 101.B08",'Bilans-B08'!AR10,IF(Obliczenia!$D$58="Vitocal 1xx-S 101.A12",'Bilans-A12'!AR10,IF(Obliczenia!$D$58="Vitocal 1xx-S 101.A14",'Bilans-A14'!AR10,IF(Obliczenia!$D$58="Vitocal 1xx-S 101.A16",'Bilans-A16'!AR10,IF(Obliczenia!$D$58="Vitocal 2xx-S 201.D04",'Bilans-D04'!AR10,IF(Obliczenia!$D$58="Vitocal 2xx-S 201.D06",'Bilans-B06'!AR10,IF(Obliczenia!$D$58="Vitocal 2xx-S 201.D08",'Bilans-D08'!AR10,IF(Obliczenia!$D$58="Vitocal 2xx-S 201.D10",'Bilans-D10'!AR10,IF(Obliczenia!$D$58="Vitocal 2xx-S 201.D13",'Bilans-D13'!AR10,IF(Obliczenia!$D$58="Vitocal 2xx-S 201.D16",'Bilans-D16'!AR10,IF(Obliczenia!$D$58="Vitocal 15x-A 151.A10",'Bilans-151-A10'!AR10,IF(Obliczenia!$D$58="Vitocal 15x-A 151.A13",'Bilans-151-A13'!AR10,IF(Obliczenia!$D$58="Vitocal 15x-A 151.A16",'Bilans-151-A16'!AR10,IF(Obliczenia!$D$58="Vitocal 25x-A 251.A10",'Bilans-251-A10'!AR10,IF(Obliczenia!$D$58="Vitocal 25x-A 251.A13",'Bilans-251-A13'!AR10,IF(Obliczenia!$D$58="Vitocal 15x-A 151.A08",'Bilans-151-A08'!AR10,IF(Obliczenia!$D$58="Vitocal 15x-A 151.A06",'Bilans-151-A06'!AR10,IF(Obliczenia!$D$58="Vitocal 15x-A 151.A04",'Bilans-151-A04'!AR10,IF(Obliczenia!$D$58="Vitocal 25x-A 251.A04",'Bilans-251-A04'!AR10,IF(Obliczenia!$D$58="Vitocal 25x-A 251.A06",'Bilans-251-A06'!AR10,IF(Obliczenia!$D$58="Vitocal 25x-A 251.A08",'Bilans-251-A08'!AR10,IF(Obliczenia!$D$58="Vitocal 100-A 101.B06",'Bilans-AWO-B06'!AR10,IF(Obliczenia!$D$58="Vitocal 100-A 101.B08",'Bilans-AWO-B08'!AR10,IF(Obliczenia!$D$58="Vitocal 100-A 101.A10",'Bilans-AWO-A10'!AR10,IF(Obliczenia!$D$58="Vitocal 100-A 101.A12",'Bilans-AWO-A12'!AR10,IF(Obliczenia!$D$58="Vitocal 100-A 101.A14",'Bilans-AWO-A14'!AR10,IF(Obliczenia!$D$58="Vitocal 100-A 101.A16",'Bilans-AWO-A16'!AR10,IF(Obliczenia!$D$58="Vitocal 100-A 101.A18",'Bilans-AWO-A18'!AR10,"błąd"))))))))))))))))))))))))))))))))) -> 83.38643902 | AS10: =IF(Obliczenia!$D$58="Vitocal 2xx-S 201.E06",'Bilans-E06'!AS10,IF(Obliczenia!$D$58="Vitocal 2xx-S 201.E08",'Bilans-E08'!AS10,IF(Obliczenia!$D$58="Vitocal 2xx-S 201.E10",'Bilans-E10'!AS10,IF(Obliczenia!$D$58="Vitocal 1xx-S 101.B04",'Bilans-B04'!AS10,IF(Obliczenia!$D$58="Vitocal 1xx-S 101.B06",'Bilans-B06'!AS10,IF(Obliczenia!$D$58="Vitocal 1xx-S 101.B08",'Bilans-B08'!AS10,IF(Obliczenia!$D$58="Vitocal 1xx-S 101.A12",'Bilans-A12'!AS10,IF(Obliczenia!$D$58="Vitocal 1xx-S 101.A14",'Bilans-A14'!AS10,IF(Obliczenia!$D$58="Vitocal 1xx-S 101.A16",'Bilans-A16'!AS10,IF(Obliczenia!$D$58="Vitocal 2xx-S 201.D04",'Bilans-D04'!AS10,IF(Obliczenia!$D$58="Vitocal 2xx-S 201.D06",'Bilans-B06'!AS10,IF(Obliczenia!$D$58="Vitocal 2xx-S 201.D08",'Bilans-D08'!AS10,IF(Obliczenia!$D$58="Vitocal 2xx-S 201.D10",'Bilans-D10'!AS10,IF(Obliczenia!$D$58="Vitocal 2xx-S 201.D13",'Bilans-D13'!AS10,IF(Obliczenia!$D$58="Vitocal 2xx-S 201.D16",'Bilans-D16'!AS10,IF(Obliczenia!$D$58="Vitocal 15x-A 151.A10",'Bilans-151-A10'!AS10,IF(Obliczenia!$D$58="Vitocal 15x-A 151.A13",'Bilans-151-A13'!AS10,IF(Obliczenia!$D$58="Vitocal 15x-A 151.A16",'Bilans-151-A16'!AS10,IF(Obliczenia!$D$58="Vitocal 25x-A 251.A10",'Bilans-251-A10'!AS10,IF(Obliczenia!$D$58="Vitocal 25x-A 251.A13",'Bilans-251-A13'!AS10,IF(Obliczenia!$D$58="Vitocal 15x-A 151.A08",'Bilans-151-A08'!AS10,IF(Obliczenia!$D$58="Vitocal 15x-A 151.A06",'Bilans-151-A06'!AS10,IF(Obliczenia!$D$58="Vitocal 15x-A 151.A04",'Bilans-151-A04'!AS10,IF(Obliczenia!$D$58="Vitocal 25x-A 251.A04",'Bilans-251-A04'!AS10,IF(Obliczenia!$D$58="Vitocal 25x-A 251.A06",'Bilans-251-A06'!AS10,IF(Obliczenia!$D$58="Vitocal 25x-A 251.A08",'Bilans-251-A08'!AS10,IF(Obliczenia!$D$58="Vitocal 100-A 101.B06",'Bilans-AWO-B06'!AS10,IF(Obliczenia!$D$58="Vitocal 100-A 101.B08",'Bilans-AWO-B08'!AS10,IF(Obliczenia!$D$58="Vitocal 100-A 101.A10",'Bilans-AWO-A10'!AS10,IF(Obliczenia!$D$58="Vitocal 100-A 101.A12",'Bilans-AWO-A12'!AS10,IF(Obliczenia!$D$58="Vitocal 100-A 101.A14",'Bilans-AWO-A14'!AS10,IF(Obliczenia!$D$58="Vitocal 100-A 101.A16",'Bilans-AWO-A16'!AS10,IF(Obliczenia!$D$58="Vitocal 100-A 101.A18",'Bilans-AWO-A18'!AS10,"błąd"))))))))))))))))))))))))))))))))) -> 0 | AV10: =IF(Obliczenia!$D$58="Vitocal 2xx-S 201.E06",'Bilans-E06'!BJ10,IF(Obliczenia!$D$58="Vitocal 2xx-S 201.E08",'Bilans-E08'!BJ10,IF(Obliczenia!$D$58="Vitocal 2xx-S 201.E10",'Bilans-E10'!BJ10,IF(Obliczenia!$D$58="Vitocal 1xx-S 101.B04",'Bilans-B04'!BJ10,IF(Obliczenia!$D$58="Vitocal 1xx-S 101.B06",'Bilans-B06'!BJ10,IF(Obliczenia!$D$58="Vitocal 1xx-S 101.B08",'Bilans-B08'!BJ10,IF(Obliczenia!$D$58="Vitocal 1xx-S 101.A12",'Bilans-A12'!BJ10,IF(Obliczenia!$D$58="Vitocal 1xx-S 101.A14",'Bilans-A14'!BJ10,IF(Obliczenia!$D$58="Vitocal 1xx-S 101.A16",'Bilans-A16'!BJ10,IF(Obliczenia!$D$58="Vitocal 2xx-S 201.D04",'Bilans-D04'!BJ10,IF(Obliczenia!$D$58="Vitocal 2xx-S 201.D06",'Bilans-B06'!BJ10,IF(Obliczenia!$D$58="Vitocal 2xx-S 201.D08",'Bilans-D08'!BJ10,IF(Obliczenia!$D$58="Vitocal 2xx-S 201.D10",'Bilans-D10'!BJ10,IF(Obliczenia!$D$58="Vitocal 2xx-S 201.D13",'Bilans-D13'!BJ10,IF(Obliczenia!$D$58="Vitocal 2xx-S 201.D16",'Bilans-D16'!BJ10,IF(Obliczenia!$D$58="Vitocal 15x-A 151.A10",'Bilans-151-A10'!BJ10,IF(Obliczenia!$D$58="Vitocal 15x-A 151.A13",'Bilans-151-A13'!BJ10,IF(Obliczenia!$D$58="Vitocal 15x-A 151.A16",'Bilans-151-A16'!BJ10,IF(Obliczenia!$D$58="Vitocal 25x-A 251.A10",'Bilans-251-A10'!BJ10,IF(Obliczenia!$D$58="Vitocal 25x-A 251.A13",'Bilans-251-A13'!BJ10,IF(Obliczenia!$D$58="Vitocal 15x-A 151.A08",'Bilans-151-A08'!BJ10,IF(Obliczenia!$D$58="Vitocal 15x-A 151.A06",'Bilans-151-A06'!BJ10,IF(Obliczenia!$D$58="Vitocal 15x-A 151.A04",'Bilans-151-A04'!BJ10,IF(Obliczenia!$D$58="Vitocal 25x-A 251.A04",'Bilans-251-A04'!BJ10,IF(Obliczenia!$D$58="Vitocal 25x-A 251.A06",'Bilans-251-A06'!BJ10,IF(Obliczenia!$D$58="Vitocal 25x-A 251.A08",'Bilans-251-A08'!BJ10,IF(Obliczenia!$D$58="Vitocal 100-A 101.B06",'Bilans-AWO-B06'!BJ10,IF(Obliczenia!$D$58="Vitocal 100-A 101.B08",'Bilans-AWO-B08'!BJ10,IF(Obliczenia!$D$58="Vitocal 100-A 101.A10",'Bilans-AWO-A10'!BJ10,IF(Obliczenia!$D$58="Vitocal 100-A 101.A12",'Bilans-AWO-A12'!BJ10,IF(Obliczenia!$D$58="Vitocal 100-A 101.A14",'Bilans-AWO-A14'!BJ10,IF(Obliczenia!$D$58="Vitocal 100-A 101.A16",'Bilans-AWO-A16'!BJ10,IF(Obliczenia!$D$58="Vitocal 100-A 101.A18",'Bilans-AWO-A18'!BJ10,"błąd"))))))))))))))))))))))))))))))))) -> 83.38643902 | AW10: =IF(Obliczenia!$D$58="Vitocal 2xx-S 201.E06",'Bilans-E06'!BK10,IF(Obliczenia!$D$58="Vitocal 2xx-S 201.E08",'Bilans-E08'!BK10,IF(Obliczenia!$D$58="Vitocal 2xx-S 201.E10",'Bilans-E10'!BK10,IF(Obliczenia!$D$58="Vitocal 1xx-S 101.B04",'Bilans-B04'!BK10,IF(Obliczenia!$D$58="Vitocal 1xx-S 101.B06",'Bilans-B06'!BK10,IF(Obliczenia!$D$58="Vitocal 1xx-S 101.B08",'Bilans-B08'!BK10,IF(Obliczenia!$D$58="Vitocal 1xx-S 101.A12",'Bilans-A12'!BK10,IF(Obliczenia!$D$58="Vitocal 1xx-S 101.A14",'Bilans-A14'!BK10,IF(Obliczenia!$D$58="Vitocal 1xx-S 101.A16",'Bilans-A16'!BK10,IF(Obliczenia!$D$58="Vitocal 2xx-S 201.D04",'Bilans-D04'!BK10,IF(Obliczenia!$D$58="Vitocal 2xx-S 201.D06",'Bilans-B06'!BK10,IF(Obliczenia!$D$58="Vitocal 2xx-S 201.D08",'Bilans-D08'!BK10,IF(Obliczenia!$D$58="Vitocal 2xx-S 201.D10",'Bilans-D10'!BK10,IF(Obliczenia!$D$58="Vitocal 2xx-S 201.D13",'Bilans-D13'!BK10,IF(Obliczenia!$D$58="Vitocal 2xx-S 201.D16",'Bilans-D16'!BK10,IF(Obliczenia!$D$58="Vitocal 15x-A 151.A10",'Bilans-151-A10'!BK10,IF(Obliczenia!$D$58="Vitocal 15x-A 151.A13",'Bilans-151-A13'!BK10,IF(Obliczenia!$D$58="Vitocal 15x-A 151.A16",'Bilans-151-A16'!BK10,IF(Obliczenia!$D$58="Vitocal 25x-A 251.A10",'Bilans-251-A10'!BK10,IF(Obliczenia!$D$58="Vitocal 25x-A 251.A13",'Bilans-251-A13'!BK10,IF(Obliczenia!$D$58="Vitocal 15x-A 151.A08",'Bilans-151-A08'!BK10,IF(Obliczenia!$D$58="Vitocal 15x-A 151.A06",'Bilans-151-A06'!BK10,IF(Obliczenia!$D$58="Vitocal 15x-A 151.A04",'Bilans-151-A04'!BK10,IF(Obliczenia!$D$58="Vitocal 25x-A 251.A04",'Bilans-251-A04'!BK10,IF(Obliczenia!$D$58="Vitocal 25x-A 251.A06",'Bilans-251-A06'!BK10,IF(Obliczenia!$D$58="Vitocal 25x-A 251.A08",'Bilans-251-A08'!BK10,IF(Obliczenia!$D$58="Vitocal 100-A 101.B06",'Bilans-AWO-B06'!BK10,IF(Obliczenia!$D$58="Vitocal 100-A 101.B08",'Bilans-AWO-B08'!BK10,IF(Obliczenia!$D$58="Vitocal 100-A 101.A10",'Bilans-AWO-A10'!BK10,IF(Obliczenia!$D$58="Vitocal 100-A 101.A12",'Bilans-AWO-A12'!BK10,IF(Obliczenia!$D$58="Vitocal 100-A 101.A14",'Bilans-AWO-A14'!BK10,IF(Obliczenia!$D$58="Vitocal 100-A 101.A16",'Bilans-AWO-A16'!BK10,IF(Obliczenia!$D$58="Vitocal 100-A 101.A18",'Bilans-AWO-A18'!BK10,"błąd"))))))))))))))))))))))))))))))))) -> 0 | AZ10: =IF(Obliczenia!$D$58="Vitocal 15x-A 151.A10",'Bilans-151-A10'!CK10,IF(Obliczenia!$D$58="Vitocal 15x-A 151.A13",'Bilans-151-A13'!CK10,IF(Obliczenia!$D$58="Vitocal 15x-A 151.A16",'Bilans-151-A16'!CK10,IF(Obliczenia!$D$58="Vitocal 25x-A 251.A10",'Bilans-251-A10'!CK10,IF(Obliczenia!$D$58="Vitocal 25x-A 251.A13",'Bilans-251-A13'!CK10,IF(Obliczenia!$D$58="Vitocal 15x-A 151.A08",'Bilans-151-A08'!CK10,IF(Obliczenia!$D$58="Vitocal 15x-A 151.A06",'Bilans-151-A06'!CK10,IF(Obliczenia!$D$58="Vitocal 15x-A 151.A04",'Bilans-151-A04'!CK10,IF(Obliczenia!$D$58="Vitocal 25x-A 251.A04",'Bilans-251-A04'!CK10,IF(Obliczenia!$D$58="Vitocal 25x-A 251.A06",'Bilans-251-A06'!CK10,IF(Obliczenia!$D$58="Vitocal 25x-A 251.A08",'Bilans-251-A08'!CK10,"błąd"))))))))))) -> błąd | BA10: =IF(Obliczenia!$D$58="Vitocal 15x-A 151.A10",'Bilans-151-A10'!CL10,IF(Obliczenia!$D$58="Vitocal 15x-A 151.A13",'Bilans-151-A13'!CL10,IF(Obliczenia!$D$58="Vitocal 15x-A 151.A16",'Bilans-151-A16'!CL10,IF(Obliczenia!$D$58="Vitocal 25x-A 251.A10",'Bilans-251-A10'!CL10,IF(Obliczenia!$D$58="Vitocal 25x-A 251.A13",'Bilans-251-A13'!CL10,IF(Obliczenia!$D$58="Vitocal 15x-A 151.A08",'Bilans-151-A08'!CL10,IF(Obliczenia!$D$58="Vitocal 15x-A 151.A06",'Bilans-151-A06'!CL10,IF(Obliczenia!$D$58="Vitocal 15x-A 151.A04",'Bilans-151-A04'!CL10,IF(Obliczenia!$D$58="Vitocal 25x-A 251.A04",'Bilans-251-A04'!CL10,IF(Obliczenia!$D$58="Vitocal 25x-A 251.A06",'Bilans-251-A06'!CL10,IF(Obliczenia!$D$58="Vitocal 25x-A 251.A08",'Bilans-251-A08'!CL10,"błąd"))))))))))) -> błąd | BE10: VTS55 | BF10: =IF(Obliczenia!$D$58="Vitocal 2xx-S 201.E06",'E06'!N26,IF(Obliczenia!$D$58="Vitocal 2xx-S 201.E08",'E08'!N26,IF(Obliczenia!$D$58="Vitocal 2xx-S 201.E10",'E10'!N26,IF(Obliczenia!$D$58="Vitocal 1xx-S 101.B04",'B04'!N26,IF(Obliczenia!$D$58="Vitocal 1xx-S 101.B06",'B06'!N26,IF(Obliczenia!$D$58="Vitocal 1xx-S 101.B08",'B08'!N26,IF(Obliczenia!$D$58="Vitocal 1xx-S 101.A12",'A12'!N26,IF(Obliczenia!$D$58="Vitocal 1xx-S 101.A14",'A14'!N26,IF(Obliczenia!$D$58="Vitocal 1xx-S 101.A16",'A16'!N26,IF(Obliczenia!$D$58="Vitocal 2xx-S 201.D04",'D04'!N26,IF(Obliczenia!$D$58="Vitocal 2xx-S 201.D06",'D06'!N26,IF(Obliczenia!$D$58="Vitocal 2xx-S 201.D08",'D08'!N26,IF(Obliczenia!$D$58="Vitocal 2xx-S 201.D10",'D10'!N26,IF(Obliczenia!$D$58="Vitocal 2xx-S 201.D13",'D13'!N26,IF(Obliczenia!$D$58="Vitocal 2xx-S 201.D16",'D16'!N26,IF(Obliczenia!$D$58="Vitocal 15x-A 151.A10",'151.A10'!N26,IF(Obliczenia!$D$58="Vitocal 15x-A 151.A13",'151.A13'!N26,IF(Obliczenia!$D$58="Vitocal 15x-A 151.A16",'151.A16'!N26,IF(Obliczenia!$D$58="Vitocal 25x-A 251.A10",'251.A10'!N26,IF(Obliczenia!$D$58="Vitocal 25x-A 251.A13",'251.A13'!N26,IF(Obliczenia!$D$58="Vitocal 15x-A 151.A08",'151.A08'!N26,IF(Obliczenia!$D$58="Vitocal 15x-A 151.A06",'151.A06'!N26,IF(Obliczenia!$D$58="Vitocal 15x-A 151.A04",'151.A04'!N26,IF(Obliczenia!$D$58="Vitocal 25x-A 251.A04",'251.A04'!N26,IF(Obliczenia!$D$58="Vitocal 25x-A 251.A06",'251.A06'!N26,IF(Obliczenia!$D$58="Vitocal 25x-A 251.A08",'251.A08'!N26,IF(Obliczenia!$D$58="Vitocal 100-A 101.B06",'AWO-B06'!N26,IF(Obliczenia!$D$58="Vitocal 100-A 101.B08",'AWO-B08'!N26,IF(Obliczenia!$D$58="Vitocal 100-A 101.A10",'AWO-A10'!N26,IF(Obliczenia!$D$58="Vitocal 100-A 101.A12",'AWO-A12'!N26,IF(Obliczenia!$D$58="Vitocal 100-A 101.A14",'AWO-A14'!N26,IF(Obliczenia!$D$58="Vitocal 100-A 101.A16",'AWO-A16'!N26,IF(Obliczenia!$D$58="Vitocal 100-A 101.A18",'AWO-A18'!N26,"błąd"))))))))))))))))))))))))))))))))) -> 2.642727273 | BG10: =IF(Obliczenia!$D$58="Vitocal 2xx-S 201.E06",'E06'!O26,IF(Obliczenia!$D$58="Vitocal 2xx-S 201.E08",'E08'!O26,IF(Obliczenia!$D$58="Vitocal 2xx-S 201.E10",'E10'!O26,IF(Obliczenia!$D$58="Vitocal 1xx-S 101.B04",'B04'!O26,IF(Obliczenia!$D$58="Vitocal 1xx-S 101.B06",'B06'!O26,IF(Obliczenia!$D$58="Vitocal 1xx-S 101.B08",'B08'!O26,IF(Obliczenia!$D$58="Vitocal 1xx-S 101.A12",'A12'!O26,IF(Obliczenia!$D$58="Vitocal 1xx-S 101.A14",'A14'!O26,IF(Obliczenia!$D$58="Vitocal 1xx-S 101.A16",'A16'!O26,IF(Obliczenia!$D$58="Vitocal 2xx-S 201.D04",'D04'!O26,IF(Obliczenia!$D$58="Vitocal 2xx-S 201.D06",'D06'!O26,IF(Obliczenia!$D$58="Vitocal 2xx-S 201.D08",'D08'!O26,IF(Obliczenia!$D$58="Vitocal 2xx-S 201.D10",'D10'!O26,IF(Obliczenia!$D$58="Vitocal 2xx-S 201.D13",'D13'!O26,IF(Obliczenia!$D$58="Vitocal 2xx-S 201.D16",'D16'!O26,IF(Obliczenia!$D$58="Vitocal 15x-A 151.A10",'151.A10'!O26,IF(Obliczenia!$D$58="Vitocal 15x-A 151.A13",'151.A13'!O26,IF(Obliczenia!$D$58="Vitocal 15x-A 151.A16",'151.A16'!O26,IF(Obliczenia!$D$58="Vitocal 25x-A 251.A10",'251.A10'!O26,IF(Obliczenia!$D$58="Vitocal 25x-A 251.A13",'251.A13'!O26,IF(Obliczenia!$D$58="Vitocal 15x-A 151.A08",'151.A08'!O26,IF(Obliczenia!$D$58="Vitocal 15x-A 151.A06",'151.A06'!O26,IF(Obliczenia!$D$58="Vitocal 15x-A 151.A04",'151.A04'!O26,IF(Obliczenia!$D$58="Vitocal 25x-A 251.A04",'251.A04'!O26,IF(Obliczenia!$D$58="Vitocal 25x-A 251.A06",'251.A06'!O26,IF(Obliczenia!$D$58="Vitocal 25x-A 251.A08",'251.A08'!O26,IF(Obliczenia!$D$58="Vitocal 100-A 101.B06",'AWO-B06'!O26,IF(Obliczenia!$D$58="Vitocal 100-A 101.B08",'AWO-B08'!O26,IF(Obliczenia!$D$58="Vitocal 100-A 101.A10",'AWO-A10'!O26,IF(Obliczenia!$D$58="Vitocal 100-A 101.A12",'AWO-A12'!O26,IF(Obliczenia!$D$58="Vitocal 100-A 101.A14",'AWO-A14'!O26,IF(Obliczenia!$D$58="Vitocal 100-A 101.A16",'AWO-A16'!O26,IF(Obliczenia!$D$58="Vitocal 100-A 101.A18",'AWO-A18'!O26,"błąd"))))))))))))))))))))))))))))))))) -> 3.010909091 | BH10: =IF(Obliczenia!$D$58="Vitocal 2xx-S 201.E06",'E06'!P26,IF(Obliczenia!$D$58="Vitocal 2xx-S 201.E08",'E08'!P26,IF(Obliczenia!$D$58="Vitocal 2xx-S 201.E10",'E10'!P26,IF(Obliczenia!$D$58="Vitocal 1xx-S 101.B04",'B04'!P26,IF(Obliczenia!$D$58="Vitocal 1xx-S 101.B06",'B06'!P26,IF(Obliczenia!$D$58="Vitocal 1xx-S 101.B08",'B08'!P26,IF(Obliczenia!$D$58="Vitocal 1xx-S 101.A12",'A12'!P26,IF(Obliczenia!$D$58="Vitocal 1xx-S 101.A14",'A14'!P26,IF(Obliczenia!$D$58="Vitocal 1xx-S 101.A16",'A16'!P26,IF(Obliczenia!$D$58="Vitocal 2xx-S 201.D04",'D04'!P26,IF(Obliczenia!$D$58="Vitocal 2xx-S 201.D06",'D06'!P26,IF(Obliczenia!$D$58="Vitocal 2xx-S 201.D08",'D08'!P26,IF(Obliczenia!$D$58="Vitocal 2xx-S 201.D10",'D10'!P26,IF(Obliczenia!$D$58="Vitocal 2xx-S 201.D13",'D13'!P26,IF(Obliczenia!$D$58="Vitocal 2xx-S 201.D16",'D16'!P26,IF(Obliczenia!$D$58="Vitocal 15x-A 151.A10",'151.A10'!P26,IF(Obliczenia!$D$58="Vitocal 15x-A 151.A13",'151.A13'!P26,IF(Obliczenia!$D$58="Vitocal 15x-A 151.A16",'151.A16'!P26,IF(Obliczenia!$D$58="Vitocal 25x-A 251.A10",'251.A10'!P26,IF(Obliczenia!$D$58="Vitocal 25x-A 251.A13",'251.A13'!P26,IF(Obliczenia!$D$58="Vitocal 15x-A 151.A08",'151.A08'!P26,IF(Obliczenia!$D$58="Vitocal 15x-A 151.A06",'151.A06'!P26,IF(Obliczenia!$D$58="Vitocal 15x-A 151.A04",'151.A04'!P26,IF(Obliczenia!$D$58="Vitocal 25x-A 251.A04",'251.A04'!P26,IF(Obliczenia!$D$58="Vitocal 25x-A 251.A06",'251.A06'!P26,IF(Obliczenia!$D$58="Vitocal 25x-A 251.A08",'251.A08'!P26,IF(Obliczenia!$D$58="Vitocal 100-A 101.B06",'AWO-B06'!P26,IF(Obliczenia!$D$58="Vitocal 100-A 101.B08",'AWO-B08'!P26,IF(Obliczenia!$D$58="Vitocal 100-A 101.A10",'AWO-A10'!P26,IF(Obliczenia!$D$58="Vitocal 100-A 101.A12",'AWO-A12'!P26,IF(Obliczenia!$D$58="Vitocal 100-A 101.A14",'AWO-A14'!P26,IF(Obliczenia!$D$58="Vitocal 100-A 101.A16",'AWO-A16'!P26,IF(Obliczenia!$D$58="Vitocal 100-A 101.A18",'AWO-A18'!P26,"błąd"))))))))))))))))))))))))))))))))) -> 4.42 | BI10: =IF(Obliczenia!$D$58="Vitocal 2xx-S 201.E06",'E06'!Q26,IF(Obliczenia!$D$58="Vitocal 2xx-S 201.E08",'E08'!Q26,IF(Obliczenia!$D$58="Vitocal 2xx-S 201.E10",'E10'!Q26,IF(Obliczenia!$D$58="Vitocal 1xx-S 101.B04",'B04'!Q26,IF(Obliczenia!$D$58="Vitocal 1xx-S 101.B06",'B06'!Q26,IF(Obliczenia!$D$58="Vitocal 1xx-S 101.B08",'B08'!Q26,IF(Obliczenia!$D$58="Vitocal 1xx-S 101.A12",'A12'!Q26,IF(Obliczenia!$D$58="Vitocal 1xx-S 101.A14",'A14'!Q26,IF(Obliczenia!$D$58="Vitocal 1xx-S 101.A16",'A16'!Q26,IF(Obliczenia!$D$58="Vitocal 2xx-S 201.D04",'D04'!Q26,IF(Obliczenia!$D$58="Vitocal 2xx-S 201.D06",'D06'!Q26,IF(Obliczenia!$D$58="Vitocal 2xx-S 201.D08",'D08'!Q26,IF(Obliczenia!$D$58="Vitocal 2xx-S 201.D10",'D10'!Q26,IF(Obliczenia!$D$58="Vitocal 2xx-S 201.D13",'D13'!Q26,IF(Obliczenia!$D$58="Vitocal 2xx-S 201.D16",'D16'!Q26,IF(Obliczenia!$D$58="Vitocal 15x-A 151.A10",'151.A10'!Q26,IF(Obliczenia!$D$58="Vitocal 15x-A 151.A13",'151.A13'!Q26,IF(Obliczenia!$D$58="Vitocal 15x-A 151.A16",'151.A16'!Q26,IF(Obliczenia!$D$58="Vitocal 25x-A 251.A10",'251.A10'!Q26,IF(Obliczenia!$D$58="Vitocal 25x-A 251.A13",'251.A13'!Q26,IF(Obliczenia!$D$58="Vitocal 15x-A 151.A08",'151.A08'!Q26,IF(Obliczenia!$D$58="Vitocal 15x-A 151.A06",'151.A06'!Q26,IF(Obliczenia!$D$58="Vitocal 15x-A 151.A04",'151.A04'!Q26,IF(Obliczenia!$D$58="Vitocal 25x-A 251.A04",'251.A04'!Q26,IF(Obliczenia!$D$58="Vitocal 25x-A 251.A06",'251.A06'!Q26,IF(Obliczenia!$D$58="Vitocal 25x-A 251.A08",'251.A08'!Q26,IF(Obliczenia!$D$58="Vitocal 100-A 101.B06",'AWO-B06'!Q26,IF(Obliczenia!$D$58="Vitocal 100-A 101.B08",'AWO-B08'!Q26,IF(Obliczenia!$D$58="Vitocal 100-A 101.A10",'AWO-A10'!Q26,IF(Obliczenia!$D$58="Vitocal 100-A 101.A12",'AWO-A12'!Q26,IF(Obliczenia!$D$58="Vitocal 100-A 101.A14",'AWO-A14'!Q26,IF(Obliczenia!$D$58="Vitocal 100-A 101.A16",'AWO-A16'!Q26,IF(Obliczenia!$D$58="Vitocal 100-A 101.A18",'AWO-A18'!Q26,"błąd"))))))))))))))))))))))))))))))))) -> 5.29 | BJ10: =IF(Obliczenia!$D$58="Vitocal 2xx-S 201.E06",'E06'!R26,IF(Obliczenia!$D$58="Vitocal 2xx-S 201.E08",'E08'!R26,IF(Obliczenia!$D$58="Vitocal 2xx-S 201.E10",'E10'!R26,IF(Obliczenia!$D$58="Vitocal 1xx-S 101.B04",'B04'!R26,IF(Obliczenia!$D$58="Vitocal 1xx-S 101.B06",'B06'!R26,IF(Obliczenia!$D$58="Vitocal 1xx-S 101.B08",'B08'!R26,IF(Obliczenia!$D$58="Vitocal 1xx-S 101.A12",'A12'!R26,IF(Obliczenia!$D$58="Vitocal 1xx-S 101.A14",'A14'!R26,IF(Obliczenia!$D$58="Vitocal 1xx-S 101.A16",'A16'!R26,IF(Obliczenia!$D$58="Vitocal 2xx-S 201.D04",'D04'!R26,IF(Obliczenia!$D$58="Vitocal 2xx-S 201.D06",'D06'!R26,IF(Obliczenia!$D$58="Vitocal 2xx-S 201.D08",'D08'!R26,IF(Obliczenia!$D$58="Vitocal 2xx-S 201.D10",'D10'!R26,IF(Obliczenia!$D$58="Vitocal 2xx-S 201.D13",'D13'!R26,IF(Obliczenia!$D$58="Vitocal 2xx-S 201.D16",'D16'!R26,IF(Obliczenia!$D$58="Vitocal 15x-A 151.A10",'151.A10'!R26,IF(Obliczenia!$D$58="Vitocal 15x-A 151.A13",'151.A13'!R26,IF(Obliczenia!$D$58="Vitocal 15x-A 151.A16",'151.A16'!R26,IF(Obliczenia!$D$58="Vitocal 25x-A 251.A10",'251.A10'!R26,IF(Obliczenia!$D$58="Vitocal 25x-A 251.A13",'251.A13'!R26,IF(Obliczenia!$D$58="Vitocal 15x-A 151.A08",'151.A08'!R26,IF(Obliczenia!$D$58="Vitocal 15x-A 151.A06",'151.A06'!R26,IF(Obliczenia!$D$58="Vitocal 15x-A 151.A04",'151.A04'!R26,IF(Obliczenia!$D$58="Vitocal 25x-A 251.A04",'251.A04'!R26,IF(Obliczenia!$D$58="Vitocal 25x-A 251.A06",'251.A06'!R26,IF(Obliczenia!$D$58="Vitocal 25x-A 251.A08",'251.A08'!R26,IF(Obliczenia!$D$58="Vitocal 100-A 101.B06",'AWO-B06'!R26,IF(Obliczenia!$D$58="Vitocal 100-A 101.B08",'AWO-B08'!R26,IF(Obliczenia!$D$58="Vitocal 100-A 101.A10",'AWO-A10'!R26,IF(Obliczenia!$D$58="Vitocal 100-A 101.A12",'AWO-A12'!R26,IF(Obliczenia!$D$58="Vitocal 100-A 101.A14",'AWO-A14'!R26,IF(Obliczenia!$D$58="Vitocal 100-A 101.A16",'AWO-A16'!R26,IF(Obliczenia!$D$58="Vitocal 100-A 101.A18",'AWO-A18'!R26,"błąd"))))))))))))))))))))))))))))))))) -> 6.47 | BK10: =IF(Obliczenia!$D$58="Vitocal 2xx-S 201.E06",'E06'!S26,IF(Obliczenia!$D$58="Vitocal 2xx-S 201.E08",'E08'!S26,IF(Obliczenia!$D$58="Vitocal 2xx-S 201.E10",'E10'!S26,IF(Obliczenia!$D$58="Vitocal 1xx-S 101.B04",'B04'!S26,IF(Obliczenia!$D$58="Vitocal 1xx-S 101.B06",'B06'!S26,IF(Obliczenia!$D$58="Vitocal 1xx-S 101.B08",'B08'!S26,IF(Obliczenia!$D$58="Vitocal 1xx-S 101.A12",'A12'!S26,IF(Obliczenia!$D$58="Vitocal 1xx-S 101.A14",'A14'!S26,IF(Obliczenia!$D$58="Vitocal 1xx-S 101.A16",'A16'!S26,IF(Obliczenia!$D$58="Vitocal 2xx-S 201.D04",'D04'!S26,IF(Obliczenia!$D$58="Vitocal 2xx-S 201.D06",'D06'!S26,IF(Obliczenia!$D$58="Vitocal 2xx-S 201.D08",'D08'!S26,IF(Obliczenia!$D$58="Vitocal 2xx-S 201.D10",'D10'!S26,IF(Obliczenia!$D$58="Vitocal 2xx-S 201.D13",'D13'!S26,IF(Obliczenia!$D$58="Vitocal 2xx-S 201.D16",'D16'!S26,IF(Obliczenia!$D$58="Vitocal 15x-A 151.A10",'151.A10'!S26,IF(Obliczenia!$D$58="Vitocal 15x-A 151.A13",'151.A13'!S26,IF(Obliczenia!$D$58="Vitocal 15x-A 151.A16",'151.A16'!S26,IF(Obliczenia!$D$58="Vitocal 25x-A 251.A10",'251.A10'!S26,IF(Obliczenia!$D$58="Vitocal 25x-A 251.A13",'251.A13'!S26,IF(Obliczenia!$D$58="Vitocal 15x-A 151.A08",'151.A08'!S26,IF(Obliczenia!$D$58="Vitocal 15x-A 151.A06",'151.A06'!S26,IF(Obliczenia!$D$58="Vitocal 15x-A 151.A04",'151.A04'!S26,IF(Obliczenia!$D$58="Vitocal 25x-A 251.A04",'251.A04'!S26,IF(Obliczenia!$D$58="Vitocal 25x-A 251.A06",'251.A06'!S26,IF(Obliczenia!$D$58="Vitocal 25x-A 251.A08",'251.A08'!S26,IF(Obliczenia!$D$58="Vitocal 100-A 101.B06",'AWO-B06'!S26,IF(Obliczenia!$D$58="Vitocal 100-A 101.B08",'AWO-B08'!S26,IF(Obliczenia!$D$58="Vitocal 100-A 101.A10",'AWO-A10'!S26,IF(Obliczenia!$D$58="Vitocal 100-A 101.A12",'AWO-A12'!S26,IF(Obliczenia!$D$58="Vitocal 100-A 101.A14",'AWO-A14'!S26,IF(Obliczenia!$D$58="Vitocal 100-A 101.A16",'AWO-A16'!S26,IF(Obliczenia!$D$58="Vitocal 100-A 101.A18",'AWO-A18'!S26,"błąd"))))))))))))))))))))))))))))))))) -> 7.26 | BL10: =IF(Obliczenia!$D$58="Vitocal 2xx-S 201.E06",'E06'!T26,IF(Obliczenia!$D$58="Vitocal 2xx-S 201.E08",'E08'!T26,IF(Obliczenia!$D$58="Vitocal 2xx-S 201.E10",'E10'!T26,IF(Obliczenia!$D$58="Vitocal 1xx-S 101.B04",'B04'!T26,IF(Obliczenia!$D$58="Vitocal 1xx-S 101.B06",'B06'!T26,IF(Obliczenia!$D$58="Vitocal 1xx-S 101.B08",'B08'!T26,IF(Obliczenia!$D$58="Vitocal 1xx-S 101.A12",'A12'!T26,IF(Obliczenia!$D$58="Vitocal 1xx-S 101.A14",'A14'!T26,IF(Obliczenia!$D$58="Vitocal 1xx-S 101.A16",'A16'!T26,IF(Obliczenia!$D$58="Vitocal 2xx-S 201.D04",'D04'!T26,IF(Obliczenia!$D$58="Vitocal 2xx-S 201.D06",'D06'!T26,IF(Obliczenia!$D$58="Vitocal 2xx-S 201.D08",'D08'!T26,IF(Obliczenia!$D$58="Vitocal 2xx-S 201.D10",'D10'!T26,IF(Obliczenia!$D$58="Vitocal 2xx-S 201.D13",'D13'!T26,IF(Obliczenia!$D$58="Vitocal 2xx-S 201.D16",'D16'!T26,IF(Obliczenia!$D$58="Vitocal 15x-A 151.A10",'151.A10'!T26,IF(Obliczenia!$D$58="Vitocal 15x-A 151.A13",'151.A13'!T26,IF(Obliczenia!$D$58="Vitocal 15x-A 151.A16",'151.A16'!T26,IF(Obliczenia!$D$58="Vitocal 25x-A 251.A10",'251.A10'!T26,IF(Obliczenia!$D$58="Vitocal 25x-A 251.A13",'251.A13'!T26,IF(Obliczenia!$D$58="Vitocal 15x-A 151.A08",'151.A08'!T26,IF(Obliczenia!$D$58="Vitocal 15x-A 151.A06",'151.A06'!T26,IF(Obliczenia!$D$58="Vitocal 15x-A 151.A04",'151.A04'!T26,IF(Obliczenia!$D$58="Vitocal 25x-A 251.A04",'251.A04'!T26,IF(Obliczenia!$D$58="Vitocal 25x-A 251.A06",'251.A06'!T26,IF(Obliczenia!$D$58="Vitocal 25x-A 251.A08",'251.A08'!T26,IF(Obliczenia!$D$58="Vitocal 100-A 101.B06",'AWO-B06'!T26,IF(Obliczenia!$D$58="Vitocal 100-A 101.B08",'AWO-B08'!T26,IF(Obliczenia!$D$58="Vitocal 100-A 101.A10",'AWO-A10'!T26,IF(Obliczenia!$D$58="Vitocal 100-A 101.A12",'AWO-A12'!T26,IF(Obliczenia!$D$58="Vitocal 100-A 101.A14",'AWO-A14'!T26,IF(Obliczenia!$D$58="Vitocal 100-A 101.A16",'AWO-A16'!T26,IF(Obliczenia!$D$58="Vitocal 100-A 101.A18",'AWO-A18'!T26,"błąd"))))))))))))))))))))))))))))))))) -> 7.776 | BM10: =IF(Obliczenia!$D$58="Vitocal 2xx-S 201.E06",'E06'!U26,IF(Obliczenia!$D$58="Vitocal 2xx-S 201.E08",'E08'!U26,IF(Obliczenia!$D$58="Vitocal 2xx-S 201.E10",'E10'!U26,IF(Obliczenia!$D$58="Vitocal 1xx-S 101.B04",'B04'!U26,IF(Obliczenia!$D$58="Vitocal 1xx-S 101.B06",'B06'!U26,IF(Obliczenia!$D$58="Vitocal 1xx-S 101.B08",'B08'!U26,IF(Obliczenia!$D$58="Vitocal 1xx-S 101.A12",'A12'!U26,IF(Obliczenia!$D$58="Vitocal 1xx-S 101.A14",'A14'!U26,IF(Obliczenia!$D$58="Vitocal 1xx-S 101.A16",'A16'!U26,IF(Obliczenia!$D$58="Vitocal 2xx-S 201.D04",'D04'!U26,IF(Obliczenia!$D$58="Vitocal 2xx-S 201.D06",'D06'!U26,IF(Obliczenia!$D$58="Vitocal 2xx-S 201.D08",'D08'!U26,IF(Obliczenia!$D$58="Vitocal 2xx-S 201.D10",'D10'!U26,IF(Obliczenia!$D$58="Vitocal 2xx-S 201.D13",'D13'!U26,IF(Obliczenia!$D$58="Vitocal 2xx-S 201.D16",'D16'!U26,IF(Obliczenia!$D$58="Vitocal 15x-A 151.A10",'151.A10'!U26,IF(Obliczenia!$D$58="Vitocal 15x-A 151.A13",'151.A13'!U26,IF(Obliczenia!$D$58="Vitocal 15x-A 151.A16",'151.A16'!U26,IF(Obliczenia!$D$58="Vitocal 25x-A 251.A10",'251.A10'!U26,IF(Obliczenia!$D$58="Vitocal 25x-A 251.A13",'251.A13'!U26,IF(Obliczenia!$D$58="Vitocal 15x-A 151.A08",'151.A08'!U26,IF(Obliczenia!$D$58="Vitocal 15x-A 151.A06",'151.A06'!U26,IF(Obliczenia!$D$58="Vitocal 15x-A 151.A04",'151.A04'!U26,IF(Obliczenia!$D$58="Vitocal 25x-A 251.A04",'251.A04'!U26,IF(Obliczenia!$D$58="Vitocal 25x-A 251.A06",'251.A06'!U26,IF(Obliczenia!$D$58="Vitocal 25x-A 251.A08",'251.A08'!U26,IF(Obliczenia!$D$58="Vitocal 100-A 101.B06",'AWO-B06'!U26,IF(Obliczenia!$D$58="Vitocal 100-A 101.B08",'AWO-B08'!U26,IF(Obliczenia!$D$58="Vitocal 100-A 101.A10",'AWO-A10'!U26,IF(Obliczenia!$D$58="Vitocal 100-A 101.A12",'AWO-A12'!U26,IF(Obliczenia!$D$58="Vitocal 100-A 101.A14",'AWO-A14'!U26,IF(Obliczenia!$D$58="Vitocal 100-A 101.A16",'AWO-A16'!U26,IF(Obliczenia!$D$58="Vitocal 100-A 101.A18",'AWO-A18'!U26,"błąd"))))))))))))))))))))))))))))))))) -> 8.55 | BN10: =IF(Obliczenia!$D$58="Vitocal 2xx-S 201.E06",'E06'!V26,IF(Obliczenia!$D$58="Vitocal 2xx-S 201.E08",'E08'!V26,IF(Obliczenia!$D$58="Vitocal 2xx-S 201.E10",'E10'!V26,IF(Obliczenia!$D$58="Vitocal 1xx-S 101.B04",'B04'!V26,IF(Obliczenia!$D$58="Vitocal 1xx-S 101.B06",'B06'!V26,IF(Obliczenia!$D$58="Vitocal 1xx-S 101.B08",'B08'!V26,IF(Obliczenia!$D$58="Vitocal 1xx-S 101.A12",'A12'!V26,IF(Obliczenia!$D$58="Vitocal 1xx-S 101.A14",'A14'!V26,IF(Obliczenia!$D$58="Vitocal 1xx-S 101.A16",'A16'!V26,IF(Obliczenia!$D$58="Vitocal 2xx-S 201.D04",'D04'!V26,IF(Obliczenia!$D$58="Vitocal 2xx-S 201.D06",'D06'!V26,IF(Obliczenia!$D$58="Vitocal 2xx-S 201.D08",'D08'!V26,IF(Obliczenia!$D$58="Vitocal 2xx-S 201.D10",'D10'!V26,IF(Obliczenia!$D$58="Vitocal 2xx-S 201.D13",'D13'!V26,IF(Obliczenia!$D$58="Vitocal 2xx-S 201.D16",'D16'!V26,IF(Obliczenia!$D$58="Vitocal 15x-A 151.A10",'151.A10'!V26,IF(Obliczenia!$D$58="Vitocal 15x-A 151.A13",'151.A13'!V26,IF(Obliczenia!$D$58="Vitocal 15x-A 151.A16",'151.A16'!V26,IF(Obliczenia!$D$58="Vitocal 25x-A 251.A10",'251.A10'!V26,IF(Obliczenia!$D$58="Vitocal 25x-A 251.A13",'251.A13'!V26,IF(Obliczenia!$D$58="Vitocal 15x-A 151.A08",'151.A08'!V26,IF(Obliczenia!$D$58="Vitocal 15x-A 151.A06",'151.A06'!V26,IF(Obliczenia!$D$58="Vitocal 15x-A 151.A04",'151.A04'!V26,IF(Obliczenia!$D$58="Vitocal 25x-A 251.A04",'251.A04'!V26,IF(Obliczenia!$D$58="Vitocal 25x-A 251.A06",'251.A06'!V26,IF(Obliczenia!$D$58="Vitocal 25x-A 251.A08",'251.A08'!V26,IF(Obliczenia!$D$58="Vitocal 100-A 101.B06",'AWO-B06'!V26,IF(Obliczenia!$D$58="Vitocal 100-A 101.B08",'AWO-B08'!V26,IF(Obliczenia!$D$58="Vitocal 100-A 101.A10",'AWO-A10'!V26,IF(Obliczenia!$D$58="Vitocal 100-A 101.A12",'AWO-A12'!V26,IF(Obliczenia!$D$58="Vitocal 100-A 101.A14",'AWO-A14'!V26,IF(Obliczenia!$D$58="Vitocal 100-A 101.A16",'AWO-A16'!V26,IF(Obliczenia!$D$58="Vitocal 100-A 101.A18",'AWO-A18'!V26,"błąd"))))))))))))))))))))))))))))))))) -> 9.84 | BO10: =IF(Obliczenia!$D$58="Vitocal 2xx-S 201.E06",'E06'!W26,IF(Obliczenia!$D$58="Vitocal 2xx-S 201.E08",'E08'!W26,IF(Obliczenia!$D$58="Vitocal 2xx-S 201.E10",'E10'!W26,IF(Obliczenia!$D$58="Vitocal 1xx-S 101.B04",'B04'!W26,IF(Obliczenia!$D$58="Vitocal 1xx-S 101.B06",'B06'!W26,IF(Obliczenia!$D$58="Vitocal 1xx-S 101.B08",'B08'!W26,IF(Obliczenia!$D$58="Vitocal 1xx-S 101.A12",'A12'!W26,IF(Obliczenia!$D$58="Vitocal 1xx-S 101.A14",'A14'!W26,IF(Obliczenia!$D$58="Vitocal 1xx-S 101.A16",'A16'!W26,IF(Obliczenia!$D$58="Vitocal 2xx-S 201.D04",'D04'!W26,IF(Obliczenia!$D$58="Vitocal 2xx-S 201.D06",'D06'!W26,IF(Obliczenia!$D$58="Vitocal 2xx-S 201.D08",'D08'!W26,IF(Obliczenia!$D$58="Vitocal 2xx-S 201.D10",'D10'!W26,IF(Obliczenia!$D$58="Vitocal 2xx-S 201.D13",'D13'!W26,IF(Obliczenia!$D$58="Vitocal 2xx-S 201.D16",'D16'!W26,IF(Obliczenia!$D$58="Vitocal 15x-A 151.A10",'151.A10'!W26,IF(Obliczenia!$D$58="Vitocal 15x-A 151.A13",'151.A13'!W26,IF(Obliczenia!$D$58="Vitocal 15x-A 151.A16",'151.A16'!W26,IF(Obliczenia!$D$58="Vitocal 25x-A 251.A10",'251.A10'!W26,IF(Obliczenia!$D$58="Vitocal 25x-A 251.A13",'251.A13'!W26,IF(Obliczenia!$D$58="Vitocal 15x-A 151.A08",'151.A08'!W26,IF(Obliczenia!$D$58="Vitocal 15x-A 151.A06",'151.A06'!W26,IF(Obliczenia!$D$58="Vitocal 15x-A 151.A04",'151.A04'!W26,IF(Obliczenia!$D$58="Vitocal 25x-A 251.A04",'251.A04'!W26,IF(Obliczenia!$D$58="Vitocal 25x-A 251.A06",'251.A06'!W26,IF(Obliczenia!$D$58="Vitocal 25x-A 251.A08",'251.A08'!W26,IF(Obliczenia!$D$58="Vitocal 100-A 101.B06",'AWO-B06'!W26,IF(Obliczenia!$D$58="Vitocal 100-A 101.B08",'AWO-B08'!W26,IF(Obliczenia!$D$58="Vitocal 100-A 101.A10",'AWO-A10'!W26,IF(Obliczenia!$D$58="Vitocal 100-A 101.A12",'AWO-A12'!W26,IF(Obliczenia!$D$58="Vitocal 100-A 101.A14",'AWO-A14'!W26,IF(Obliczenia!$D$58="Vitocal 100-A 101.A16",'AWO-A16'!W26,IF(Obliczenia!$D$58="Vitocal 100-A 101.A18",'AWO-A18'!W26,"błąd"))))))))))))))))))))))))))))))))) -> 11.08 | BW10: Vitocal 200-S AWB-E(-AC) 201.D16 | BX10: ='D16'!B25 -> 60225 | BY10: ='Bilans-D16'!G7 -> 3.712891774 | BZ10: 16220.5105 | CA10: 16220.5105 | CD10: Węgiel kamienny, ciąg sztuczny | CH10: 329.4159544 | CI10: g/kWh | CK10: -6.620833333 | CL10: -10.15416667
A11: 6 | B11: 2 | C11: 2 | E11: 5 | F11: =AVERAGE(C103:C126) -> -5.933333333 | H11: =F11*Budynek!$D$31+Budynek!$D$32 -> 29.725 | J11: =Budynek!$D$4*(Dane!$E$12-F11)*12/1000 -> 43.82907317 | L11: =Budynek!$D$4*(Dane!$E$13-F11)*12/1000 -> 37.31980488 | N11: 81.14887805 | P11: 81.14887805 | Q11: 81.14887805 | R11: 81.14887805 | S11: 81.14887805 | T11: 7.11627907 | AA11: =IF(Obliczenia!$D$58="Vitocal 2xx-S 201.E06",'Bilans-E06'!Z11,IF(Obliczenia!$D$58="Vitocal 2xx-S 201.E08",'Bilans-E08'!Z11,IF(Obliczenia!$D$58="Vitocal 2xx-S 201.E10",'Bilans-E10'!Z11,IF(Obliczenia!$D$58="Vitocal 1xx-S 101.B04",'Bilans-B04'!Z11,IF(Obliczenia!$D$58="Vitocal 1xx-S 101.B06",'Bilans-B06'!Z11,IF(Obliczenia!$D$58="Vitocal 1xx-S 101.B08",'Bilans-B08'!Z11,IF(Obliczenia!$D$58="Vitocal 1xx-S 101.A12",'Bilans-A12'!Z11,IF(Obliczenia!$D$58="Vitocal 1xx-S 101.A14",'Bilans-A14'!Z11,IF(Obliczenia!$D$58="Vitocal 1xx-S 101.A16",'Bilans-A16'!Z11,IF(Obliczenia!$D$58="Vitocal 2xx-S 201.D04",'Bilans-D04'!Z11,IF(Obliczenia!$D$58="Vitocal 2xx-S 201.D06",'Bilans-B06'!Z11,IF(Obliczenia!$D$58="Vitocal 2xx-S 201.D08",'Bilans-D08'!Z11,IF(Obliczenia!$D$58="Vitocal 2xx-S 201.D10",'Bilans-D10'!Z11,IF(Obliczenia!$D$58="Vitocal 2xx-S 201.D13",'Bilans-D13'!Z11,IF(Obliczenia!$D$58="Vitocal 2xx-S 201.D16",'Bilans-D16'!Z11,IF(Obliczenia!$D$58="Vitocal 15x-A 151.A10",'Bilans-151-A10'!Z11,IF(Obliczenia!$D$58="Vitocal 15x-A 151.A13",'Bilans-151-A13'!Z11,IF(Obliczenia!$D$58="Vitocal 15x-A 151.A16",'Bilans-151-A16'!Z11,IF(Obliczenia!$D$58="Vitocal 15x-A 151.A16",'Bilans-151-A16'!Z11,IF(Obliczenia!$D$58="Vitocal 25x-A 251.A10",'Bilans-251-A10'!Z11,IF(Obliczenia!$D$58="Vitocal 25x-A 251.A13",'Bilans-251-A13'!Z11,IF(Obliczenia!$D$58="Vitocal 15x-A 151.A06",'Bilans-151-A06'!Z11,IF(Obliczenia!$D$58="Vitocal 15x-A 151.A08",'Bilans-151-A08'!Z11,IF(Obliczenia!$D$58="Vitocal 15x-A 151.A04",'Bilans-151-A04'!Z11,IF(Obliczenia!$D$58="Vitocal 25x-A 251.A04",'Bilans-251-A04'!Z11,IF(Obliczenia!$D$58="Vitocal 25x-A 251.A06",'Bilans-251-A06'!Z11,IF(Obliczenia!$D$58="Vitocal 25x-A 251.A08",'Bilans-251-A08'!Z11,IF(Obliczenia!$D$58="Vitocal 100-A 101.B06",'Bilans-AWO-B06'!Z11,IF(Obliczenia!$D$58="Vitocal 100-A 101.B08",'Bilans-AWO-B08'!Z11,IF(Obliczenia!$D$58="Vitocal 100-A 101.A10",'Bilans-AWO-A10'!Z11,IF(Obliczenia!$D$58="Vitocal 100-A 101.A12",'Bilans-AWO-A12'!Z11,IF(Obliczenia!$D$58="Vitocal 100-A 101.A14",'Bilans-AWO-A14'!Z11,IF(Obliczenia!$D$58="Vitocal 100-A 101.A16",'Bilans-AWO-A16'!Z11,IF(Obliczenia!$D$58="Vitocal 100-A 101.A18",'Bilans-AWO-A18'!Z11,"błąd")))))))))))))))))))))))))))))))))) -> 81.14887805 | AB11: =IF(Obliczenia!$D$58="Vitocal 2xx-S 201.E06",'Bilans-E06'!AA11,IF(Obliczenia!$D$58="Vitocal 2xx-S 201.E08",'Bilans-E08'!AA11,IF(Obliczenia!$D$58="Vitocal 2xx-S 201.E10",'Bilans-E10'!AA11,IF(Obliczenia!$D$58="Vitocal 1xx-S 101.B04",'Bilans-B04'!AA11,IF(Obliczenia!$D$58="Vitocal 1xx-S 101.B06",'Bilans-B06'!AA11,IF(Obliczenia!$D$58="Vitocal 1xx-S 101.B08",'Bilans-B08'!AA11,IF(Obliczenia!$D$58="Vitocal 1xx-S 101.A12",'Bilans-A12'!AA11,IF(Obliczenia!$D$58="Vitocal 1xx-S 101.A14",'Bilans-A14'!AA11,IF(Obliczenia!$D$58="Vitocal 1xx-S 101.A16",'Bilans-A16'!AA11,IF(Obliczenia!$D$58="Vitocal 2xx-S 201.D04",'Bilans-D04'!AA11,IF(Obliczenia!$D$58="Vitocal 2xx-S 201.D06",'Bilans-B06'!AA11,IF(Obliczenia!$D$58="Vitocal 2xx-S 201.D08",'Bilans-D08'!AA11,IF(Obliczenia!$D$58="Vitocal 2xx-S 201.D10",'Bilans-D10'!AA11,IF(Obliczenia!$D$58="Vitocal 2xx-S 201.D13",'Bilans-D13'!AA11,IF(Obliczenia!$D$58="Vitocal 2xx-S 201.D16",'Bilans-D16'!AA11,IF(Obliczenia!$D$58="Vitocal 15x-A 151.A10",'Bilans-151-A10'!AA11,IF(Obliczenia!$D$58="Vitocal 15x-A 151.A13",'Bilans-151-A13'!AA11,IF(Obliczenia!$D$58="Vitocal 15x-A 151.A16",'Bilans-151-A16'!AA11,IF(Obliczenia!$D$58="Vitocal 15x-A 151.A16",'Bilans-151-A16'!AA11,IF(Obliczenia!$D$58="Vitocal 25x-A 251.A10",'Bilans-251-A10'!AA11,IF(Obliczenia!$D$58="Vitocal 25x-A 251.A13",'Bilans-251-A13'!AA11,IF(Obliczenia!$D$58="Vitocal 15x-A 151.A08",'Bilans-151-A08'!AA11,IF(Obliczenia!$D$58="Vitocal 15x-A 151.A06",'Bilans-151-A06'!AA11,IF(Obliczenia!$D$58="Vitocal 15x-A 151.A04",'Bilans-151-A04'!AA11,IF(Obliczenia!$D$58="Vitocal 25x-A 251.A04",'Bilans-251-A04'!AA11,IF(Obliczenia!$D$58="Vitocal 25x-A 251.A06",'Bilans-251-A06'!AA11,IF(Obliczenia!$D$58="Vitocal 25x-A 251.A08",'Bilans-251-A08'!AA11,IF(Obliczenia!$D$58="Vitocal 100-A 101.B06",'Bilans-AWO-B06'!AA11,IF(Obliczenia!$D$58="Vitocal 100-A 101.B08",'Bilans-AWO-B08'!AA11,IF(Obliczenia!$D$58="Vitocal 100-A 101.A10",'Bilans-AWO-A10'!AA11,IF(Obliczenia!$D$58="Vitocal 100-A 101.A12",'Bilans-AWO-A12'!AA11,IF(Obliczenia!$D$58="Vitocal 100-A 101.A14",'Bilans-AWO-A14'!AA11,IF(Obliczenia!$D$58="Vitocal 100-A 101.A16",'Bilans-AWO-A16'!AA11,IF(Obliczenia!$D$58="Vitocal 100-A 101.A18",'Bilans-AWO-A18'!AA11,"błąd")))))))))))))))))))))))))))))))))) -> 0 | AE11: D04 | AF11: ='D04'!B28 -> 11.49 | AG11: 1 | AI11: 81.14887805 | AJ11: 0 | AR11: =IF(Obliczenia!$D$58="Vitocal 2xx-S 201.E06",'Bilans-E06'!AR11,IF(Obliczenia!$D$58="Vitocal 2xx-S 201.E08",'Bilans-E08'!AR11,IF(Obliczenia!$D$58="Vitocal 2xx-S 201.E10",'Bilans-E10'!AR11,IF(Obliczenia!$D$58="Vitocal 1xx-S 101.B04",'Bilans-B04'!AR11,IF(Obliczenia!$D$58="Vitocal 1xx-S 101.B06",'Bilans-B06'!AR11,IF(Obliczenia!$D$58="Vitocal 1xx-S 101.B08",'Bilans-B08'!AR11,IF(Obliczenia!$D$58="Vitocal 1xx-S 101.A12",'Bilans-A12'!AR11,IF(Obliczenia!$D$58="Vitocal 1xx-S 101.A14",'Bilans-A14'!AR11,IF(Obliczenia!$D$58="Vitocal 1xx-S 101.A16",'Bilans-A16'!AR11,IF(Obliczenia!$D$58="Vitocal 2xx-S 201.D04",'Bilans-D04'!AR11,IF(Obliczenia!$D$58="Vitocal 2xx-S 201.D06",'Bilans-B06'!AR11,IF(Obliczenia!$D$58="Vitocal 2xx-S 201.D08",'Bilans-D08'!AR11,IF(Obliczenia!$D$58="Vitocal 2xx-S 201.D10",'Bilans-D10'!AR11,IF(Obliczenia!$D$58="Vitocal 2xx-S 201.D13",'Bilans-D13'!AR11,IF(Obliczenia!$D$58="Vitocal 2xx-S 201.D16",'Bilans-D16'!AR11,IF(Obliczenia!$D$58="Vitocal 15x-A 151.A10",'Bilans-151-A10'!AR11,IF(Obliczenia!$D$58="Vitocal 15x-A 151.A13",'Bilans-151-A13'!AR11,IF(Obliczenia!$D$58="Vitocal 15x-A 151.A16",'Bilans-151-A16'!AR11,IF(Obliczenia!$D$58="Vitocal 25x-A 251.A10",'Bilans-251-A10'!AR11,IF(Obliczenia!$D$58="Vitocal 25x-A 251.A13",'Bilans-251-A13'!AR11,IF(Obliczenia!$D$58="Vitocal 15x-A 151.A08",'Bilans-151-A08'!AR11,IF(Obliczenia!$D$58="Vitocal 15x-A 151.A06",'Bilans-151-A06'!AR11,IF(Obliczenia!$D$58="Vitocal 15x-A 151.A04",'Bilans-151-A04'!AR11,IF(Obliczenia!$D$58="Vitocal 25x-A 251.A04",'Bilans-251-A04'!AR11,IF(Obliczenia!$D$58="Vitocal 25x-A 251.A06",'Bilans-251-A06'!AR11,IF(Obliczenia!$D$58="Vitocal 25x-A 251.A08",'Bilans-251-A08'!AR11,IF(Obliczenia!$D$58="Vitocal 100-A 101.B06",'Bilans-AWO-B06'!AR11,IF(Obliczenia!$D$58="Vitocal 100-A 101.B08",'Bilans-AWO-B08'!AR11,IF(Obliczenia!$D$58="Vitocal 100-A 101.A10",'Bilans-AWO-A10'!AR11,IF(Obliczenia!$D$58="Vitocal 100-A 101.A12",'Bilans-AWO-A12'!AR11,IF(Obliczenia!$D$58="Vitocal 100-A 101.A14",'Bilans-AWO-A14'!AR11,IF(Obliczenia!$D$58="Vitocal 100-A 101.A16",'Bilans-AWO-A16'!AR11,IF(Obliczenia!$D$58="Vitocal 100-A 101.A18",'Bilans-AWO-A18'!AR11,"błąd"))))))))))))))))))))))))))))))))) -> 81.14887805 | AS11: =IF(Obliczenia!$D$58="Vitocal 2xx-S 201.E06",'Bilans-E06'!AS11,IF(Obliczenia!$D$58="Vitocal 2xx-S 201.E08",'Bilans-E08'!AS11,IF(Obliczenia!$D$58="Vitocal 2xx-S 201.E10",'Bilans-E10'!AS11,IF(Obliczenia!$D$58="Vitocal 1xx-S 101.B04",'Bilans-B04'!AS11,IF(Obliczenia!$D$58="Vitocal 1xx-S 101.B06",'Bilans-B06'!AS11,IF(Obliczenia!$D$58="Vitocal 1xx-S 101.B08",'Bilans-B08'!AS11,IF(Obliczenia!$D$58="Vitocal 1xx-S 101.A12",'Bilans-A12'!AS11,IF(Obliczenia!$D$58="Vitocal 1xx-S 101.A14",'Bilans-A14'!AS11,IF(Obliczenia!$D$58="Vitocal 1xx-S 101.A16",'Bilans-A16'!AS11,IF(Obliczenia!$D$58="Vitocal 2xx-S 201.D04",'Bilans-D04'!AS11,IF(Obliczenia!$D$58="Vitocal 2xx-S 201.D06",'Bilans-B06'!AS11,IF(Obliczenia!$D$58="Vitocal 2xx-S 201.D08",'Bilans-D08'!AS11,IF(Obliczenia!$D$58="Vitocal 2xx-S 201.D10",'Bilans-D10'!AS11,IF(Obliczenia!$D$58="Vitocal 2xx-S 201.D13",'Bilans-D13'!AS11,IF(Obliczenia!$D$58="Vitocal 2xx-S 201.D16",'Bilans-D16'!AS11,IF(Obliczenia!$D$58="Vitocal 15x-A 151.A10",'Bilans-151-A10'!AS11,IF(Obliczenia!$D$58="Vitocal 15x-A 151.A13",'Bilans-151-A13'!AS11,IF(Obliczenia!$D$58="Vitocal 15x-A 151.A16",'Bilans-151-A16'!AS11,IF(Obliczenia!$D$58="Vitocal 25x-A 251.A10",'Bilans-251-A10'!AS11,IF(Obliczenia!$D$58="Vitocal 25x-A 251.A13",'Bilans-251-A13'!AS11,IF(Obliczenia!$D$58="Vitocal 15x-A 151.A08",'Bilans-151-A08'!AS11,IF(Obliczenia!$D$58="Vitocal 15x-A 151.A06",'Bilans-151-A06'!AS11,IF(Obliczenia!$D$58="Vitocal 15x-A 151.A04",'Bilans-151-A04'!AS11,IF(Obliczenia!$D$58="Vitocal 25x-A 251.A04",'Bilans-251-A04'!AS11,IF(Obliczenia!$D$58="Vitocal 25x-A 251.A06",'Bilans-251-A06'!AS11,IF(Obliczenia!$D$58="Vitocal 25x-A 251.A08",'Bilans-251-A08'!AS11,IF(Obliczenia!$D$58="Vitocal 100-A 101.B06",'Bilans-AWO-B06'!AS11,IF(Obliczenia!$D$58="Vitocal 100-A 101.B08",'Bilans-AWO-B08'!AS11,IF(Obliczenia!$D$58="Vitocal 100-A 101.A10",'Bilans-AWO-A10'!AS11,IF(Obliczenia!$D$58="Vitocal 100-A 101.A12",'Bilans-AWO-A12'!AS11,IF(Obliczenia!$D$58="Vitocal 100-A 101.A14",'Bilans-AWO-A14'!AS11,IF(Obliczenia!$D$58="Vitocal 100-A 101.A16",'Bilans-AWO-A16'!AS11,IF(Obliczenia!$D$58="Vitocal 100-A 101.A18",'Bilans-AWO-A18'!AS11,"błąd"))))))))))))))))))))))))))))))))) -> 0 | AV11: =IF(Obliczenia!$D$58="Vitocal 2xx-S 201.E06",'Bilans-E06'!BJ11,IF(Obliczenia!$D$58="Vitocal 2xx-S 201.E08",'Bilans-E08'!BJ11,IF(Obliczenia!$D$58="Vitocal 2xx-S 201.E10",'Bilans-E10'!BJ11,IF(Obliczenia!$D$58="Vitocal 1xx-S 101.B04",'Bilans-B04'!BJ11,IF(Obliczenia!$D$58="Vitocal 1xx-S 101.B06",'Bilans-B06'!BJ11,IF(Obliczenia!$D$58="Vitocal 1xx-S 101.B08",'Bilans-B08'!BJ11,IF(Obliczenia!$D$58="Vitocal 1xx-S 101.A12",'Bilans-A12'!BJ11,IF(Obliczenia!$D$58="Vitocal 1xx-S 101.A14",'Bilans-A14'!BJ11,IF(Obliczenia!$D$58="Vitocal 1xx-S 101.A16",'Bilans-A16'!BJ11,IF(Obliczenia!$D$58="Vitocal 2xx-S 201.D04",'Bilans-D04'!BJ11,IF(Obliczenia!$D$58="Vitocal 2xx-S 201.D06",'Bilans-B06'!BJ11,IF(Obliczenia!$D$58="Vitocal 2xx-S 201.D08",'Bilans-D08'!BJ11,IF(Obliczenia!$D$58="Vitocal 2xx-S 201.D10",'Bilans-D10'!BJ11,IF(Obliczenia!$D$58="Vitocal 2xx-S 201.D13",'Bilans-D13'!BJ11,IF(Obliczenia!$D$58="Vitocal 2xx-S 201.D16",'Bilans-D16'!BJ11,IF(Obliczenia!$D$58="Vitocal 15x-A 151.A10",'Bilans-151-A10'!BJ11,IF(Obliczenia!$D$58="Vitocal 15x-A 151.A13",'Bilans-151-A13'!BJ11,IF(Obliczenia!$D$58="Vitocal 15x-A 151.A16",'Bilans-151-A16'!BJ11,IF(Obliczenia!$D$58="Vitocal 25x-A 251.A10",'Bilans-251-A10'!BJ11,IF(Obliczenia!$D$58="Vitocal 25x-A 251.A13",'Bilans-251-A13'!BJ11,IF(Obliczenia!$D$58="Vitocal 15x-A 151.A08",'Bilans-151-A08'!BJ11,IF(Obliczenia!$D$58="Vitocal 15x-A 151.A06",'Bilans-151-A06'!BJ11,IF(Obliczenia!$D$58="Vitocal 15x-A 151.A04",'Bilans-151-A04'!BJ11,IF(Obliczenia!$D$58="Vitocal 25x-A 251.A04",'Bilans-251-A04'!BJ11,IF(Obliczenia!$D$58="Vitocal 25x-A 251.A06",'Bilans-251-A06'!BJ11,IF(Obliczenia!$D$58="Vitocal 25x-A 251.A08",'Bilans-251-A08'!BJ11,IF(Obliczenia!$D$58="Vitocal 100-A 101.B06",'Bilans-AWO-B06'!BJ11,IF(Obliczenia!$D$58="Vitocal 100-A 101.B08",'Bilans-AWO-B08'!BJ11,IF(Obliczenia!$D$58="Vitocal 100-A 101.A10",'Bilans-AWO-A10'!BJ11,IF(Obliczenia!$D$58="Vitocal 100-A 101.A12",'Bilans-AWO-A12'!BJ11,IF(Obliczenia!$D$58="Vitocal 100-A 101.A14",'Bilans-AWO-A14'!BJ11,IF(Obliczenia!$D$58="Vitocal 100-A 101.A16",'Bilans-AWO-A16'!BJ11,IF(Obliczenia!$D$58="Vitocal 100-A 101.A18",'Bilans-AWO-A18'!BJ11,"błąd"))))))))))))))))))))))))))))))))) -> 81.14887805 | AW11: =IF(Obliczenia!$D$58="Vitocal 2xx-S 201.E06",'Bilans-E06'!BK11,IF(Obliczenia!$D$58="Vitocal 2xx-S 201.E08",'Bilans-E08'!BK11,IF(Obliczenia!$D$58="Vitocal 2xx-S 201.E10",'Bilans-E10'!BK11,IF(Obliczenia!$D$58="Vitocal 1xx-S 101.B04",'Bilans-B04'!BK11,IF(Obliczenia!$D$58="Vitocal 1xx-S 101.B06",'Bilans-B06'!BK11,IF(Obliczenia!$D$58="Vitocal 1xx-S 101.B08",'Bilans-B08'!BK11,IF(Obliczenia!$D$58="Vitocal 1xx-S 101.A12",'Bilans-A12'!BK11,IF(Obliczenia!$D$58="Vitocal 1xx-S 101.A14",'Bilans-A14'!BK11,IF(Obliczenia!$D$58="Vitocal 1xx-S 101.A16",'Bilans-A16'!BK11,IF(Obliczenia!$D$58="Vitocal 2xx-S 201.D04",'Bilans-D04'!BK11,IF(Obliczenia!$D$58="Vitocal 2xx-S 201.D06",'Bilans-B06'!BK11,IF(Obliczenia!$D$58="Vitocal 2xx-S 201.D08",'Bilans-D08'!BK11,IF(Obliczenia!$D$58="Vitocal 2xx-S 201.D10",'Bilans-D10'!BK11,IF(Obliczenia!$D$58="Vitocal 2xx-S 201.D13",'Bilans-D13'!BK11,IF(Obliczenia!$D$58="Vitocal 2xx-S 201.D16",'Bilans-D16'!BK11,IF(Obliczenia!$D$58="Vitocal 15x-A 151.A10",'Bilans-151-A10'!BK11,IF(Obliczenia!$D$58="Vitocal 15x-A 151.A13",'Bilans-151-A13'!BK11,IF(Obliczenia!$D$58="Vitocal 15x-A 151.A16",'Bilans-151-A16'!BK11,IF(Obliczenia!$D$58="Vitocal 25x-A 251.A10",'Bilans-251-A10'!BK11,IF(Obliczenia!$D$58="Vitocal 25x-A 251.A13",'Bilans-251-A13'!BK11,IF(Obliczenia!$D$58="Vitocal 15x-A 151.A08",'Bilans-151-A08'!BK11,IF(Obliczenia!$D$58="Vitocal 15x-A 151.A06",'Bilans-151-A06'!BK11,IF(Obliczenia!$D$58="Vitocal 15x-A 151.A04",'Bilans-151-A04'!BK11,IF(Obliczenia!$D$58="Vitocal 25x-A 251.A04",'Bilans-251-A04'!BK11,IF(Obliczenia!$D$58="Vitocal 25x-A 251.A06",'Bilans-251-A06'!BK11,IF(Obliczenia!$D$58="Vitocal 25x-A 251.A08",'Bilans-251-A08'!BK11,IF(Obliczenia!$D$58="Vitocal 100-A 101.B06",'Bilans-AWO-B06'!BK11,IF(Obliczenia!$D$58="Vitocal 100-A 101.B08",'Bilans-AWO-B08'!BK11,IF(Obliczenia!$D$58="Vitocal 100-A 101.A10",'Bilans-AWO-A10'!BK11,IF(Obliczenia!$D$58="Vitocal 100-A 101.A12",'Bilans-AWO-A12'!BK11,IF(Obliczenia!$D$58="Vitocal 100-A 101.A14",'Bilans-AWO-A14'!BK11,IF(Obliczenia!$D$58="Vitocal 100-A 101.A16",'Bilans-AWO-A16'!BK11,IF(Obliczenia!$D$58="Vitocal 100-A 101.A18",'Bilans-AWO-A18'!BK11,"błąd"))))))))))))))))))))))))))))))))) -> 0 | AZ11: =IF(Obliczenia!$D$58="Vitocal 15x-A 151.A10",'Bilans-151-A10'!CK11,IF(Obliczenia!$D$58="Vitocal 15x-A 151.A13",'Bilans-151-A13'!CK11,IF(Obliczenia!$D$58="Vitocal 15x-A 151.A16",'Bilans-151-A16'!CK11,IF(Obliczenia!$D$58="Vitocal 25x-A 251.A10",'Bilans-251-A10'!CK11,IF(Obliczenia!$D$58="Vitocal 25x-A 251.A13",'Bilans-251-A13'!CK11,IF(Obliczenia!$D$58="Vitocal 15x-A 151.A08",'Bilans-151-A08'!CK11,IF(Obliczenia!$D$58="Vitocal 15x-A 151.A06",'Bilans-151-A06'!CK11,IF(Obliczenia!$D$58="Vitocal 15x-A 151.A04",'Bilans-151-A04'!CK11,IF(Obliczenia!$D$58="Vitocal 25x-A 251.A04",'Bilans-251-A04'!CK11,IF(Obliczenia!$D$58="Vitocal 25x-A 251.A06",'Bilans-251-A06'!CK11,IF(Obliczenia!$D$58="Vitocal 25x-A 251.A08",'Bilans-251-A08'!CK11,"błąd"))))))))))) -> błąd | BA11: =IF(Obliczenia!$D$58="Vitocal 15x-A 151.A10",'Bilans-151-A10'!CL11,IF(Obliczenia!$D$58="Vitocal 15x-A 151.A13",'Bilans-151-A13'!CL11,IF(Obliczenia!$D$58="Vitocal 15x-A 151.A16",'Bilans-151-A16'!CL11,IF(Obliczenia!$D$58="Vitocal 25x-A 251.A10",'Bilans-251-A10'!CL11,IF(Obliczenia!$D$58="Vitocal 25x-A 251.A13",'Bilans-251-A13'!CL11,IF(Obliczenia!$D$58="Vitocal 15x-A 151.A08",'Bilans-151-A08'!CL11,IF(Obliczenia!$D$58="Vitocal 15x-A 151.A06",'Bilans-151-A06'!CL11,IF(Obliczenia!$D$58="Vitocal 15x-A 151.A04",'Bilans-151-A04'!CL11,IF(Obliczenia!$D$58="Vitocal 25x-A 251.A04",'Bilans-251-A04'!CL11,IF(Obliczenia!$D$58="Vitocal 25x-A 251.A06",'Bilans-251-A06'!CL11,IF(Obliczenia!$D$58="Vitocal 25x-A 251.A08",'Bilans-251-A08'!CL11,"błąd"))))))))))) -> błąd | BE11: VTS45 | BF11: =IF(Obliczenia!$D$58="Vitocal 2xx-S 201.E06",'E06'!N15,IF(Obliczenia!$D$58="Vitocal 2xx-S 201.E08",'E08'!N15,IF(Obliczenia!$D$58="Vitocal 2xx-S 201.E10",'E10'!N15,IF(Obliczenia!$D$58="Vitocal 1xx-S 101.B04",'B04'!N15,IF(Obliczenia!$D$58="Vitocal 1xx-S 101.B06",'B06'!N15,IF(Obliczenia!$D$58="Vitocal 1xx-S 101.B08",'B08'!N15,IF(Obliczenia!$D$58="Vitocal 1xx-S 101.A12",'A12'!N15,IF(Obliczenia!$D$58="Vitocal 1xx-S 101.A14",'A14'!N15,IF(Obliczenia!$D$58="Vitocal 1xx-S 101.A16",'A16'!N15,IF(Obliczenia!$D$58="Vitocal 2xx-S 201.D04",'D04'!N15,IF(Obliczenia!$D$58="Vitocal 2xx-S 201.D06",'D06'!N15,IF(Obliczenia!$D$58="Vitocal 2xx-S 201.D08",'D08'!N15,IF(Obliczenia!$D$58="Vitocal 2xx-S 201.D10",'D10'!N15,IF(Obliczenia!$D$58="Vitocal 2xx-S 201.D13",'D13'!N15,IF(Obliczenia!$D$58="Vitocal 2xx-S 201.D16",'D16'!N15,IF(Obliczenia!$D$58="Vitocal 15x-A 151.A10",'151.A10'!N15,IF(Obliczenia!$D$58="Vitocal 15x-A 151.A13",'151.A13'!N15,IF(Obliczenia!$D$58="Vitocal 15x-A 151.A16",'151.A16'!N15,IF(Obliczenia!$D$58="Vitocal 25x-A 251.A10",'251.A10'!N15,IF(Obliczenia!$D$58="Vitocal 25x-A 251.A13",'251.A13'!N15,IF(Obliczenia!$D$58="Vitocal 15x-A 151.A08",'151.A08'!N15,IF(Obliczenia!$D$58="Vitocal 15x-A 151.A06",'151.A06'!N15,IF(Obliczenia!$D$58="Vitocal 15x-A 151.A04",'151.A04'!N15,IF(Obliczenia!$D$58="Vitocal 25x-A 251.A04",'251.A04'!N15,IF(Obliczenia!$D$58="Vitocal 25x-A 251.A06",'251.A06'!N15,IF(Obliczenia!$D$58="Vitocal 25x-A 251.A08",'251.A08'!N15,IF(Obliczenia!$D$58="Vitocal 100-A 101.B06",'AWO-B06'!N15,IF(Obliczenia!$D$58="Vitocal 100-A 101.B08",'AWO-B08'!N15,IF(Obliczenia!$D$58="Vitocal 100-A 101.A10",'AWO-A10'!N15,IF(Obliczenia!$D$58="Vitocal 100-A 101.A12",'AWO-A12'!N15,IF(Obliczenia!$D$58="Vitocal 100-A 101.A14",'AWO-A14'!N15,IF(Obliczenia!$D$58="Vitocal 100-A 101.A16",'AWO-A16'!N15,IF(Obliczenia!$D$58="Vitocal 100-A 101.A18",'AWO-A18'!N15,"błąd"))))))))))))))))))))))))))))))))) -> 3.23 | BG11: =IF(Obliczenia!$D$58="Vitocal 2xx-S 201.E06",'E06'!O15,IF(Obliczenia!$D$58="Vitocal 2xx-S 201.E08",'E08'!O15,IF(Obliczenia!$D$58="Vitocal 2xx-S 201.E10",'E10'!O15,IF(Obliczenia!$D$58="Vitocal 1xx-S 101.B04",'B04'!O15,IF(Obliczenia!$D$58="Vitocal 1xx-S 101.B06",'B06'!O15,IF(Obliczenia!$D$58="Vitocal 1xx-S 101.B08",'B08'!O15,IF(Obliczenia!$D$58="Vitocal 1xx-S 101.A12",'A12'!O15,IF(Obliczenia!$D$58="Vitocal 1xx-S 101.A14",'A14'!O15,IF(Obliczenia!$D$58="Vitocal 1xx-S 101.A16",'A16'!O15,IF(Obliczenia!$D$58="Vitocal 2xx-S 201.D04",'D04'!O15,IF(Obliczenia!$D$58="Vitocal 2xx-S 201.D06",'D06'!O15,IF(Obliczenia!$D$58="Vitocal 2xx-S 201.D08",'D08'!O15,IF(Obliczenia!$D$58="Vitocal 2xx-S 201.D10",'D10'!O15,IF(Obliczenia!$D$58="Vitocal 2xx-S 201.D13",'D13'!O15,IF(Obliczenia!$D$58="Vitocal 2xx-S 201.D16",'D16'!O15,IF(Obliczenia!$D$58="Vitocal 15x-A 151.A10",'151.A10'!O15,IF(Obliczenia!$D$58="Vitocal 15x-A 151.A13",'151.A13'!O15,IF(Obliczenia!$D$58="Vitocal 15x-A 151.A16",'151.A16'!O15,IF(Obliczenia!$D$58="Vitocal 25x-A 251.A10",'251.A10'!O15,IF(Obliczenia!$D$58="Vitocal 25x-A 251.A13",'251.A13'!O15,IF(Obliczenia!$D$58="Vitocal 15x-A 151.A08",'151.A08'!O15,IF(Obliczenia!$D$58="Vitocal 15x-A 151.A06",'151.A06'!O15,IF(Obliczenia!$D$58="Vitocal 15x-A 151.A04",'151.A04'!O15,IF(Obliczenia!$D$58="Vitocal 25x-A 251.A04",'251.A04'!O15,IF(Obliczenia!$D$58="Vitocal 25x-A 251.A06",'251.A06'!O15,IF(Obliczenia!$D$58="Vitocal 25x-A 251.A08",'251.A08'!O15,IF(Obliczenia!$D$58="Vitocal 100-A 101.B06",'AWO-B06'!O15,IF(Obliczenia!$D$58="Vitocal 100-A 101.B08",'AWO-B08'!O15,IF(Obliczenia!$D$58="Vitocal 100-A 101.A10",'AWO-A10'!O15,IF(Obliczenia!$D$58="Vitocal 100-A 101.A12",'AWO-A12'!O15,IF(Obliczenia!$D$58="Vitocal 100-A 101.A14",'AWO-A14'!O15,IF(Obliczenia!$D$58="Vitocal 100-A 101.A16",'AWO-A16'!O15,IF(Obliczenia!$D$58="Vitocal 100-A 101.A18",'AWO-A18'!O15,"błąd"))))))))))))))))))))))))))))))))) -> 3.68 | BH11: =IF(Obliczenia!$D$58="Vitocal 2xx-S 201.E06",'E06'!P15,IF(Obliczenia!$D$58="Vitocal 2xx-S 201.E08",'E08'!P15,IF(Obliczenia!$D$58="Vitocal 2xx-S 201.E10",'E10'!P15,IF(Obliczenia!$D$58="Vitocal 1xx-S 101.B04",'B04'!P15,IF(Obliczenia!$D$58="Vitocal 1xx-S 101.B06",'B06'!P15,IF(Obliczenia!$D$58="Vitocal 1xx-S 101.B08",'B08'!P15,IF(Obliczenia!$D$58="Vitocal 1xx-S 101.A12",'A12'!P15,IF(Obliczenia!$D$58="Vitocal 1xx-S 101.A14",'A14'!P15,IF(Obliczenia!$D$58="Vitocal 1xx-S 101.A16",'A16'!P15,IF(Obliczenia!$D$58="Vitocal 2xx-S 201.D04",'D04'!P15,IF(Obliczenia!$D$58="Vitocal 2xx-S 201.D06",'D06'!P15,IF(Obliczenia!$D$58="Vitocal 2xx-S 201.D08",'D08'!P15,IF(Obliczenia!$D$58="Vitocal 2xx-S 201.D10",'D10'!P15,IF(Obliczenia!$D$58="Vitocal 2xx-S 201.D13",'D13'!P15,IF(Obliczenia!$D$58="Vitocal 2xx-S 201.D16",'D16'!P15,IF(Obliczenia!$D$58="Vitocal 15x-A 151.A10",'151.A10'!P15,IF(Obliczenia!$D$58="Vitocal 15x-A 151.A13",'151.A13'!P15,IF(Obliczenia!$D$58="Vitocal 15x-A 151.A16",'151.A16'!P15,IF(Obliczenia!$D$58="Vitocal 25x-A 251.A10",'251.A10'!P15,IF(Obliczenia!$D$58="Vitocal 25x-A 251.A13",'251.A13'!P15,IF(Obliczenia!$D$58="Vitocal 15x-A 151.A08",'151.A08'!P15,IF(Obliczenia!$D$58="Vitocal 15x-A 151.A06",'151.A06'!P15,IF(Obliczenia!$D$58="Vitocal 15x-A 151.A04",'151.A04'!P15,IF(Obliczenia!$D$58="Vitocal 25x-A 251.A04",'251.A04'!P15,IF(Obliczenia!$D$58="Vitocal 25x-A 251.A06",'251.A06'!P15,IF(Obliczenia!$D$58="Vitocal 25x-A 251.A08",'251.A08'!P15,IF(Obliczenia!$D$58="Vitocal 100-A 101.B06",'AWO-B06'!P15,IF(Obliczenia!$D$58="Vitocal 100-A 101.B08",'AWO-B08'!P15,IF(Obliczenia!$D$58="Vitocal 100-A 101.A10",'AWO-A10'!P15,IF(Obliczenia!$D$58="Vitocal 100-A 101.A12",'AWO-A12'!P15,IF(Obliczenia!$D$58="Vitocal 100-A 101.A14",'AWO-A14'!P15,IF(Obliczenia!$D$58="Vitocal 100-A 101.A16",'AWO-A16'!P15,IF(Obliczenia!$D$58="Vitocal 100-A 101.A18",'AWO-A18'!P15,"błąd"))))))))))))))))))))))))))))))))) -> 4.83 | BI11: =IF(Obliczenia!$D$58="Vitocal 2xx-S 201.E06",'E06'!Q15,IF(Obliczenia!$D$58="Vitocal 2xx-S 201.E08",'E08'!Q15,IF(Obliczenia!$D$58="Vitocal 2xx-S 201.E10",'E10'!Q15,IF(Obliczenia!$D$58="Vitocal 1xx-S 101.B04",'B04'!Q15,IF(Obliczenia!$D$58="Vitocal 1xx-S 101.B06",'B06'!Q15,IF(Obliczenia!$D$58="Vitocal 1xx-S 101.B08",'B08'!Q15,IF(Obliczenia!$D$58="Vitocal 1xx-S 101.A12",'A12'!Q15,IF(Obliczenia!$D$58="Vitocal 1xx-S 101.A14",'A14'!Q15,IF(Obliczenia!$D$58="Vitocal 1xx-S 101.A16",'A16'!Q15,IF(Obliczenia!$D$58="Vitocal 2xx-S 201.D04",'D04'!Q15,IF(Obliczenia!$D$58="Vitocal 2xx-S 201.D06",'D06'!Q15,IF(Obliczenia!$D$58="Vitocal 2xx-S 201.D08",'D08'!Q15,IF(Obliczenia!$D$58="Vitocal 2xx-S 201.D10",'D10'!Q15,IF(Obliczenia!$D$58="Vitocal 2xx-S 201.D13",'D13'!Q15,IF(Obliczenia!$D$58="Vitocal 2xx-S 201.D16",'D16'!Q15,IF(Obliczenia!$D$58="Vitocal 15x-A 151.A10",'151.A10'!Q15,IF(Obliczenia!$D$58="Vitocal 15x-A 151.A13",'151.A13'!Q15,IF(Obliczenia!$D$58="Vitocal 15x-A 151.A16",'151.A16'!Q15,IF(Obliczenia!$D$58="Vitocal 25x-A 251.A10",'251.A10'!Q15,IF(Obliczenia!$D$58="Vitocal 25x-A 251.A13",'251.A13'!Q15,IF(Obliczenia!$D$58="Vitocal 15x-A 151.A08",'151.A08'!Q15,IF(Obliczenia!$D$58="Vitocal 15x-A 151.A06",'151.A06'!Q15,IF(Obliczenia!$D$58="Vitocal 15x-A 151.A04",'151.A04'!Q15,IF(Obliczenia!$D$58="Vitocal 25x-A 251.A04",'251.A04'!Q15,IF(Obliczenia!$D$58="Vitocal 25x-A 251.A06",'251.A06'!Q15,IF(Obliczenia!$D$58="Vitocal 25x-A 251.A08",'251.A08'!Q15,IF(Obliczenia!$D$58="Vitocal 100-A 101.B06",'AWO-B06'!Q15,IF(Obliczenia!$D$58="Vitocal 100-A 101.B08",'AWO-B08'!Q15,IF(Obliczenia!$D$58="Vitocal 100-A 101.A10",'AWO-A10'!Q15,IF(Obliczenia!$D$58="Vitocal 100-A 101.A12",'AWO-A12'!Q15,IF(Obliczenia!$D$58="Vitocal 100-A 101.A14",'AWO-A14'!Q15,IF(Obliczenia!$D$58="Vitocal 100-A 101.A16",'AWO-A16'!Q15,IF(Obliczenia!$D$58="Vitocal 100-A 101.A18",'AWO-A18'!Q15,"błąd"))))))))))))))))))))))))))))))))) -> 5.4 | BJ11: =IF(Obliczenia!$D$58="Vitocal 2xx-S 201.E06",'E06'!R15,IF(Obliczenia!$D$58="Vitocal 2xx-S 201.E08",'E08'!R15,IF(Obliczenia!$D$58="Vitocal 2xx-S 201.E10",'E10'!R15,IF(Obliczenia!$D$58="Vitocal 1xx-S 101.B04",'B04'!R15,IF(Obliczenia!$D$58="Vitocal 1xx-S 101.B06",'B06'!R15,IF(Obliczenia!$D$58="Vitocal 1xx-S 101.B08",'B08'!R15,IF(Obliczenia!$D$58="Vitocal 1xx-S 101.A12",'A12'!R15,IF(Obliczenia!$D$58="Vitocal 1xx-S 101.A14",'A14'!R15,IF(Obliczenia!$D$58="Vitocal 1xx-S 101.A16",'A16'!R15,IF(Obliczenia!$D$58="Vitocal 2xx-S 201.D04",'D04'!R15,IF(Obliczenia!$D$58="Vitocal 2xx-S 201.D06",'D06'!R15,IF(Obliczenia!$D$58="Vitocal 2xx-S 201.D08",'D08'!R15,IF(Obliczenia!$D$58="Vitocal 2xx-S 201.D10",'D10'!R15,IF(Obliczenia!$D$58="Vitocal 2xx-S 201.D13",'D13'!R15,IF(Obliczenia!$D$58="Vitocal 2xx-S 201.D16",'D16'!R15,IF(Obliczenia!$D$58="Vitocal 15x-A 151.A10",'151.A10'!R15,IF(Obliczenia!$D$58="Vitocal 15x-A 151.A13",'151.A13'!R15,IF(Obliczenia!$D$58="Vitocal 15x-A 151.A16",'151.A16'!R15,IF(Obliczenia!$D$58="Vitocal 25x-A 251.A10",'251.A10'!R15,IF(Obliczenia!$D$58="Vitocal 25x-A 251.A13",'251.A13'!R15,IF(Obliczenia!$D$58="Vitocal 15x-A 151.A08",'151.A08'!R15,IF(Obliczenia!$D$58="Vitocal 15x-A 151.A06",'151.A06'!R15,IF(Obliczenia!$D$58="Vitocal 15x-A 151.A04",'151.A04'!R15,IF(Obliczenia!$D$58="Vitocal 25x-A 251.A04",'251.A04'!R15,IF(Obliczenia!$D$58="Vitocal 25x-A 251.A06",'251.A06'!R15,IF(Obliczenia!$D$58="Vitocal 25x-A 251.A08",'251.A08'!R15,IF(Obliczenia!$D$58="Vitocal 100-A 101.B06",'AWO-B06'!R15,IF(Obliczenia!$D$58="Vitocal 100-A 101.B08",'AWO-B08'!R15,IF(Obliczenia!$D$58="Vitocal 100-A 101.A10",'AWO-A10'!R15,IF(Obliczenia!$D$58="Vitocal 100-A 101.A12",'AWO-A12'!R15,IF(Obliczenia!$D$58="Vitocal 100-A 101.A14",'AWO-A14'!R15,IF(Obliczenia!$D$58="Vitocal 100-A 101.A16",'AWO-A16'!R15,IF(Obliczenia!$D$58="Vitocal 100-A 101.A18",'AWO-A18'!R15,"błąd"))))))))))))))))))))))))))))))))) -> 6.89 | BK11: =IF(Obliczenia!$D$58="Vitocal 2xx-S 201.E06",'E06'!S15,IF(Obliczenia!$D$58="Vitocal 2xx-S 201.E08",'E08'!S15,IF(Obliczenia!$D$58="Vitocal 2xx-S 201.E10",'E10'!S15,IF(Obliczenia!$D$58="Vitocal 1xx-S 101.B04",'B04'!S15,IF(Obliczenia!$D$58="Vitocal 1xx-S 101.B06",'B06'!S15,IF(Obliczenia!$D$58="Vitocal 1xx-S 101.B08",'B08'!S15,IF(Obliczenia!$D$58="Vitocal 1xx-S 101.A12",'A12'!S15,IF(Obliczenia!$D$58="Vitocal 1xx-S 101.A14",'A14'!S15,IF(Obliczenia!$D$58="Vitocal 1xx-S 101.A16",'A16'!S15,IF(Obliczenia!$D$58="Vitocal 2xx-S 201.D04",'D04'!S15,IF(Obliczenia!$D$58="Vitocal 2xx-S 201.D06",'D06'!S15,IF(Obliczenia!$D$58="Vitocal 2xx-S 201.D08",'D08'!S15,IF(Obliczenia!$D$58="Vitocal 2xx-S 201.D10",'D10'!S15,IF(Obliczenia!$D$58="Vitocal 2xx-S 201.D13",'D13'!S15,IF(Obliczenia!$D$58="Vitocal 2xx-S 201.D16",'D16'!S15,IF(Obliczenia!$D$58="Vitocal 15x-A 151.A10",'151.A10'!S15,IF(Obliczenia!$D$58="Vitocal 15x-A 151.A13",'151.A13'!S15,IF(Obliczenia!$D$58="Vitocal 15x-A 151.A16",'151.A16'!S15,IF(Obliczenia!$D$58="Vitocal 25x-A 251.A10",'251.A10'!S15,IF(Obliczenia!$D$58="Vitocal 25x-A 251.A13",'251.A13'!S15,IF(Obliczenia!$D$58="Vitocal 15x-A 151.A08",'151.A08'!S15,IF(Obliczenia!$D$58="Vitocal 15x-A 151.A06",'151.A06'!S15,IF(Obliczenia!$D$58="Vitocal 15x-A 151.A04",'151.A04'!S15,IF(Obliczenia!$D$58="Vitocal 25x-A 251.A04",'251.A04'!S15,IF(Obliczenia!$D$58="Vitocal 25x-A 251.A06",'251.A06'!S15,IF(Obliczenia!$D$58="Vitocal 25x-A 251.A08",'251.A08'!S15,IF(Obliczenia!$D$58="Vitocal 100-A 101.B06",'AWO-B06'!S15,IF(Obliczenia!$D$58="Vitocal 100-A 101.B08",'AWO-B08'!S15,IF(Obliczenia!$D$58="Vitocal 100-A 101.A10",'AWO-A10'!S15,IF(Obliczenia!$D$58="Vitocal 100-A 101.A12",'AWO-A12'!S15,IF(Obliczenia!$D$58="Vitocal 100-A 101.A14",'AWO-A14'!S15,IF(Obliczenia!$D$58="Vitocal 100-A 101.A16",'AWO-A16'!S15,IF(Obliczenia!$D$58="Vitocal 100-A 101.A18",'AWO-A18'!S15,"błąd"))))))))))))))))))))))))))))))))) -> 7.69 | BL11: =IF(Obliczenia!$D$58="Vitocal 2xx-S 201.E06",'E06'!T15,IF(Obliczenia!$D$58="Vitocal 2xx-S 201.E08",'E08'!T15,IF(Obliczenia!$D$58="Vitocal 2xx-S 201.E10",'E10'!T15,IF(Obliczenia!$D$58="Vitocal 1xx-S 101.B04",'B04'!T15,IF(Obliczenia!$D$58="Vitocal 1xx-S 101.B06",'B06'!T15,IF(Obliczenia!$D$58="Vitocal 1xx-S 101.B08",'B08'!T15,IF(Obliczenia!$D$58="Vitocal 1xx-S 101.A12",'A12'!T15,IF(Obliczenia!$D$58="Vitocal 1xx-S 101.A14",'A14'!T15,IF(Obliczenia!$D$58="Vitocal 1xx-S 101.A16",'A16'!T15,IF(Obliczenia!$D$58="Vitocal 2xx-S 201.D04",'D04'!T15,IF(Obliczenia!$D$58="Vitocal 2xx-S 201.D06",'D06'!T15,IF(Obliczenia!$D$58="Vitocal 2xx-S 201.D08",'D08'!T15,IF(Obliczenia!$D$58="Vitocal 2xx-S 201.D10",'D10'!T15,IF(Obliczenia!$D$58="Vitocal 2xx-S 201.D13",'D13'!T15,IF(Obliczenia!$D$58="Vitocal 2xx-S 201.D16",'D16'!T15,IF(Obliczenia!$D$58="Vitocal 15x-A 151.A10",'151.A10'!T15,IF(Obliczenia!$D$58="Vitocal 15x-A 151.A13",'151.A13'!T15,IF(Obliczenia!$D$58="Vitocal 15x-A 151.A16",'151.A16'!T15,IF(Obliczenia!$D$58="Vitocal 25x-A 251.A10",'251.A10'!T15,IF(Obliczenia!$D$58="Vitocal 25x-A 251.A13",'251.A13'!T15,IF(Obliczenia!$D$58="Vitocal 15x-A 151.A08",'151.A08'!T15,IF(Obliczenia!$D$58="Vitocal 15x-A 151.A06",'151.A06'!T15,IF(Obliczenia!$D$58="Vitocal 15x-A 151.A04",'151.A04'!T15,IF(Obliczenia!$D$58="Vitocal 25x-A 251.A04",'251.A04'!T15,IF(Obliczenia!$D$58="Vitocal 25x-A 251.A06",'251.A06'!T15,IF(Obliczenia!$D$58="Vitocal 25x-A 251.A08",'251.A08'!T15,IF(Obliczenia!$D$58="Vitocal 100-A 101.B06",'AWO-B06'!T15,IF(Obliczenia!$D$58="Vitocal 100-A 101.B08",'AWO-B08'!T15,IF(Obliczenia!$D$58="Vitocal 100-A 101.A10",'AWO-A10'!T15,IF(Obliczenia!$D$58="Vitocal 100-A 101.A12",'AWO-A12'!T15,IF(Obliczenia!$D$58="Vitocal 100-A 101.A14",'AWO-A14'!T15,IF(Obliczenia!$D$58="Vitocal 100-A 101.A16",'AWO-A16'!T15,IF(Obliczenia!$D$58="Vitocal 100-A 101.A18",'AWO-A18'!T15,"błąd"))))))))))))))))))))))))))))))))) -> 8.232 | BM11: =IF(Obliczenia!$D$58="Vitocal 2xx-S 201.E06",'E06'!U15,IF(Obliczenia!$D$58="Vitocal 2xx-S 201.E08",'E08'!U15,IF(Obliczenia!$D$58="Vitocal 2xx-S 201.E10",'E10'!U15,IF(Obliczenia!$D$58="Vitocal 1xx-S 101.B04",'B04'!U15,IF(Obliczenia!$D$58="Vitocal 1xx-S 101.B06",'B06'!U15,IF(Obliczenia!$D$58="Vitocal 1xx-S 101.B08",'B08'!U15,IF(Obliczenia!$D$58="Vitocal 1xx-S 101.A12",'A12'!U15,IF(Obliczenia!$D$58="Vitocal 1xx-S 101.A14",'A14'!U15,IF(Obliczenia!$D$58="Vitocal 1xx-S 101.A16",'A16'!U15,IF(Obliczenia!$D$58="Vitocal 2xx-S 201.D04",'D04'!U15,IF(Obliczenia!$D$58="Vitocal 2xx-S 201.D06",'D06'!U15,IF(Obliczenia!$D$58="Vitocal 2xx-S 201.D08",'D08'!U15,IF(Obliczenia!$D$58="Vitocal 2xx-S 201.D10",'D10'!U15,IF(Obliczenia!$D$58="Vitocal 2xx-S 201.D13",'D13'!U15,IF(Obliczenia!$D$58="Vitocal 2xx-S 201.D16",'D16'!U15,IF(Obliczenia!$D$58="Vitocal 15x-A 151.A10",'151.A10'!U15,IF(Obliczenia!$D$58="Vitocal 15x-A 151.A13",'151.A13'!U15,IF(Obliczenia!$D$58="Vitocal 15x-A 151.A16",'151.A16'!U15,IF(Obliczenia!$D$58="Vitocal 25x-A 251.A10",'251.A10'!U15,IF(Obliczenia!$D$58="Vitocal 25x-A 251.A13",'251.A13'!U15,IF(Obliczenia!$D$58="Vitocal 15x-A 151.A08",'151.A08'!U15,IF(Obliczenia!$D$58="Vitocal 15x-A 151.A06",'151.A06'!U15,IF(Obliczenia!$D$58="Vitocal 15x-A 151.A04",'151.A04'!U15,IF(Obliczenia!$D$58="Vitocal 25x-A 251.A04",'251.A04'!U15,IF(Obliczenia!$D$58="Vitocal 25x-A 251.A06",'251.A06'!U15,IF(Obliczenia!$D$58="Vitocal 25x-A 251.A08",'251.A08'!U15,IF(Obliczenia!$D$58="Vitocal 100-A 101.B06",'AWO-B06'!U15,IF(Obliczenia!$D$58="Vitocal 100-A 101.B08",'AWO-B08'!U15,IF(Obliczenia!$D$58="Vitocal 100-A 101.A10",'AWO-A10'!U15,IF(Obliczenia!$D$58="Vitocal 100-A 101.A12",'AWO-A12'!U15,IF(Obliczenia!$D$58="Vitocal 100-A 101.A14",'AWO-A14'!U15,IF(Obliczenia!$D$58="Vitocal 100-A 101.A16",'AWO-A16'!U15,IF(Obliczenia!$D$58="Vitocal 100-A 101.A18",'AWO-A18'!U15,"błąd"))))))))))))))))))))))))))))))))) -> 9.045 | BN11: =IF(Obliczenia!$D$58="Vitocal 2xx-S 201.E06",'E06'!V15,IF(Obliczenia!$D$58="Vitocal 2xx-S 201.E08",'E08'!V15,IF(Obliczenia!$D$58="Vitocal 2xx-S 201.E10",'E10'!V15,IF(Obliczenia!$D$58="Vitocal 1xx-S 101.B04",'B04'!V15,IF(Obliczenia!$D$58="Vitocal 1xx-S 101.B06",'B06'!V15,IF(Obliczenia!$D$58="Vitocal 1xx-S 101.B08",'B08'!V15,IF(Obliczenia!$D$58="Vitocal 1xx-S 101.A12",'A12'!V15,IF(Obliczenia!$D$58="Vitocal 1xx-S 101.A14",'A14'!V15,IF(Obliczenia!$D$58="Vitocal 1xx-S 101.A16",'A16'!V15,IF(Obliczenia!$D$58="Vitocal 2xx-S 201.D04",'D04'!V15,IF(Obliczenia!$D$58="Vitocal 2xx-S 201.D06",'D06'!V15,IF(Obliczenia!$D$58="Vitocal 2xx-S 201.D08",'D08'!V15,IF(Obliczenia!$D$58="Vitocal 2xx-S 201.D10",'D10'!V15,IF(Obliczenia!$D$58="Vitocal 2xx-S 201.D13",'D13'!V15,IF(Obliczenia!$D$58="Vitocal 2xx-S 201.D16",'D16'!V15,IF(Obliczenia!$D$58="Vitocal 15x-A 151.A10",'151.A10'!V15,IF(Obliczenia!$D$58="Vitocal 15x-A 151.A13",'151.A13'!V15,IF(Obliczenia!$D$58="Vitocal 15x-A 151.A16",'151.A16'!V15,IF(Obliczenia!$D$58="Vitocal 25x-A 251.A10",'251.A10'!V15,IF(Obliczenia!$D$58="Vitocal 25x-A 251.A13",'251.A13'!V15,IF(Obliczenia!$D$58="Vitocal 15x-A 151.A08",'151.A08'!V15,IF(Obliczenia!$D$58="Vitocal 15x-A 151.A06",'151.A06'!V15,IF(Obliczenia!$D$58="Vitocal 15x-A 151.A04",'151.A04'!V15,IF(Obliczenia!$D$58="Vitocal 25x-A 251.A04",'251.A04'!V15,IF(Obliczenia!$D$58="Vitocal 25x-A 251.A06",'251.A06'!V15,IF(Obliczenia!$D$58="Vitocal 25x-A 251.A08",'251.A08'!V15,IF(Obliczenia!$D$58="Vitocal 100-A 101.B06",'AWO-B06'!V15,IF(Obliczenia!$D$58="Vitocal 100-A 101.B08",'AWO-B08'!V15,IF(Obliczenia!$D$58="Vitocal 100-A 101.A10",'AWO-A10'!V15,IF(Obliczenia!$D$58="Vitocal 100-A 101.A12",'AWO-A12'!V15,IF(Obliczenia!$D$58="Vitocal 100-A 101.A14",'AWO-A14'!V15,IF(Obliczenia!$D$58="Vitocal 100-A 101.A16",'AWO-A16'!V15,IF(Obliczenia!$D$58="Vitocal 100-A 101.A18",'AWO-A18'!V15,"błąd"))))))))))))))))))))))))))))))))) -> 10.4 | BO11: =IF(Obliczenia!$D$58="Vitocal 2xx-S 201.E06",'E06'!W15,IF(Obliczenia!$D$58="Vitocal 2xx-S 201.E08",'E08'!W15,IF(Obliczenia!$D$58="Vitocal 2xx-S 201.E10",'E10'!W15,IF(Obliczenia!$D$58="Vitocal 1xx-S 101.B04",'B04'!W15,IF(Obliczenia!$D$58="Vitocal 1xx-S 101.B06",'B06'!W15,IF(Obliczenia!$D$58="Vitocal 1xx-S 101.B08",'B08'!W15,IF(Obliczenia!$D$58="Vitocal 1xx-S 101.A12",'A12'!W15,IF(Obliczenia!$D$58="Vitocal 1xx-S 101.A14",'A14'!W15,IF(Obliczenia!$D$58="Vitocal 1xx-S 101.A16",'A16'!W15,IF(Obliczenia!$D$58="Vitocal 2xx-S 201.D04",'D04'!W15,IF(Obliczenia!$D$58="Vitocal 2xx-S 201.D06",'D06'!W15,IF(Obliczenia!$D$58="Vitocal 2xx-S 201.D08",'D08'!W15,IF(Obliczenia!$D$58="Vitocal 2xx-S 201.D10",'D10'!W15,IF(Obliczenia!$D$58="Vitocal 2xx-S 201.D13",'D13'!W15,IF(Obliczenia!$D$58="Vitocal 2xx-S 201.D16",'D16'!W15,IF(Obliczenia!$D$58="Vitocal 15x-A 151.A10",'151.A10'!W15,IF(Obliczenia!$D$58="Vitocal 15x-A 151.A13",'151.A13'!W15,IF(Obliczenia!$D$58="Vitocal 15x-A 151.A16",'151.A16'!W15,IF(Obliczenia!$D$58="Vitocal 25x-A 251.A10",'251.A10'!W15,IF(Obliczenia!$D$58="Vitocal 25x-A 251.A13",'251.A13'!W15,IF(Obliczenia!$D$58="Vitocal 15x-A 151.A08",'151.A08'!W15,IF(Obliczenia!$D$58="Vitocal 15x-A 151.A06",'151.A06'!W15,IF(Obliczenia!$D$58="Vitocal 15x-A 151.A04",'151.A04'!W15,IF(Obliczenia!$D$58="Vitocal 25x-A 251.A04",'251.A04'!W15,IF(Obliczenia!$D$58="Vitocal 25x-A 251.A06",'251.A06'!W15,IF(Obliczenia!$D$58="Vitocal 25x-A 251.A08",'251.A08'!W15,IF(Obliczenia!$D$58="Vitocal 100-A 101.B06",'AWO-B06'!W15,IF(Obliczenia!$D$58="Vitocal 100-A 101.B08",'AWO-B08'!W15,IF(Obliczenia!$D$58="Vitocal 100-A 101.A10",'AWO-A10'!W15,IF(Obliczenia!$D$58="Vitocal 100-A 101.A12",'AWO-A12'!W15,IF(Obliczenia!$D$58="Vitocal 100-A 101.A14",'AWO-A14'!W15,IF(Obliczenia!$D$58="Vitocal 100-A 101.A16",'AWO-A16'!W15,IF(Obliczenia!$D$58="Vitocal 100-A 101.A18",'AWO-A18'!W15,"błąd"))))))))))))))))))))))))))))))))) -> 11.06 | CD11: Energia elektryczna (Łęg Kraków) | CH11: 860.4 | CI11: g/kWh | CK11: -5.933333333 | CL11: -9.470833333
A12: 7 | B12: 3.1 | C12: 3.1 | E12: 6 | F12: =AVERAGE(C127:C150) -> -6.879166667 | H12: =F12*Budynek!$D$31+Budynek!$D$32 -> 30.0796875 | J12: =Budynek!$D$4*(Dane!$E$12-F12)*12/1000 -> 45.3682439 | L12: =Budynek!$D$4*(Dane!$E$13-F12)*12/1000 -> 38.85897561 | N12: 84.22721951 | P12: 84.22721951 | Q12: 84.22721951 | R12: 84.22721951 | S12: 84.22721951 | T12: 7.11627907 | AA12: =IF(Obliczenia!$D$58="Vitocal 2xx-S 201.E06",'Bilans-E06'!Z12,IF(Obliczenia!$D$58="Vitocal 2xx-S 201.E08",'Bilans-E08'!Z12,IF(Obliczenia!$D$58="Vitocal 2xx-S 201.E10",'Bilans-E10'!Z12,IF(Obliczenia!$D$58="Vitocal 1xx-S 101.B04",'Bilans-B04'!Z12,IF(Obliczenia!$D$58="Vitocal 1xx-S 101.B06",'Bilans-B06'!Z12,IF(Obliczenia!$D$58="Vitocal 1xx-S 101.B08",'Bilans-B08'!Z12,IF(Obliczenia!$D$58="Vitocal 1xx-S 101.A12",'Bilans-A12'!Z12,IF(Obliczenia!$D$58="Vitocal 1xx-S 101.A14",'Bilans-A14'!Z12,IF(Obliczenia!$D$58="Vitocal 1xx-S 101.A16",'Bilans-A16'!Z12,IF(Obliczenia!$D$58="Vitocal 2xx-S 201.D04",'Bilans-D04'!Z12,IF(Obliczenia!$D$58="Vitocal 2xx-S 201.D06",'Bilans-B06'!Z12,IF(Obliczenia!$D$58="Vitocal 2xx-S 201.D08",'Bilans-D08'!Z12,IF(Obliczenia!$D$58="Vitocal 2xx-S 201.D10",'Bilans-D10'!Z12,IF(Obliczenia!$D$58="Vitocal 2xx-S 201.D13",'Bilans-D13'!Z12,IF(Obliczenia!$D$58="Vitocal 2xx-S 201.D16",'Bilans-D16'!Z12,IF(Obliczenia!$D$58="Vitocal 15x-A 151.A10",'Bilans-151-A10'!Z12,IF(Obliczenia!$D$58="Vitocal 15x-A 151.A13",'Bilans-151-A13'!Z12,IF(Obliczenia!$D$58="Vitocal 15x-A 151.A16",'Bilans-151-A16'!Z12,IF(Obliczenia!$D$58="Vitocal 15x-A 151.A16",'Bilans-151-A16'!Z12,IF(Obliczenia!$D$58="Vitocal 25x-A 251.A10",'Bilans-251-A10'!Z12,IF(Obliczenia!$D$58="Vitocal 25x-A 251.A13",'Bilans-251-A13'!Z12,IF(Obliczenia!$D$58="Vitocal 15x-A 151.A06",'Bilans-151-A06'!Z12,IF(Obliczenia!$D$58="Vitocal 15x-A 151.A08",'Bilans-151-A08'!Z12,IF(Obliczenia!$D$58="Vitocal 15x-A 151.A04",'Bilans-151-A04'!Z12,IF(Obliczenia!$D$58="Vitocal 25x-A 251.A04",'Bilans-251-A04'!Z12,IF(Obliczenia!$D$58="Vitocal 25x-A 251.A06",'Bilans-251-A06'!Z12,IF(Obliczenia!$D$58="Vitocal 25x-A 251.A08",'Bilans-251-A08'!Z12,IF(Obliczenia!$D$58="Vitocal 100-A 101.B06",'Bilans-AWO-B06'!Z12,IF(Obliczenia!$D$58="Vitocal 100-A 101.B08",'Bilans-AWO-B08'!Z12,IF(Obliczenia!$D$58="Vitocal 100-A 101.A10",'Bilans-AWO-A10'!Z12,IF(Obliczenia!$D$58="Vitocal 100-A 101.A12",'Bilans-AWO-A12'!Z12,IF(Obliczenia!$D$58="Vitocal 100-A 101.A14",'Bilans-AWO-A14'!Z12,IF(Obliczenia!$D$58="Vitocal 100-A 101.A16",'Bilans-AWO-A16'!Z12,IF(Obliczenia!$D$58="Vitocal 100-A 101.A18",'Bilans-AWO-A18'!Z12,"błąd")))))))))))))))))))))))))))))))))) -> 84.22721951 | AB12: =IF(Obliczenia!$D$58="Vitocal 2xx-S 201.E06",'Bilans-E06'!AA12,IF(Obliczenia!$D$58="Vitocal 2xx-S 201.E08",'Bilans-E08'!AA12,IF(Obliczenia!$D$58="Vitocal 2xx-S 201.E10",'Bilans-E10'!AA12,IF(Obliczenia!$D$58="Vitocal 1xx-S 101.B04",'Bilans-B04'!AA12,IF(Obliczenia!$D$58="Vitocal 1xx-S 101.B06",'Bilans-B06'!AA12,IF(Obliczenia!$D$58="Vitocal 1xx-S 101.B08",'Bilans-B08'!AA12,IF(Obliczenia!$D$58="Vitocal 1xx-S 101.A12",'Bilans-A12'!AA12,IF(Obliczenia!$D$58="Vitocal 1xx-S 101.A14",'Bilans-A14'!AA12,IF(Obliczenia!$D$58="Vitocal 1xx-S 101.A16",'Bilans-A16'!AA12,IF(Obliczenia!$D$58="Vitocal 2xx-S 201.D04",'Bilans-D04'!AA12,IF(Obliczenia!$D$58="Vitocal 2xx-S 201.D06",'Bilans-B06'!AA12,IF(Obliczenia!$D$58="Vitocal 2xx-S 201.D08",'Bilans-D08'!AA12,IF(Obliczenia!$D$58="Vitocal 2xx-S 201.D10",'Bilans-D10'!AA12,IF(Obliczenia!$D$58="Vitocal 2xx-S 201.D13",'Bilans-D13'!AA12,IF(Obliczenia!$D$58="Vitocal 2xx-S 201.D16",'Bilans-D16'!AA12,IF(Obliczenia!$D$58="Vitocal 15x-A 151.A10",'Bilans-151-A10'!AA12,IF(Obliczenia!$D$58="Vitocal 15x-A 151.A13",'Bilans-151-A13'!AA12,IF(Obliczenia!$D$58="Vitocal 15x-A 151.A16",'Bilans-151-A16'!AA12,IF(Obliczenia!$D$58="Vitocal 15x-A 151.A16",'Bilans-151-A16'!AA12,IF(Obliczenia!$D$58="Vitocal 25x-A 251.A10",'Bilans-251-A10'!AA12,IF(Obliczenia!$D$58="Vitocal 25x-A 251.A13",'Bilans-251-A13'!AA12,IF(Obliczenia!$D$58="Vitocal 15x-A 151.A08",'Bilans-151-A08'!AA12,IF(Obliczenia!$D$58="Vitocal 15x-A 151.A06",'Bilans-151-A06'!AA12,IF(Obliczenia!$D$58="Vitocal 15x-A 151.A04",'Bilans-151-A04'!AA12,IF(Obliczenia!$D$58="Vitocal 25x-A 251.A04",'Bilans-251-A04'!AA12,IF(Obliczenia!$D$58="Vitocal 25x-A 251.A06",'Bilans-251-A06'!AA12,IF(Obliczenia!$D$58="Vitocal 25x-A 251.A08",'Bilans-251-A08'!AA12,IF(Obliczenia!$D$58="Vitocal 100-A 101.B06",'Bilans-AWO-B06'!AA12,IF(Obliczenia!$D$58="Vitocal 100-A 101.B08",'Bilans-AWO-B08'!AA12,IF(Obliczenia!$D$58="Vitocal 100-A 101.A10",'Bilans-AWO-A10'!AA12,IF(Obliczenia!$D$58="Vitocal 100-A 101.A12",'Bilans-AWO-A12'!AA12,IF(Obliczenia!$D$58="Vitocal 100-A 101.A14",'Bilans-AWO-A14'!AA12,IF(Obliczenia!$D$58="Vitocal 100-A 101.A16",'Bilans-AWO-A16'!AA12,IF(Obliczenia!$D$58="Vitocal 100-A 101.A18",'Bilans-AWO-A18'!AA12,"błąd")))))))))))))))))))))))))))))))))) -> 0 | AI12: 84.22721951 | AJ12: 0 | AR12: =IF(Obliczenia!$D$58="Vitocal 2xx-S 201.E06",'Bilans-E06'!AR12,IF(Obliczenia!$D$58="Vitocal 2xx-S 201.E08",'Bilans-E08'!AR12,IF(Obliczenia!$D$58="Vitocal 2xx-S 201.E10",'Bilans-E10'!AR12,IF(Obliczenia!$D$58="Vitocal 1xx-S 101.B04",'Bilans-B04'!AR12,IF(Obliczenia!$D$58="Vitocal 1xx-S 101.B06",'Bilans-B06'!AR12,IF(Obliczenia!$D$58="Vitocal 1xx-S 101.B08",'Bilans-B08'!AR12,IF(Obliczenia!$D$58="Vitocal 1xx-S 101.A12",'Bilans-A12'!AR12,IF(Obliczenia!$D$58="Vitocal 1xx-S 101.A14",'Bilans-A14'!AR12,IF(Obliczenia!$D$58="Vitocal 1xx-S 101.A16",'Bilans-A16'!AR12,IF(Obliczenia!$D$58="Vitocal 2xx-S 201.D04",'Bilans-D04'!AR12,IF(Obliczenia!$D$58="Vitocal 2xx-S 201.D06",'Bilans-B06'!AR12,IF(Obliczenia!$D$58="Vitocal 2xx-S 201.D08",'Bilans-D08'!AR12,IF(Obliczenia!$D$58="Vitocal 2xx-S 201.D10",'Bilans-D10'!AR12,IF(Obliczenia!$D$58="Vitocal 2xx-S 201.D13",'Bilans-D13'!AR12,IF(Obliczenia!$D$58="Vitocal 2xx-S 201.D16",'Bilans-D16'!AR12,IF(Obliczenia!$D$58="Vitocal 15x-A 151.A10",'Bilans-151-A10'!AR12,IF(Obliczenia!$D$58="Vitocal 15x-A 151.A13",'Bilans-151-A13'!AR12,IF(Obliczenia!$D$58="Vitocal 15x-A 151.A16",'Bilans-151-A16'!AR12,IF(Obliczenia!$D$58="Vitocal 25x-A 251.A10",'Bilans-251-A10'!AR12,IF(Obliczenia!$D$58="Vitocal 25x-A 251.A13",'Bilans-251-A13'!AR12,IF(Obliczenia!$D$58="Vitocal 15x-A 151.A08",'Bilans-151-A08'!AR12,IF(Obliczenia!$D$58="Vitocal 15x-A 151.A06",'Bilans-151-A06'!AR12,IF(Obliczenia!$D$58="Vitocal 15x-A 151.A04",'Bilans-151-A04'!AR12,IF(Obliczenia!$D$58="Vitocal 25x-A 251.A04",'Bilans-251-A04'!AR12,IF(Obliczenia!$D$58="Vitocal 25x-A 251.A06",'Bilans-251-A06'!AR12,IF(Obliczenia!$D$58="Vitocal 25x-A 251.A08",'Bilans-251-A08'!AR12,IF(Obliczenia!$D$58="Vitocal 100-A 101.B06",'Bilans-AWO-B06'!AR12,IF(Obliczenia!$D$58="Vitocal 100-A 101.B08",'Bilans-AWO-B08'!AR12,IF(Obliczenia!$D$58="Vitocal 100-A 101.A10",'Bilans-AWO-A10'!AR12,IF(Obliczenia!$D$58="Vitocal 100-A 101.A12",'Bilans-AWO-A12'!AR12,IF(Obliczenia!$D$58="Vitocal 100-A 101.A14",'Bilans-AWO-A14'!AR12,IF(Obliczenia!$D$58="Vitocal 100-A 101.A16",'Bilans-AWO-A16'!AR12,IF(Obliczenia!$D$58="Vitocal 100-A 101.A18",'Bilans-AWO-A18'!AR12,"błąd"))))))))))))))))))))))))))))))))) -> 84.22721951 | AS12: =IF(Obliczenia!$D$58="Vitocal 2xx-S 201.E06",'Bilans-E06'!AS12,IF(Obliczenia!$D$58="Vitocal 2xx-S 201.E08",'Bilans-E08'!AS12,IF(Obliczenia!$D$58="Vitocal 2xx-S 201.E10",'Bilans-E10'!AS12,IF(Obliczenia!$D$58="Vitocal 1xx-S 101.B04",'Bilans-B04'!AS12,IF(Obliczenia!$D$58="Vitocal 1xx-S 101.B06",'Bilans-B06'!AS12,IF(Obliczenia!$D$58="Vitocal 1xx-S 101.B08",'Bilans-B08'!AS12,IF(Obliczenia!$D$58="Vitocal 1xx-S 101.A12",'Bilans-A12'!AS12,IF(Obliczenia!$D$58="Vitocal 1xx-S 101.A14",'Bilans-A14'!AS12,IF(Obliczenia!$D$58="Vitocal 1xx-S 101.A16",'Bilans-A16'!AS12,IF(Obliczenia!$D$58="Vitocal 2xx-S 201.D04",'Bilans-D04'!AS12,IF(Obliczenia!$D$58="Vitocal 2xx-S 201.D06",'Bilans-B06'!AS12,IF(Obliczenia!$D$58="Vitocal 2xx-S 201.D08",'Bilans-D08'!AS12,IF(Obliczenia!$D$58="Vitocal 2xx-S 201.D10",'Bilans-D10'!AS12,IF(Obliczenia!$D$58="Vitocal 2xx-S 201.D13",'Bilans-D13'!AS12,IF(Obliczenia!$D$58="Vitocal 2xx-S 201.D16",'Bilans-D16'!AS12,IF(Obliczenia!$D$58="Vitocal 15x-A 151.A10",'Bilans-151-A10'!AS12,IF(Obliczenia!$D$58="Vitocal 15x-A 151.A13",'Bilans-151-A13'!AS12,IF(Obliczenia!$D$58="Vitocal 15x-A 151.A16",'Bilans-151-A16'!AS12,IF(Obliczenia!$D$58="Vitocal 25x-A 251.A10",'Bilans-251-A10'!AS12,IF(Obliczenia!$D$58="Vitocal 25x-A 251.A13",'Bilans-251-A13'!AS12,IF(Obliczenia!$D$58="Vitocal 15x-A 151.A08",'Bilans-151-A08'!AS12,IF(Obliczenia!$D$58="Vitocal 15x-A 151.A06",'Bilans-151-A06'!AS12,IF(Obliczenia!$D$58="Vitocal 15x-A 151.A04",'Bilans-151-A04'!AS12,IF(Obliczenia!$D$58="Vitocal 25x-A 251.A04",'Bilans-251-A04'!AS12,IF(Obliczenia!$D$58="Vitocal 25x-A 251.A06",'Bilans-251-A06'!AS12,IF(Obliczenia!$D$58="Vitocal 25x-A 251.A08",'Bilans-251-A08'!AS12,IF(Obliczenia!$D$58="Vitocal 100-A 101.B06",'Bilans-AWO-B06'!AS12,IF(Obliczenia!$D$58="Vitocal 100-A 101.B08",'Bilans-AWO-B08'!AS12,IF(Obliczenia!$D$58="Vitocal 100-A 101.A10",'Bilans-AWO-A10'!AS12,IF(Obliczenia!$D$58="Vitocal 100-A 101.A12",'Bilans-AWO-A12'!AS12,IF(Obliczenia!$D$58="Vitocal 100-A 101.A14",'Bilans-AWO-A14'!AS12,IF(Obliczenia!$D$58="Vitocal 100-A 101.A16",'Bilans-AWO-A16'!AS12,IF(Obliczenia!$D$58="Vitocal 100-A 101.A18",'Bilans-AWO-A18'!AS12,"błąd"))))))))))))))))))))))))))))))))) -> 0 | AV12: =IF(Obliczenia!$D$58="Vitocal 2xx-S 201.E06",'Bilans-E06'!BJ12,IF(Obliczenia!$D$58="Vitocal 2xx-S 201.E08",'Bilans-E08'!BJ12,IF(Obliczenia!$D$58="Vitocal 2xx-S 201.E10",'Bilans-E10'!BJ12,IF(Obliczenia!$D$58="Vitocal 1xx-S 101.B04",'Bilans-B04'!BJ12,IF(Obliczenia!$D$58="Vitocal 1xx-S 101.B06",'Bilans-B06'!BJ12,IF(Obliczenia!$D$58="Vitocal 1xx-S 101.B08",'Bilans-B08'!BJ12,IF(Obliczenia!$D$58="Vitocal 1xx-S 101.A12",'Bilans-A12'!BJ12,IF(Obliczenia!$D$58="Vitocal 1xx-S 101.A14",'Bilans-A14'!BJ12,IF(Obliczenia!$D$58="Vitocal 1xx-S 101.A16",'Bilans-A16'!BJ12,IF(Obliczenia!$D$58="Vitocal 2xx-S 201.D04",'Bilans-D04'!BJ12,IF(Obliczenia!$D$58="Vitocal 2xx-S 201.D06",'Bilans-B06'!BJ12,IF(Obliczenia!$D$58="Vitocal 2xx-S 201.D08",'Bilans-D08'!BJ12,IF(Obliczenia!$D$58="Vitocal 2xx-S 201.D10",'Bilans-D10'!BJ12,IF(Obliczenia!$D$58="Vitocal 2xx-S 201.D13",'Bilans-D13'!BJ12,IF(Obliczenia!$D$58="Vitocal 2xx-S 201.D16",'Bilans-D16'!BJ12,IF(Obliczenia!$D$58="Vitocal 15x-A 151.A10",'Bilans-151-A10'!BJ12,IF(Obliczenia!$D$58="Vitocal 15x-A 151.A13",'Bilans-151-A13'!BJ12,IF(Obliczenia!$D$58="Vitocal 15x-A 151.A16",'Bilans-151-A16'!BJ12,IF(Obliczenia!$D$58="Vitocal 25x-A 251.A10",'Bilans-251-A10'!BJ12,IF(Obliczenia!$D$58="Vitocal 25x-A 251.A13",'Bilans-251-A13'!BJ12,IF(Obliczenia!$D$58="Vitocal 15x-A 151.A08",'Bilans-151-A08'!BJ12,IF(Obliczenia!$D$58="Vitocal 15x-A 151.A06",'Bilans-151-A06'!BJ12,IF(Obliczenia!$D$58="Vitocal 15x-A 151.A04",'Bilans-151-A04'!BJ12,IF(Obliczenia!$D$58="Vitocal 25x-A 251.A04",'Bilans-251-A04'!BJ12,IF(Obliczenia!$D$58="Vitocal 25x-A 251.A06",'Bilans-251-A06'!BJ12,IF(Obliczenia!$D$58="Vitocal 25x-A 251.A08",'Bilans-251-A08'!BJ12,IF(Obliczenia!$D$58="Vitocal 100-A 101.B06",'Bilans-AWO-B06'!BJ12,IF(Obliczenia!$D$58="Vitocal 100-A 101.B08",'Bilans-AWO-B08'!BJ12,IF(Obliczenia!$D$58="Vitocal 100-A 101.A10",'Bilans-AWO-A10'!BJ12,IF(Obliczenia!$D$58="Vitocal 100-A 101.A12",'Bilans-AWO-A12'!BJ12,IF(Obliczenia!$D$58="Vitocal 100-A 101.A14",'Bilans-AWO-A14'!BJ12,IF(Obliczenia!$D$58="Vitocal 100-A 101.A16",'Bilans-AWO-A16'!BJ12,IF(Obliczenia!$D$58="Vitocal 100-A 101.A18",'Bilans-AWO-A18'!BJ12,"błąd"))))))))))))))))))))))))))))))))) -> 84.22721951 | AW12: =IF(Obliczenia!$D$58="Vitocal 2xx-S 201.E06",'Bilans-E06'!BK12,IF(Obliczenia!$D$58="Vitocal 2xx-S 201.E08",'Bilans-E08'!BK12,IF(Obliczenia!$D$58="Vitocal 2xx-S 201.E10",'Bilans-E10'!BK12,IF(Obliczenia!$D$58="Vitocal 1xx-S 101.B04",'Bilans-B04'!BK12,IF(Obliczenia!$D$58="Vitocal 1xx-S 101.B06",'Bilans-B06'!BK12,IF(Obliczenia!$D$58="Vitocal 1xx-S 101.B08",'Bilans-B08'!BK12,IF(Obliczenia!$D$58="Vitocal 1xx-S 101.A12",'Bilans-A12'!BK12,IF(Obliczenia!$D$58="Vitocal 1xx-S 101.A14",'Bilans-A14'!BK12,IF(Obliczenia!$D$58="Vitocal 1xx-S 101.A16",'Bilans-A16'!BK12,IF(Obliczenia!$D$58="Vitocal 2xx-S 201.D04",'Bilans-D04'!BK12,IF(Obliczenia!$D$58="Vitocal 2xx-S 201.D06",'Bilans-B06'!BK12,IF(Obliczenia!$D$58="Vitocal 2xx-S 201.D08",'Bilans-D08'!BK12,IF(Obliczenia!$D$58="Vitocal 2xx-S 201.D10",'Bilans-D10'!BK12,IF(Obliczenia!$D$58="Vitocal 2xx-S 201.D13",'Bilans-D13'!BK12,IF(Obliczenia!$D$58="Vitocal 2xx-S 201.D16",'Bilans-D16'!BK12,IF(Obliczenia!$D$58="Vitocal 15x-A 151.A10",'Bilans-151-A10'!BK12,IF(Obliczenia!$D$58="Vitocal 15x-A 151.A13",'Bilans-151-A13'!BK12,IF(Obliczenia!$D$58="Vitocal 15x-A 151.A16",'Bilans-151-A16'!BK12,IF(Obliczenia!$D$58="Vitocal 25x-A 251.A10",'Bilans-251-A10'!BK12,IF(Obliczenia!$D$58="Vitocal 25x-A 251.A13",'Bilans-251-A13'!BK12,IF(Obliczenia!$D$58="Vitocal 15x-A 151.A08",'Bilans-151-A08'!BK12,IF(Obliczenia!$D$58="Vitocal 15x-A 151.A06",'Bilans-151-A06'!BK12,IF(Obliczenia!$D$58="Vitocal 15x-A 151.A04",'Bilans-151-A04'!BK12,IF(Obliczenia!$D$58="Vitocal 25x-A 251.A04",'Bilans-251-A04'!BK12,IF(Obliczenia!$D$58="Vitocal 25x-A 251.A06",'Bilans-251-A06'!BK12,IF(Obliczenia!$D$58="Vitocal 25x-A 251.A08",'Bilans-251-A08'!BK12,IF(Obliczenia!$D$58="Vitocal 100-A 101.B06",'Bilans-AWO-B06'!BK12,IF(Obliczenia!$D$58="Vitocal 100-A 101.B08",'Bilans-AWO-B08'!BK12,IF(Obliczenia!$D$58="Vitocal 100-A 101.A10",'Bilans-AWO-A10'!BK12,IF(Obliczenia!$D$58="Vitocal 100-A 101.A12",'Bilans-AWO-A12'!BK12,IF(Obliczenia!$D$58="Vitocal 100-A 101.A14",'Bilans-AWO-A14'!BK12,IF(Obliczenia!$D$58="Vitocal 100-A 101.A16",'Bilans-AWO-A16'!BK12,IF(Obliczenia!$D$58="Vitocal 100-A 101.A18",'Bilans-AWO-A18'!BK12,"błąd"))))))))))))))))))))))))))))))))) -> 0 | AZ12: =IF(Obliczenia!$D$58="Vitocal 15x-A 151.A10",'Bilans-151-A10'!CK12,IF(Obliczenia!$D$58="Vitocal 15x-A 151.A13",'Bilans-151-A13'!CK12,IF(Obliczenia!$D$58="Vitocal 15x-A 151.A16",'Bilans-151-A16'!CK12,IF(Obliczenia!$D$58="Vitocal 25x-A 251.A10",'Bilans-251-A10'!CK12,IF(Obliczenia!$D$58="Vitocal 25x-A 251.A13",'Bilans-251-A13'!CK12,IF(Obliczenia!$D$58="Vitocal 15x-A 151.A08",'Bilans-151-A08'!CK12,IF(Obliczenia!$D$58="Vitocal 15x-A 151.A06",'Bilans-151-A06'!CK12,IF(Obliczenia!$D$58="Vitocal 15x-A 151.A04",'Bilans-151-A04'!CK12,IF(Obliczenia!$D$58="Vitocal 25x-A 251.A04",'Bilans-251-A04'!CK12,IF(Obliczenia!$D$58="Vitocal 25x-A 251.A06",'Bilans-251-A06'!CK12,IF(Obliczenia!$D$58="Vitocal 25x-A 251.A08",'Bilans-251-A08'!CK12,"błąd"))))))))))) -> błąd | BA12: =IF(Obliczenia!$D$58="Vitocal 15x-A 151.A10",'Bilans-151-A10'!CL12,IF(Obliczenia!$D$58="Vitocal 15x-A 151.A13",'Bilans-151-A13'!CL12,IF(Obliczenia!$D$58="Vitocal 15x-A 151.A16",'Bilans-151-A16'!CL12,IF(Obliczenia!$D$58="Vitocal 25x-A 251.A10",'Bilans-251-A10'!CL12,IF(Obliczenia!$D$58="Vitocal 25x-A 251.A13",'Bilans-251-A13'!CL12,IF(Obliczenia!$D$58="Vitocal 15x-A 151.A08",'Bilans-151-A08'!CL12,IF(Obliczenia!$D$58="Vitocal 15x-A 151.A06",'Bilans-151-A06'!CL12,IF(Obliczenia!$D$58="Vitocal 15x-A 151.A04",'Bilans-151-A04'!CL12,IF(Obliczenia!$D$58="Vitocal 25x-A 251.A04",'Bilans-251-A04'!CL12,IF(Obliczenia!$D$58="Vitocal 25x-A 251.A06",'Bilans-251-A06'!CL12,IF(Obliczenia!$D$58="Vitocal 25x-A 251.A08",'Bilans-251-A08'!CL12,"błąd"))))))))))) -> błąd | BE12: VTS70 | BF12: =IF(Obliczenia!$D$58="Vitocal 15x-A 151.A10",'151.A10'!D54,IF(Obliczenia!$D$58="Vitocal 15x-A 151.A13",'151.A13'!D54,IF(Obliczenia!$D$58="Vitocal 15x-A 151.A16",'151.A16'!D54,IF(Obliczenia!$D$58="Vitocal 25x-A 251.A10",'251.A10'!D54,IF(Obliczenia!$D$58="Vitocal 25x-A 251.A13",'251.A13'!D54,IF(Obliczenia!$D$58="Vitocal 15x-A 151.A08",'151.A08'!D54,IF(Obliczenia!$D$58="Vitocal 15x-A 151.A06",'151.A06'!D54,IF(Obliczenia!$D$58="Vitocal 15x-A 151.A04",'151.A04'!D54,IF(Obliczenia!$D$58="Vitocal 25x-A 251.A08",'251.A08'!D54,IF(Obliczenia!$D$58="Vitocal 25x-A 251.A06",'251.A06'!D54,IF(Obliczenia!$D$58="Vitocal 25x-A 251.A04",'251.A04'!D54,"błąd"))))))))))) -> błąd | BG12: =IF(Obliczenia!$D$58="Vitocal 15x-A 151.A10",'151.A10'!E54,IF(Obliczenia!$D$58="Vitocal 15x-A 151.A13",'151.A13'!E54,IF(Obliczenia!$D$58="Vitocal 15x-A 151.A16",'151.A16'!E54,IF(Obliczenia!$D$58="Vitocal 25x-A 251.A10",'251.A10'!E54,IF(Obliczenia!$D$58="Vitocal 25x-A 251.A13",'251.A13'!E54,IF(Obliczenia!$D$58="Vitocal 15x-A 151.A08",'151.A08'!E54,IF(Obliczenia!$D$58="Vitocal 15x-A 151.A06",'151.A06'!E54,IF(Obliczenia!$D$58="Vitocal 15x-A 151.A04",'151.A04'!E54,IF(Obliczenia!$D$58="Vitocal 25x-A 251.A08",'251.A08'!E54,IF(Obliczenia!$D$58="Vitocal 25x-A 251.A06",'251.A06'!E54,IF(Obliczenia!$D$58="Vitocal 25x-A 251.A04",'251.A04'!E54,"błąd"))))))))))) -> błąd | BH12: =IF(Obliczenia!$D$58="Vitocal 15x-A 151.A10",'151.A10'!F54,IF(Obliczenia!$D$58="Vitocal 15x-A 151.A13",'151.A13'!F54,IF(Obliczenia!$D$58="Vitocal 15x-A 151.A16",'151.A16'!F54,IF(Obliczenia!$D$58="Vitocal 25x-A 251.A10",'251.A10'!F54,IF(Obliczenia!$D$58="Vitocal 25x-A 251.A13",'251.A13'!F54,IF(Obliczenia!$D$58="Vitocal 15x-A 151.A08",'151.A08'!F54,IF(Obliczenia!$D$58="Vitocal 15x-A 151.A06",'151.A06'!F54,IF(Obliczenia!$D$58="Vitocal 15x-A 151.A04",'151.A04'!F54,IF(Obliczenia!$D$58="Vitocal 25x-A 251.A08",'251.A08'!F54,IF(Obliczenia!$D$58="Vitocal 25x-A 251.A06",'251.A06'!F54,IF(Obliczenia!$D$58="Vitocal 25x-A 251.A04",'251.A04'!F54,"błąd"))))))))))) -> błąd | BI12: =IF(Obliczenia!$D$58="Vitocal 15x-A 151.A10",'151.A10'!G54,IF(Obliczenia!$D$58="Vitocal 15x-A 151.A13",'151.A13'!G54,IF(Obliczenia!$D$58="Vitocal 15x-A 151.A16",'151.A16'!G54,IF(Obliczenia!$D$58="Vitocal 25x-A 251.A10",'251.A10'!G54,IF(Obliczenia!$D$58="Vitocal 25x-A 251.A13",'251.A13'!G54,IF(Obliczenia!$D$58="Vitocal 15x-A 151.A08",'151.A08'!G54,IF(Obliczenia!$D$58="Vitocal 15x-A 151.A06",'151.A06'!G54,IF(Obliczenia!$D$58="Vitocal 15x-A 151.A04",'151.A04'!G54,IF(Obliczenia!$D$58="Vitocal 25x-A 251.A08",'251.A08'!G54,IF(Obliczenia!$D$58="Vitocal 25x-A 251.A06",'251.A06'!G54,IF(Obliczenia!$D$58="Vitocal 25x-A 251.A04",'251.A04'!G54,"błąd"))))))))))) -> błąd | BJ12: =IF(Obliczenia!$D$58="Vitocal 15x-A 151.A10",'151.A10'!H54,IF(Obliczenia!$D$58="Vitocal 15x-A 151.A13",'151.A13'!H54,IF(Obliczenia!$D$58="Vitocal 15x-A 151.A16",'151.A16'!H54,IF(Obliczenia!$D$58="Vitocal 25x-A 251.A10",'251.A10'!H54,IF(Obliczenia!$D$58="Vitocal 25x-A 251.A13",'251.A13'!H54,IF(Obliczenia!$D$58="Vitocal 15x-A 151.A08",'151.A08'!H54,IF(Obliczenia!$D$58="Vitocal 15x-A 151.A06",'151.A06'!H54,IF(Obliczenia!$D$58="Vitocal 15x-A 151.A04",'151.A04'!H54,IF(Obliczenia!$D$58="Vitocal 25x-A 251.A08",'251.A08'!H54,IF(Obliczenia!$D$58="Vitocal 25x-A 251.A06",'251.A06'!H54,IF(Obliczenia!$D$58="Vitocal 25x-A 251.A04",'251.A04'!H54,"błąd"))))))))))) -> błąd | BK12: =IF(Obliczenia!$D$58="Vitocal 15x-A 151.A10",'151.A10'!I54,IF(Obliczenia!$D$58="Vitocal 15x-A 151.A13",'151.A13'!I54,IF(Obliczenia!$D$58="Vitocal 15x-A 151.A16",'151.A16'!I54,IF(Obliczenia!$D$58="Vitocal 25x-A 251.A10",'251.A10'!I54,IF(Obliczenia!$D$58="Vitocal 25x-A 251.A13",'251.A13'!I54,IF(Obliczenia!$D$58="Vitocal 15x-A 151.A08",'151.A08'!I54,IF(Obliczenia!$D$58="Vitocal 15x-A 151.A06",'151.A06'!I54,IF(Obliczenia!$D$58="Vitocal 15x-A 151.A04",'151.A04'!I54,IF(Obliczenia!$D$58="Vitocal 25x-A 251.A08",'251.A08'!I54,IF(Obliczenia!$D$58="Vitocal 25x-A 251.A06",'251.A06'!I54,IF(Obliczenia!$D$58="Vitocal 25x-A 251.A04",'251.A04'!I54,"błąd"))))))))))) -> błąd | BL12: =IF(Obliczenia!$D$58="Vitocal 15x-A 151.A10",'151.A10'!J54,IF(Obliczenia!$D$58="Vitocal 15x-A 151.A13",'151.A13'!J54,IF(Obliczenia!$D$58="Vitocal 15x-A 151.A16",'151.A16'!J54,IF(Obliczenia!$D$58="Vitocal 25x-A 251.A10",'251.A10'!J54,IF(Obliczenia!$D$58="Vitocal 25x-A 251.A13",'251.A13'!J54,IF(Obliczenia!$D$58="Vitocal 15x-A 151.A08",'151.A08'!J54,IF(Obliczenia!$D$58="Vitocal 15x-A 151.A06",'151.A06'!J54,IF(Obliczenia!$D$58="Vitocal 15x-A 151.A04",'151.A04'!J54,IF(Obliczenia!$D$58="Vitocal 25x-A 251.A08",'251.A08'!J54,IF(Obliczenia!$D$58="Vitocal 25x-A 251.A06",'251.A06'!J54,IF(Obliczenia!$D$58="Vitocal 25x-A 251.A04",'251.A04'!J54,"błąd"))))))))))) -> błąd | BM12: =IF(Obliczenia!$D$58="Vitocal 15x-A 151.A10",'151.A10'!K54,IF(Obliczenia!$D$58="Vitocal 15x-A 151.A13",'151.A13'!K54,IF(Obliczenia!$D$58="Vitocal 15x-A 151.A16",'151.A16'!K54,IF(Obliczenia!$D$58="Vitocal 25x-A 251.A10",'251.A10'!K54,IF(Obliczenia!$D$58="Vitocal 25x-A 251.A13",'251.A13'!K54,IF(Obliczenia!$D$58="Vitocal 15x-A 151.A08",'151.A08'!K54,IF(Obliczenia!$D$58="Vitocal 15x-A 151.A06",'151.A06'!K54,IF(Obliczenia!$D$58="Vitocal 15x-A 151.A04",'151.A04'!K54,IF(Obliczenia!$D$58="Vitocal 25x-A 251.A08",'251.A08'!K54,IF(Obliczenia!$D$58="Vitocal 25x-A 251.A06",'251.A06'!K54,IF(Obliczenia!$D$58="Vitocal 25x-A 251.A04",'251.A04'!K54,"błąd"))))))))))) -> błąd | BN12: =IF(Obliczenia!$D$58="Vitocal 15x-A 151.A10",'151.A10'!L54,IF(Obliczenia!$D$58="Vitocal 15x-A 151.A13",'151.A13'!L54,IF(Obliczenia!$D$58="Vitocal 15x-A 151.A16",'151.A16'!L54,IF(Obliczenia!$D$58="Vitocal 25x-A 251.A10",'251.A10'!L54,IF(Obliczenia!$D$58="Vitocal 25x-A 251.A13",'251.A13'!L54,IF(Obliczenia!$D$58="Vitocal 15x-A 151.A08",'151.A08'!L54,IF(Obliczenia!$D$58="Vitocal 15x-A 151.A06",'151.A06'!L54,IF(Obliczenia!$D$58="Vitocal 15x-A 151.A04",'151.A04'!L54,IF(Obliczenia!$D$58="Vitocal 25x-A 251.A08",'251.A08'!L54,IF(Obliczenia!$D$58="Vitocal 25x-A 251.A06",'251.A06'!L54,IF(Obliczenia!$D$58="Vitocal 25x-A 251.A04",'251.A04'!L54,"błąd"))))))))))) -> błąd | BO12: =IF(Obliczenia!$D$58="Vitocal 15x-A 151.A10",'151.A10'!M54,IF(Obliczenia!$D$58="Vitocal 15x-A 151.A13",'151.A13'!M54,IF(Obliczenia!$D$58="Vitocal 15x-A 151.A16",'151.A16'!M54,IF(Obliczenia!$D$58="Vitocal 25x-A 251.A10",'251.A10'!M54,IF(Obliczenia!$D$58="Vitocal 25x-A 251.A13",'251.A13'!M54,IF(Obliczenia!$D$58="Vitocal 15x-A 151.A08",'151.A08'!M54,IF(Obliczenia!$D$58="Vitocal 15x-A 151.A06",'151.A06'!M54,IF(Obliczenia!$D$58="Vitocal 15x-A 151.A04",'151.A04'!M54,IF(Obliczenia!$D$58="Vitocal 25x-A 251.A08",'251.A08'!M54,IF(Obliczenia!$D$58="Vitocal 25x-A 251.A06",'251.A06'!M54,IF(Obliczenia!$D$58="Vitocal 25x-A 251.A04",'251.A04'!M54,"błąd"))))))))))) -> błąd | BW12: Vitocal 100-S AWB-M-E(-AC) 101.B04 | BX12: ='B04'!B25 -> 26907 | BY12: ='Bilans-B04'!G7 -> 3.257357845 | BZ12: 8260.375826 | CA12: 8260.375826 | CK12: -6.879166667 | CL12: -8.741666667
A13: 8 | B13: 4.3 | C13: 4.3 | E13: 7 | F13: =AVERAGE(C151:C174) -> -6.541666667 | H13: =F13*Budynek!$D$31+Budynek!$D$32 -> 29.953125 | J13: =Budynek!$D$4*(Dane!$E$12-F13)*12/1000 -> 44.81902439 | L13: =Budynek!$D$4*(Dane!$E$13-F13)*12/1000 -> 38.3097561 | N13: 83.12878049 | P13: 83.12878049 | Q13: 83.12878049 | R13: 83.12878049 | S13: 83.12878049 | T13: 7.11627907 | AA13: =IF(Obliczenia!$D$58="Vitocal 2xx-S 201.E06",'Bilans-E06'!Z13,IF(Obliczenia!$D$58="Vitocal 2xx-S 201.E08",'Bilans-E08'!Z13,IF(Obliczenia!$D$58="Vitocal 2xx-S 201.E10",'Bilans-E10'!Z13,IF(Obliczenia!$D$58="Vitocal 1xx-S 101.B04",'Bilans-B04'!Z13,IF(Obliczenia!$D$58="Vitocal 1xx-S 101.B06",'Bilans-B06'!Z13,IF(Obliczenia!$D$58="Vitocal 1xx-S 101.B08",'Bilans-B08'!Z13,IF(Obliczenia!$D$58="Vitocal 1xx-S 101.A12",'Bilans-A12'!Z13,IF(Obliczenia!$D$58="Vitocal 1xx-S 101.A14",'Bilans-A14'!Z13,IF(Obliczenia!$D$58="Vitocal 1xx-S 101.A16",'Bilans-A16'!Z13,IF(Obliczenia!$D$58="Vitocal 2xx-S 201.D04",'Bilans-D04'!Z13,IF(Obliczenia!$D$58="Vitocal 2xx-S 201.D06",'Bilans-B06'!Z13,IF(Obliczenia!$D$58="Vitocal 2xx-S 201.D08",'Bilans-D08'!Z13,IF(Obliczenia!$D$58="Vitocal 2xx-S 201.D10",'Bilans-D10'!Z13,IF(Obliczenia!$D$58="Vitocal 2xx-S 201.D13",'Bilans-D13'!Z13,IF(Obliczenia!$D$58="Vitocal 2xx-S 201.D16",'Bilans-D16'!Z13,IF(Obliczenia!$D$58="Vitocal 15x-A 151.A10",'Bilans-151-A10'!Z13,IF(Obliczenia!$D$58="Vitocal 15x-A 151.A13",'Bilans-151-A13'!Z13,IF(Obliczenia!$D$58="Vitocal 15x-A 151.A16",'Bilans-151-A16'!Z13,IF(Obliczenia!$D$58="Vitocal 15x-A 151.A16",'Bilans-151-A16'!Z13,IF(Obliczenia!$D$58="Vitocal 25x-A 251.A10",'Bilans-251-A10'!Z13,IF(Obliczenia!$D$58="Vitocal 25x-A 251.A13",'Bilans-251-A13'!Z13,IF(Obliczenia!$D$58="Vitocal 15x-A 151.A06",'Bilans-151-A06'!Z13,IF(Obliczenia!$D$58="Vitocal 15x-A 151.A08",'Bilans-151-A08'!Z13,IF(Obliczenia!$D$58="Vitocal 15x-A 151.A04",'Bilans-151-A04'!Z13,IF(Obliczenia!$D$58="Vitocal 25x-A 251.A04",'Bilans-251-A04'!Z13,IF(Obliczenia!$D$58="Vitocal 25x-A 251.A06",'Bilans-251-A06'!Z13,IF(Obliczenia!$D$58="Vitocal 25x-A 251.A08",'Bilans-251-A08'!Z13,IF(Obliczenia!$D$58="Vitocal 100-A 101.B06",'Bilans-AWO-B06'!Z13,IF(Obliczenia!$D$58="Vitocal 100-A 101.B08",'Bilans-AWO-B08'!Z13,IF(Obliczenia!$D$58="Vitocal 100-A 101.A10",'Bilans-AWO-A10'!Z13,IF(Obliczenia!$D$58="Vitocal 100-A 101.A12",'Bilans-AWO-A12'!Z13,IF(Obliczenia!$D$58="Vitocal 100-A 101.A14",'Bilans-AWO-A14'!Z13,IF(Obliczenia!$D$58="Vitocal 100-A 101.A16",'Bilans-AWO-A16'!Z13,IF(Obliczenia!$D$58="Vitocal 100-A 101.A18",'Bilans-AWO-A18'!Z13,"błąd")))))))))))))))))))))))))))))))))) -> 83.12878049 | AB13: =IF(Obliczenia!$D$58="Vitocal 2xx-S 201.E06",'Bilans-E06'!AA13,IF(Obliczenia!$D$58="Vitocal 2xx-S 201.E08",'Bilans-E08'!AA13,IF(Obliczenia!$D$58="Vitocal 2xx-S 201.E10",'Bilans-E10'!AA13,IF(Obliczenia!$D$58="Vitocal 1xx-S 101.B04",'Bilans-B04'!AA13,IF(Obliczenia!$D$58="Vitocal 1xx-S 101.B06",'Bilans-B06'!AA13,IF(Obliczenia!$D$58="Vitocal 1xx-S 101.B08",'Bilans-B08'!AA13,IF(Obliczenia!$D$58="Vitocal 1xx-S 101.A12",'Bilans-A12'!AA13,IF(Obliczenia!$D$58="Vitocal 1xx-S 101.A14",'Bilans-A14'!AA13,IF(Obliczenia!$D$58="Vitocal 1xx-S 101.A16",'Bilans-A16'!AA13,IF(Obliczenia!$D$58="Vitocal 2xx-S 201.D04",'Bilans-D04'!AA13,IF(Obliczenia!$D$58="Vitocal 2xx-S 201.D06",'Bilans-B06'!AA13,IF(Obliczenia!$D$58="Vitocal 2xx-S 201.D08",'Bilans-D08'!AA13,IF(Obliczenia!$D$58="Vitocal 2xx-S 201.D10",'Bilans-D10'!AA13,IF(Obliczenia!$D$58="Vitocal 2xx-S 201.D13",'Bilans-D13'!AA13,IF(Obliczenia!$D$58="Vitocal 2xx-S 201.D16",'Bilans-D16'!AA13,IF(Obliczenia!$D$58="Vitocal 15x-A 151.A10",'Bilans-151-A10'!AA13,IF(Obliczenia!$D$58="Vitocal 15x-A 151.A13",'Bilans-151-A13'!AA13,IF(Obliczenia!$D$58="Vitocal 15x-A 151.A16",'Bilans-151-A16'!AA13,IF(Obliczenia!$D$58="Vitocal 15x-A 151.A16",'Bilans-151-A16'!AA13,IF(Obliczenia!$D$58="Vitocal 25x-A 251.A10",'Bilans-251-A10'!AA13,IF(Obliczenia!$D$58="Vitocal 25x-A 251.A13",'Bilans-251-A13'!AA13,IF(Obliczenia!$D$58="Vitocal 15x-A 151.A08",'Bilans-151-A08'!AA13,IF(Obliczenia!$D$58="Vitocal 15x-A 151.A06",'Bilans-151-A06'!AA13,IF(Obliczenia!$D$58="Vitocal 15x-A 151.A04",'Bilans-151-A04'!AA13,IF(Obliczenia!$D$58="Vitocal 25x-A 251.A04",'Bilans-251-A04'!AA13,IF(Obliczenia!$D$58="Vitocal 25x-A 251.A06",'Bilans-251-A06'!AA13,IF(Obliczenia!$D$58="Vitocal 25x-A 251.A08",'Bilans-251-A08'!AA13,IF(Obliczenia!$D$58="Vitocal 100-A 101.B06",'Bilans-AWO-B06'!AA13,IF(Obliczenia!$D$58="Vitocal 100-A 101.B08",'Bilans-AWO-B08'!AA13,IF(Obliczenia!$D$58="Vitocal 100-A 101.A10",'Bilans-AWO-A10'!AA13,IF(Obliczenia!$D$58="Vitocal 100-A 101.A12",'Bilans-AWO-A12'!AA13,IF(Obliczenia!$D$58="Vitocal 100-A 101.A14",'Bilans-AWO-A14'!AA13,IF(Obliczenia!$D$58="Vitocal 100-A 101.A16",'Bilans-AWO-A16'!AA13,IF(Obliczenia!$D$58="Vitocal 100-A 101.A18",'Bilans-AWO-A18'!AA13,"błąd")))))))))))))))))))))))))))))))))) -> 0 | AE13: A16 | AF13: ='A16'!B28 -> 15.4839852 | AG13: 1 | AI13: =IF($C$3="Ogrzewanie podłogowe",AA13,IF($C$3="Grzejniki niskotemperaturowe 55/45",AR13,IF($C$3="Grzejniki wysokotemperaturowe 70/55",AZ13,AV13))) -> 83.12878049 | AJ13: 0 | AR13: =IF(Obliczenia!$D$58="Vitocal 2xx-S 201.E06",'Bilans-E06'!AR13,IF(Obliczenia!$D$58="Vitocal 2xx-S 201.E08",'Bilans-E08'!AR13,IF(Obliczenia!$D$58="Vitocal 2xx-S 201.E10",'Bilans-E10'!AR13,IF(Obliczenia!$D$58="Vitocal 1xx-S 101.B04",'Bilans-B04'!AR13,IF(Obliczenia!$D$58="Vitocal 1xx-S 101.B06",'Bilans-B06'!AR13,IF(Obliczenia!$D$58="Vitocal 1xx-S 101.B08",'Bilans-B08'!AR13,IF(Obliczenia!$D$58="Vitocal 1xx-S 101.A12",'Bilans-A12'!AR13,IF(Obliczenia!$D$58="Vitocal 1xx-S 101.A14",'Bilans-A14'!AR13,IF(Obliczenia!$D$58="Vitocal 1xx-S 101.A16",'Bilans-A16'!AR13,IF(Obliczenia!$D$58="Vitocal 2xx-S 201.D04",'Bilans-D04'!AR13,IF(Obliczenia!$D$58="Vitocal 2xx-S 201.D06",'Bilans-B06'!AR13,IF(Obliczenia!$D$58="Vitocal 2xx-S 201.D08",'Bilans-D08'!AR13,IF(Obliczenia!$D$58="Vitocal 2xx-S 201.D10",'Bilans-D10'!AR13,IF(Obliczenia!$D$58="Vitocal 2xx-S 201.D13",'Bilans-D13'!AR13,IF(Obliczenia!$D$58="Vitocal 2xx-S 201.D16",'Bilans-D16'!AR13,IF(Obliczenia!$D$58="Vitocal 15x-A 151.A10",'Bilans-151-A10'!AR13,IF(Obliczenia!$D$58="Vitocal 15x-A 151.A13",'Bilans-151-A13'!AR13,IF(Obliczenia!$D$58="Vitocal 15x-A 151.A16",'Bilans-151-A16'!AR13,IF(Obliczenia!$D$58="Vitocal 25x-A 251.A10",'Bilans-251-A10'!AR13,IF(Obliczenia!$D$58="Vitocal 25x-A 251.A13",'Bilans-251-A13'!AR13,IF(Obliczenia!$D$58="Vitocal 15x-A 151.A08",'Bilans-151-A08'!AR13,IF(Obliczenia!$D$58="Vitocal 15x-A 151.A06",'Bilans-151-A06'!AR13,IF(Obliczenia!$D$58="Vitocal 15x-A 151.A04",'Bilans-151-A04'!AR13,IF(Obliczenia!$D$58="Vitocal 25x-A 251.A04",'Bilans-251-A04'!AR13,IF(Obliczenia!$D$58="Vitocal 25x-A 251.A06",'Bilans-251-A06'!AR13,IF(Obliczenia!$D$58="Vitocal 25x-A 251.A08",'Bilans-251-A08'!AR13,IF(Obliczenia!$D$58="Vitocal 100-A 101.B06",'Bilans-AWO-B06'!AR13,IF(Obliczenia!$D$58="Vitocal 100-A 101.B08",'Bilans-AWO-B08'!AR13,IF(Obliczenia!$D$58="Vitocal 100-A 101.A10",'Bilans-AWO-A10'!AR13,IF(Obliczenia!$D$58="Vitocal 100-A 101.A12",'Bilans-AWO-A12'!AR13,IF(Obliczenia!$D$58="Vitocal 100-A 101.A14",'Bilans-AWO-A14'!AR13,IF(Obliczenia!$D$58="Vitocal 100-A 101.A16",'Bilans-AWO-A16'!AR13,IF(Obliczenia!$D$58="Vitocal 100-A 101.A18",'Bilans-AWO-A18'!AR13,"błąd"))))))))))))))))))))))))))))))))) -> 83.12878049 | AS13: =IF(Obliczenia!$D$58="Vitocal 2xx-S 201.E06",'Bilans-E06'!AS13,IF(Obliczenia!$D$58="Vitocal 2xx-S 201.E08",'Bilans-E08'!AS13,IF(Obliczenia!$D$58="Vitocal 2xx-S 201.E10",'Bilans-E10'!AS13,IF(Obliczenia!$D$58="Vitocal 1xx-S 101.B04",'Bilans-B04'!AS13,IF(Obliczenia!$D$58="Vitocal 1xx-S 101.B06",'Bilans-B06'!AS13,IF(Obliczenia!$D$58="Vitocal 1xx-S 101.B08",'Bilans-B08'!AS13,IF(Obliczenia!$D$58="Vitocal 1xx-S 101.A12",'Bilans-A12'!AS13,IF(Obliczenia!$D$58="Vitocal 1xx-S 101.A14",'Bilans-A14'!AS13,IF(Obliczenia!$D$58="Vitocal 1xx-S 101.A16",'Bilans-A16'!AS13,IF(Obliczenia!$D$58="Vitocal 2xx-S 201.D04",'Bilans-D04'!AS13,IF(Obliczenia!$D$58="Vitocal 2xx-S 201.D06",'Bilans-B06'!AS13,IF(Obliczenia!$D$58="Vitocal 2xx-S 201.D08",'Bilans-D08'!AS13,IF(Obliczenia!$D$58="Vitocal 2xx-S 201.D10",'Bilans-D10'!AS13,IF(Obliczenia!$D$58="Vitocal 2xx-S 201.D13",'Bilans-D13'!AS13,IF(Obliczenia!$D$58="Vitocal 2xx-S 201.D16",'Bilans-D16'!AS13,IF(Obliczenia!$D$58="Vitocal 15x-A 151.A10",'Bilans-151-A10'!AS13,IF(Obliczenia!$D$58="Vitocal 15x-A 151.A13",'Bilans-151-A13'!AS13,IF(Obliczenia!$D$58="Vitocal 15x-A 151.A16",'Bilans-151-A16'!AS13,IF(Obliczenia!$D$58="Vitocal 25x-A 251.A10",'Bilans-251-A10'!AS13,IF(Obliczenia!$D$58="Vitocal 25x-A 251.A13",'Bilans-251-A13'!AS13,IF(Obliczenia!$D$58="Vitocal 15x-A 151.A08",'Bilans-151-A08'!AS13,IF(Obliczenia!$D$58="Vitocal 15x-A 151.A06",'Bilans-151-A06'!AS13,IF(Obliczenia!$D$58="Vitocal 15x-A 151.A04",'Bilans-151-A04'!AS13,IF(Obliczenia!$D$58="Vitocal 25x-A 251.A04",'Bilans-251-A04'!AS13,IF(Obliczenia!$D$58="Vitocal 25x-A 251.A06",'Bilans-251-A06'!AS13,IF(Obliczenia!$D$58="Vitocal 25x-A 251.A08",'Bilans-251-A08'!AS13,IF(Obliczenia!$D$58="Vitocal 100-A 101.B06",'Bilans-AWO-B06'!AS13,IF(Obliczenia!$D$58="Vitocal 100-A 101.B08",'Bilans-AWO-B08'!AS13,IF(Obliczenia!$D$58="Vitocal 100-A 101.A10",'Bilans-AWO-A10'!AS13,IF(Obliczenia!$D$58="Vitocal 100-A 101.A12",'Bilans-AWO-A12'!AS13,IF(Obliczenia!$D$58="Vitocal 100-A 101.A14",'Bilans-AWO-A14'!AS13,IF(Obliczenia!$D$58="Vitocal 100-A 101.A16",'Bilans-AWO-A16'!AS13,IF(Obliczenia!$D$58="Vitocal 100-A 101.A18",'Bilans-AWO-A18'!AS13,"błąd"))))))))))))))))))))))))))))))))) -> 0 | AV13: =IF(Obliczenia!$D$58="Vitocal 2xx-S 201.E06",'Bilans-E06'!BJ13,IF(Obliczenia!$D$58="Vitocal 2xx-S 201.E08",'Bilans-E08'!BJ13,IF(Obliczenia!$D$58="Vitocal 2xx-S 201.E10",'Bilans-E10'!BJ13,IF(Obliczenia!$D$58="Vitocal 1xx-S 101.B04",'Bilans-B04'!BJ13,IF(Obliczenia!$D$58="Vitocal 1xx-S 101.B06",'Bilans-B06'!BJ13,IF(Obliczenia!$D$58="Vitocal 1xx-S 101.B08",'Bilans-B08'!BJ13,IF(Obliczenia!$D$58="Vitocal 1xx-S 101.A12",'Bilans-A12'!BJ13,IF(Obliczenia!$D$58="Vitocal 1xx-S 101.A14",'Bilans-A14'!BJ13,IF(Obliczenia!$D$58="Vitocal 1xx-S 101.A16",'Bilans-A16'!BJ13,IF(Obliczenia!$D$58="Vitocal 2xx-S 201.D04",'Bilans-D04'!BJ13,IF(Obliczenia!$D$58="Vitocal 2xx-S 201.D06",'Bilans-B06'!BJ13,IF(Obliczenia!$D$58="Vitocal 2xx-S 201.D08",'Bilans-D08'!BJ13,IF(Obliczenia!$D$58="Vitocal 2xx-S 201.D10",'Bilans-D10'!BJ13,IF(Obliczenia!$D$58="Vitocal 2xx-S 201.D13",'Bilans-D13'!BJ13,IF(Obliczenia!$D$58="Vitocal 2xx-S 201.D16",'Bilans-D16'!BJ13,IF(Obliczenia!$D$58="Vitocal 15x-A 151.A10",'Bilans-151-A10'!BJ13,IF(Obliczenia!$D$58="Vitocal 15x-A 151.A13",'Bilans-151-A13'!BJ13,IF(Obliczenia!$D$58="Vitocal 15x-A 151.A16",'Bilans-151-A16'!BJ13,IF(Obliczenia!$D$58="Vitocal 25x-A 251.A10",'Bilans-251-A10'!BJ13,IF(Obliczenia!$D$58="Vitocal 25x-A 251.A13",'Bilans-251-A13'!BJ13,IF(Obliczenia!$D$58="Vitocal 15x-A 151.A08",'Bilans-151-A08'!BJ13,IF(Obliczenia!$D$58="Vitocal 15x-A 151.A06",'Bilans-151-A06'!BJ13,IF(Obliczenia!$D$58="Vitocal 15x-A 151.A04",'Bilans-151-A04'!BJ13,IF(Obliczenia!$D$58="Vitocal 25x-A 251.A04",'Bilans-251-A04'!BJ13,IF(Obliczenia!$D$58="Vitocal 25x-A 251.A06",'Bilans-251-A06'!BJ13,IF(Obliczenia!$D$58="Vitocal 25x-A 251.A08",'Bilans-251-A08'!BJ13,IF(Obliczenia!$D$58="Vitocal 100-A 101.B06",'Bilans-AWO-B06'!BJ13,IF(Obliczenia!$D$58="Vitocal 100-A 101.B08",'Bilans-AWO-B08'!BJ13,IF(Obliczenia!$D$58="Vitocal 100-A 101.A10",'Bilans-AWO-A10'!BJ13,IF(Obliczenia!$D$58="Vitocal 100-A 101.A12",'Bilans-AWO-A12'!BJ13,IF(Obliczenia!$D$58="Vitocal 100-A 101.A14",'Bilans-AWO-A14'!BJ13,IF(Obliczenia!$D$58="Vitocal 100-A 101.A16",'Bilans-AWO-A16'!BJ13,IF(Obliczenia!$D$58="Vitocal 100-A 101.A18",'Bilans-AWO-A18'!BJ13,"błąd"))))))))))))))))))))))))))))))))) -> 83.12878049 | AW13: =IF(Obliczenia!$D$58="Vitocal 2xx-S 201.E06",'Bilans-E06'!BK13,IF(Obliczenia!$D$58="Vitocal 2xx-S 201.E08",'Bilans-E08'!BK13,IF(Obliczenia!$D$58="Vitocal 2xx-S 201.E10",'Bilans-E10'!BK13,IF(Obliczenia!$D$58="Vitocal 1xx-S 101.B04",'Bilans-B04'!BK13,IF(Obliczenia!$D$58="Vitocal 1xx-S 101.B06",'Bilans-B06'!BK13,IF(Obliczenia!$D$58="Vitocal 1xx-S 101.B08",'Bilans-B08'!BK13,IF(Obliczenia!$D$58="Vitocal 1xx-S 101.A12",'Bilans-A12'!BK13,IF(Obliczenia!$D$58="Vitocal 1xx-S 101.A14",'Bilans-A14'!BK13,IF(Obliczenia!$D$58="Vitocal 1xx-S 101.A16",'Bilans-A16'!BK13,IF(Obliczenia!$D$58="Vitocal 2xx-S 201.D04",'Bilans-D04'!BK13,IF(Obliczenia!$D$58="Vitocal 2xx-S 201.D06",'Bilans-B06'!BK13,IF(Obliczenia!$D$58="Vitocal 2xx-S 201.D08",'Bilans-D08'!BK13,IF(Obliczenia!$D$58="Vitocal 2xx-S 201.D10",'Bilans-D10'!BK13,IF(Obliczenia!$D$58="Vitocal 2xx-S 201.D13",'Bilans-D13'!BK13,IF(Obliczenia!$D$58="Vitocal 2xx-S 201.D16",'Bilans-D16'!BK13,IF(Obliczenia!$D$58="Vitocal 15x-A 151.A10",'Bilans-151-A10'!BK13,IF(Obliczenia!$D$58="Vitocal 15x-A 151.A13",'Bilans-151-A13'!BK13,IF(Obliczenia!$D$58="Vitocal 15x-A 151.A16",'Bilans-151-A16'!BK13,IF(Obliczenia!$D$58="Vitocal 25x-A 251.A10",'Bilans-251-A10'!BK13,IF(Obliczenia!$D$58="Vitocal 25x-A 251.A13",'Bilans-251-A13'!BK13,IF(Obliczenia!$D$58="Vitocal 15x-A 151.A08",'Bilans-151-A08'!BK13,IF(Obliczenia!$D$58="Vitocal 15x-A 151.A06",'Bilans-151-A06'!BK13,IF(Obliczenia!$D$58="Vitocal 15x-A 151.A04",'Bilans-151-A04'!BK13,IF(Obliczenia!$D$58="Vitocal 25x-A 251.A04",'Bilans-251-A04'!BK13,IF(Obliczenia!$D$58="Vitocal 25x-A 251.A06",'Bilans-251-A06'!BK13,IF(Obliczenia!$D$58="Vitocal 25x-A 251.A08",'Bilans-251-A08'!BK13,IF(Obliczenia!$D$58="Vitocal 100-A 101.B06",'Bilans-AWO-B06'!BK13,IF(Obliczenia!$D$58="Vitocal 100-A 101.B08",'Bilans-AWO-B08'!BK13,IF(Obliczenia!$D$58="Vitocal 100-A 101.A10",'Bilans-AWO-A10'!BK13,IF(Obliczenia!$D$58="Vitocal 100-A 101.A12",'Bilans-AWO-A12'!BK13,IF(Obliczenia!$D$58="Vitocal 100-A 101.A14",'Bilans-AWO-A14'!BK13,IF(Obliczenia!$D$58="Vitocal 100-A 101.A16",'Bilans-AWO-A16'!BK13,IF(Obliczenia!$D$58="Vitocal 100-A 101.A18",'Bilans-AWO-A18'!BK13,"błąd"))))))))))))))))))))))))))))))))) -> 0 | AZ13: =IF(Obliczenia!$D$58="Vitocal 15x-A 151.A10",'Bilans-151-A10'!CK13,IF(Obliczenia!$D$58="Vitocal 15x-A 151.A13",'Bilans-151-A13'!CK13,IF(Obliczenia!$D$58="Vitocal 15x-A 151.A16",'Bilans-151-A16'!CK13,IF(Obliczenia!$D$58="Vitocal 25x-A 251.A10",'Bilans-251-A10'!CK13,IF(Obliczenia!$D$58="Vitocal 25x-A 251.A13",'Bilans-251-A13'!CK13,IF(Obliczenia!$D$58="Vitocal 15x-A 151.A08",'Bilans-151-A08'!CK13,IF(Obliczenia!$D$58="Vitocal 15x-A 151.A06",'Bilans-151-A06'!CK13,IF(Obliczenia!$D$58="Vitocal 15x-A 151.A04",'Bilans-151-A04'!CK13,IF(Obliczenia!$D$58="Vitocal 25x-A 251.A04",'Bilans-251-A04'!CK13,IF(Obliczenia!$D$58="Vitocal 25x-A 251.A06",'Bilans-251-A06'!CK13,IF(Obliczenia!$D$58="Vitocal 25x-A 251.A08",'Bilans-251-A08'!CK13,"błąd"))))))))))) -> błąd | BA13: =IF(Obliczenia!$D$58="Vitocal 15x-A 151.A10",'Bilans-151-A10'!CL13,IF(Obliczenia!$D$58="Vitocal 15x-A 151.A13",'Bilans-151-A13'!CL13,IF(Obliczenia!$D$58="Vitocal 15x-A 151.A16",'Bilans-151-A16'!CL13,IF(Obliczenia!$D$58="Vitocal 25x-A 251.A10",'Bilans-251-A10'!CL13,IF(Obliczenia!$D$58="Vitocal 25x-A 251.A13",'Bilans-251-A13'!CL13,IF(Obliczenia!$D$58="Vitocal 15x-A 151.A08",'Bilans-151-A08'!CL13,IF(Obliczenia!$D$58="Vitocal 15x-A 151.A06",'Bilans-151-A06'!CL13,IF(Obliczenia!$D$58="Vitocal 15x-A 151.A04",'Bilans-151-A04'!CL13,IF(Obliczenia!$D$58="Vitocal 25x-A 251.A04",'Bilans-251-A04'!CL13,IF(Obliczenia!$D$58="Vitocal 25x-A 251.A06",'Bilans-251-A06'!CL13,IF(Obliczenia!$D$58="Vitocal 25x-A 251.A08",'Bilans-251-A08'!CL13,"błąd"))))))))))) -> błąd | BW13: Vitocal 100-S AWB-M-E(-AC) 101.B06 | BX13: ='B06'!B25 -> 28000 | BY13: ='Bilans-B06'!G7 -> 3.200533943 | BZ13: 8748.540244 | CA13: 8748.540244 | CD13: Na budynek | CK13: -6.541666667 | CL13: -7.65
A14: 9 | B14: 4.5 | C14: 4.5 | E14: 8 | F14: =AVERAGE(C175:C198) -> -3.658333333 | H14: =F14*Budynek!$D$31+Budynek!$D$32 -> 28.871875 | J14: =Budynek!$D$4*(Dane!$E$12-F14)*12/1000 -> 40.12692683 | L14: =Budynek!$D$4*(Dane!$E$13-F14)*12/1000 -> 33.61765854 | N14: 73.74458537 | P14: 73.74458537 | Q14: 73.74458537 | R14: 73.74458537 | S14: 73.74458537 | T14: 7.11627907 | AA14: =IF(Obliczenia!$D$58="Vitocal 2xx-S 201.E06",'Bilans-E06'!Z14,IF(Obliczenia!$D$58="Vitocal 2xx-S 201.E08",'Bilans-E08'!Z14,IF(Obliczenia!$D$58="Vitocal 2xx-S 201.E10",'Bilans-E10'!Z14,IF(Obliczenia!$D$58="Vitocal 1xx-S 101.B04",'Bilans-B04'!Z14,IF(Obliczenia!$D$58="Vitocal 1xx-S 101.B06",'Bilans-B06'!Z14,IF(Obliczenia!$D$58="Vitocal 1xx-S 101.B08",'Bilans-B08'!Z14,IF(Obliczenia!$D$58="Vitocal 1xx-S 101.A12",'Bilans-A12'!Z14,IF(Obliczenia!$D$58="Vitocal 1xx-S 101.A14",'Bilans-A14'!Z14,IF(Obliczenia!$D$58="Vitocal 1xx-S 101.A16",'Bilans-A16'!Z14,IF(Obliczenia!$D$58="Vitocal 2xx-S 201.D04",'Bilans-D04'!Z14,IF(Obliczenia!$D$58="Vitocal 2xx-S 201.D06",'Bilans-B06'!Z14,IF(Obliczenia!$D$58="Vitocal 2xx-S 201.D08",'Bilans-D08'!Z14,IF(Obliczenia!$D$58="Vitocal 2xx-S 201.D10",'Bilans-D10'!Z14,IF(Obliczenia!$D$58="Vitocal 2xx-S 201.D13",'Bilans-D13'!Z14,IF(Obliczenia!$D$58="Vitocal 2xx-S 201.D16",'Bilans-D16'!Z14,IF(Obliczenia!$D$58="Vitocal 15x-A 151.A10",'Bilans-151-A10'!Z14,IF(Obliczenia!$D$58="Vitocal 15x-A 151.A13",'Bilans-151-A13'!Z14,IF(Obliczenia!$D$58="Vitocal 15x-A 151.A16",'Bilans-151-A16'!Z14,IF(Obliczenia!$D$58="Vitocal 15x-A 151.A16",'Bilans-151-A16'!Z14,IF(Obliczenia!$D$58="Vitocal 25x-A 251.A10",'Bilans-251-A10'!Z14,IF(Obliczenia!$D$58="Vitocal 25x-A 251.A13",'Bilans-251-A13'!Z14,IF(Obliczenia!$D$58="Vitocal 15x-A 151.A06",'Bilans-151-A06'!Z14,IF(Obliczenia!$D$58="Vitocal 15x-A 151.A08",'Bilans-151-A08'!Z14,IF(Obliczenia!$D$58="Vitocal 15x-A 151.A04",'Bilans-151-A04'!Z14,IF(Obliczenia!$D$58="Vitocal 25x-A 251.A04",'Bilans-251-A04'!Z14,IF(Obliczenia!$D$58="Vitocal 25x-A 251.A06",'Bilans-251-A06'!Z14,IF(Obliczenia!$D$58="Vitocal 25x-A 251.A08",'Bilans-251-A08'!Z14,IF(Obliczenia!$D$58="Vitocal 100-A 101.B06",'Bilans-AWO-B06'!Z14,IF(Obliczenia!$D$58="Vitocal 100-A 101.B08",'Bilans-AWO-B08'!Z14,IF(Obliczenia!$D$58="Vitocal 100-A 101.A10",'Bilans-AWO-A10'!Z14,IF(Obliczenia!$D$58="Vitocal 100-A 101.A12",'Bilans-AWO-A12'!Z14,IF(Obliczenia!$D$58="Vitocal 100-A 101.A14",'Bilans-AWO-A14'!Z14,IF(Obliczenia!$D$58="Vitocal 100-A 101.A16",'Bilans-AWO-A16'!Z14,IF(Obliczenia!$D$58="Vitocal 100-A 101.A18",'Bilans-AWO-A18'!Z14,"błąd")))))))))))))))))))))))))))))))))) -> 73.74458537 | AB14: =IF(Obliczenia!$D$58="Vitocal 2xx-S 201.E06",'Bilans-E06'!AA14,IF(Obliczenia!$D$58="Vitocal 2xx-S 201.E08",'Bilans-E08'!AA14,IF(Obliczenia!$D$58="Vitocal 2xx-S 201.E10",'Bilans-E10'!AA14,IF(Obliczenia!$D$58="Vitocal 1xx-S 101.B04",'Bilans-B04'!AA14,IF(Obliczenia!$D$58="Vitocal 1xx-S 101.B06",'Bilans-B06'!AA14,IF(Obliczenia!$D$58="Vitocal 1xx-S 101.B08",'Bilans-B08'!AA14,IF(Obliczenia!$D$58="Vitocal 1xx-S 101.A12",'Bilans-A12'!AA14,IF(Obliczenia!$D$58="Vitocal 1xx-S 101.A14",'Bilans-A14'!AA14,IF(Obliczenia!$D$58="Vitocal 1xx-S 101.A16",'Bilans-A16'!AA14,IF(Obliczenia!$D$58="Vitocal 2xx-S 201.D04",'Bilans-D04'!AA14,IF(Obliczenia!$D$58="Vitocal 2xx-S 201.D06",'Bilans-B06'!AA14,IF(Obliczenia!$D$58="Vitocal 2xx-S 201.D08",'Bilans-D08'!AA14,IF(Obliczenia!$D$58="Vitocal 2xx-S 201.D10",'Bilans-D10'!AA14,IF(Obliczenia!$D$58="Vitocal 2xx-S 201.D13",'Bilans-D13'!AA14,IF(Obliczenia!$D$58="Vitocal 2xx-S 201.D16",'Bilans-D16'!AA14,IF(Obliczenia!$D$58="Vitocal 15x-A 151.A10",'Bilans-151-A10'!AA14,IF(Obliczenia!$D$58="Vitocal 15x-A 151.A13",'Bilans-151-A13'!AA14,IF(Obliczenia!$D$58="Vitocal 15x-A 151.A16",'Bilans-151-A16'!AA14,IF(Obliczenia!$D$58="Vitocal 15x-A 151.A16",'Bilans-151-A16'!AA14,IF(Obliczenia!$D$58="Vitocal 25x-A 251.A10",'Bilans-251-A10'!AA14,IF(Obliczenia!$D$58="Vitocal 25x-A 251.A13",'Bilans-251-A13'!AA14,IF(Obliczenia!$D$58="Vitocal 15x-A 151.A08",'Bilans-151-A08'!AA14,IF(Obliczenia!$D$58="Vitocal 15x-A 151.A06",'Bilans-151-A06'!AA14,IF(Obliczenia!$D$58="Vitocal 15x-A 151.A04",'Bilans-151-A04'!AA14,IF(Obliczenia!$D$58="Vitocal 25x-A 251.A04",'Bilans-251-A04'!AA14,IF(Obliczenia!$D$58="Vitocal 25x-A 251.A06",'Bilans-251-A06'!AA14,IF(Obliczenia!$D$58="Vitocal 25x-A 251.A08",'Bilans-251-A08'!AA14,IF(Obliczenia!$D$58="Vitocal 100-A 101.B06",'Bilans-AWO-B06'!AA14,IF(Obliczenia!$D$58="Vitocal 100-A 101.B08",'Bilans-AWO-B08'!AA14,IF(Obliczenia!$D$58="Vitocal 100-A 101.A10",'Bilans-AWO-A10'!AA14,IF(Obliczenia!$D$58="Vitocal 100-A 101.A12",'Bilans-AWO-A12'!AA14,IF(Obliczenia!$D$58="Vitocal 100-A 101.A14",'Bilans-AWO-A14'!AA14,IF(Obliczenia!$D$58="Vitocal 100-A 101.A16",'Bilans-AWO-A16'!AA14,IF(Obliczenia!$D$58="Vitocal 100-A 101.A18",'Bilans-AWO-A18'!AA14,"błąd")))))))))))))))))))))))))))))))))) -> 0 | AE14: A14 | AF14: ='A14'!B28 -> 15.1411196 | AG14: 1 | AI14: 73.74458537 | AJ14: 0 | AR14: =IF(Obliczenia!$D$58="Vitocal 2xx-S 201.E06",'Bilans-E06'!AR14,IF(Obliczenia!$D$58="Vitocal 2xx-S 201.E08",'Bilans-E08'!AR14,IF(Obliczenia!$D$58="Vitocal 2xx-S 201.E10",'Bilans-E10'!AR14,IF(Obliczenia!$D$58="Vitocal 1xx-S 101.B04",'Bilans-B04'!AR14,IF(Obliczenia!$D$58="Vitocal 1xx-S 101.B06",'Bilans-B06'!AR14,IF(Obliczenia!$D$58="Vitocal 1xx-S 101.B08",'Bilans-B08'!AR14,IF(Obliczenia!$D$58="Vitocal 1xx-S 101.A12",'Bilans-A12'!AR14,IF(Obliczenia!$D$58="Vitocal 1xx-S 101.A14",'Bilans-A14'!AR14,IF(Obliczenia!$D$58="Vitocal 1xx-S 101.A16",'Bilans-A16'!AR14,IF(Obliczenia!$D$58="Vitocal 2xx-S 201.D04",'Bilans-D04'!AR14,IF(Obliczenia!$D$58="Vitocal 2xx-S 201.D06",'Bilans-B06'!AR14,IF(Obliczenia!$D$58="Vitocal 2xx-S 201.D08",'Bilans-D08'!AR14,IF(Obliczenia!$D$58="Vitocal 2xx-S 201.D10",'Bilans-D10'!AR14,IF(Obliczenia!$D$58="Vitocal 2xx-S 201.D13",'Bilans-D13'!AR14,IF(Obliczenia!$D$58="Vitocal 2xx-S 201.D16",'Bilans-D16'!AR14,IF(Obliczenia!$D$58="Vitocal 15x-A 151.A10",'Bilans-151-A10'!AR14,IF(Obliczenia!$D$58="Vitocal 15x-A 151.A13",'Bilans-151-A13'!AR14,IF(Obliczenia!$D$58="Vitocal 15x-A 151.A16",'Bilans-151-A16'!AR14,IF(Obliczenia!$D$58="Vitocal 25x-A 251.A10",'Bilans-251-A10'!AR14,IF(Obliczenia!$D$58="Vitocal 25x-A 251.A13",'Bilans-251-A13'!AR14,IF(Obliczenia!$D$58="Vitocal 15x-A 151.A08",'Bilans-151-A08'!AR14,IF(Obliczenia!$D$58="Vitocal 15x-A 151.A06",'Bilans-151-A06'!AR14,IF(Obliczenia!$D$58="Vitocal 15x-A 151.A04",'Bilans-151-A04'!AR14,IF(Obliczenia!$D$58="Vitocal 25x-A 251.A04",'Bilans-251-A04'!AR14,IF(Obliczenia!$D$58="Vitocal 25x-A 251.A06",'Bilans-251-A06'!AR14,IF(Obliczenia!$D$58="Vitocal 25x-A 251.A08",'Bilans-251-A08'!AR14,IF(Obliczenia!$D$58="Vitocal 100-A 101.B06",'Bilans-AWO-B06'!AR14,IF(Obliczenia!$D$58="Vitocal 100-A 101.B08",'Bilans-AWO-B08'!AR14,IF(Obliczenia!$D$58="Vitocal 100-A 101.A10",'Bilans-AWO-A10'!AR14,IF(Obliczenia!$D$58="Vitocal 100-A 101.A12",'Bilans-AWO-A12'!AR14,IF(Obliczenia!$D$58="Vitocal 100-A 101.A14",'Bilans-AWO-A14'!AR14,IF(Obliczenia!$D$58="Vitocal 100-A 101.A16",'Bilans-AWO-A16'!AR14,IF(Obliczenia!$D$58="Vitocal 100-A 101.A18",'Bilans-AWO-A18'!AR14,"błąd"))))))))))))))))))))))))))))))))) -> 73.74458537 | AS14: =IF(Obliczenia!$D$58="Vitocal 2xx-S 201.E06",'Bilans-E06'!AS14,IF(Obliczenia!$D$58="Vitocal 2xx-S 201.E08",'Bilans-E08'!AS14,IF(Obliczenia!$D$58="Vitocal 2xx-S 201.E10",'Bilans-E10'!AS14,IF(Obliczenia!$D$58="Vitocal 1xx-S 101.B04",'Bilans-B04'!AS14,IF(Obliczenia!$D$58="Vitocal 1xx-S 101.B06",'Bilans-B06'!AS14,IF(Obliczenia!$D$58="Vitocal 1xx-S 101.B08",'Bilans-B08'!AS14,IF(Obliczenia!$D$58="Vitocal 1xx-S 101.A12",'Bilans-A12'!AS14,IF(Obliczenia!$D$58="Vitocal 1xx-S 101.A14",'Bilans-A14'!AS14,IF(Obliczenia!$D$58="Vitocal 1xx-S 101.A16",'Bilans-A16'!AS14,IF(Obliczenia!$D$58="Vitocal 2xx-S 201.D04",'Bilans-D04'!AS14,IF(Obliczenia!$D$58="Vitocal 2xx-S 201.D06",'Bilans-B06'!AS14,IF(Obliczenia!$D$58="Vitocal 2xx-S 201.D08",'Bilans-D08'!AS14,IF(Obliczenia!$D$58="Vitocal 2xx-S 201.D10",'Bilans-D10'!AS14,IF(Obliczenia!$D$58="Vitocal 2xx-S 201.D13",'Bilans-D13'!AS14,IF(Obliczenia!$D$58="Vitocal 2xx-S 201.D16",'Bilans-D16'!AS14,IF(Obliczenia!$D$58="Vitocal 15x-A 151.A10",'Bilans-151-A10'!AS14,IF(Obliczenia!$D$58="Vitocal 15x-A 151.A13",'Bilans-151-A13'!AS14,IF(Obliczenia!$D$58="Vitocal 15x-A 151.A16",'Bilans-151-A16'!AS14,IF(Obliczenia!$D$58="Vitocal 25x-A 251.A10",'Bilans-251-A10'!AS14,IF(Obliczenia!$D$58="Vitocal 25x-A 251.A13",'Bilans-251-A13'!AS14,IF(Obliczenia!$D$58="Vitocal 15x-A 151.A08",'Bilans-151-A08'!AS14,IF(Obliczenia!$D$58="Vitocal 15x-A 151.A06",'Bilans-151-A06'!AS14,IF(Obliczenia!$D$58="Vitocal 15x-A 151.A04",'Bilans-151-A04'!AS14,IF(Obliczenia!$D$58="Vitocal 25x-A 251.A04",'Bilans-251-A04'!AS14,IF(Obliczenia!$D$58="Vitocal 25x-A 251.A06",'Bilans-251-A06'!AS14,IF(Obliczenia!$D$58="Vitocal 25x-A 251.A08",'Bilans-251-A08'!AS14,IF(Obliczenia!$D$58="Vitocal 100-A 101.B06",'Bilans-AWO-B06'!AS14,IF(Obliczenia!$D$58="Vitocal 100-A 101.B08",'Bilans-AWO-B08'!AS14,IF(Obliczenia!$D$58="Vitocal 100-A 101.A10",'Bilans-AWO-A10'!AS14,IF(Obliczenia!$D$58="Vitocal 100-A 101.A12",'Bilans-AWO-A12'!AS14,IF(Obliczenia!$D$58="Vitocal 100-A 101.A14",'Bilans-AWO-A14'!AS14,IF(Obliczenia!$D$58="Vitocal 100-A 101.A16",'Bilans-AWO-A16'!AS14,IF(Obliczenia!$D$58="Vitocal 100-A 101.A18",'Bilans-AWO-A18'!AS14,"błąd"))))))))))))))))))))))))))))))))) -> 0 | AV14: =IF(Obliczenia!$D$58="Vitocal 2xx-S 201.E06",'Bilans-E06'!BJ14,IF(Obliczenia!$D$58="Vitocal 2xx-S 201.E08",'Bilans-E08'!BJ14,IF(Obliczenia!$D$58="Vitocal 2xx-S 201.E10",'Bilans-E10'!BJ14,IF(Obliczenia!$D$58="Vitocal 1xx-S 101.B04",'Bilans-B04'!BJ14,IF(Obliczenia!$D$58="Vitocal 1xx-S 101.B06",'Bilans-B06'!BJ14,IF(Obliczenia!$D$58="Vitocal 1xx-S 101.B08",'Bilans-B08'!BJ14,IF(Obliczenia!$D$58="Vitocal 1xx-S 101.A12",'Bilans-A12'!BJ14,IF(Obliczenia!$D$58="Vitocal 1xx-S 101.A14",'Bilans-A14'!BJ14,IF(Obliczenia!$D$58="Vitocal 1xx-S 101.A16",'Bilans-A16'!BJ14,IF(Obliczenia!$D$58="Vitocal 2xx-S 201.D04",'Bilans-D04'!BJ14,IF(Obliczenia!$D$58="Vitocal 2xx-S 201.D06",'Bilans-B06'!BJ14,IF(Obliczenia!$D$58="Vitocal 2xx-S 201.D08",'Bilans-D08'!BJ14,IF(Obliczenia!$D$58="Vitocal 2xx-S 201.D10",'Bilans-D10'!BJ14,IF(Obliczenia!$D$58="Vitocal 2xx-S 201.D13",'Bilans-D13'!BJ14,IF(Obliczenia!$D$58="Vitocal 2xx-S 201.D16",'Bilans-D16'!BJ14,IF(Obliczenia!$D$58="Vitocal 15x-A 151.A10",'Bilans-151-A10'!BJ14,IF(Obliczenia!$D$58="Vitocal 15x-A 151.A13",'Bilans-151-A13'!BJ14,IF(Obliczenia!$D$58="Vitocal 15x-A 151.A16",'Bilans-151-A16'!BJ14,IF(Obliczenia!$D$58="Vitocal 25x-A 251.A10",'Bilans-251-A10'!BJ14,IF(Obliczenia!$D$58="Vitocal 25x-A 251.A13",'Bilans-251-A13'!BJ14,IF(Obliczenia!$D$58="Vitocal 15x-A 151.A08",'Bilans-151-A08'!BJ14,IF(Obliczenia!$D$58="Vitocal 15x-A 151.A06",'Bilans-151-A06'!BJ14,IF(Obliczenia!$D$58="Vitocal 15x-A 151.A04",'Bilans-151-A04'!BJ14,IF(Obliczenia!$D$58="Vitocal 25x-A 251.A04",'Bilans-251-A04'!BJ14,IF(Obliczenia!$D$58="Vitocal 25x-A 251.A06",'Bilans-251-A06'!BJ14,IF(Obliczenia!$D$58="Vitocal 25x-A 251.A08",'Bilans-251-A08'!BJ14,IF(Obliczenia!$D$58="Vitocal 100-A 101.B06",'Bilans-AWO-B06'!BJ14,IF(Obliczenia!$D$58="Vitocal 100-A 101.B08",'Bilans-AWO-B08'!BJ14,IF(Obliczenia!$D$58="Vitocal 100-A 101.A10",'Bilans-AWO-A10'!BJ14,IF(Obliczenia!$D$58="Vitocal 100-A 101.A12",'Bilans-AWO-A12'!BJ14,IF(Obliczenia!$D$58="Vitocal 100-A 101.A14",'Bilans-AWO-A14'!BJ14,IF(Obliczenia!$D$58="Vitocal 100-A 101.A16",'Bilans-AWO-A16'!BJ14,IF(Obliczenia!$D$58="Vitocal 100-A 101.A18",'Bilans-AWO-A18'!BJ14,"błąd"))))))))))))))))))))))))))))))))) -> 73.74458537 | AW14: =IF(Obliczenia!$D$58="Vitocal 2xx-S 201.E06",'Bilans-E06'!BK14,IF(Obliczenia!$D$58="Vitocal 2xx-S 201.E08",'Bilans-E08'!BK14,IF(Obliczenia!$D$58="Vitocal 2xx-S 201.E10",'Bilans-E10'!BK14,IF(Obliczenia!$D$58="Vitocal 1xx-S 101.B04",'Bilans-B04'!BK14,IF(Obliczenia!$D$58="Vitocal 1xx-S 101.B06",'Bilans-B06'!BK14,IF(Obliczenia!$D$58="Vitocal 1xx-S 101.B08",'Bilans-B08'!BK14,IF(Obliczenia!$D$58="Vitocal 1xx-S 101.A12",'Bilans-A12'!BK14,IF(Obliczenia!$D$58="Vitocal 1xx-S 101.A14",'Bilans-A14'!BK14,IF(Obliczenia!$D$58="Vitocal 1xx-S 101.A16",'Bilans-A16'!BK14,IF(Obliczenia!$D$58="Vitocal 2xx-S 201.D04",'Bilans-D04'!BK14,IF(Obliczenia!$D$58="Vitocal 2xx-S 201.D06",'Bilans-B06'!BK14,IF(Obliczenia!$D$58="Vitocal 2xx-S 201.D08",'Bilans-D08'!BK14,IF(Obliczenia!$D$58="Vitocal 2xx-S 201.D10",'Bilans-D10'!BK14,IF(Obliczenia!$D$58="Vitocal 2xx-S 201.D13",'Bilans-D13'!BK14,IF(Obliczenia!$D$58="Vitocal 2xx-S 201.D16",'Bilans-D16'!BK14,IF(Obliczenia!$D$58="Vitocal 15x-A 151.A10",'Bilans-151-A10'!BK14,IF(Obliczenia!$D$58="Vitocal 15x-A 151.A13",'Bilans-151-A13'!BK14,IF(Obliczenia!$D$58="Vitocal 15x-A 151.A16",'Bilans-151-A16'!BK14,IF(Obliczenia!$D$58="Vitocal 25x-A 251.A10",'Bilans-251-A10'!BK14,IF(Obliczenia!$D$58="Vitocal 25x-A 251.A13",'Bilans-251-A13'!BK14,IF(Obliczenia!$D$58="Vitocal 15x-A 151.A08",'Bilans-151-A08'!BK14,IF(Obliczenia!$D$58="Vitocal 15x-A 151.A06",'Bilans-151-A06'!BK14,IF(Obliczenia!$D$58="Vitocal 15x-A 151.A04",'Bilans-151-A04'!BK14,IF(Obliczenia!$D$58="Vitocal 25x-A 251.A04",'Bilans-251-A04'!BK14,IF(Obliczenia!$D$58="Vitocal 25x-A 251.A06",'Bilans-251-A06'!BK14,IF(Obliczenia!$D$58="Vitocal 25x-A 251.A08",'Bilans-251-A08'!BK14,IF(Obliczenia!$D$58="Vitocal 100-A 101.B06",'Bilans-AWO-B06'!BK14,IF(Obliczenia!$D$58="Vitocal 100-A 101.B08",'Bilans-AWO-B08'!BK14,IF(Obliczenia!$D$58="Vitocal 100-A 101.A10",'Bilans-AWO-A10'!BK14,IF(Obliczenia!$D$58="Vitocal 100-A 101.A12",'Bilans-AWO-A12'!BK14,IF(Obliczenia!$D$58="Vitocal 100-A 101.A14",'Bilans-AWO-A14'!BK14,IF(Obliczenia!$D$58="Vitocal 100-A 101.A16",'Bilans-AWO-A16'!BK14,IF(Obliczenia!$D$58="Vitocal 100-A 101.A18",'Bilans-AWO-A18'!BK14,"błąd"))))))))))))))))))))))))))))))))) -> 0 | AZ14: =IF(Obliczenia!$D$58="Vitocal 15x-A 151.A10",'Bilans-151-A10'!CK14,IF(Obliczenia!$D$58="Vitocal 15x-A 151.A13",'Bilans-151-A13'!CK14,IF(Obliczenia!$D$58="Vitocal 15x-A 151.A16",'Bilans-151-A16'!CK14,IF(Obliczenia!$D$58="Vitocal 25x-A 251.A10",'Bilans-251-A10'!CK14,IF(Obliczenia!$D$58="Vitocal 25x-A 251.A13",'Bilans-251-A13'!CK14,IF(Obliczenia!$D$58="Vitocal 15x-A 151.A08",'Bilans-151-A08'!CK14,IF(Obliczenia!$D$58="Vitocal 15x-A 151.A06",'Bilans-151-A06'!CK14,IF(Obliczenia!$D$58="Vitocal 15x-A 151.A04",'Bilans-151-A04'!CK14,IF(Obliczenia!$D$58="Vitocal 25x-A 251.A04",'Bilans-251-A04'!CK14,IF(Obliczenia!$D$58="Vitocal 25x-A 251.A06",'Bilans-251-A06'!CK14,IF(Obliczenia!$D$58="Vitocal 25x-A 251.A08",'Bilans-251-A08'!CK14,"błąd"))))))))))) -> błąd | BA14: =IF(Obliczenia!$D$58="Vitocal 15x-A 151.A10",'Bilans-151-A10'!CL14,IF(Obliczenia!$D$58="Vitocal 15x-A 151.A13",'Bilans-151-A13'!CL14,IF(Obliczenia!$D$58="Vitocal 15x-A 151.A16",'Bilans-151-A16'!CL14,IF(Obliczenia!$D$58="Vitocal 25x-A 251.A10",'Bilans-251-A10'!CL14,IF(Obliczenia!$D$58="Vitocal 25x-A 251.A13",'Bilans-251-A13'!CL14,IF(Obliczenia!$D$58="Vitocal 15x-A 151.A08",'Bilans-151-A08'!CL14,IF(Obliczenia!$D$58="Vitocal 15x-A 151.A06",'Bilans-151-A06'!CL14,IF(Obliczenia!$D$58="Vitocal 15x-A 151.A04",'Bilans-151-A04'!CL14,IF(Obliczenia!$D$58="Vitocal 25x-A 251.A04",'Bilans-251-A04'!CL14,IF(Obliczenia!$D$58="Vitocal 25x-A 251.A06",'Bilans-251-A06'!CL14,IF(Obliczenia!$D$58="Vitocal 25x-A 251.A08",'Bilans-251-A08'!CL14,"błąd"))))))))))) -> błąd | BF14: -20 | BG14: -15 | BH14: -7 | BI14: 2 | BJ14: 7 | BK14: 10 | BL14: 12 | BM14: 15 | BN14: 20 | BO14: 30 | BW14: Vitocal 100-S AWB-M-E(-AC) 101.B08 | BX14: ='B08'!B25 -> 29055 | BY14: ='Bilans-B08'!G7 -> 3.382997735 | BZ14: 8588.536641 | CA14: 8588.536641 | CD14: Węgiel kamienny, ciąg sztuczny | CH14: =(BL25+BL30+BL35)*CH10/1000 -> 4658.002762 | CI14: kg | CK14: -3.658333333 | CL14: -7.383333333
A15: 10 | B15: 4.8 | C15: 4.8 | E15: 9 | F15: =AVERAGE(C199:C222) -> -6.004166667 | H15: =F15*Budynek!$D$31+Budynek!$D$32 -> 29.7515625 | J15: =Budynek!$D$4*(Dane!$E$12-F15)*12/1000 -> 43.94434146 | L15: =Budynek!$D$4*(Dane!$E$13-F15)*12/1000 -> 37.43507317 | N15: 81.37941463 | P15: 81.37941463 | Q15: 81.37941463 | R15: 81.37941463 | S15: 81.37941463 | T15: 7.11627907 | AA15: =IF(Obliczenia!$D$58="Vitocal 2xx-S 201.E06",'Bilans-E06'!Z15,IF(Obliczenia!$D$58="Vitocal 2xx-S 201.E08",'Bilans-E08'!Z15,IF(Obliczenia!$D$58="Vitocal 2xx-S 201.E10",'Bilans-E10'!Z15,IF(Obliczenia!$D$58="Vitocal 1xx-S 101.B04",'Bilans-B04'!Z15,IF(Obliczenia!$D$58="Vitocal 1xx-S 101.B06",'Bilans-B06'!Z15,IF(Obliczenia!$D$58="Vitocal 1xx-S 101.B08",'Bilans-B08'!Z15,IF(Obliczenia!$D$58="Vitocal 1xx-S 101.A12",'Bilans-A12'!Z15,IF(Obliczenia!$D$58="Vitocal 1xx-S 101.A14",'Bilans-A14'!Z15,IF(Obliczenia!$D$58="Vitocal 1xx-S 101.A16",'Bilans-A16'!Z15,IF(Obliczenia!$D$58="Vitocal 2xx-S 201.D04",'Bilans-D04'!Z15,IF(Obliczenia!$D$58="Vitocal 2xx-S 201.D06",'Bilans-B06'!Z15,IF(Obliczenia!$D$58="Vitocal 2xx-S 201.D08",'Bilans-D08'!Z15,IF(Obliczenia!$D$58="Vitocal 2xx-S 201.D10",'Bilans-D10'!Z15,IF(Obliczenia!$D$58="Vitocal 2xx-S 201.D13",'Bilans-D13'!Z15,IF(Obliczenia!$D$58="Vitocal 2xx-S 201.D16",'Bilans-D16'!Z15,IF(Obliczenia!$D$58="Vitocal 15x-A 151.A10",'Bilans-151-A10'!Z15,IF(Obliczenia!$D$58="Vitocal 15x-A 151.A13",'Bilans-151-A13'!Z15,IF(Obliczenia!$D$58="Vitocal 15x-A 151.A16",'Bilans-151-A16'!Z15,IF(Obliczenia!$D$58="Vitocal 15x-A 151.A16",'Bilans-151-A16'!Z15,IF(Obliczenia!$D$58="Vitocal 25x-A 251.A10",'Bilans-251-A10'!Z15,IF(Obliczenia!$D$58="Vitocal 25x-A 251.A13",'Bilans-251-A13'!Z15,IF(Obliczenia!$D$58="Vitocal 15x-A 151.A06",'Bilans-151-A06'!Z15,IF(Obliczenia!$D$58="Vitocal 15x-A 151.A08",'Bilans-151-A08'!Z15,IF(Obliczenia!$D$58="Vitocal 15x-A 151.A04",'Bilans-151-A04'!Z15,IF(Obliczenia!$D$58="Vitocal 25x-A 251.A04",'Bilans-251-A04'!Z15,IF(Obliczenia!$D$58="Vitocal 25x-A 251.A06",'Bilans-251-A06'!Z15,IF(Obliczenia!$D$58="Vitocal 25x-A 251.A08",'Bilans-251-A08'!Z15,IF(Obliczenia!$D$58="Vitocal 100-A 101.B06",'Bilans-AWO-B06'!Z15,IF(Obliczenia!$D$58="Vitocal 100-A 101.B08",'Bilans-AWO-B08'!Z15,IF(Obliczenia!$D$58="Vitocal 100-A 101.A10",'Bilans-AWO-A10'!Z15,IF(Obliczenia!$D$58="Vitocal 100-A 101.A12",'Bilans-AWO-A12'!Z15,IF(Obliczenia!$D$58="Vitocal 100-A 101.A14",'Bilans-AWO-A14'!Z15,IF(Obliczenia!$D$58="Vitocal 100-A 101.A16",'Bilans-AWO-A16'!Z15,IF(Obliczenia!$D$58="Vitocal 100-A 101.A18",'Bilans-AWO-A18'!Z15,"błąd")))))))))))))))))))))))))))))))))) -> 81.37941463 | AB15: =IF(Obliczenia!$D$58="Vitocal 2xx-S 201.E06",'Bilans-E06'!AA15,IF(Obliczenia!$D$58="Vitocal 2xx-S 201.E08",'Bilans-E08'!AA15,IF(Obliczenia!$D$58="Vitocal 2xx-S 201.E10",'Bilans-E10'!AA15,IF(Obliczenia!$D$58="Vitocal 1xx-S 101.B04",'Bilans-B04'!AA15,IF(Obliczenia!$D$58="Vitocal 1xx-S 101.B06",'Bilans-B06'!AA15,IF(Obliczenia!$D$58="Vitocal 1xx-S 101.B08",'Bilans-B08'!AA15,IF(Obliczenia!$D$58="Vitocal 1xx-S 101.A12",'Bilans-A12'!AA15,IF(Obliczenia!$D$58="Vitocal 1xx-S 101.A14",'Bilans-A14'!AA15,IF(Obliczenia!$D$58="Vitocal 1xx-S 101.A16",'Bilans-A16'!AA15,IF(Obliczenia!$D$58="Vitocal 2xx-S 201.D04",'Bilans-D04'!AA15,IF(Obliczenia!$D$58="Vitocal 2xx-S 201.D06",'Bilans-B06'!AA15,IF(Obliczenia!$D$58="Vitocal 2xx-S 201.D08",'Bilans-D08'!AA15,IF(Obliczenia!$D$58="Vitocal 2xx-S 201.D10",'Bilans-D10'!AA15,IF(Obliczenia!$D$58="Vitocal 2xx-S 201.D13",'Bilans-D13'!AA15,IF(Obliczenia!$D$58="Vitocal 2xx-S 201.D16",'Bilans-D16'!AA15,IF(Obliczenia!$D$58="Vitocal 15x-A 151.A10",'Bilans-151-A10'!AA15,IF(Obliczenia!$D$58="Vitocal 15x-A 151.A13",'Bilans-151-A13'!AA15,IF(Obliczenia!$D$58="Vitocal 15x-A 151.A16",'Bilans-151-A16'!AA15,IF(Obliczenia!$D$58="Vitocal 15x-A 151.A16",'Bilans-151-A16'!AA15,IF(Obliczenia!$D$58="Vitocal 25x-A 251.A10",'Bilans-251-A10'!AA15,IF(Obliczenia!$D$58="Vitocal 25x-A 251.A13",'Bilans-251-A13'!AA15,IF(Obliczenia!$D$58="Vitocal 15x-A 151.A08",'Bilans-151-A08'!AA15,IF(Obliczenia!$D$58="Vitocal 15x-A 151.A06",'Bilans-151-A06'!AA15,IF(Obliczenia!$D$58="Vitocal 15x-A 151.A04",'Bilans-151-A04'!AA15,IF(Obliczenia!$D$58="Vitocal 25x-A 251.A04",'Bilans-251-A04'!AA15,IF(Obliczenia!$D$58="Vitocal 25x-A 251.A06",'Bilans-251-A06'!AA15,IF(Obliczenia!$D$58="Vitocal 25x-A 251.A08",'Bilans-251-A08'!AA15,IF(Obliczenia!$D$58="Vitocal 100-A 101.B06",'Bilans-AWO-B06'!AA15,IF(Obliczenia!$D$58="Vitocal 100-A 101.B08",'Bilans-AWO-B08'!AA15,IF(Obliczenia!$D$58="Vitocal 100-A 101.A10",'Bilans-AWO-A10'!AA15,IF(Obliczenia!$D$58="Vitocal 100-A 101.A12",'Bilans-AWO-A12'!AA15,IF(Obliczenia!$D$58="Vitocal 100-A 101.A14",'Bilans-AWO-A14'!AA15,IF(Obliczenia!$D$58="Vitocal 100-A 101.A16",'Bilans-AWO-A16'!AA15,IF(Obliczenia!$D$58="Vitocal 100-A 101.A18",'Bilans-AWO-A18'!AA15,"błąd")))))))))))))))))))))))))))))))))) -> 0 | AE15: A12 | AF15: ='A12'!B28 -> 14.274038 | AG15: 1 | AI15: 81.37941463 | AJ15: 0 | AR15: =IF(Obliczenia!$D$58="Vitocal 2xx-S 201.E06",'Bilans-E06'!AR15,IF(Obliczenia!$D$58="Vitocal 2xx-S 201.E08",'Bilans-E08'!AR15,IF(Obliczenia!$D$58="Vitocal 2xx-S 201.E10",'Bilans-E10'!AR15,IF(Obliczenia!$D$58="Vitocal 1xx-S 101.B04",'Bilans-B04'!AR15,IF(Obliczenia!$D$58="Vitocal 1xx-S 101.B06",'Bilans-B06'!AR15,IF(Obliczenia!$D$58="Vitocal 1xx-S 101.B08",'Bilans-B08'!AR15,IF(Obliczenia!$D$58="Vitocal 1xx-S 101.A12",'Bilans-A12'!AR15,IF(Obliczenia!$D$58="Vitocal 1xx-S 101.A14",'Bilans-A14'!AR15,IF(Obliczenia!$D$58="Vitocal 1xx-S 101.A16",'Bilans-A16'!AR15,IF(Obliczenia!$D$58="Vitocal 2xx-S 201.D04",'Bilans-D04'!AR15,IF(Obliczenia!$D$58="Vitocal 2xx-S 201.D06",'Bilans-B06'!AR15,IF(Obliczenia!$D$58="Vitocal 2xx-S 201.D08",'Bilans-D08'!AR15,IF(Obliczenia!$D$58="Vitocal 2xx-S 201.D10",'Bilans-D10'!AR15,IF(Obliczenia!$D$58="Vitocal 2xx-S 201.D13",'Bilans-D13'!AR15,IF(Obliczenia!$D$58="Vitocal 2xx-S 201.D16",'Bilans-D16'!AR15,IF(Obliczenia!$D$58="Vitocal 15x-A 151.A10",'Bilans-151-A10'!AR15,IF(Obliczenia!$D$58="Vitocal 15x-A 151.A13",'Bilans-151-A13'!AR15,IF(Obliczenia!$D$58="Vitocal 15x-A 151.A16",'Bilans-151-A16'!AR15,IF(Obliczenia!$D$58="Vitocal 25x-A 251.A10",'Bilans-251-A10'!AR15,IF(Obliczenia!$D$58="Vitocal 25x-A 251.A13",'Bilans-251-A13'!AR15,IF(Obliczenia!$D$58="Vitocal 15x-A 151.A08",'Bilans-151-A08'!AR15,IF(Obliczenia!$D$58="Vitocal 15x-A 151.A06",'Bilans-151-A06'!AR15,IF(Obliczenia!$D$58="Vitocal 15x-A 151.A04",'Bilans-151-A04'!AR15,IF(Obliczenia!$D$58="Vitocal 25x-A 251.A04",'Bilans-251-A04'!AR15,IF(Obliczenia!$D$58="Vitocal 25x-A 251.A06",'Bilans-251-A06'!AR15,IF(Obliczenia!$D$58="Vitocal 25x-A 251.A08",'Bilans-251-A08'!AR15,IF(Obliczenia!$D$58="Vitocal 100-A 101.B06",'Bilans-AWO-B06'!AR15,IF(Obliczenia!$D$58="Vitocal 100-A 101.B08",'Bilans-AWO-B08'!AR15,IF(Obliczenia!$D$58="Vitocal 100-A 101.A10",'Bilans-AWO-A10'!AR15,IF(Obliczenia!$D$58="Vitocal 100-A 101.A12",'Bilans-AWO-A12'!AR15,IF(Obliczenia!$D$58="Vitocal 100-A 101.A14",'Bilans-AWO-A14'!AR15,IF(Obliczenia!$D$58="Vitocal 100-A 101.A16",'Bilans-AWO-A16'!AR15,IF(Obliczenia!$D$58="Vitocal 100-A 101.A18",'Bilans-AWO-A18'!AR15,"błąd"))))))))))))))))))))))))))))))))) -> 81.37941463 | AS15: =IF(Obliczenia!$D$58="Vitocal 2xx-S 201.E06",'Bilans-E06'!AS15,IF(Obliczenia!$D$58="Vitocal 2xx-S 201.E08",'Bilans-E08'!AS15,IF(Obliczenia!$D$58="Vitocal 2xx-S 201.E10",'Bilans-E10'!AS15,IF(Obliczenia!$D$58="Vitocal 1xx-S 101.B04",'Bilans-B04'!AS15,IF(Obliczenia!$D$58="Vitocal 1xx-S 101.B06",'Bilans-B06'!AS15,IF(Obliczenia!$D$58="Vitocal 1xx-S 101.B08",'Bilans-B08'!AS15,IF(Obliczenia!$D$58="Vitocal 1xx-S 101.A12",'Bilans-A12'!AS15,IF(Obliczenia!$D$58="Vitocal 1xx-S 101.A14",'Bilans-A14'!AS15,IF(Obliczenia!$D$58="Vitocal 1xx-S 101.A16",'Bilans-A16'!AS15,IF(Obliczenia!$D$58="Vitocal 2xx-S 201.D04",'Bilans-D04'!AS15,IF(Obliczenia!$D$58="Vitocal 2xx-S 201.D06",'Bilans-B06'!AS15,IF(Obliczenia!$D$58="Vitocal 2xx-S 201.D08",'Bilans-D08'!AS15,IF(Obliczenia!$D$58="Vitocal 2xx-S 201.D10",'Bilans-D10'!AS15,IF(Obliczenia!$D$58="Vitocal 2xx-S 201.D13",'Bilans-D13'!AS15,IF(Obliczenia!$D$58="Vitocal 2xx-S 201.D16",'Bilans-D16'!AS15,IF(Obliczenia!$D$58="Vitocal 15x-A 151.A10",'Bilans-151-A10'!AS15,IF(Obliczenia!$D$58="Vitocal 15x-A 151.A13",'Bilans-151-A13'!AS15,IF(Obliczenia!$D$58="Vitocal 15x-A 151.A16",'Bilans-151-A16'!AS15,IF(Obliczenia!$D$58="Vitocal 25x-A 251.A10",'Bilans-251-A10'!AS15,IF(Obliczenia!$D$58="Vitocal 25x-A 251.A13",'Bilans-251-A13'!AS15,IF(Obliczenia!$D$58="Vitocal 15x-A 151.A08",'Bilans-151-A08'!AS15,IF(Obliczenia!$D$58="Vitocal 15x-A 151.A06",'Bilans-151-A06'!AS15,IF(Obliczenia!$D$58="Vitocal 15x-A 151.A04",'Bilans-151-A04'!AS15,IF(Obliczenia!$D$58="Vitocal 25x-A 251.A04",'Bilans-251-A04'!AS15,IF(Obliczenia!$D$58="Vitocal 25x-A 251.A06",'Bilans-251-A06'!AS15,IF(Obliczenia!$D$58="Vitocal 25x-A 251.A08",'Bilans-251-A08'!AS15,IF(Obliczenia!$D$58="Vitocal 100-A 101.B06",'Bilans-AWO-B06'!AS15,IF(Obliczenia!$D$58="Vitocal 100-A 101.B08",'Bilans-AWO-B08'!AS15,IF(Obliczenia!$D$58="Vitocal 100-A 101.A10",'Bilans-AWO-A10'!AS15,IF(Obliczenia!$D$58="Vitocal 100-A 101.A12",'Bilans-AWO-A12'!AS15,IF(Obliczenia!$D$58="Vitocal 100-A 101.A14",'Bilans-AWO-A14'!AS15,IF(Obliczenia!$D$58="Vitocal 100-A 101.A16",'Bilans-AWO-A16'!AS15,IF(Obliczenia!$D$58="Vitocal 100-A 101.A18",'Bilans-AWO-A18'!AS15,"błąd"))))))))))))))))))))))))))))))))) -> 0 | AV15: =IF(Obliczenia!$D$58="Vitocal 2xx-S 201.E06",'Bilans-E06'!BJ15,IF(Obliczenia!$D$58="Vitocal 2xx-S 201.E08",'Bilans-E08'!BJ15,IF(Obliczenia!$D$58="Vitocal 2xx-S 201.E10",'Bilans-E10'!BJ15,IF(Obliczenia!$D$58="Vitocal 1xx-S 101.B04",'Bilans-B04'!BJ15,IF(Obliczenia!$D$58="Vitocal 1xx-S 101.B06",'Bilans-B06'!BJ15,IF(Obliczenia!$D$58="Vitocal 1xx-S 101.B08",'Bilans-B08'!BJ15,IF(Obliczenia!$D$58="Vitocal 1xx-S 101.A12",'Bilans-A12'!BJ15,IF(Obliczenia!$D$58="Vitocal 1xx-S 101.A14",'Bilans-A14'!BJ15,IF(Obliczenia!$D$58="Vitocal 1xx-S 101.A16",'Bilans-A16'!BJ15,IF(Obliczenia!$D$58="Vitocal 2xx-S 201.D04",'Bilans-D04'!BJ15,IF(Obliczenia!$D$58="Vitocal 2xx-S 201.D06",'Bilans-B06'!BJ15,IF(Obliczenia!$D$58="Vitocal 2xx-S 201.D08",'Bilans-D08'!BJ15,IF(Obliczenia!$D$58="Vitocal 2xx-S 201.D10",'Bilans-D10'!BJ15,IF(Obliczenia!$D$58="Vitocal 2xx-S 201.D13",'Bilans-D13'!BJ15,IF(Obliczenia!$D$58="Vitocal 2xx-S 201.D16",'Bilans-D16'!BJ15,IF(Obliczenia!$D$58="Vitocal 15x-A 151.A10",'Bilans-151-A10'!BJ15,IF(Obliczenia!$D$58="Vitocal 15x-A 151.A13",'Bilans-151-A13'!BJ15,IF(Obliczenia!$D$58="Vitocal 15x-A 151.A16",'Bilans-151-A16'!BJ15,IF(Obliczenia!$D$58="Vitocal 25x-A 251.A10",'Bilans-251-A10'!BJ15,IF(Obliczenia!$D$58="Vitocal 25x-A 251.A13",'Bilans-251-A13'!BJ15,IF(Obliczenia!$D$58="Vitocal 15x-A 151.A08",'Bilans-151-A08'!BJ15,IF(Obliczenia!$D$58="Vitocal 15x-A 151.A06",'Bilans-151-A06'!BJ15,IF(Obliczenia!$D$58="Vitocal 15x-A 151.A04",'Bilans-151-A04'!BJ15,IF(Obliczenia!$D$58="Vitocal 25x-A 251.A04",'Bilans-251-A04'!BJ15,IF(Obliczenia!$D$58="Vitocal 25x-A 251.A06",'Bilans-251-A06'!BJ15,IF(Obliczenia!$D$58="Vitocal 25x-A 251.A08",'Bilans-251-A08'!BJ15,IF(Obliczenia!$D$58="Vitocal 100-A 101.B06",'Bilans-AWO-B06'!BJ15,IF(Obliczenia!$D$58="Vitocal 100-A 101.B08",'Bilans-AWO-B08'!BJ15,IF(Obliczenia!$D$58="Vitocal 100-A 101.A10",'Bilans-AWO-A10'!BJ15,IF(Obliczenia!$D$58="Vitocal 100-A 101.A12",'Bilans-AWO-A12'!BJ15,IF(Obliczenia!$D$58="Vitocal 100-A 101.A14",'Bilans-AWO-A14'!BJ15,IF(Obliczenia!$D$58="Vitocal 100-A 101.A16",'Bilans-AWO-A16'!BJ15,IF(Obliczenia!$D$58="Vitocal 100-A 101.A18",'Bilans-AWO-A18'!BJ15,"błąd"))))))))))))))))))))))))))))))))) -> 81.37941463 | AW15: =IF(Obliczenia!$D$58="Vitocal 2xx-S 201.E06",'Bilans-E06'!BK15,IF(Obliczenia!$D$58="Vitocal 2xx-S 201.E08",'Bilans-E08'!BK15,IF(Obliczenia!$D$58="Vitocal 2xx-S 201.E10",'Bilans-E10'!BK15,IF(Obliczenia!$D$58="Vitocal 1xx-S 101.B04",'Bilans-B04'!BK15,IF(Obliczenia!$D$58="Vitocal 1xx-S 101.B06",'Bilans-B06'!BK15,IF(Obliczenia!$D$58="Vitocal 1xx-S 101.B08",'Bilans-B08'!BK15,IF(Obliczenia!$D$58="Vitocal 1xx-S 101.A12",'Bilans-A12'!BK15,IF(Obliczenia!$D$58="Vitocal 1xx-S 101.A14",'Bilans-A14'!BK15,IF(Obliczenia!$D$58="Vitocal 1xx-S 101.A16",'Bilans-A16'!BK15,IF(Obliczenia!$D$58="Vitocal 2xx-S 201.D04",'Bilans-D04'!BK15,IF(Obliczenia!$D$58="Vitocal 2xx-S 201.D06",'Bilans-B06'!BK15,IF(Obliczenia!$D$58="Vitocal 2xx-S 201.D08",'Bilans-D08'!BK15,IF(Obliczenia!$D$58="Vitocal 2xx-S 201.D10",'Bilans-D10'!BK15,IF(Obliczenia!$D$58="Vitocal 2xx-S 201.D13",'Bilans-D13'!BK15,IF(Obliczenia!$D$58="Vitocal 2xx-S 201.D16",'Bilans-D16'!BK15,IF(Obliczenia!$D$58="Vitocal 15x-A 151.A10",'Bilans-151-A10'!BK15,IF(Obliczenia!$D$58="Vitocal 15x-A 151.A13",'Bilans-151-A13'!BK15,IF(Obliczenia!$D$58="Vitocal 15x-A 151.A16",'Bilans-151-A16'!BK15,IF(Obliczenia!$D$58="Vitocal 25x-A 251.A10",'Bilans-251-A10'!BK15,IF(Obliczenia!$D$58="Vitocal 25x-A 251.A13",'Bilans-251-A13'!BK15,IF(Obliczenia!$D$58="Vitocal 15x-A 151.A08",'Bilans-151-A08'!BK15,IF(Obliczenia!$D$58="Vitocal 15x-A 151.A06",'Bilans-151-A06'!BK15,IF(Obliczenia!$D$58="Vitocal 15x-A 151.A04",'Bilans-151-A04'!BK15,IF(Obliczenia!$D$58="Vitocal 25x-A 251.A04",'Bilans-251-A04'!BK15,IF(Obliczenia!$D$58="Vitocal 25x-A 251.A06",'Bilans-251-A06'!BK15,IF(Obliczenia!$D$58="Vitocal 25x-A 251.A08",'Bilans-251-A08'!BK15,IF(Obliczenia!$D$58="Vitocal 100-A 101.B06",'Bilans-AWO-B06'!BK15,IF(Obliczenia!$D$58="Vitocal 100-A 101.B08",'Bilans-AWO-B08'!BK15,IF(Obliczenia!$D$58="Vitocal 100-A 101.A10",'Bilans-AWO-A10'!BK15,IF(Obliczenia!$D$58="Vitocal 100-A 101.A12",'Bilans-AWO-A12'!BK15,IF(Obliczenia!$D$58="Vitocal 100-A 101.A14",'Bilans-AWO-A14'!BK15,IF(Obliczenia!$D$58="Vitocal 100-A 101.A16",'Bilans-AWO-A16'!BK15,IF(Obliczenia!$D$58="Vitocal 100-A 101.A18",'Bilans-AWO-A18'!BK15,"błąd"))))))))))))))))))))))))))))))))) -> 0 | AZ15: =IF(Obliczenia!$D$58="Vitocal 15x-A 151.A10",'Bilans-151-A10'!CK15,IF(Obliczenia!$D$58="Vitocal 15x-A 151.A13",'Bilans-151-A13'!CK15,IF(Obliczenia!$D$58="Vitocal 15x-A 151.A16",'Bilans-151-A16'!CK15,IF(Obliczenia!$D$58="Vitocal 25x-A 251.A10",'Bilans-251-A10'!CK15,IF(Obliczenia!$D$58="Vitocal 25x-A 251.A13",'Bilans-251-A13'!CK15,IF(Obliczenia!$D$58="Vitocal 15x-A 151.A08",'Bilans-151-A08'!CK15,IF(Obliczenia!$D$58="Vitocal 15x-A 151.A06",'Bilans-151-A06'!CK15,IF(Obliczenia!$D$58="Vitocal 15x-A 151.A04",'Bilans-151-A04'!CK15,IF(Obliczenia!$D$58="Vitocal 25x-A 251.A04",'Bilans-251-A04'!CK15,IF(Obliczenia!$D$58="Vitocal 25x-A 251.A06",'Bilans-251-A06'!CK15,IF(Obliczenia!$D$58="Vitocal 25x-A 251.A08",'Bilans-251-A08'!CK15,"błąd"))))))))))) -> błąd | BA15: =IF(Obliczenia!$D$58="Vitocal 15x-A 151.A10",'Bilans-151-A10'!CL15,IF(Obliczenia!$D$58="Vitocal 15x-A 151.A13",'Bilans-151-A13'!CL15,IF(Obliczenia!$D$58="Vitocal 15x-A 151.A16",'Bilans-151-A16'!CL15,IF(Obliczenia!$D$58="Vitocal 25x-A 251.A10",'Bilans-251-A10'!CL15,IF(Obliczenia!$D$58="Vitocal 25x-A 251.A13",'Bilans-251-A13'!CL15,IF(Obliczenia!$D$58="Vitocal 15x-A 151.A08",'Bilans-151-A08'!CL15,IF(Obliczenia!$D$58="Vitocal 15x-A 151.A06",'Bilans-151-A06'!CL15,IF(Obliczenia!$D$58="Vitocal 15x-A 151.A04",'Bilans-151-A04'!CL15,IF(Obliczenia!$D$58="Vitocal 25x-A 251.A04",'Bilans-251-A04'!CL15,IF(Obliczenia!$D$58="Vitocal 25x-A 251.A06",'Bilans-251-A06'!CL15,IF(Obliczenia!$D$58="Vitocal 25x-A 251.A08",'Bilans-251-A08'!CL15,"błąd"))))))))))) -> błąd | BD15: Moc budynku | BF15: =ROUND(BF6,2) -> 5.7 | BG15: =ROUND(BG6,2) -> 5 | BH15: 3.88 | BI15: 2.62 | BJ15: 1.92 | BK15: 1.5 | BL15: 1.22 | BM15: 0.8 | BW15: Vitocal 100-S AWB-E(-AC) 101.A12 | BX15: ='A12'!B25 -> 35204 | BY15: ='Bilans-A12'!G7 -> 3.208155805 | BZ15: 10973.28251 | CA15: 10973.28251 | CD15: Energia elektryczna (Łęg Kraków) | CH15: =(BL27+BL32+BL35)*CH11/1000 -> 3230.893409 | CI15: kg | CK15: -6.004166667 | CL15: -7.1625
A16: 11 | B16: 5 | C16: 5 | E16: 10 | F16: =AVERAGE(C223:C246) -> -0.4166666667 | H16: =F16*Budynek!$D$31+Budynek!$D$32 -> 27.65625 | J16: =Budynek!$D$4*(Dane!$E$12-F16)*12/1000 -> 34.85170732 | L16: =Budynek!$D$4*(Dane!$E$13-F16)*12/1000 -> 28.34243902 | N16: 63.19414634 | P16: 63.19414634 | Q16: 63.19414634 | R16: 63.19414634 | S16: 63.19414634 | T16: 7.11627907 | AA16: =IF(Obliczenia!$D$58="Vitocal 2xx-S 201.E06",'Bilans-E06'!Z16,IF(Obliczenia!$D$58="Vitocal 2xx-S 201.E08",'Bilans-E08'!Z16,IF(Obliczenia!$D$58="Vitocal 2xx-S 201.E10",'Bilans-E10'!Z16,IF(Obliczenia!$D$58="Vitocal 1xx-S 101.B04",'Bilans-B04'!Z16,IF(Obliczenia!$D$58="Vitocal 1xx-S 101.B06",'Bilans-B06'!Z16,IF(Obliczenia!$D$58="Vitocal 1xx-S 101.B08",'Bilans-B08'!Z16,IF(Obliczenia!$D$58="Vitocal 1xx-S 101.A12",'Bilans-A12'!Z16,IF(Obliczenia!$D$58="Vitocal 1xx-S 101.A14",'Bilans-A14'!Z16,IF(Obliczenia!$D$58="Vitocal 1xx-S 101.A16",'Bilans-A16'!Z16,IF(Obliczenia!$D$58="Vitocal 2xx-S 201.D04",'Bilans-D04'!Z16,IF(Obliczenia!$D$58="Vitocal 2xx-S 201.D06",'Bilans-B06'!Z16,IF(Obliczenia!$D$58="Vitocal 2xx-S 201.D08",'Bilans-D08'!Z16,IF(Obliczenia!$D$58="Vitocal 2xx-S 201.D10",'Bilans-D10'!Z16,IF(Obliczenia!$D$58="Vitocal 2xx-S 201.D13",'Bilans-D13'!Z16,IF(Obliczenia!$D$58="Vitocal 2xx-S 201.D16",'Bilans-D16'!Z16,IF(Obliczenia!$D$58="Vitocal 15x-A 151.A10",'Bilans-151-A10'!Z16,IF(Obliczenia!$D$58="Vitocal 15x-A 151.A13",'Bilans-151-A13'!Z16,IF(Obliczenia!$D$58="Vitocal 15x-A 151.A16",'Bilans-151-A16'!Z16,IF(Obliczenia!$D$58="Vitocal 15x-A 151.A16",'Bilans-151-A16'!Z16,IF(Obliczenia!$D$58="Vitocal 25x-A 251.A10",'Bilans-251-A10'!Z16,IF(Obliczenia!$D$58="Vitocal 25x-A 251.A13",'Bilans-251-A13'!Z16,IF(Obliczenia!$D$58="Vitocal 15x-A 151.A06",'Bilans-151-A06'!Z16,IF(Obliczenia!$D$58="Vitocal 15x-A 151.A08",'Bilans-151-A08'!Z16,IF(Obliczenia!$D$58="Vitocal 15x-A 151.A04",'Bilans-151-A04'!Z16,IF(Obliczenia!$D$58="Vitocal 25x-A 251.A04",'Bilans-251-A04'!Z16,IF(Obliczenia!$D$58="Vitocal 25x-A 251.A06",'Bilans-251-A06'!Z16,IF(Obliczenia!$D$58="Vitocal 25x-A 251.A08",'Bilans-251-A08'!Z16,IF(Obliczenia!$D$58="Vitocal 100-A 101.B06",'Bilans-AWO-B06'!Z16,IF(Obliczenia!$D$58="Vitocal 100-A 101.B08",'Bilans-AWO-B08'!Z16,IF(Obliczenia!$D$58="Vitocal 100-A 101.A10",'Bilans-AWO-A10'!Z16,IF(Obliczenia!$D$58="Vitocal 100-A 101.A12",'Bilans-AWO-A12'!Z16,IF(Obliczenia!$D$58="Vitocal 100-A 101.A14",'Bilans-AWO-A14'!Z16,IF(Obliczenia!$D$58="Vitocal 100-A 101.A16",'Bilans-AWO-A16'!Z16,IF(Obliczenia!$D$58="Vitocal 100-A 101.A18",'Bilans-AWO-A18'!Z16,"błąd")))))))))))))))))))))))))))))))))) -> 63.19414634 | AB16: =IF(Obliczenia!$D$58="Vitocal 2xx-S 201.E06",'Bilans-E06'!AA16,IF(Obliczenia!$D$58="Vitocal 2xx-S 201.E08",'Bilans-E08'!AA16,IF(Obliczenia!$D$58="Vitocal 2xx-S 201.E10",'Bilans-E10'!AA16,IF(Obliczenia!$D$58="Vitocal 1xx-S 101.B04",'Bilans-B04'!AA16,IF(Obliczenia!$D$58="Vitocal 1xx-S 101.B06",'Bilans-B06'!AA16,IF(Obliczenia!$D$58="Vitocal 1xx-S 101.B08",'Bilans-B08'!AA16,IF(Obliczenia!$D$58="Vitocal 1xx-S 101.A12",'Bilans-A12'!AA16,IF(Obliczenia!$D$58="Vitocal 1xx-S 101.A14",'Bilans-A14'!AA16,IF(Obliczenia!$D$58="Vitocal 1xx-S 101.A16",'Bilans-A16'!AA16,IF(Obliczenia!$D$58="Vitocal 2xx-S 201.D04",'Bilans-D04'!AA16,IF(Obliczenia!$D$58="Vitocal 2xx-S 201.D06",'Bilans-B06'!AA16,IF(Obliczenia!$D$58="Vitocal 2xx-S 201.D08",'Bilans-D08'!AA16,IF(Obliczenia!$D$58="Vitocal 2xx-S 201.D10",'Bilans-D10'!AA16,IF(Obliczenia!$D$58="Vitocal 2xx-S 201.D13",'Bilans-D13'!AA16,IF(Obliczenia!$D$58="Vitocal 2xx-S 201.D16",'Bilans-D16'!AA16,IF(Obliczenia!$D$58="Vitocal 15x-A 151.A10",'Bilans-151-A10'!AA16,IF(Obliczenia!$D$58="Vitocal 15x-A 151.A13",'Bilans-151-A13'!AA16,IF(Obliczenia!$D$58="Vitocal 15x-A 151.A16",'Bilans-151-A16'!AA16,IF(Obliczenia!$D$58="Vitocal 15x-A 151.A16",'Bilans-151-A16'!AA16,IF(Obliczenia!$D$58="Vitocal 25x-A 251.A10",'Bilans-251-A10'!AA16,IF(Obliczenia!$D$58="Vitocal 25x-A 251.A13",'Bilans-251-A13'!AA16,IF(Obliczenia!$D$58="Vitocal 15x-A 151.A08",'Bilans-151-A08'!AA16,IF(Obliczenia!$D$58="Vitocal 15x-A 151.A06",'Bilans-151-A06'!AA16,IF(Obliczenia!$D$58="Vitocal 15x-A 151.A04",'Bilans-151-A04'!AA16,IF(Obliczenia!$D$58="Vitocal 25x-A 251.A04",'Bilans-251-A04'!AA16,IF(Obliczenia!$D$58="Vitocal 25x-A 251.A06",'Bilans-251-A06'!AA16,IF(Obliczenia!$D$58="Vitocal 25x-A 251.A08",'Bilans-251-A08'!AA16,IF(Obliczenia!$D$58="Vitocal 100-A 101.B06",'Bilans-AWO-B06'!AA16,IF(Obliczenia!$D$58="Vitocal 100-A 101.B08",'Bilans-AWO-B08'!AA16,IF(Obliczenia!$D$58="Vitocal 100-A 101.A10",'Bilans-AWO-A10'!AA16,IF(Obliczenia!$D$58="Vitocal 100-A 101.A12",'Bilans-AWO-A12'!AA16,IF(Obliczenia!$D$58="Vitocal 100-A 101.A14",'Bilans-AWO-A14'!AA16,IF(Obliczenia!$D$58="Vitocal 100-A 101.A16",'Bilans-AWO-A16'!AA16,IF(Obliczenia!$D$58="Vitocal 100-A 101.A18",'Bilans-AWO-A18'!AA16,"błąd")))))))))))))))))))))))))))))))))) -> 0 | AE16: B08 | AF16: ='B08'!B28 -> 10.98 | AG16: 1 | AI16: 63.19414634 | AJ16: 0 | AR16: =IF(Obliczenia!$D$58="Vitocal 2xx-S 201.E06",'Bilans-E06'!AR16,IF(Obliczenia!$D$58="Vitocal 2xx-S 201.E08",'Bilans-E08'!AR16,IF(Obliczenia!$D$58="Vitocal 2xx-S 201.E10",'Bilans-E10'!AR16,IF(Obliczenia!$D$58="Vitocal 1xx-S 101.B04",'Bilans-B04'!AR16,IF(Obliczenia!$D$58="Vitocal 1xx-S 101.B06",'Bilans-B06'!AR16,IF(Obliczenia!$D$58="Vitocal 1xx-S 101.B08",'Bilans-B08'!AR16,IF(Obliczenia!$D$58="Vitocal 1xx-S 101.A12",'Bilans-A12'!AR16,IF(Obliczenia!$D$58="Vitocal 1xx-S 101.A14",'Bilans-A14'!AR16,IF(Obliczenia!$D$58="Vitocal 1xx-S 101.A16",'Bilans-A16'!AR16,IF(Obliczenia!$D$58="Vitocal 2xx-S 201.D04",'Bilans-D04'!AR16,IF(Obliczenia!$D$58="Vitocal 2xx-S 201.D06",'Bilans-B06'!AR16,IF(Obliczenia!$D$58="Vitocal 2xx-S 201.D08",'Bilans-D08'!AR16,IF(Obliczenia!$D$58="Vitocal 2xx-S 201.D10",'Bilans-D10'!AR16,IF(Obliczenia!$D$58="Vitocal 2xx-S 201.D13",'Bilans-D13'!AR16,IF(Obliczenia!$D$58="Vitocal 2xx-S 201.D16",'Bilans-D16'!AR16,IF(Obliczenia!$D$58="Vitocal 15x-A 151.A10",'Bilans-151-A10'!AR16,IF(Obliczenia!$D$58="Vitocal 15x-A 151.A13",'Bilans-151-A13'!AR16,IF(Obliczenia!$D$58="Vitocal 15x-A 151.A16",'Bilans-151-A16'!AR16,IF(Obliczenia!$D$58="Vitocal 25x-A 251.A10",'Bilans-251-A10'!AR16,IF(Obliczenia!$D$58="Vitocal 25x-A 251.A13",'Bilans-251-A13'!AR16,IF(Obliczenia!$D$58="Vitocal 15x-A 151.A08",'Bilans-151-A08'!AR16,IF(Obliczenia!$D$58="Vitocal 15x-A 151.A06",'Bilans-151-A06'!AR16,IF(Obliczenia!$D$58="Vitocal 15x-A 151.A04",'Bilans-151-A04'!AR16,IF(Obliczenia!$D$58="Vitocal 25x-A 251.A04",'Bilans-251-A04'!AR16,IF(Obliczenia!$D$58="Vitocal 25x-A 251.A06",'Bilans-251-A06'!AR16,IF(Obliczenia!$D$58="Vitocal 25x-A 251.A08",'Bilans-251-A08'!AR16,IF(Obliczenia!$D$58="Vitocal 100-A 101.B06",'Bilans-AWO-B06'!AR16,IF(Obliczenia!$D$58="Vitocal 100-A 101.B08",'Bilans-AWO-B08'!AR16,IF(Obliczenia!$D$58="Vitocal 100-A 101.A10",'Bilans-AWO-A10'!AR16,IF(Obliczenia!$D$58="Vitocal 100-A 101.A12",'Bilans-AWO-A12'!AR16,IF(Obliczenia!$D$58="Vitocal 100-A 101.A14",'Bilans-AWO-A14'!AR16,IF(Obliczenia!$D$58="Vitocal 100-A 101.A16",'Bilans-AWO-A16'!AR16,IF(Obliczenia!$D$58="Vitocal 100-A 101.A18",'Bilans-AWO-A18'!AR16,"błąd"))))))))))))))))))))))))))))))))) -> 63.19414634 | AS16: =IF(Obliczenia!$D$58="Vitocal 2xx-S 201.E06",'Bilans-E06'!AS16,IF(Obliczenia!$D$58="Vitocal 2xx-S 201.E08",'Bilans-E08'!AS16,IF(Obliczenia!$D$58="Vitocal 2xx-S 201.E10",'Bilans-E10'!AS16,IF(Obliczenia!$D$58="Vitocal 1xx-S 101.B04",'Bilans-B04'!AS16,IF(Obliczenia!$D$58="Vitocal 1xx-S 101.B06",'Bilans-B06'!AS16,IF(Obliczenia!$D$58="Vitocal 1xx-S 101.B08",'Bilans-B08'!AS16,IF(Obliczenia!$D$58="Vitocal 1xx-S 101.A12",'Bilans-A12'!AS16,IF(Obliczenia!$D$58="Vitocal 1xx-S 101.A14",'Bilans-A14'!AS16,IF(Obliczenia!$D$58="Vitocal 1xx-S 101.A16",'Bilans-A16'!AS16,IF(Obliczenia!$D$58="Vitocal 2xx-S 201.D04",'Bilans-D04'!AS16,IF(Obliczenia!$D$58="Vitocal 2xx-S 201.D06",'Bilans-B06'!AS16,IF(Obliczenia!$D$58="Vitocal 2xx-S 201.D08",'Bilans-D08'!AS16,IF(Obliczenia!$D$58="Vitocal 2xx-S 201.D10",'Bilans-D10'!AS16,IF(Obliczenia!$D$58="Vitocal 2xx-S 201.D13",'Bilans-D13'!AS16,IF(Obliczenia!$D$58="Vitocal 2xx-S 201.D16",'Bilans-D16'!AS16,IF(Obliczenia!$D$58="Vitocal 15x-A 151.A10",'Bilans-151-A10'!AS16,IF(Obliczenia!$D$58="Vitocal 15x-A 151.A13",'Bilans-151-A13'!AS16,IF(Obliczenia!$D$58="Vitocal 15x-A 151.A16",'Bilans-151-A16'!AS16,IF(Obliczenia!$D$58="Vitocal 25x-A 251.A10",'Bilans-251-A10'!AS16,IF(Obliczenia!$D$58="Vitocal 25x-A 251.A13",'Bilans-251-A13'!AS16,IF(Obliczenia!$D$58="Vitocal 15x-A 151.A08",'Bilans-151-A08'!AS16,IF(Obliczenia!$D$58="Vitocal 15x-A 151.A06",'Bilans-151-A06'!AS16,IF(Obliczenia!$D$58="Vitocal 15x-A 151.A04",'Bilans-151-A04'!AS16,IF(Obliczenia!$D$58="Vitocal 25x-A 251.A04",'Bilans-251-A04'!AS16,IF(Obliczenia!$D$58="Vitocal 25x-A 251.A06",'Bilans-251-A06'!AS16,IF(Obliczenia!$D$58="Vitocal 25x-A 251.A08",'Bilans-251-A08'!AS16,IF(Obliczenia!$D$58="Vitocal 100-A 101.B06",'Bilans-AWO-B06'!AS16,IF(Obliczenia!$D$58="Vitocal 100-A 101.B08",'Bilans-AWO-B08'!AS16,IF(Obliczenia!$D$58="Vitocal 100-A 101.A10",'Bilans-AWO-A10'!AS16,IF(Obliczenia!$D$58="Vitocal 100-A 101.A12",'Bilans-AWO-A12'!AS16,IF(Obliczenia!$D$58="Vitocal 100-A 101.A14",'Bilans-AWO-A14'!AS16,IF(Obliczenia!$D$58="Vitocal 100-A 101.A16",'Bilans-AWO-A16'!AS16,IF(Obliczenia!$D$58="Vitocal 100-A 101.A18",'Bilans-AWO-A18'!AS16,"błąd"))))))))))))))))))))))))))))))))) -> 0 | AV16: =IF(Obliczenia!$D$58="Vitocal 2xx-S 201.E06",'Bilans-E06'!BJ16,IF(Obliczenia!$D$58="Vitocal 2xx-S 201.E08",'Bilans-E08'!BJ16,IF(Obliczenia!$D$58="Vitocal 2xx-S 201.E10",'Bilans-E10'!BJ16,IF(Obliczenia!$D$58="Vitocal 1xx-S 101.B04",'Bilans-B04'!BJ16,IF(Obliczenia!$D$58="Vitocal 1xx-S 101.B06",'Bilans-B06'!BJ16,IF(Obliczenia!$D$58="Vitocal 1xx-S 101.B08",'Bilans-B08'!BJ16,IF(Obliczenia!$D$58="Vitocal 1xx-S 101.A12",'Bilans-A12'!BJ16,IF(Obliczenia!$D$58="Vitocal 1xx-S 101.A14",'Bilans-A14'!BJ16,IF(Obliczenia!$D$58="Vitocal 1xx-S 101.A16",'Bilans-A16'!BJ16,IF(Obliczenia!$D$58="Vitocal 2xx-S 201.D04",'Bilans-D04'!BJ16,IF(Obliczenia!$D$58="Vitocal 2xx-S 201.D06",'Bilans-B06'!BJ16,IF(Obliczenia!$D$58="Vitocal 2xx-S 201.D08",'Bilans-D08'!BJ16,IF(Obliczenia!$D$58="Vitocal 2xx-S 201.D10",'Bilans-D10'!BJ16,IF(Obliczenia!$D$58="Vitocal 2xx-S 201.D13",'Bilans-D13'!BJ16,IF(Obliczenia!$D$58="Vitocal 2xx-S 201.D16",'Bilans-D16'!BJ16,IF(Obliczenia!$D$58="Vitocal 15x-A 151.A10",'Bilans-151-A10'!BJ16,IF(Obliczenia!$D$58="Vitocal 15x-A 151.A13",'Bilans-151-A13'!BJ16,IF(Obliczenia!$D$58="Vitocal 15x-A 151.A16",'Bilans-151-A16'!BJ16,IF(Obliczenia!$D$58="Vitocal 25x-A 251.A10",'Bilans-251-A10'!BJ16,IF(Obliczenia!$D$58="Vitocal 25x-A 251.A13",'Bilans-251-A13'!BJ16,IF(Obliczenia!$D$58="Vitocal 15x-A 151.A08",'Bilans-151-A08'!BJ16,IF(Obliczenia!$D$58="Vitocal 15x-A 151.A06",'Bilans-151-A06'!BJ16,IF(Obliczenia!$D$58="Vitocal 15x-A 151.A04",'Bilans-151-A04'!BJ16,IF(Obliczenia!$D$58="Vitocal 25x-A 251.A04",'Bilans-251-A04'!BJ16,IF(Obliczenia!$D$58="Vitocal 25x-A 251.A06",'Bilans-251-A06'!BJ16,IF(Obliczenia!$D$58="Vitocal 25x-A 251.A08",'Bilans-251-A08'!BJ16,IF(Obliczenia!$D$58="Vitocal 100-A 101.B06",'Bilans-AWO-B06'!BJ16,IF(Obliczenia!$D$58="Vitocal 100-A 101.B08",'Bilans-AWO-B08'!BJ16,IF(Obliczenia!$D$58="Vitocal 100-A 101.A10",'Bilans-AWO-A10'!BJ16,IF(Obliczenia!$D$58="Vitocal 100-A 101.A12",'Bilans-AWO-A12'!BJ16,IF(Obliczenia!$D$58="Vitocal 100-A 101.A14",'Bilans-AWO-A14'!BJ16,IF(Obliczenia!$D$58="Vitocal 100-A 101.A16",'Bilans-AWO-A16'!BJ16,IF(Obliczenia!$D$58="Vitocal 100-A 101.A18",'Bilans-AWO-A18'!BJ16,"błąd"))))))))))))))))))))))))))))))))) -> 63.19414634 | AW16: =IF(Obliczenia!$D$58="Vitocal 2xx-S 201.E06",'Bilans-E06'!BK16,IF(Obliczenia!$D$58="Vitocal 2xx-S 201.E08",'Bilans-E08'!BK16,IF(Obliczenia!$D$58="Vitocal 2xx-S 201.E10",'Bilans-E10'!BK16,IF(Obliczenia!$D$58="Vitocal 1xx-S 101.B04",'Bilans-B04'!BK16,IF(Obliczenia!$D$58="Vitocal 1xx-S 101.B06",'Bilans-B06'!BK16,IF(Obliczenia!$D$58="Vitocal 1xx-S 101.B08",'Bilans-B08'!BK16,IF(Obliczenia!$D$58="Vitocal 1xx-S 101.A12",'Bilans-A12'!BK16,IF(Obliczenia!$D$58="Vitocal 1xx-S 101.A14",'Bilans-A14'!BK16,IF(Obliczenia!$D$58="Vitocal 1xx-S 101.A16",'Bilans-A16'!BK16,IF(Obliczenia!$D$58="Vitocal 2xx-S 201.D04",'Bilans-D04'!BK16,IF(Obliczenia!$D$58="Vitocal 2xx-S 201.D06",'Bilans-B06'!BK16,IF(Obliczenia!$D$58="Vitocal 2xx-S 201.D08",'Bilans-D08'!BK16,IF(Obliczenia!$D$58="Vitocal 2xx-S 201.D10",'Bilans-D10'!BK16,IF(Obliczenia!$D$58="Vitocal 2xx-S 201.D13",'Bilans-D13'!BK16,IF(Obliczenia!$D$58="Vitocal 2xx-S 201.D16",'Bilans-D16'!BK16,IF(Obliczenia!$D$58="Vitocal 15x-A 151.A10",'Bilans-151-A10'!BK16,IF(Obliczenia!$D$58="Vitocal 15x-A 151.A13",'Bilans-151-A13'!BK16,IF(Obliczenia!$D$58="Vitocal 15x-A 151.A16",'Bilans-151-A16'!BK16,IF(Obliczenia!$D$58="Vitocal 25x-A 251.A10",'Bilans-251-A10'!BK16,IF(Obliczenia!$D$58="Vitocal 25x-A 251.A13",'Bilans-251-A13'!BK16,IF(Obliczenia!$D$58="Vitocal 15x-A 151.A08",'Bilans-151-A08'!BK16,IF(Obliczenia!$D$58="Vitocal 15x-A 151.A06",'Bilans-151-A06'!BK16,IF(Obliczenia!$D$58="Vitocal 15x-A 151.A04",'Bilans-151-A04'!BK16,IF(Obliczenia!$D$58="Vitocal 25x-A 251.A04",'Bilans-251-A04'!BK16,IF(Obliczenia!$D$58="Vitocal 25x-A 251.A06",'Bilans-251-A06'!BK16,IF(Obliczenia!$D$58="Vitocal 25x-A 251.A08",'Bilans-251-A08'!BK16,IF(Obliczenia!$D$58="Vitocal 100-A 101.B06",'Bilans-AWO-B06'!BK16,IF(Obliczenia!$D$58="Vitocal 100-A 101.B08",'Bilans-AWO-B08'!BK16,IF(Obliczenia!$D$58="Vitocal 100-A 101.A10",'Bilans-AWO-A10'!BK16,IF(Obliczenia!$D$58="Vitocal 100-A 101.A12",'Bilans-AWO-A12'!BK16,IF(Obliczenia!$D$58="Vitocal 100-A 101.A14",'Bilans-AWO-A14'!BK16,IF(Obliczenia!$D$58="Vitocal 100-A 101.A16",'Bilans-AWO-A16'!BK16,IF(Obliczenia!$D$58="Vitocal 100-A 101.A18",'Bilans-AWO-A18'!BK16,"błąd"))))))))))))))))))))))))))))))))) -> 0 | AZ16: =IF(Obliczenia!$D$58="Vitocal 15x-A 151.A10",'Bilans-151-A10'!CK16,IF(Obliczenia!$D$58="Vitocal 15x-A 151.A13",'Bilans-151-A13'!CK16,IF(Obliczenia!$D$58="Vitocal 15x-A 151.A16",'Bilans-151-A16'!CK16,IF(Obliczenia!$D$58="Vitocal 25x-A 251.A10",'Bilans-251-A10'!CK16,IF(Obliczenia!$D$58="Vitocal 25x-A 251.A13",'Bilans-251-A13'!CK16,IF(Obliczenia!$D$58="Vitocal 15x-A 151.A08",'Bilans-151-A08'!CK16,IF(Obliczenia!$D$58="Vitocal 15x-A 151.A06",'Bilans-151-A06'!CK16,IF(Obliczenia!$D$58="Vitocal 15x-A 151.A04",'Bilans-151-A04'!CK16,IF(Obliczenia!$D$58="Vitocal 25x-A 251.A04",'Bilans-251-A04'!CK16,IF(Obliczenia!$D$58="Vitocal 25x-A 251.A06",'Bilans-251-A06'!CK16,IF(Obliczenia!$D$58="Vitocal 25x-A 251.A08",'Bilans-251-A08'!CK16,"błąd"))))))))))) -> błąd | BA16: =IF(Obliczenia!$D$58="Vitocal 15x-A 151.A10",'Bilans-151-A10'!CL16,IF(Obliczenia!$D$58="Vitocal 15x-A 151.A13",'Bilans-151-A13'!CL16,IF(Obliczenia!$D$58="Vitocal 15x-A 151.A16",'Bilans-151-A16'!CL16,IF(Obliczenia!$D$58="Vitocal 25x-A 251.A10",'Bilans-251-A10'!CL16,IF(Obliczenia!$D$58="Vitocal 25x-A 251.A13",'Bilans-251-A13'!CL16,IF(Obliczenia!$D$58="Vitocal 15x-A 151.A08",'Bilans-151-A08'!CL16,IF(Obliczenia!$D$58="Vitocal 15x-A 151.A06",'Bilans-151-A06'!CL16,IF(Obliczenia!$D$58="Vitocal 15x-A 151.A04",'Bilans-151-A04'!CL16,IF(Obliczenia!$D$58="Vitocal 25x-A 251.A04",'Bilans-251-A04'!CL16,IF(Obliczenia!$D$58="Vitocal 25x-A 251.A06",'Bilans-251-A06'!CL16,IF(Obliczenia!$D$58="Vitocal 25x-A 251.A08",'Bilans-251-A08'!CL16,"błąd"))))))))))) -> błąd | BW16: Vitocal 100-S AWB-E(-AC) 101.A14 | BX16: ='A14'!B25 -> 36761 | BY16: ='Bilans-A14'!G7 -> 3.219517489 | BZ16: 11418.17062 | CA16: 11418.17062 | CD16: Różnica | CH16: =(CH15-CH14)*(-1) -> 1427.109353 | CI16: kg | CK16: -0.4166666667 | CL16: -7.020833333
A17: 12 | B17: 5.1 | C17: 5.1 | E17: 11 | F17: =AVERAGE(C247:C270) -> -0.9583333333 | H17: =F17*Budynek!$D$31+Budynek!$D$32 -> 27.859375 | J17: =Budynek!$D$4*(Dane!$E$12-F17)*12/1000 -> 35.73317073 | L17: =Budynek!$D$4*(Dane!$E$13-F17)*12/1000 -> 29.22390244 | N17: 64.95707317 | P17: 64.95707317 | Q17: 64.95707317 | R17: 64.95707317 | S17: 64.95707317 | T17: 7.11627907 | AA17: =IF(Obliczenia!$D$58="Vitocal 2xx-S 201.E06",'Bilans-E06'!Z17,IF(Obliczenia!$D$58="Vitocal 2xx-S 201.E08",'Bilans-E08'!Z17,IF(Obliczenia!$D$58="Vitocal 2xx-S 201.E10",'Bilans-E10'!Z17,IF(Obliczenia!$D$58="Vitocal 1xx-S 101.B04",'Bilans-B04'!Z17,IF(Obliczenia!$D$58="Vitocal 1xx-S 101.B06",'Bilans-B06'!Z17,IF(Obliczenia!$D$58="Vitocal 1xx-S 101.B08",'Bilans-B08'!Z17,IF(Obliczenia!$D$58="Vitocal 1xx-S 101.A12",'Bilans-A12'!Z17,IF(Obliczenia!$D$58="Vitocal 1xx-S 101.A14",'Bilans-A14'!Z17,IF(Obliczenia!$D$58="Vitocal 1xx-S 101.A16",'Bilans-A16'!Z17,IF(Obliczenia!$D$58="Vitocal 2xx-S 201.D04",'Bilans-D04'!Z17,IF(Obliczenia!$D$58="Vitocal 2xx-S 201.D06",'Bilans-B06'!Z17,IF(Obliczenia!$D$58="Vitocal 2xx-S 201.D08",'Bilans-D08'!Z17,IF(Obliczenia!$D$58="Vitocal 2xx-S 201.D10",'Bilans-D10'!Z17,IF(Obliczenia!$D$58="Vitocal 2xx-S 201.D13",'Bilans-D13'!Z17,IF(Obliczenia!$D$58="Vitocal 2xx-S 201.D16",'Bilans-D16'!Z17,IF(Obliczenia!$D$58="Vitocal 15x-A 151.A10",'Bilans-151-A10'!Z17,IF(Obliczenia!$D$58="Vitocal 15x-A 151.A13",'Bilans-151-A13'!Z17,IF(Obliczenia!$D$58="Vitocal 15x-A 151.A16",'Bilans-151-A16'!Z17,IF(Obliczenia!$D$58="Vitocal 15x-A 151.A16",'Bilans-151-A16'!Z17,IF(Obliczenia!$D$58="Vitocal 25x-A 251.A10",'Bilans-251-A10'!Z17,IF(Obliczenia!$D$58="Vitocal 25x-A 251.A13",'Bilans-251-A13'!Z17,IF(Obliczenia!$D$58="Vitocal 15x-A 151.A06",'Bilans-151-A06'!Z17,IF(Obliczenia!$D$58="Vitocal 15x-A 151.A08",'Bilans-151-A08'!Z17,IF(Obliczenia!$D$58="Vitocal 15x-A 151.A04",'Bilans-151-A04'!Z17,IF(Obliczenia!$D$58="Vitocal 25x-A 251.A04",'Bilans-251-A04'!Z17,IF(Obliczenia!$D$58="Vitocal 25x-A 251.A06",'Bilans-251-A06'!Z17,IF(Obliczenia!$D$58="Vitocal 25x-A 251.A08",'Bilans-251-A08'!Z17,IF(Obliczenia!$D$58="Vitocal 100-A 101.B06",'Bilans-AWO-B06'!Z17,IF(Obliczenia!$D$58="Vitocal 100-A 101.B08",'Bilans-AWO-B08'!Z17,IF(Obliczenia!$D$58="Vitocal 100-A 101.A10",'Bilans-AWO-A10'!Z17,IF(Obliczenia!$D$58="Vitocal 100-A 101.A12",'Bilans-AWO-A12'!Z17,IF(Obliczenia!$D$58="Vitocal 100-A 101.A14",'Bilans-AWO-A14'!Z17,IF(Obliczenia!$D$58="Vitocal 100-A 101.A16",'Bilans-AWO-A16'!Z17,IF(Obliczenia!$D$58="Vitocal 100-A 101.A18",'Bilans-AWO-A18'!Z17,"błąd")))))))))))))))))))))))))))))))))) -> 64.95707317 | AB17: =IF(Obliczenia!$D$58="Vitocal 2xx-S 201.E06",'Bilans-E06'!AA17,IF(Obliczenia!$D$58="Vitocal 2xx-S 201.E08",'Bilans-E08'!AA17,IF(Obliczenia!$D$58="Vitocal 2xx-S 201.E10",'Bilans-E10'!AA17,IF(Obliczenia!$D$58="Vitocal 1xx-S 101.B04",'Bilans-B04'!AA17,IF(Obliczenia!$D$58="Vitocal 1xx-S 101.B06",'Bilans-B06'!AA17,IF(Obliczenia!$D$58="Vitocal 1xx-S 101.B08",'Bilans-B08'!AA17,IF(Obliczenia!$D$58="Vitocal 1xx-S 101.A12",'Bilans-A12'!AA17,IF(Obliczenia!$D$58="Vitocal 1xx-S 101.A14",'Bilans-A14'!AA17,IF(Obliczenia!$D$58="Vitocal 1xx-S 101.A16",'Bilans-A16'!AA17,IF(Obliczenia!$D$58="Vitocal 2xx-S 201.D04",'Bilans-D04'!AA17,IF(Obliczenia!$D$58="Vitocal 2xx-S 201.D06",'Bilans-B06'!AA17,IF(Obliczenia!$D$58="Vitocal 2xx-S 201.D08",'Bilans-D08'!AA17,IF(Obliczenia!$D$58="Vitocal 2xx-S 201.D10",'Bilans-D10'!AA17,IF(Obliczenia!$D$58="Vitocal 2xx-S 201.D13",'Bilans-D13'!AA17,IF(Obliczenia!$D$58="Vitocal 2xx-S 201.D16",'Bilans-D16'!AA17,IF(Obliczenia!$D$58="Vitocal 15x-A 151.A10",'Bilans-151-A10'!AA17,IF(Obliczenia!$D$58="Vitocal 15x-A 151.A13",'Bilans-151-A13'!AA17,IF(Obliczenia!$D$58="Vitocal 15x-A 151.A16",'Bilans-151-A16'!AA17,IF(Obliczenia!$D$58="Vitocal 15x-A 151.A16",'Bilans-151-A16'!AA17,IF(Obliczenia!$D$58="Vitocal 25x-A 251.A10",'Bilans-251-A10'!AA17,IF(Obliczenia!$D$58="Vitocal 25x-A 251.A13",'Bilans-251-A13'!AA17,IF(Obliczenia!$D$58="Vitocal 15x-A 151.A08",'Bilans-151-A08'!AA17,IF(Obliczenia!$D$58="Vitocal 15x-A 151.A06",'Bilans-151-A06'!AA17,IF(Obliczenia!$D$58="Vitocal 15x-A 151.A04",'Bilans-151-A04'!AA17,IF(Obliczenia!$D$58="Vitocal 25x-A 251.A04",'Bilans-251-A04'!AA17,IF(Obliczenia!$D$58="Vitocal 25x-A 251.A06",'Bilans-251-A06'!AA17,IF(Obliczenia!$D$58="Vitocal 25x-A 251.A08",'Bilans-251-A08'!AA17,IF(Obliczenia!$D$58="Vitocal 100-A 101.B06",'Bilans-AWO-B06'!AA17,IF(Obliczenia!$D$58="Vitocal 100-A 101.B08",'Bilans-AWO-B08'!AA17,IF(Obliczenia!$D$58="Vitocal 100-A 101.A10",'Bilans-AWO-A10'!AA17,IF(Obliczenia!$D$58="Vitocal 100-A 101.A12",'Bilans-AWO-A12'!AA17,IF(Obliczenia!$D$58="Vitocal 100-A 101.A14",'Bilans-AWO-A14'!AA17,IF(Obliczenia!$D$58="Vitocal 100-A 101.A16",'Bilans-AWO-A16'!AA17,IF(Obliczenia!$D$58="Vitocal 100-A 101.A18",'Bilans-AWO-A18'!AA17,"błąd")))))))))))))))))))))))))))))))))) -> 0 | AE17: B06 | AF17: ='B06'!B28 -> 8.7 | AG17: =IF(AF17>=$AF$4,IF($C$3<>"Grzejniki wysokotemperaturowe 70/55",1,0),0) -> 1 | AI17: 64.95707317 | AJ17: 0 | AR17: =IF(Obliczenia!$D$58="Vitocal 2xx-S 201.E06",'Bilans-E06'!AR17,IF(Obliczenia!$D$58="Vitocal 2xx-S 201.E08",'Bilans-E08'!AR17,IF(Obliczenia!$D$58="Vitocal 2xx-S 201.E10",'Bilans-E10'!AR17,IF(Obliczenia!$D$58="Vitocal 1xx-S 101.B04",'Bilans-B04'!AR17,IF(Obliczenia!$D$58="Vitocal 1xx-S 101.B06",'Bilans-B06'!AR17,IF(Obliczenia!$D$58="Vitocal 1xx-S 101.B08",'Bilans-B08'!AR17,IF(Obliczenia!$D$58="Vitocal 1xx-S 101.A12",'Bilans-A12'!AR17,IF(Obliczenia!$D$58="Vitocal 1xx-S 101.A14",'Bilans-A14'!AR17,IF(Obliczenia!$D$58="Vitocal 1xx-S 101.A16",'Bilans-A16'!AR17,IF(Obliczenia!$D$58="Vitocal 2xx-S 201.D04",'Bilans-D04'!AR17,IF(Obliczenia!$D$58="Vitocal 2xx-S 201.D06",'Bilans-B06'!AR17,IF(Obliczenia!$D$58="Vitocal 2xx-S 201.D08",'Bilans-D08'!AR17,IF(Obliczenia!$D$58="Vitocal 2xx-S 201.D10",'Bilans-D10'!AR17,IF(Obliczenia!$D$58="Vitocal 2xx-S 201.D13",'Bilans-D13'!AR17,IF(Obliczenia!$D$58="Vitocal 2xx-S 201.D16",'Bilans-D16'!AR17,IF(Obliczenia!$D$58="Vitocal 15x-A 151.A10",'Bilans-151-A10'!AR17,IF(Obliczenia!$D$58="Vitocal 15x-A 151.A13",'Bilans-151-A13'!AR17,IF(Obliczenia!$D$58="Vitocal 15x-A 151.A16",'Bilans-151-A16'!AR17,IF(Obliczenia!$D$58="Vitocal 25x-A 251.A10",'Bilans-251-A10'!AR17,IF(Obliczenia!$D$58="Vitocal 25x-A 251.A13",'Bilans-251-A13'!AR17,IF(Obliczenia!$D$58="Vitocal 15x-A 151.A08",'Bilans-151-A08'!AR17,IF(Obliczenia!$D$58="Vitocal 15x-A 151.A06",'Bilans-151-A06'!AR17,IF(Obliczenia!$D$58="Vitocal 15x-A 151.A04",'Bilans-151-A04'!AR17,IF(Obliczenia!$D$58="Vitocal 25x-A 251.A04",'Bilans-251-A04'!AR17,IF(Obliczenia!$D$58="Vitocal 25x-A 251.A06",'Bilans-251-A06'!AR17,IF(Obliczenia!$D$58="Vitocal 25x-A 251.A08",'Bilans-251-A08'!AR17,IF(Obliczenia!$D$58="Vitocal 100-A 101.B06",'Bilans-AWO-B06'!AR17,IF(Obliczenia!$D$58="Vitocal 100-A 101.B08",'Bilans-AWO-B08'!AR17,IF(Obliczenia!$D$58="Vitocal 100-A 101.A10",'Bilans-AWO-A10'!AR17,IF(Obliczenia!$D$58="Vitocal 100-A 101.A12",'Bilans-AWO-A12'!AR17,IF(Obliczenia!$D$58="Vitocal 100-A 101.A14",'Bilans-AWO-A14'!AR17,IF(Obliczenia!$D$58="Vitocal 100-A 101.A16",'Bilans-AWO-A16'!AR17,IF(Obliczenia!$D$58="Vitocal 100-A 101.A18",'Bilans-AWO-A18'!AR17,"błąd"))))))))))))))))))))))))))))))))) -> 64.95707317 | AS17: =IF(Obliczenia!$D$58="Vitocal 2xx-S 201.E06",'Bilans-E06'!AS17,IF(Obliczenia!$D$58="Vitocal 2xx-S 201.E08",'Bilans-E08'!AS17,IF(Obliczenia!$D$58="Vitocal 2xx-S 201.E10",'Bilans-E10'!AS17,IF(Obliczenia!$D$58="Vitocal 1xx-S 101.B04",'Bilans-B04'!AS17,IF(Obliczenia!$D$58="Vitocal 1xx-S 101.B06",'Bilans-B06'!AS17,IF(Obliczenia!$D$58="Vitocal 1xx-S 101.B08",'Bilans-B08'!AS17,IF(Obliczenia!$D$58="Vitocal 1xx-S 101.A12",'Bilans-A12'!AS17,IF(Obliczenia!$D$58="Vitocal 1xx-S 101.A14",'Bilans-A14'!AS17,IF(Obliczenia!$D$58="Vitocal 1xx-S 101.A16",'Bilans-A16'!AS17,IF(Obliczenia!$D$58="Vitocal 2xx-S 201.D04",'Bilans-D04'!AS17,IF(Obliczenia!$D$58="Vitocal 2xx-S 201.D06",'Bilans-B06'!AS17,IF(Obliczenia!$D$58="Vitocal 2xx-S 201.D08",'Bilans-D08'!AS17,IF(Obliczenia!$D$58="Vitocal 2xx-S 201.D10",'Bilans-D10'!AS17,IF(Obliczenia!$D$58="Vitocal 2xx-S 201.D13",'Bilans-D13'!AS17,IF(Obliczenia!$D$58="Vitocal 2xx-S 201.D16",'Bilans-D16'!AS17,IF(Obliczenia!$D$58="Vitocal 15x-A 151.A10",'Bilans-151-A10'!AS17,IF(Obliczenia!$D$58="Vitocal 15x-A 151.A13",'Bilans-151-A13'!AS17,IF(Obliczenia!$D$58="Vitocal 15x-A 151.A16",'Bilans-151-A16'!AS17,IF(Obliczenia!$D$58="Vitocal 25x-A 251.A10",'Bilans-251-A10'!AS17,IF(Obliczenia!$D$58="Vitocal 25x-A 251.A13",'Bilans-251-A13'!AS17,IF(Obliczenia!$D$58="Vitocal 15x-A 151.A08",'Bilans-151-A08'!AS17,IF(Obliczenia!$D$58="Vitocal 15x-A 151.A06",'Bilans-151-A06'!AS17,IF(Obliczenia!$D$58="Vitocal 15x-A 151.A04",'Bilans-151-A04'!AS17,IF(Obliczenia!$D$58="Vitocal 25x-A 251.A04",'Bilans-251-A04'!AS17,IF(Obliczenia!$D$58="Vitocal 25x-A 251.A06",'Bilans-251-A06'!AS17,IF(Obliczenia!$D$58="Vitocal 25x-A 251.A08",'Bilans-251-A08'!AS17,IF(Obliczenia!$D$58="Vitocal 100-A 101.B06",'Bilans-AWO-B06'!AS17,IF(Obliczenia!$D$58="Vitocal 100-A 101.B08",'Bilans-AWO-B08'!AS17,IF(Obliczenia!$D$58="Vitocal 100-A 101.A10",'Bilans-AWO-A10'!AS17,IF(Obliczenia!$D$58="Vitocal 100-A 101.A12",'Bilans-AWO-A12'!AS17,IF(Obliczenia!$D$58="Vitocal 100-A 101.A14",'Bilans-AWO-A14'!AS17,IF(Obliczenia!$D$58="Vitocal 100-A 101.A16",'Bilans-AWO-A16'!AS17,IF(Obliczenia!$D$58="Vitocal 100-A 101.A18",'Bilans-AWO-A18'!AS17,"błąd"))))))))))))))))))))))))))))))))) -> 0 | AV17: =IF(Obliczenia!$D$58="Vitocal 2xx-S 201.E06",'Bilans-E06'!BJ17,IF(Obliczenia!$D$58="Vitocal 2xx-S 201.E08",'Bilans-E08'!BJ17,IF(Obliczenia!$D$58="Vitocal 2xx-S 201.E10",'Bilans-E10'!BJ17,IF(Obliczenia!$D$58="Vitocal 1xx-S 101.B04",'Bilans-B04'!BJ17,IF(Obliczenia!$D$58="Vitocal 1xx-S 101.B06",'Bilans-B06'!BJ17,IF(Obliczenia!$D$58="Vitocal 1xx-S 101.B08",'Bilans-B08'!BJ17,IF(Obliczenia!$D$58="Vitocal 1xx-S 101.A12",'Bilans-A12'!BJ17,IF(Obliczenia!$D$58="Vitocal 1xx-S 101.A14",'Bilans-A14'!BJ17,IF(Obliczenia!$D$58="Vitocal 1xx-S 101.A16",'Bilans-A16'!BJ17,IF(Obliczenia!$D$58="Vitocal 2xx-S 201.D04",'Bilans-D04'!BJ17,IF(Obliczenia!$D$58="Vitocal 2xx-S 201.D06",'Bilans-B06'!BJ17,IF(Obliczenia!$D$58="Vitocal 2xx-S 201.D08",'Bilans-D08'!BJ17,IF(Obliczenia!$D$58="Vitocal 2xx-S 201.D10",'Bilans-D10'!BJ17,IF(Obliczenia!$D$58="Vitocal 2xx-S 201.D13",'Bilans-D13'!BJ17,IF(Obliczenia!$D$58="Vitocal 2xx-S 201.D16",'Bilans-D16'!BJ17,IF(Obliczenia!$D$58="Vitocal 15x-A 151.A10",'Bilans-151-A10'!BJ17,IF(Obliczenia!$D$58="Vitocal 15x-A 151.A13",'Bilans-151-A13'!BJ17,IF(Obliczenia!$D$58="Vitocal 15x-A 151.A16",'Bilans-151-A16'!BJ17,IF(Obliczenia!$D$58="Vitocal 25x-A 251.A10",'Bilans-251-A10'!BJ17,IF(Obliczenia!$D$58="Vitocal 25x-A 251.A13",'Bilans-251-A13'!BJ17,IF(Obliczenia!$D$58="Vitocal 15x-A 151.A08",'Bilans-151-A08'!BJ17,IF(Obliczenia!$D$58="Vitocal 15x-A 151.A06",'Bilans-151-A06'!BJ17,IF(Obliczenia!$D$58="Vitocal 15x-A 151.A04",'Bilans-151-A04'!BJ17,IF(Obliczenia!$D$58="Vitocal 25x-A 251.A04",'Bilans-251-A04'!BJ17,IF(Obliczenia!$D$58="Vitocal 25x-A 251.A06",'Bilans-251-A06'!BJ17,IF(Obliczenia!$D$58="Vitocal 25x-A 251.A08",'Bilans-251-A08'!BJ17,IF(Obliczenia!$D$58="Vitocal 100-A 101.B06",'Bilans-AWO-B06'!BJ17,IF(Obliczenia!$D$58="Vitocal 100-A 101.B08",'Bilans-AWO-B08'!BJ17,IF(Obliczenia!$D$58="Vitocal 100-A 101.A10",'Bilans-AWO-A10'!BJ17,IF(Obliczenia!$D$58="Vitocal 100-A 101.A12",'Bilans-AWO-A12'!BJ17,IF(Obliczenia!$D$58="Vitocal 100-A 101.A14",'Bilans-AWO-A14'!BJ17,IF(Obliczenia!$D$58="Vitocal 100-A 101.A16",'Bilans-AWO-A16'!BJ17,IF(Obliczenia!$D$58="Vitocal 100-A 101.A18",'Bilans-AWO-A18'!BJ17,"błąd"))))))))))))))))))))))))))))))))) -> 64.95707317 | AW17: =IF(Obliczenia!$D$58="Vitocal 2xx-S 201.E06",'Bilans-E06'!BK17,IF(Obliczenia!$D$58="Vitocal 2xx-S 201.E08",'Bilans-E08'!BK17,IF(Obliczenia!$D$58="Vitocal 2xx-S 201.E10",'Bilans-E10'!BK17,IF(Obliczenia!$D$58="Vitocal 1xx-S 101.B04",'Bilans-B04'!BK17,IF(Obliczenia!$D$58="Vitocal 1xx-S 101.B06",'Bilans-B06'!BK17,IF(Obliczenia!$D$58="Vitocal 1xx-S 101.B08",'Bilans-B08'!BK17,IF(Obliczenia!$D$58="Vitocal 1xx-S 101.A12",'Bilans-A12'!BK17,IF(Obliczenia!$D$58="Vitocal 1xx-S 101.A14",'Bilans-A14'!BK17,IF(Obliczenia!$D$58="Vitocal 1xx-S 101.A16",'Bilans-A16'!BK17,IF(Obliczenia!$D$58="Vitocal 2xx-S 201.D04",'Bilans-D04'!BK17,IF(Obliczenia!$D$58="Vitocal 2xx-S 201.D06",'Bilans-B06'!BK17,IF(Obliczenia!$D$58="Vitocal 2xx-S 201.D08",'Bilans-D08'!BK17,IF(Obliczenia!$D$58="Vitocal 2xx-S 201.D10",'Bilans-D10'!BK17,IF(Obliczenia!$D$58="Vitocal 2xx-S 201.D13",'Bilans-D13'!BK17,IF(Obliczenia!$D$58="Vitocal 2xx-S 201.D16",'Bilans-D16'!BK17,IF(Obliczenia!$D$58="Vitocal 15x-A 151.A10",'Bilans-151-A10'!BK17,IF(Obliczenia!$D$58="Vitocal 15x-A 151.A13",'Bilans-151-A13'!BK17,IF(Obliczenia!$D$58="Vitocal 15x-A 151.A16",'Bilans-151-A16'!BK17,IF(Obliczenia!$D$58="Vitocal 25x-A 251.A10",'Bilans-251-A10'!BK17,IF(Obliczenia!$D$58="Vitocal 25x-A 251.A13",'Bilans-251-A13'!BK17,IF(Obliczenia!$D$58="Vitocal 15x-A 151.A08",'Bilans-151-A08'!BK17,IF(Obliczenia!$D$58="Vitocal 15x-A 151.A06",'Bilans-151-A06'!BK17,IF(Obliczenia!$D$58="Vitocal 15x-A 151.A04",'Bilans-151-A04'!BK17,IF(Obliczenia!$D$58="Vitocal 25x-A 251.A04",'Bilans-251-A04'!BK17,IF(Obliczenia!$D$58="Vitocal 25x-A 251.A06",'Bilans-251-A06'!BK17,IF(Obliczenia!$D$58="Vitocal 25x-A 251.A08",'Bilans-251-A08'!BK17,IF(Obliczenia!$D$58="Vitocal 100-A 101.B06",'Bilans-AWO-B06'!BK17,IF(Obliczenia!$D$58="Vitocal 100-A 101.B08",'Bilans-AWO-B08'!BK17,IF(Obliczenia!$D$58="Vitocal 100-A 101.A10",'Bilans-AWO-A10'!BK17,IF(Obliczenia!$D$58="Vitocal 100-A 101.A12",'Bilans-AWO-A12'!BK17,IF(Obliczenia!$D$58="Vitocal 100-A 101.A14",'Bilans-AWO-A14'!BK17,IF(Obliczenia!$D$58="Vitocal 100-A 101.A16",'Bilans-AWO-A16'!BK17,IF(Obliczenia!$D$58="Vitocal 100-A 101.A18",'Bilans-AWO-A18'!BK17,"błąd"))))))))))))))))))))))))))))))))) -> 0 | AZ17: =IF(Obliczenia!$D$58="Vitocal 15x-A 151.A10",'Bilans-151-A10'!CK17,IF(Obliczenia!$D$58="Vitocal 15x-A 151.A13",'Bilans-151-A13'!CK17,IF(Obliczenia!$D$58="Vitocal 15x-A 151.A16",'Bilans-151-A16'!CK17,IF(Obliczenia!$D$58="Vitocal 25x-A 251.A10",'Bilans-251-A10'!CK17,IF(Obliczenia!$D$58="Vitocal 25x-A 251.A13",'Bilans-251-A13'!CK17,IF(Obliczenia!$D$58="Vitocal 15x-A 151.A08",'Bilans-151-A08'!CK17,IF(Obliczenia!$D$58="Vitocal 15x-A 151.A06",'Bilans-151-A06'!CK17,IF(Obliczenia!$D$58="Vitocal 15x-A 151.A04",'Bilans-151-A04'!CK17,IF(Obliczenia!$D$58="Vitocal 25x-A 251.A04",'Bilans-251-A04'!CK17,IF(Obliczenia!$D$58="Vitocal 25x-A 251.A06",'Bilans-251-A06'!CK17,IF(Obliczenia!$D$58="Vitocal 25x-A 251.A08",'Bilans-251-A08'!CK17,"błąd"))))))))))) -> błąd | BA17: =IF(Obliczenia!$D$58="Vitocal 15x-A 151.A10",'Bilans-151-A10'!CL17,IF(Obliczenia!$D$58="Vitocal 15x-A 151.A13",'Bilans-151-A13'!CL17,IF(Obliczenia!$D$58="Vitocal 15x-A 151.A16",'Bilans-151-A16'!CL17,IF(Obliczenia!$D$58="Vitocal 25x-A 251.A10",'Bilans-251-A10'!CL17,IF(Obliczenia!$D$58="Vitocal 25x-A 251.A13",'Bilans-251-A13'!CL17,IF(Obliczenia!$D$58="Vitocal 15x-A 151.A08",'Bilans-151-A08'!CL17,IF(Obliczenia!$D$58="Vitocal 15x-A 151.A06",'Bilans-151-A06'!CL17,IF(Obliczenia!$D$58="Vitocal 15x-A 151.A04",'Bilans-151-A04'!CL17,IF(Obliczenia!$D$58="Vitocal 25x-A 251.A04",'Bilans-251-A04'!CL17,IF(Obliczenia!$D$58="Vitocal 25x-A 251.A06",'Bilans-251-A06'!CL17,IF(Obliczenia!$D$58="Vitocal 25x-A 251.A08",'Bilans-251-A08'!CL17,"błąd"))))))))))) -> błąd | BE17: =IF(C3="Grzejniki niskotemperaturowe 55/45","Moc grzewcza pompy ciepła dla W55",IF(C3="Ogrzewanie podłogowe","Moc grzewcza pompy ciepła dla W35",IF(C3="Grzejniki wysokotemperaturowe 70/55","Moc grzewcza pompy ciepła dla W70","Moc grzewcza pompy ciepła dla W45"))) -> Moc grzewcza pompy ciepła dla W35 | BF17: =IF($C$3="Grzejniki niskotemperaturowe 55/45",ROUND(BF10,2),IF($C$3="Ogrzewanie podłogowe",ROUND(BF8,2),IF($C$3="Grzejniki wysokotemperaturowe 70/55",ROUND(BF12,2),ROUND(BF11,2)))) -> 3.9 | BG17: =IF($C$3="Grzejniki niskotemperaturowe 55/45",ROUND(BG10,2),IF($C$3="Ogrzewanie podłogowe",ROUND(BG8,2),IF($C$3="Grzejniki wysokotemperaturowe 70/55",ROUND(BG12,2),ROUND(BG11,2)))) -> 4.24 | BH17: 5.5 | BI17: 6.15 | BJ17: 7.5 | BK17: 8.25 | BL17: 8.54 | BM17: 8.97 | BN17: 9.68 | BO17: 11.38 | BW17: Vitocal 100-S AWB-E(-AC) 101.A16 | BX17: ='A16'!B25 -> 37672 | BY17: ='Bilans-A16'!G7 -> 3.150374166 | BZ17: 11957.94468 | CA17: 11957.94468 | CK17: -0.9583333333 | CL17: -6.879166667
A18: 13 | B18: 5.1 | C18: 5.1 | E18: 12 | F18: =AVERAGE(C271:C294) -> -1.1375 | H18: =F18*Budynek!$D$31+Budynek!$D$32 -> 27.9265625 | J18: =Budynek!$D$4*(Dane!$E$12-F18)*12/1000 -> 36.02473171 | L18: =Budynek!$D$4*(Dane!$E$13-F18)*12/1000 -> 29.51546341 | N18: 65.54019512 | P18: 65.54019512 | Q18: 65.54019512 | R18: 65.54019512 | S18: 65.54019512 | T18: 7.11627907 | AA18: =IF(Obliczenia!$D$58="Vitocal 2xx-S 201.E06",'Bilans-E06'!Z18,IF(Obliczenia!$D$58="Vitocal 2xx-S 201.E08",'Bilans-E08'!Z18,IF(Obliczenia!$D$58="Vitocal 2xx-S 201.E10",'Bilans-E10'!Z18,IF(Obliczenia!$D$58="Vitocal 1xx-S 101.B04",'Bilans-B04'!Z18,IF(Obliczenia!$D$58="Vitocal 1xx-S 101.B06",'Bilans-B06'!Z18,IF(Obliczenia!$D$58="Vitocal 1xx-S 101.B08",'Bilans-B08'!Z18,IF(Obliczenia!$D$58="Vitocal 1xx-S 101.A12",'Bilans-A12'!Z18,IF(Obliczenia!$D$58="Vitocal 1xx-S 101.A14",'Bilans-A14'!Z18,IF(Obliczenia!$D$58="Vitocal 1xx-S 101.A16",'Bilans-A16'!Z18,IF(Obliczenia!$D$58="Vitocal 2xx-S 201.D04",'Bilans-D04'!Z18,IF(Obliczenia!$D$58="Vitocal 2xx-S 201.D06",'Bilans-B06'!Z18,IF(Obliczenia!$D$58="Vitocal 2xx-S 201.D08",'Bilans-D08'!Z18,IF(Obliczenia!$D$58="Vitocal 2xx-S 201.D10",'Bilans-D10'!Z18,IF(Obliczenia!$D$58="Vitocal 2xx-S 201.D13",'Bilans-D13'!Z18,IF(Obliczenia!$D$58="Vitocal 2xx-S 201.D16",'Bilans-D16'!Z18,IF(Obliczenia!$D$58="Vitocal 15x-A 151.A10",'Bilans-151-A10'!Z18,IF(Obliczenia!$D$58="Vitocal 15x-A 151.A13",'Bilans-151-A13'!Z18,IF(Obliczenia!$D$58="Vitocal 15x-A 151.A16",'Bilans-151-A16'!Z18,IF(Obliczenia!$D$58="Vitocal 15x-A 151.A16",'Bilans-151-A16'!Z18,IF(Obliczenia!$D$58="Vitocal 25x-A 251.A10",'Bilans-251-A10'!Z18,IF(Obliczenia!$D$58="Vitocal 25x-A 251.A13",'Bilans-251-A13'!Z18,IF(Obliczenia!$D$58="Vitocal 15x-A 151.A06",'Bilans-151-A06'!Z18,IF(Obliczenia!$D$58="Vitocal 15x-A 151.A08",'Bilans-151-A08'!Z18,IF(Obliczenia!$D$58="Vitocal 15x-A 151.A04",'Bilans-151-A04'!Z18,IF(Obliczenia!$D$58="Vitocal 25x-A 251.A04",'Bilans-251-A04'!Z18,IF(Obliczenia!$D$58="Vitocal 25x-A 251.A06",'Bilans-251-A06'!Z18,IF(Obliczenia!$D$58="Vitocal 25x-A 251.A08",'Bilans-251-A08'!Z18,IF(Obliczenia!$D$58="Vitocal 100-A 101.B06",'Bilans-AWO-B06'!Z18,IF(Obliczenia!$D$58="Vitocal 100-A 101.B08",'Bilans-AWO-B08'!Z18,IF(Obliczenia!$D$58="Vitocal 100-A 101.A10",'Bilans-AWO-A10'!Z18,IF(Obliczenia!$D$58="Vitocal 100-A 101.A12",'Bilans-AWO-A12'!Z18,IF(Obliczenia!$D$58="Vitocal 100-A 101.A14",'Bilans-AWO-A14'!Z18,IF(Obliczenia!$D$58="Vitocal 100-A 101.A16",'Bilans-AWO-A16'!Z18,IF(Obliczenia!$D$58="Vitocal 100-A 101.A18",'Bilans-AWO-A18'!Z18,"błąd")))))))))))))))))))))))))))))))))) -> 65.54019512 | AB18: =IF(Obliczenia!$D$58="Vitocal 2xx-S 201.E06",'Bilans-E06'!AA18,IF(Obliczenia!$D$58="Vitocal 2xx-S 201.E08",'Bilans-E08'!AA18,IF(Obliczenia!$D$58="Vitocal 2xx-S 201.E10",'Bilans-E10'!AA18,IF(Obliczenia!$D$58="Vitocal 1xx-S 101.B04",'Bilans-B04'!AA18,IF(Obliczenia!$D$58="Vitocal 1xx-S 101.B06",'Bilans-B06'!AA18,IF(Obliczenia!$D$58="Vitocal 1xx-S 101.B08",'Bilans-B08'!AA18,IF(Obliczenia!$D$58="Vitocal 1xx-S 101.A12",'Bilans-A12'!AA18,IF(Obliczenia!$D$58="Vitocal 1xx-S 101.A14",'Bilans-A14'!AA18,IF(Obliczenia!$D$58="Vitocal 1xx-S 101.A16",'Bilans-A16'!AA18,IF(Obliczenia!$D$58="Vitocal 2xx-S 201.D04",'Bilans-D04'!AA18,IF(Obliczenia!$D$58="Vitocal 2xx-S 201.D06",'Bilans-B06'!AA18,IF(Obliczenia!$D$58="Vitocal 2xx-S 201.D08",'Bilans-D08'!AA18,IF(Obliczenia!$D$58="Vitocal 2xx-S 201.D10",'Bilans-D10'!AA18,IF(Obliczenia!$D$58="Vitocal 2xx-S 201.D13",'Bilans-D13'!AA18,IF(Obliczenia!$D$58="Vitocal 2xx-S 201.D16",'Bilans-D16'!AA18,IF(Obliczenia!$D$58="Vitocal 15x-A 151.A10",'Bilans-151-A10'!AA18,IF(Obliczenia!$D$58="Vitocal 15x-A 151.A13",'Bilans-151-A13'!AA18,IF(Obliczenia!$D$58="Vitocal 15x-A 151.A16",'Bilans-151-A16'!AA18,IF(Obliczenia!$D$58="Vitocal 15x-A 151.A16",'Bilans-151-A16'!AA18,IF(Obliczenia!$D$58="Vitocal 25x-A 251.A10",'Bilans-251-A10'!AA18,IF(Obliczenia!$D$58="Vitocal 25x-A 251.A13",'Bilans-251-A13'!AA18,IF(Obliczenia!$D$58="Vitocal 15x-A 151.A08",'Bilans-151-A08'!AA18,IF(Obliczenia!$D$58="Vitocal 15x-A 151.A06",'Bilans-151-A06'!AA18,IF(Obliczenia!$D$58="Vitocal 15x-A 151.A04",'Bilans-151-A04'!AA18,IF(Obliczenia!$D$58="Vitocal 25x-A 251.A04",'Bilans-251-A04'!AA18,IF(Obliczenia!$D$58="Vitocal 25x-A 251.A06",'Bilans-251-A06'!AA18,IF(Obliczenia!$D$58="Vitocal 25x-A 251.A08",'Bilans-251-A08'!AA18,IF(Obliczenia!$D$58="Vitocal 100-A 101.B06",'Bilans-AWO-B06'!AA18,IF(Obliczenia!$D$58="Vitocal 100-A 101.B08",'Bilans-AWO-B08'!AA18,IF(Obliczenia!$D$58="Vitocal 100-A 101.A10",'Bilans-AWO-A10'!AA18,IF(Obliczenia!$D$58="Vitocal 100-A 101.A12",'Bilans-AWO-A12'!AA18,IF(Obliczenia!$D$58="Vitocal 100-A 101.A14",'Bilans-AWO-A14'!AA18,IF(Obliczenia!$D$58="Vitocal 100-A 101.A16",'Bilans-AWO-A16'!AA18,IF(Obliczenia!$D$58="Vitocal 100-A 101.A18",'Bilans-AWO-A18'!AA18,"błąd")))))))))))))))))))))))))))))))))) -> 0 | AE18: B04 | AF18: ='B04'!B28 -> 8.45 | AG18: =IF(AF18>=$AF$4,IF($C$3<>"Grzejniki wysokotemperaturowe 70/55",1,0),0) -> 1 | AI18: 65.54019512 | AJ18: 0 | AR18: =IF(Obliczenia!$D$58="Vitocal 2xx-S 201.E06",'Bilans-E06'!AR18,IF(Obliczenia!$D$58="Vitocal 2xx-S 201.E08",'Bilans-E08'!AR18,IF(Obliczenia!$D$58="Vitocal 2xx-S 201.E10",'Bilans-E10'!AR18,IF(Obliczenia!$D$58="Vitocal 1xx-S 101.B04",'Bilans-B04'!AR18,IF(Obliczenia!$D$58="Vitocal 1xx-S 101.B06",'Bilans-B06'!AR18,IF(Obliczenia!$D$58="Vitocal 1xx-S 101.B08",'Bilans-B08'!AR18,IF(Obliczenia!$D$58="Vitocal 1xx-S 101.A12",'Bilans-A12'!AR18,IF(Obliczenia!$D$58="Vitocal 1xx-S 101.A14",'Bilans-A14'!AR18,IF(Obliczenia!$D$58="Vitocal 1xx-S 101.A16",'Bilans-A16'!AR18,IF(Obliczenia!$D$58="Vitocal 2xx-S 201.D04",'Bilans-D04'!AR18,IF(Obliczenia!$D$58="Vitocal 2xx-S 201.D06",'Bilans-B06'!AR18,IF(Obliczenia!$D$58="Vitocal 2xx-S 201.D08",'Bilans-D08'!AR18,IF(Obliczenia!$D$58="Vitocal 2xx-S 201.D10",'Bilans-D10'!AR18,IF(Obliczenia!$D$58="Vitocal 2xx-S 201.D13",'Bilans-D13'!AR18,IF(Obliczenia!$D$58="Vitocal 2xx-S 201.D16",'Bilans-D16'!AR18,IF(Obliczenia!$D$58="Vitocal 15x-A 151.A10",'Bilans-151-A10'!AR18,IF(Obliczenia!$D$58="Vitocal 15x-A 151.A13",'Bilans-151-A13'!AR18,IF(Obliczenia!$D$58="Vitocal 15x-A 151.A16",'Bilans-151-A16'!AR18,IF(Obliczenia!$D$58="Vitocal 25x-A 251.A10",'Bilans-251-A10'!AR18,IF(Obliczenia!$D$58="Vitocal 25x-A 251.A13",'Bilans-251-A13'!AR18,IF(Obliczenia!$D$58="Vitocal 15x-A 151.A08",'Bilans-151-A08'!AR18,IF(Obliczenia!$D$58="Vitocal 15x-A 151.A06",'Bilans-151-A06'!AR18,IF(Obliczenia!$D$58="Vitocal 15x-A 151.A04",'Bilans-151-A04'!AR18,IF(Obliczenia!$D$58="Vitocal 25x-A 251.A04",'Bilans-251-A04'!AR18,IF(Obliczenia!$D$58="Vitocal 25x-A 251.A06",'Bilans-251-A06'!AR18,IF(Obliczenia!$D$58="Vitocal 25x-A 251.A08",'Bilans-251-A08'!AR18,IF(Obliczenia!$D$58="Vitocal 100-A 101.B06",'Bilans-AWO-B06'!AR18,IF(Obliczenia!$D$58="Vitocal 100-A 101.B08",'Bilans-AWO-B08'!AR18,IF(Obliczenia!$D$58="Vitocal 100-A 101.A10",'Bilans-AWO-A10'!AR18,IF(Obliczenia!$D$58="Vitocal 100-A 101.A12",'Bilans-AWO-A12'!AR18,IF(Obliczenia!$D$58="Vitocal 100-A 101.A14",'Bilans-AWO-A14'!AR18,IF(Obliczenia!$D$58="Vitocal 100-A 101.A16",'Bilans-AWO-A16'!AR18,IF(Obliczenia!$D$58="Vitocal 100-A 101.A18",'Bilans-AWO-A18'!AR18,"błąd"))))))))))))))))))))))))))))))))) -> 65.54019512 | AS18: =IF(Obliczenia!$D$58="Vitocal 2xx-S 201.E06",'Bilans-E06'!AS18,IF(Obliczenia!$D$58="Vitocal 2xx-S 201.E08",'Bilans-E08'!AS18,IF(Obliczenia!$D$58="Vitocal 2xx-S 201.E10",'Bilans-E10'!AS18,IF(Obliczenia!$D$58="Vitocal 1xx-S 101.B04",'Bilans-B04'!AS18,IF(Obliczenia!$D$58="Vitocal 1xx-S 101.B06",'Bilans-B06'!AS18,IF(Obliczenia!$D$58="Vitocal 1xx-S 101.B08",'Bilans-B08'!AS18,IF(Obliczenia!$D$58="Vitocal 1xx-S 101.A12",'Bilans-A12'!AS18,IF(Obliczenia!$D$58="Vitocal 1xx-S 101.A14",'Bilans-A14'!AS18,IF(Obliczenia!$D$58="Vitocal 1xx-S 101.A16",'Bilans-A16'!AS18,IF(Obliczenia!$D$58="Vitocal 2xx-S 201.D04",'Bilans-D04'!AS18,IF(Obliczenia!$D$58="Vitocal 2xx-S 201.D06",'Bilans-B06'!AS18,IF(Obliczenia!$D$58="Vitocal 2xx-S 201.D08",'Bilans-D08'!AS18,IF(Obliczenia!$D$58="Vitocal 2xx-S 201.D10",'Bilans-D10'!AS18,IF(Obliczenia!$D$58="Vitocal 2xx-S 201.D13",'Bilans-D13'!AS18,IF(Obliczenia!$D$58="Vitocal 2xx-S 201.D16",'Bilans-D16'!AS18,IF(Obliczenia!$D$58="Vitocal 15x-A 151.A10",'Bilans-151-A10'!AS18,IF(Obliczenia!$D$58="Vitocal 15x-A 151.A13",'Bilans-151-A13'!AS18,IF(Obliczenia!$D$58="Vitocal 15x-A 151.A16",'Bilans-151-A16'!AS18,IF(Obliczenia!$D$58="Vitocal 25x-A 251.A10",'Bilans-251-A10'!AS18,IF(Obliczenia!$D$58="Vitocal 25x-A 251.A13",'Bilans-251-A13'!AS18,IF(Obliczenia!$D$58="Vitocal 15x-A 151.A08",'Bilans-151-A08'!AS18,IF(Obliczenia!$D$58="Vitocal 15x-A 151.A06",'Bilans-151-A06'!AS18,IF(Obliczenia!$D$58="Vitocal 15x-A 151.A04",'Bilans-151-A04'!AS18,IF(Obliczenia!$D$58="Vitocal 25x-A 251.A04",'Bilans-251-A04'!AS18,IF(Obliczenia!$D$58="Vitocal 25x-A 251.A06",'Bilans-251-A06'!AS18,IF(Obliczenia!$D$58="Vitocal 25x-A 251.A08",'Bilans-251-A08'!AS18,IF(Obliczenia!$D$58="Vitocal 100-A 101.B06",'Bilans-AWO-B06'!AS18,IF(Obliczenia!$D$58="Vitocal 100-A 101.B08",'Bilans-AWO-B08'!AS18,IF(Obliczenia!$D$58="Vitocal 100-A 101.A10",'Bilans-AWO-A10'!AS18,IF(Obliczenia!$D$58="Vitocal 100-A 101.A12",'Bilans-AWO-A12'!AS18,IF(Obliczenia!$D$58="Vitocal 100-A 101.A14",'Bilans-AWO-A14'!AS18,IF(Obliczenia!$D$58="Vitocal 100-A 101.A16",'Bilans-AWO-A16'!AS18,IF(Obliczenia!$D$58="Vitocal 100-A 101.A18",'Bilans-AWO-A18'!AS18,"błąd"))))))))))))))))))))))))))))))))) -> 0 | AV18: =IF(Obliczenia!$D$58="Vitocal 2xx-S 201.E06",'Bilans-E06'!BJ18,IF(Obliczenia!$D$58="Vitocal 2xx-S 201.E08",'Bilans-E08'!BJ18,IF(Obliczenia!$D$58="Vitocal 2xx-S 201.E10",'Bilans-E10'!BJ18,IF(Obliczenia!$D$58="Vitocal 1xx-S 101.B04",'Bilans-B04'!BJ18,IF(Obliczenia!$D$58="Vitocal 1xx-S 101.B06",'Bilans-B06'!BJ18,IF(Obliczenia!$D$58="Vitocal 1xx-S 101.B08",'Bilans-B08'!BJ18,IF(Obliczenia!$D$58="Vitocal 1xx-S 101.A12",'Bilans-A12'!BJ18,IF(Obliczenia!$D$58="Vitocal 1xx-S 101.A14",'Bilans-A14'!BJ18,IF(Obliczenia!$D$58="Vitocal 1xx-S 101.A16",'Bilans-A16'!BJ18,IF(Obliczenia!$D$58="Vitocal 2xx-S 201.D04",'Bilans-D04'!BJ18,IF(Obliczenia!$D$58="Vitocal 2xx-S 201.D06",'Bilans-B06'!BJ18,IF(Obliczenia!$D$58="Vitocal 2xx-S 201.D08",'Bilans-D08'!BJ18,IF(Obliczenia!$D$58="Vitocal 2xx-S 201.D10",'Bilans-D10'!BJ18,IF(Obliczenia!$D$58="Vitocal 2xx-S 201.D13",'Bilans-D13'!BJ18,IF(Obliczenia!$D$58="Vitocal 2xx-S 201.D16",'Bilans-D16'!BJ18,IF(Obliczenia!$D$58="Vitocal 15x-A 151.A10",'Bilans-151-A10'!BJ18,IF(Obliczenia!$D$58="Vitocal 15x-A 151.A13",'Bilans-151-A13'!BJ18,IF(Obliczenia!$D$58="Vitocal 15x-A 151.A16",'Bilans-151-A16'!BJ18,IF(Obliczenia!$D$58="Vitocal 25x-A 251.A10",'Bilans-251-A10'!BJ18,IF(Obliczenia!$D$58="Vitocal 25x-A 251.A13",'Bilans-251-A13'!BJ18,IF(Obliczenia!$D$58="Vitocal 15x-A 151.A08",'Bilans-151-A08'!BJ18,IF(Obliczenia!$D$58="Vitocal 15x-A 151.A06",'Bilans-151-A06'!BJ18,IF(Obliczenia!$D$58="Vitocal 15x-A 151.A04",'Bilans-151-A04'!BJ18,IF(Obliczenia!$D$58="Vitocal 25x-A 251.A04",'Bilans-251-A04'!BJ18,IF(Obliczenia!$D$58="Vitocal 25x-A 251.A06",'Bilans-251-A06'!BJ18,IF(Obliczenia!$D$58="Vitocal 25x-A 251.A08",'Bilans-251-A08'!BJ18,IF(Obliczenia!$D$58="Vitocal 100-A 101.B06",'Bilans-AWO-B06'!BJ18,IF(Obliczenia!$D$58="Vitocal 100-A 101.B08",'Bilans-AWO-B08'!BJ18,IF(Obliczenia!$D$58="Vitocal 100-A 101.A10",'Bilans-AWO-A10'!BJ18,IF(Obliczenia!$D$58="Vitocal 100-A 101.A12",'Bilans-AWO-A12'!BJ18,IF(Obliczenia!$D$58="Vitocal 100-A 101.A14",'Bilans-AWO-A14'!BJ18,IF(Obliczenia!$D$58="Vitocal 100-A 101.A16",'Bilans-AWO-A16'!BJ18,IF(Obliczenia!$D$58="Vitocal 100-A 101.A18",'Bilans-AWO-A18'!BJ18,"błąd"))))))))))))))))))))))))))))))))) -> 65.54019512 | AW18: =IF(Obliczenia!$D$58="Vitocal 2xx-S 201.E06",'Bilans-E06'!BK18,IF(Obliczenia!$D$58="Vitocal 2xx-S 201.E08",'Bilans-E08'!BK18,IF(Obliczenia!$D$58="Vitocal 2xx-S 201.E10",'Bilans-E10'!BK18,IF(Obliczenia!$D$58="Vitocal 1xx-S 101.B04",'Bilans-B04'!BK18,IF(Obliczenia!$D$58="Vitocal 1xx-S 101.B06",'Bilans-B06'!BK18,IF(Obliczenia!$D$58="Vitocal 1xx-S 101.B08",'Bilans-B08'!BK18,IF(Obliczenia!$D$58="Vitocal 1xx-S 101.A12",'Bilans-A12'!BK18,IF(Obliczenia!$D$58="Vitocal 1xx-S 101.A14",'Bilans-A14'!BK18,IF(Obliczenia!$D$58="Vitocal 1xx-S 101.A16",'Bilans-A16'!BK18,IF(Obliczenia!$D$58="Vitocal 2xx-S 201.D04",'Bilans-D04'!BK18,IF(Obliczenia!$D$58="Vitocal 2xx-S 201.D06",'Bilans-B06'!BK18,IF(Obliczenia!$D$58="Vitocal 2xx-S 201.D08",'Bilans-D08'!BK18,IF(Obliczenia!$D$58="Vitocal 2xx-S 201.D10",'Bilans-D10'!BK18,IF(Obliczenia!$D$58="Vitocal 2xx-S 201.D13",'Bilans-D13'!BK18,IF(Obliczenia!$D$58="Vitocal 2xx-S 201.D16",'Bilans-D16'!BK18,IF(Obliczenia!$D$58="Vitocal 15x-A 151.A10",'Bilans-151-A10'!BK18,IF(Obliczenia!$D$58="Vitocal 15x-A 151.A13",'Bilans-151-A13'!BK18,IF(Obliczenia!$D$58="Vitocal 15x-A 151.A16",'Bilans-151-A16'!BK18,IF(Obliczenia!$D$58="Vitocal 25x-A 251.A10",'Bilans-251-A10'!BK18,IF(Obliczenia!$D$58="Vitocal 25x-A 251.A13",'Bilans-251-A13'!BK18,IF(Obliczenia!$D$58="Vitocal 15x-A 151.A08",'Bilans-151-A08'!BK18,IF(Obliczenia!$D$58="Vitocal 15x-A 151.A06",'Bilans-151-A06'!BK18,IF(Obliczenia!$D$58="Vitocal 15x-A 151.A04",'Bilans-151-A04'!BK18,IF(Obliczenia!$D$58="Vitocal 25x-A 251.A04",'Bilans-251-A04'!BK18,IF(Obliczenia!$D$58="Vitocal 25x-A 251.A06",'Bilans-251-A06'!BK18,IF(Obliczenia!$D$58="Vitocal 25x-A 251.A08",'Bilans-251-A08'!BK18,IF(Obliczenia!$D$58="Vitocal 100-A 101.B06",'Bilans-AWO-B06'!BK18,IF(Obliczenia!$D$58="Vitocal 100-A 101.B08",'Bilans-AWO-B08'!BK18,IF(Obliczenia!$D$58="Vitocal 100-A 101.A10",'Bilans-AWO-A10'!BK18,IF(Obliczenia!$D$58="Vitocal 100-A 101.A12",'Bilans-AWO-A12'!BK18,IF(Obliczenia!$D$58="Vitocal 100-A 101.A14",'Bilans-AWO-A14'!BK18,IF(Obliczenia!$D$58="Vitocal 100-A 101.A16",'Bilans-AWO-A16'!BK18,IF(Obliczenia!$D$58="Vitocal 100-A 101.A18",'Bilans-AWO-A18'!BK18,"błąd"))))))))))))))))))))))))))))))))) -> 0 | AZ18: =IF(Obliczenia!$D$58="Vitocal 15x-A 151.A10",'Bilans-151-A10'!CK18,IF(Obliczenia!$D$58="Vitocal 15x-A 151.A13",'Bilans-151-A13'!CK18,IF(Obliczenia!$D$58="Vitocal 15x-A 151.A16",'Bilans-151-A16'!CK18,IF(Obliczenia!$D$58="Vitocal 25x-A 251.A10",'Bilans-251-A10'!CK18,IF(Obliczenia!$D$58="Vitocal 25x-A 251.A13",'Bilans-251-A13'!CK18,IF(Obliczenia!$D$58="Vitocal 15x-A 151.A08",'Bilans-151-A08'!CK18,IF(Obliczenia!$D$58="Vitocal 15x-A 151.A06",'Bilans-151-A06'!CK18,IF(Obliczenia!$D$58="Vitocal 15x-A 151.A04",'Bilans-151-A04'!CK18,IF(Obliczenia!$D$58="Vitocal 25x-A 251.A04",'Bilans-251-A04'!CK18,IF(Obliczenia!$D$58="Vitocal 25x-A 251.A06",'Bilans-251-A06'!CK18,IF(Obliczenia!$D$58="Vitocal 25x-A 251.A08",'Bilans-251-A08'!CK18,"błąd"))))))))))) -> błąd | BA18: =IF(Obliczenia!$D$58="Vitocal 15x-A 151.A10",'Bilans-151-A10'!CL18,IF(Obliczenia!$D$58="Vitocal 15x-A 151.A13",'Bilans-151-A13'!CL18,IF(Obliczenia!$D$58="Vitocal 15x-A 151.A16",'Bilans-151-A16'!CL18,IF(Obliczenia!$D$58="Vitocal 25x-A 251.A10",'Bilans-251-A10'!CL18,IF(Obliczenia!$D$58="Vitocal 25x-A 251.A13",'Bilans-251-A13'!CL18,IF(Obliczenia!$D$58="Vitocal 15x-A 151.A08",'Bilans-151-A08'!CL18,IF(Obliczenia!$D$58="Vitocal 15x-A 151.A06",'Bilans-151-A06'!CL18,IF(Obliczenia!$D$58="Vitocal 15x-A 151.A04",'Bilans-151-A04'!CL18,IF(Obliczenia!$D$58="Vitocal 25x-A 251.A04",'Bilans-251-A04'!CL18,IF(Obliczenia!$D$58="Vitocal 25x-A 251.A06",'Bilans-251-A06'!CL18,IF(Obliczenia!$D$58="Vitocal 25x-A 251.A08",'Bilans-251-A08'!CL18,"błąd"))))))))))) -> błąd | CD18: 1 drzewo pochłania 7 kg CO2 rocznie | CH18: =(CH16/7) -> 203.8727647 | CI18: sztuk | CK18: -1.1375 | CL18: -6.620833333
A19: 14 | B19: 5.2 | C19: 5.2 | E19: 13 | F19: =AVERAGE(C295:C318) -> -1.6125 | H19: =F19*Budynek!$D$31+Budynek!$D$32 -> 28.1046875 | J19: =Budynek!$D$4*(Dane!$E$12-F19)*12/1000 -> 36.79770732 | L19: =Budynek!$D$4*(Dane!$E$13-F19)*12/1000 -> 30.28843902 | N19: 67.08614634 | P19: 67.08614634 | Q19: 67.08614634 | R19: 67.08614634 | S19: 67.08614634 | T19: 7.11627907 | AA19: =IF(Obliczenia!$D$58="Vitocal 2xx-S 201.E06",'Bilans-E06'!Z19,IF(Obliczenia!$D$58="Vitocal 2xx-S 201.E08",'Bilans-E08'!Z19,IF(Obliczenia!$D$58="Vitocal 2xx-S 201.E10",'Bilans-E10'!Z19,IF(Obliczenia!$D$58="Vitocal 1xx-S 101.B04",'Bilans-B04'!Z19,IF(Obliczenia!$D$58="Vitocal 1xx-S 101.B06",'Bilans-B06'!Z19,IF(Obliczenia!$D$58="Vitocal 1xx-S 101.B08",'Bilans-B08'!Z19,IF(Obliczenia!$D$58="Vitocal 1xx-S 101.A12",'Bilans-A12'!Z19,IF(Obliczenia!$D$58="Vitocal 1xx-S 101.A14",'Bilans-A14'!Z19,IF(Obliczenia!$D$58="Vitocal 1xx-S 101.A16",'Bilans-A16'!Z19,IF(Obliczenia!$D$58="Vitocal 2xx-S 201.D04",'Bilans-D04'!Z19,IF(Obliczenia!$D$58="Vitocal 2xx-S 201.D06",'Bilans-B06'!Z19,IF(Obliczenia!$D$58="Vitocal 2xx-S 201.D08",'Bilans-D08'!Z19,IF(Obliczenia!$D$58="Vitocal 2xx-S 201.D10",'Bilans-D10'!Z19,IF(Obliczenia!$D$58="Vitocal 2xx-S 201.D13",'Bilans-D13'!Z19,IF(Obliczenia!$D$58="Vitocal 2xx-S 201.D16",'Bilans-D16'!Z19,IF(Obliczenia!$D$58="Vitocal 15x-A 151.A10",'Bilans-151-A10'!Z19,IF(Obliczenia!$D$58="Vitocal 15x-A 151.A13",'Bilans-151-A13'!Z19,IF(Obliczenia!$D$58="Vitocal 15x-A 151.A16",'Bilans-151-A16'!Z19,IF(Obliczenia!$D$58="Vitocal 15x-A 151.A16",'Bilans-151-A16'!Z19,IF(Obliczenia!$D$58="Vitocal 25x-A 251.A10",'Bilans-251-A10'!Z19,IF(Obliczenia!$D$58="Vitocal 25x-A 251.A13",'Bilans-251-A13'!Z19,IF(Obliczenia!$D$58="Vitocal 15x-A 151.A06",'Bilans-151-A06'!Z19,IF(Obliczenia!$D$58="Vitocal 15x-A 151.A08",'Bilans-151-A08'!Z19,IF(Obliczenia!$D$58="Vitocal 15x-A 151.A04",'Bilans-151-A04'!Z19,IF(Obliczenia!$D$58="Vitocal 25x-A 251.A04",'Bilans-251-A04'!Z19,IF(Obliczenia!$D$58="Vitocal 25x-A 251.A06",'Bilans-251-A06'!Z19,IF(Obliczenia!$D$58="Vitocal 25x-A 251.A08",'Bilans-251-A08'!Z19,IF(Obliczenia!$D$58="Vitocal 100-A 101.B06",'Bilans-AWO-B06'!Z19,IF(Obliczenia!$D$58="Vitocal 100-A 101.B08",'Bilans-AWO-B08'!Z19,IF(Obliczenia!$D$58="Vitocal 100-A 101.A10",'Bilans-AWO-A10'!Z19,IF(Obliczenia!$D$58="Vitocal 100-A 101.A12",'Bilans-AWO-A12'!Z19,IF(Obliczenia!$D$58="Vitocal 100-A 101.A14",'Bilans-AWO-A14'!Z19,IF(Obliczenia!$D$58="Vitocal 100-A 101.A16",'Bilans-AWO-A16'!Z19,IF(Obliczenia!$D$58="Vitocal 100-A 101.A18",'Bilans-AWO-A18'!Z19,"błąd")))))))))))))))))))))))))))))))))) -> 67.08614634 | AB19: =IF(Obliczenia!$D$58="Vitocal 2xx-S 201.E06",'Bilans-E06'!AA19,IF(Obliczenia!$D$58="Vitocal 2xx-S 201.E08",'Bilans-E08'!AA19,IF(Obliczenia!$D$58="Vitocal 2xx-S 201.E10",'Bilans-E10'!AA19,IF(Obliczenia!$D$58="Vitocal 1xx-S 101.B04",'Bilans-B04'!AA19,IF(Obliczenia!$D$58="Vitocal 1xx-S 101.B06",'Bilans-B06'!AA19,IF(Obliczenia!$D$58="Vitocal 1xx-S 101.B08",'Bilans-B08'!AA19,IF(Obliczenia!$D$58="Vitocal 1xx-S 101.A12",'Bilans-A12'!AA19,IF(Obliczenia!$D$58="Vitocal 1xx-S 101.A14",'Bilans-A14'!AA19,IF(Obliczenia!$D$58="Vitocal 1xx-S 101.A16",'Bilans-A16'!AA19,IF(Obliczenia!$D$58="Vitocal 2xx-S 201.D04",'Bilans-D04'!AA19,IF(Obliczenia!$D$58="Vitocal 2xx-S 201.D06",'Bilans-B06'!AA19,IF(Obliczenia!$D$58="Vitocal 2xx-S 201.D08",'Bilans-D08'!AA19,IF(Obliczenia!$D$58="Vitocal 2xx-S 201.D10",'Bilans-D10'!AA19,IF(Obliczenia!$D$58="Vitocal 2xx-S 201.D13",'Bilans-D13'!AA19,IF(Obliczenia!$D$58="Vitocal 2xx-S 201.D16",'Bilans-D16'!AA19,IF(Obliczenia!$D$58="Vitocal 15x-A 151.A10",'Bilans-151-A10'!AA19,IF(Obliczenia!$D$58="Vitocal 15x-A 151.A13",'Bilans-151-A13'!AA19,IF(Obliczenia!$D$58="Vitocal 15x-A 151.A16",'Bilans-151-A16'!AA19,IF(Obliczenia!$D$58="Vitocal 15x-A 151.A16",'Bilans-151-A16'!AA19,IF(Obliczenia!$D$58="Vitocal 25x-A 251.A10",'Bilans-251-A10'!AA19,IF(Obliczenia!$D$58="Vitocal 25x-A 251.A13",'Bilans-251-A13'!AA19,IF(Obliczenia!$D$58="Vitocal 15x-A 151.A08",'Bilans-151-A08'!AA19,IF(Obliczenia!$D$58="Vitocal 15x-A 151.A06",'Bilans-151-A06'!AA19,IF(Obliczenia!$D$58="Vitocal 15x-A 151.A04",'Bilans-151-A04'!AA19,IF(Obliczenia!$D$58="Vitocal 25x-A 251.A04",'Bilans-251-A04'!AA19,IF(Obliczenia!$D$58="Vitocal 25x-A 251.A06",'Bilans-251-A06'!AA19,IF(Obliczenia!$D$58="Vitocal 25x-A 251.A08",'Bilans-251-A08'!AA19,IF(Obliczenia!$D$58="Vitocal 100-A 101.B06",'Bilans-AWO-B06'!AA19,IF(Obliczenia!$D$58="Vitocal 100-A 101.B08",'Bilans-AWO-B08'!AA19,IF(Obliczenia!$D$58="Vitocal 100-A 101.A10",'Bilans-AWO-A10'!AA19,IF(Obliczenia!$D$58="Vitocal 100-A 101.A12",'Bilans-AWO-A12'!AA19,IF(Obliczenia!$D$58="Vitocal 100-A 101.A14",'Bilans-AWO-A14'!AA19,IF(Obliczenia!$D$58="Vitocal 100-A 101.A16",'Bilans-AWO-A16'!AA19,IF(Obliczenia!$D$58="Vitocal 100-A 101.A18",'Bilans-AWO-A18'!AA19,"błąd")))))))))))))))))))))))))))))))))) -> 0 | AI19: 67.08614634 | AJ19: 0 | AR19: =IF(Obliczenia!$D$58="Vitocal 2xx-S 201.E06",'Bilans-E06'!AR19,IF(Obliczenia!$D$58="Vitocal 2xx-S 201.E08",'Bilans-E08'!AR19,IF(Obliczenia!$D$58="Vitocal 2xx-S 201.E10",'Bilans-E10'!AR19,IF(Obliczenia!$D$58="Vitocal 1xx-S 101.B04",'Bilans-B04'!AR19,IF(Obliczenia!$D$58="Vitocal 1xx-S 101.B06",'Bilans-B06'!AR19,IF(Obliczenia!$D$58="Vitocal 1xx-S 101.B08",'Bilans-B08'!AR19,IF(Obliczenia!$D$58="Vitocal 1xx-S 101.A12",'Bilans-A12'!AR19,IF(Obliczenia!$D$58="Vitocal 1xx-S 101.A14",'Bilans-A14'!AR19,IF(Obliczenia!$D$58="Vitocal 1xx-S 101.A16",'Bilans-A16'!AR19,IF(Obliczenia!$D$58="Vitocal 2xx-S 201.D04",'Bilans-D04'!AR19,IF(Obliczenia!$D$58="Vitocal 2xx-S 201.D06",'Bilans-B06'!AR19,IF(Obliczenia!$D$58="Vitocal 2xx-S 201.D08",'Bilans-D08'!AR19,IF(Obliczenia!$D$58="Vitocal 2xx-S 201.D10",'Bilans-D10'!AR19,IF(Obliczenia!$D$58="Vitocal 2xx-S 201.D13",'Bilans-D13'!AR19,IF(Obliczenia!$D$58="Vitocal 2xx-S 201.D16",'Bilans-D16'!AR19,IF(Obliczenia!$D$58="Vitocal 15x-A 151.A10",'Bilans-151-A10'!AR19,IF(Obliczenia!$D$58="Vitocal 15x-A 151.A13",'Bilans-151-A13'!AR19,IF(Obliczenia!$D$58="Vitocal 15x-A 151.A16",'Bilans-151-A16'!AR19,IF(Obliczenia!$D$58="Vitocal 25x-A 251.A10",'Bilans-251-A10'!AR19,IF(Obliczenia!$D$58="Vitocal 25x-A 251.A13",'Bilans-251-A13'!AR19,IF(Obliczenia!$D$58="Vitocal 15x-A 151.A08",'Bilans-151-A08'!AR19,IF(Obliczenia!$D$58="Vitocal 15x-A 151.A06",'Bilans-151-A06'!AR19,IF(Obliczenia!$D$58="Vitocal 15x-A 151.A04",'Bilans-151-A04'!AR19,IF(Obliczenia!$D$58="Vitocal 25x-A 251.A04",'Bilans-251-A04'!AR19,IF(Obliczenia!$D$58="Vitocal 25x-A 251.A06",'Bilans-251-A06'!AR19,IF(Obliczenia!$D$58="Vitocal 25x-A 251.A08",'Bilans-251-A08'!AR19,IF(Obliczenia!$D$58="Vitocal 100-A 101.B06",'Bilans-AWO-B06'!AR19,IF(Obliczenia!$D$58="Vitocal 100-A 101.B08",'Bilans-AWO-B08'!AR19,IF(Obliczenia!$D$58="Vitocal 100-A 101.A10",'Bilans-AWO-A10'!AR19,IF(Obliczenia!$D$58="Vitocal 100-A 101.A12",'Bilans-AWO-A12'!AR19,IF(Obliczenia!$D$58="Vitocal 100-A 101.A14",'Bilans-AWO-A14'!AR19,IF(Obliczenia!$D$58="Vitocal 100-A 101.A16",'Bilans-AWO-A16'!AR19,IF(Obliczenia!$D$58="Vitocal 100-A 101.A18",'Bilans-AWO-A18'!AR19,"błąd"))))))))))))))))))))))))))))))))) -> 67.08614634 | AS19: =IF(Obliczenia!$D$58="Vitocal 2xx-S 201.E06",'Bilans-E06'!AS19,IF(Obliczenia!$D$58="Vitocal 2xx-S 201.E08",'Bilans-E08'!AS19,IF(Obliczenia!$D$58="Vitocal 2xx-S 201.E10",'Bilans-E10'!AS19,IF(Obliczenia!$D$58="Vitocal 1xx-S 101.B04",'Bilans-B04'!AS19,IF(Obliczenia!$D$58="Vitocal 1xx-S 101.B06",'Bilans-B06'!AS19,IF(Obliczenia!$D$58="Vitocal 1xx-S 101.B08",'Bilans-B08'!AS19,IF(Obliczenia!$D$58="Vitocal 1xx-S 101.A12",'Bilans-A12'!AS19,IF(Obliczenia!$D$58="Vitocal 1xx-S 101.A14",'Bilans-A14'!AS19,IF(Obliczenia!$D$58="Vitocal 1xx-S 101.A16",'Bilans-A16'!AS19,IF(Obliczenia!$D$58="Vitocal 2xx-S 201.D04",'Bilans-D04'!AS19,IF(Obliczenia!$D$58="Vitocal 2xx-S 201.D06",'Bilans-B06'!AS19,IF(Obliczenia!$D$58="Vitocal 2xx-S 201.D08",'Bilans-D08'!AS19,IF(Obliczenia!$D$58="Vitocal 2xx-S 201.D10",'Bilans-D10'!AS19,IF(Obliczenia!$D$58="Vitocal 2xx-S 201.D13",'Bilans-D13'!AS19,IF(Obliczenia!$D$58="Vitocal 2xx-S 201.D16",'Bilans-D16'!AS19,IF(Obliczenia!$D$58="Vitocal 15x-A 151.A10",'Bilans-151-A10'!AS19,IF(Obliczenia!$D$58="Vitocal 15x-A 151.A13",'Bilans-151-A13'!AS19,IF(Obliczenia!$D$58="Vitocal 15x-A 151.A16",'Bilans-151-A16'!AS19,IF(Obliczenia!$D$58="Vitocal 25x-A 251.A10",'Bilans-251-A10'!AS19,IF(Obliczenia!$D$58="Vitocal 25x-A 251.A13",'Bilans-251-A13'!AS19,IF(Obliczenia!$D$58="Vitocal 15x-A 151.A08",'Bilans-151-A08'!AS19,IF(Obliczenia!$D$58="Vitocal 15x-A 151.A06",'Bilans-151-A06'!AS19,IF(Obliczenia!$D$58="Vitocal 15x-A 151.A04",'Bilans-151-A04'!AS19,IF(Obliczenia!$D$58="Vitocal 25x-A 251.A04",'Bilans-251-A04'!AS19,IF(Obliczenia!$D$58="Vitocal 25x-A 251.A06",'Bilans-251-A06'!AS19,IF(Obliczenia!$D$58="Vitocal 25x-A 251.A08",'Bilans-251-A08'!AS19,IF(Obliczenia!$D$58="Vitocal 100-A 101.B06",'Bilans-AWO-B06'!AS19,IF(Obliczenia!$D$58="Vitocal 100-A 101.B08",'Bilans-AWO-B08'!AS19,IF(Obliczenia!$D$58="Vitocal 100-A 101.A10",'Bilans-AWO-A10'!AS19,IF(Obliczenia!$D$58="Vitocal 100-A 101.A12",'Bilans-AWO-A12'!AS19,IF(Obliczenia!$D$58="Vitocal 100-A 101.A14",'Bilans-AWO-A14'!AS19,IF(Obliczenia!$D$58="Vitocal 100-A 101.A16",'Bilans-AWO-A16'!AS19,IF(Obliczenia!$D$58="Vitocal 100-A 101.A18",'Bilans-AWO-A18'!AS19,"błąd"))))))))))))))))))))))))))))))))) -> 0 | AV19: =IF(Obliczenia!$D$58="Vitocal 2xx-S 201.E06",'Bilans-E06'!BJ19,IF(Obliczenia!$D$58="Vitocal 2xx-S 201.E08",'Bilans-E08'!BJ19,IF(Obliczenia!$D$58="Vitocal 2xx-S 201.E10",'Bilans-E10'!BJ19,IF(Obliczenia!$D$58="Vitocal 1xx-S 101.B04",'Bilans-B04'!BJ19,IF(Obliczenia!$D$58="Vitocal 1xx-S 101.B06",'Bilans-B06'!BJ19,IF(Obliczenia!$D$58="Vitocal 1xx-S 101.B08",'Bilans-B08'!BJ19,IF(Obliczenia!$D$58="Vitocal 1xx-S 101.A12",'Bilans-A12'!BJ19,IF(Obliczenia!$D$58="Vitocal 1xx-S 101.A14",'Bilans-A14'!BJ19,IF(Obliczenia!$D$58="Vitocal 1xx-S 101.A16",'Bilans-A16'!BJ19,IF(Obliczenia!$D$58="Vitocal 2xx-S 201.D04",'Bilans-D04'!BJ19,IF(Obliczenia!$D$58="Vitocal 2xx-S 201.D06",'Bilans-B06'!BJ19,IF(Obliczenia!$D$58="Vitocal 2xx-S 201.D08",'Bilans-D08'!BJ19,IF(Obliczenia!$D$58="Vitocal 2xx-S 201.D10",'Bilans-D10'!BJ19,IF(Obliczenia!$D$58="Vitocal 2xx-S 201.D13",'Bilans-D13'!BJ19,IF(Obliczenia!$D$58="Vitocal 2xx-S 201.D16",'Bilans-D16'!BJ19,IF(Obliczenia!$D$58="Vitocal 15x-A 151.A10",'Bilans-151-A10'!BJ19,IF(Obliczenia!$D$58="Vitocal 15x-A 151.A13",'Bilans-151-A13'!BJ19,IF(Obliczenia!$D$58="Vitocal 15x-A 151.A16",'Bilans-151-A16'!BJ19,IF(Obliczenia!$D$58="Vitocal 25x-A 251.A10",'Bilans-251-A10'!BJ19,IF(Obliczenia!$D$58="Vitocal 25x-A 251.A13",'Bilans-251-A13'!BJ19,IF(Obliczenia!$D$58="Vitocal 15x-A 151.A08",'Bilans-151-A08'!BJ19,IF(Obliczenia!$D$58="Vitocal 15x-A 151.A06",'Bilans-151-A06'!BJ19,IF(Obliczenia!$D$58="Vitocal 15x-A 151.A04",'Bilans-151-A04'!BJ19,IF(Obliczenia!$D$58="Vitocal 25x-A 251.A04",'Bilans-251-A04'!BJ19,IF(Obliczenia!$D$58="Vitocal 25x-A 251.A06",'Bilans-251-A06'!BJ19,IF(Obliczenia!$D$58="Vitocal 25x-A 251.A08",'Bilans-251-A08'!BJ19,IF(Obliczenia!$D$58="Vitocal 100-A 101.B06",'Bilans-AWO-B06'!BJ19,IF(Obliczenia!$D$58="Vitocal 100-A 101.B08",'Bilans-AWO-B08'!BJ19,IF(Obliczenia!$D$58="Vitocal 100-A 101.A10",'Bilans-AWO-A10'!BJ19,IF(Obliczenia!$D$58="Vitocal 100-A 101.A12",'Bilans-AWO-A12'!BJ19,IF(Obliczenia!$D$58="Vitocal 100-A 101.A14",'Bilans-AWO-A14'!BJ19,IF(Obliczenia!$D$58="Vitocal 100-A 101.A16",'Bilans-AWO-A16'!BJ19,IF(Obliczenia!$D$58="Vitocal 100-A 101.A18",'Bilans-AWO-A18'!BJ19,"błąd"))))))))))))))))))))))))))))))))) -> 67.08614634 | AW19: =IF(Obliczenia!$D$58="Vitocal 2xx-S 201.E06",'Bilans-E06'!BK19,IF(Obliczenia!$D$58="Vitocal 2xx-S 201.E08",'Bilans-E08'!BK19,IF(Obliczenia!$D$58="Vitocal 2xx-S 201.E10",'Bilans-E10'!BK19,IF(Obliczenia!$D$58="Vitocal 1xx-S 101.B04",'Bilans-B04'!BK19,IF(Obliczenia!$D$58="Vitocal 1xx-S 101.B06",'Bilans-B06'!BK19,IF(Obliczenia!$D$58="Vitocal 1xx-S 101.B08",'Bilans-B08'!BK19,IF(Obliczenia!$D$58="Vitocal 1xx-S 101.A12",'Bilans-A12'!BK19,IF(Obliczenia!$D$58="Vitocal 1xx-S 101.A14",'Bilans-A14'!BK19,IF(Obliczenia!$D$58="Vitocal 1xx-S 101.A16",'Bilans-A16'!BK19,IF(Obliczenia!$D$58="Vitocal 2xx-S 201.D04",'Bilans-D04'!BK19,IF(Obliczenia!$D$58="Vitocal 2xx-S 201.D06",'Bilans-B06'!BK19,IF(Obliczenia!$D$58="Vitocal 2xx-S 201.D08",'Bilans-D08'!BK19,IF(Obliczenia!$D$58="Vitocal 2xx-S 201.D10",'Bilans-D10'!BK19,IF(Obliczenia!$D$58="Vitocal 2xx-S 201.D13",'Bilans-D13'!BK19,IF(Obliczenia!$D$58="Vitocal 2xx-S 201.D16",'Bilans-D16'!BK19,IF(Obliczenia!$D$58="Vitocal 15x-A 151.A10",'Bilans-151-A10'!BK19,IF(Obliczenia!$D$58="Vitocal 15x-A 151.A13",'Bilans-151-A13'!BK19,IF(Obliczenia!$D$58="Vitocal 15x-A 151.A16",'Bilans-151-A16'!BK19,IF(Obliczenia!$D$58="Vitocal 25x-A 251.A10",'Bilans-251-A10'!BK19,IF(Obliczenia!$D$58="Vitocal 25x-A 251.A13",'Bilans-251-A13'!BK19,IF(Obliczenia!$D$58="Vitocal 15x-A 151.A08",'Bilans-151-A08'!BK19,IF(Obliczenia!$D$58="Vitocal 15x-A 151.A06",'Bilans-151-A06'!BK19,IF(Obliczenia!$D$58="Vitocal 15x-A 151.A04",'Bilans-151-A04'!BK19,IF(Obliczenia!$D$58="Vitocal 25x-A 251.A04",'Bilans-251-A04'!BK19,IF(Obliczenia!$D$58="Vitocal 25x-A 251.A06",'Bilans-251-A06'!BK19,IF(Obliczenia!$D$58="Vitocal 25x-A 251.A08",'Bilans-251-A08'!BK19,IF(Obliczenia!$D$58="Vitocal 100-A 101.B06",'Bilans-AWO-B06'!BK19,IF(Obliczenia!$D$58="Vitocal 100-A 101.B08",'Bilans-AWO-B08'!BK19,IF(Obliczenia!$D$58="Vitocal 100-A 101.A10",'Bilans-AWO-A10'!BK19,IF(Obliczenia!$D$58="Vitocal 100-A 101.A12",'Bilans-AWO-A12'!BK19,IF(Obliczenia!$D$58="Vitocal 100-A 101.A14",'Bilans-AWO-A14'!BK19,IF(Obliczenia!$D$58="Vitocal 100-A 101.A16",'Bilans-AWO-A16'!BK19,IF(Obliczenia!$D$58="Vitocal 100-A 101.A18",'Bilans-AWO-A18'!BK19,"błąd"))))))))))))))))))))))))))))))))) -> 0 | AZ19: =IF(Obliczenia!$D$58="Vitocal 15x-A 151.A10",'Bilans-151-A10'!CK19,IF(Obliczenia!$D$58="Vitocal 15x-A 151.A13",'Bilans-151-A13'!CK19,IF(Obliczenia!$D$58="Vitocal 15x-A 151.A16",'Bilans-151-A16'!CK19,IF(Obliczenia!$D$58="Vitocal 25x-A 251.A10",'Bilans-251-A10'!CK19,IF(Obliczenia!$D$58="Vitocal 25x-A 251.A13",'Bilans-251-A13'!CK19,IF(Obliczenia!$D$58="Vitocal 15x-A 151.A08",'Bilans-151-A08'!CK19,IF(Obliczenia!$D$58="Vitocal 15x-A 151.A06",'Bilans-151-A06'!CK19,IF(Obliczenia!$D$58="Vitocal 15x-A 151.A04",'Bilans-151-A04'!CK19,IF(Obliczenia!$D$58="Vitocal 25x-A 251.A04",'Bilans-251-A04'!CK19,IF(Obliczenia!$D$58="Vitocal 25x-A 251.A06",'Bilans-251-A06'!CK19,IF(Obliczenia!$D$58="Vitocal 25x-A 251.A08",'Bilans-251-A08'!CK19,"błąd"))))))))))) -> błąd | BA19: =IF(Obliczenia!$D$58="Vitocal 15x-A 151.A10",'Bilans-151-A10'!CL19,IF(Obliczenia!$D$58="Vitocal 15x-A 151.A13",'Bilans-151-A13'!CL19,IF(Obliczenia!$D$58="Vitocal 15x-A 151.A16",'Bilans-151-A16'!CL19,IF(Obliczenia!$D$58="Vitocal 25x-A 251.A10",'Bilans-251-A10'!CL19,IF(Obliczenia!$D$58="Vitocal 25x-A 251.A13",'Bilans-251-A13'!CL19,IF(Obliczenia!$D$58="Vitocal 15x-A 151.A08",'Bilans-151-A08'!CL19,IF(Obliczenia!$D$58="Vitocal 15x-A 151.A06",'Bilans-151-A06'!CL19,IF(Obliczenia!$D$58="Vitocal 15x-A 151.A04",'Bilans-151-A04'!CL19,IF(Obliczenia!$D$58="Vitocal 25x-A 251.A04",'Bilans-251-A04'!CL19,IF(Obliczenia!$D$58="Vitocal 25x-A 251.A06",'Bilans-251-A06'!CL19,IF(Obliczenia!$D$58="Vitocal 25x-A 251.A08",'Bilans-251-A08'!CL19,"błąd"))))))))))) -> błąd | BE19: =Obliczenia!AA13 -> Ogrzewanie podłogowe | CK19: -1.6125 | CL19: -6.541666667
